Workbook

Sheet Design the Power Module
A1: TPSM6360x 3V‒36VIN, 1V‒16VOUT Power Module Design Tool
O2: http://www.ti.com/product/lm5175
A3: About | C3: xx | F3: = Input Box | O3: TERMS OF USE
A5: Step 1: Operating Specifications
D6: Input Voltage – Min, VIN(min) | E6: 12 | F6: V
D7: Input Voltage – Nom, VIN(nom) | E7: 24 | F7: V
D8: Input Voltage – Max, VIN(max) | E8: 36 | F8: V
D9: Output Voltage, VOUT | E9: 5 | F9: V
D10: Full Load Output Current, IOUT | E10: 4 | F10: A
D11: Switching Frequency, FSW | E11: 832 | F11: kHz
D12: Frequency Set Resistor, RT | E12: ='Variable Management'!C340 -> 15.8 | F12: ='Variable Management'!E340 -> kΩ
D13: Ambient Temperature, TA | E13: 25 | F13: °C
A15: Step 2: Buck Inductor
D16: Inductor Pk-Pk Ripple Current at VIN(nom) | E16: ='Variable Management'!B60 -> 2.707692262 | F16: Apk-pk
D17: DIL as a % of Full Load at VIN(nom) | E17: ='Variable Management'!D60*100 -> 67.69230655 | F17: %
D18: Peak Inductor Current at VIN(max) and Full Load | E18: ='Variable Management'!B99 -> 5.478495228 | F18: Apk
D19: Peak Inductor Current Limit | E19: =Ipk_OCP -> 9.3 | F19: Apk
A21: Step 3: Output Capacitors
D22: Desired Output Voltage Ripple | E22: 50 | F22: mVpk-pk
D23: Effective COUT Value to Meet Ripple Spec | E23: ='Variable Management'!B113 -> 8.136094537 | F23: µF
D24: Desired Crossover Frequency | E24: 80 | F24: =" kHz " -> kHz
D25: Effective COUT Value to Meet Crossover Spec | E25: ='Variable Management'!B206 -> 37.99967396 | F25: µF
D26: Output Capacitance (derated), COUT | E26: 60 | F26: µF
D27: Output Cap ESR (Max) to Meet Ripple Spec | E27: ='Variable Management'!B117 -> 18.2953481 | F27: mΩ
D28: Output Capacitor ESR | E28: 2 | F28: mΩ
D29: Resulting Output Voltage Ripple (max) | E29: ='Variable Management'!B119*1000 -> 8.677318584 | F29: mVpk-pk
D30: Output Capacitor RMS Current (max) | E30: ='Variable Management'!B106 -> 0.8536096179 | F30: A (rms)
A32: Step 4: Input Capacitors
D33: Input Voltage Ripple Spec | E33: 120 | F33: mVpk-pk
D34: Minimum Input Capacitance | E34: ='Variable Management'!B136 -> 10.01602564 | F34: µF
D35: Input Capacitance (derated), CIN | E35: 20 | F35: µF
D36: Maximum Permitted ESR | E36: ='Variable Management'!B141 -> 10.93436129 | F36: mΩ
D37: Input Capacitor ESR | E37: 1 | F37: mΩ
D38: Resulting Input Voltage Ripple (max) | E38: ='Variable Management'!B146*1000 -> 65.57464907 | F38: mVpk-pk
D39: Input Capacitor RMS Current (max) | E39: ='Variable Management'!B129 -> 2.01684389 | F39: A (rms)
L40: =CHOOSE(SCH_MODE, "", "** For Single-Output Operation in 2-Phase Mode, tie MODE to VDDA and use FB1 to set VOUT **", "** For Single-Output Operation in 3-Phase Mode, tie both MODE pins to VDDA. Use FB1 of master IC to set VOUT. Connect FB2 of master IC to AGND. Connect FB2 of slave IC to VDDA to configure it as a slave **", "** For Single-Output Operation in 4-Phase Mode, tie both MODE pins to VDDA. Use FB1 of master IC to set VOUT. Connect FB2 of master IC to AGND. Connect FB2 of slave IC to VDDA to configure it as a slave **") -> 
A41: Step 5: Feedback Network
D42: =CHOOSE(TPSM63603_Fixed_Vout, "Lower Feedback Resistance", "* Tie FB to VOUT for a Fixed 5V Output", "* Tie FB to VOUT for a Fixed 3.3V Output") -> Lower Feedback Resistance | E42: 10 | F42: kΩ | L42: =CHOOSE(SCH_MODE, "", "** For Single-Output Operation in 2-Phase Mode, tie MODE to VDDA and use FB1 to set VOUT **", "** For Single-Output Operation in 3-Phase Mode, tie both MODE pins to VDDA. Use FB1 of master IC to set VOUT. Connect FB2 of master IC to AGND. Connect FB2 of slave IC to VDDA to configure it as a slave **", "** For Single-Output Operation in 4-Phase Mode, tie both MODE pins to VDDA. Use FB1 of master IC to set VOUT. Connect FB2 of master IC to AGND. Connect FB2 of slave IC to VDDA to configure it as a slave **") -> 
D43: Upper Feedback Resistance (E96), RFBT | E43: =IF(Vout=Vref,"SHORT",Rfb2_u/1000) -> 40.2 | F43: =IF(Vout=Vref,"","kΩ") -> kΩ
D44: Feedforward Capacitance, CFF | E44: 22 | F44: pF
A46: Step 6: VIN UVLO
D47: Desired VIN UVLO Turn-On Threshold | E47: 8.9 | F47: V
D48: UVLO Divider Upper Resistance, RENT | E48: 604 | F48: kΩ
D49: UVLO Divider Lower Resistance (E96), RENB | E49: =Renb_u/1000 -> 100 | F49: =IF(Vout=Vref,"","kΩ") -> kΩ
D50: Actual VIN UVLO Turn-On Threshold | E50: =1.263/E49*(E48+E49) -> 8.89152 | F50: V
D51: Actual VIN UVLO Turn-Off Threshold | E51: =E50*0.72 -> 6.4018944 | F51: V
A53: Step 7: Power Loss & Thermals
D54: Total Power Dissipation | E54: ='Efficiency Calculations'!AT109 -> 1.376948592 | F54: W
D55: Junction Temperature (estimate) | E55: ='Variable Management'!B285 -> 55.29286901 | F55: °C
E56: =CHOOSE(Ext_VCC, "", "* Tie VLDOIN to GND") -> 

Sheet Schematic & BOM
A34: ="VIN = "&VIN_min&" V to "&VIN_max&" V, VOUT = "&Vout&" V, IOUT = "&Iout&" A, Fsw = "&Fsw/1000&" kHz" -> VIN = 12 V to 36 V, VOUT = 5 V, IOUT = 4 A, Fsw = 832 kHz
A35: High-Efficiency Synchronous Buck Power Module BOM
A36: Count | B36: Ref Des | C36: Value | D36: Description | H36: Size | I36: Part Number | J36: MFR
A37: =ROUNDUP('Design the Power Module'!E35/10,0) -> 2 | B37: CIN1, CIN2 | C37: 10 | D37: =C37 -> 10 | H37: 1210 | I37: Std | J37: Std
A38: 2 | B38: COUT | C38: 22 | D38: =C38 -> 22 | H38: 1210 | I38: Std | J38: Std
A39: 1 | B39: CVCC | C39: 1 | D39: =C39 -> 1 | H39: 0402 | I39: Std | J39: Std
A40: 1 | B40: CSYNC | C40: 1 | D40: =C40 -> 1 | H40: 0402 | I40: Std | J40: Std
A41: 1 | B41: CFF | C41: ='Variable Management'!D299 -> 22 | D41: =C41 -> 22 | H41: 0402 | I41: Std | J41: Std
A42: 1 | B42: RRT | C42: ='Design the Power Module'!E12 -> 15.8 | D42: =C42 -> 15.8 | H42: 0402 | I42: Std | J42: Std
A43: 1 | B43: RFBT | C43: ='Design the Power Module'!E42 -> 10 | D43: 10 | H43: 0402 | I43: Std | J43: Std
A44: 1 | B44: RFBB | C44: ='Design the Power Module'!E43 -> 40.2 | D44: 40.2 | H44: 0402 | I44: Std | J44: Std
A45: 1 | B45: RENT | C45: ='Variable Management'!D302 -> 604 | D45: 604 | H45: 0402 | I45: Std | J45: Std
A46: 1 | B46: RENB | C46: ='Variable Management'!D303 -> 100 | D46: 100 | H46: 0402 | I46: Std | J46: Std
A47: 1 | B47: RPGOOD | C47: 100 | D47: 100 | H47: 0402 | I47: Std | J47: Std
A48: 1 | B48: U1 | C48: ='Variable Management'!N19 -> TPSM63606 | D48: =CHOOSE(GPN, "IC, TPSM63606 Synchronous Buck Power Module, 3V–36V Input, 6A Output", "IC, TPSM63604 Synchronous Buck Power Module, 3V–36V Input, 4A Output", "IC, TPSM63603 Synchronous Buck Power Module, 3V–36V Input, 3A Output", "IC, TPSM63602 Synchronous Buck Power Module, 3V–36V Input, 2A Output") -> IC, TPSM63606 Synchronous Buck Power Module, 3V–36V Input, 6A Output | H48: =CHOOSE(GPN, "B3QFN", "B3QFN", "B0QFN", "B0QFN") -> B3QFN | I48: =CHOOSE(VARIANT, "TPSM63606RDLR", "TPSM63604RDLR", "TPSM63603RDHR", "TPSM63602RDHR", "TPSM63603V5RDHR", "TPSM63603V3RDHR") -> TPSM63606RDLR | J48: TI
A51: NOTES:
A52: ** Effective input and output capacitances should be appropriately derated for applied voltage and temperature, particularly with ceramics **

Sheet EVMs
A1: TPSM6360x Quickstart Design Tool
B4: TPSM63606EVM PCB Layout

Sheet Variable Management (hidden)
A1: EXCEL Variables Names/Calculations
B2: Input from user =
B3: Output =
B4: Constant
A5: Variable Name | B5: Value | C5: STD Units | E5: Notes | I5: Iteration
A6: Step 1: Operational Specs
A7: VIN_min | B7: ='Design the Power Module'!E6 -> 12 | C7: V | D7: Minimum input voltage | I7: 1
A8: VIN_nom | B8: ='Design the Power Module'!E7 -> 24 | C8: V | D8: Nominal input voltage | K8: Use CFF | L8: 1 | N8: TPSM63606 3.3Vout | O8: =IF(Vout = 3.3, 1, 0) -> 0 | T8: Dual Outputs | U8: 1 | W8: FPWM | X8: 1 | Z8: =CHOOSE(SCH_MODE, "Bode Plot (Ch1)", "Bode Plot - 2 Ph", "Bode Plot - 3 Ph", "Bode Plot - 4 Ph") -> Bode Plot (Ch1) | AA8: 1
A9: VIN_max | B9: ='Design the Power Module'!E8 -> 36 | C9: V | D9: Maximum input voltage | K9: No CFF | L9: 2 | N9: TPSM63603 5Vout | O9: =IF(Vout = 5, 1, 0) -> 1 | T9: Single Output – 2 Phases | U9: 2 | W9: DEM | X9: 2 | Z9: =IF(MODE=1, "Bode Plot (Ch2)", "N/A - Do Not Use") -> Bode Plot (Ch2) | AA9: 2
L10: 1 | N10: TPSM63603 Fixed Vout | O10: =IF(AND(GPN=3,Vout=3.3),3,IF(AND(GPN=3,Vout=5),2,1)) -> 1 | P10: 1 = No, 2 = 5V, 3 = 3.3V | T10: Single Output – 3 Phases | U10: 3 | W10: FPWM/DEM | X10: 2 | Z10: BODE_PLOT_TYPE | AA10: 1
A11: Vout | B11: ='Design the Power Module'!E9 -> 5 | C11: V | D11: Output voltage | K11: NO_FF_CAP | L11: =IF(L10=2, TRUE, FALSE) -> FALSE | O11: =AND(GPN=3, OR(O8,O9)) -> FALSE | T11: Single Output – 4 Phases | U11: 4
A12: Iout | B12: ='Design the Power Module'!E10 -> 4 | C12: A | D12: Output current | F12: Iout-max | G12: =CHOOSE(GPN, 6, 4, 3, 2) -> 6 | H12: A | I12: 1 | T12: Single/Dual Yes/No | U12: 1
I13: 1 | T13: MODE (Single/Dual), DUAL = 1, SINGLE = 2 | U13: =IF(U12=1, 1, 2) -> 1 | W13: External BIAS | X13: 1
A14: Rout | B14: =Vout/Iout -> 1.25 | C14: W | D14: Load resistance | T14: SINGLE OUTPUT (1 = YES) | U14: =IF(U12=1, 2, 1) -> 2 | W14: No External BIAS | X14: 2
A15: Pout | B15: =Vout*Iout -> 20 | C15: W | D15: Output power | N15: TPSM63606 6A module | O15: 1 | T15: Number of Phases | U15: =SCH_MODE -> 1 | W15: Ext_VCC | X15: 1
N16: TPSM63604 4A module | O16: 2
A17: Efficiency | B17: 0.9 | D17: Estimate of efficiency | L17: =Vout -> 5 | N17: TPSM63603 3A module | O17: 3
A18: Pin | B18: =Pout/Efficiency -> 22.22222222 | C18: W | D18: Calculate input power assuming finite efficiency | N18: TPSM63602 2A module | O18: 4
L19: GPN | N19: =CHOOSE(GPN, "TPSM63606", "TPSM63604", "TPSM63603", "TPSM63602") -> TPSM63606 | O19: 1 | W19: 2.2 MHz Fsw Setting | X19: 1
A20: Iin_Vinmin | B20: =Pin/VIN_min -> 1.851851852 | C20: A | W20: 440 kHz Fsw Setting | X20: 2
A21: Iin_Vinnom | B21: =Pin/VIN_nom -> 0.9259259259 | C21: A | D21: Input currents at min, nom, max Vin | H21: =AND(OSC=1, OR(Fsw/1000>2530, Fsw/1000<1800)) -> FALSE | K21: Variant | L21: VARIANT | N21: =CHOOSE(VARIANT, "TPSM63606", "TPSM63604", "TPSM63603", "TPSM63602", "TPSM63603V5", "TPSM63603V3") -> TPSM63606 | O21: =IF(AND(GPN=3,Vout=5),5,IF(AND(GPN=3,Vout=3.3),6,GPN)) -> 1 | W21: OSC | X21: 2
A22: Iin_Vinmax | B22: =Pin/VIN_max -> 0.6172839506 | C22: A | H22: =AND(OSC=2, OR(Fsw/1000>500, Fsw/1000<300)) -> TRUE
H23: =OR(H21,H22) -> TRUE
A24: Fsw | B24: ='Design the Power Module'!E11*1000 -> 832000 | C24: Hz | D24: Nominal switching frequency - determines RT resistor
A25: RT resistor to AGND | B25: =13.46/(Fsw/1000000)-0.44 -> 15.73788462 | C25: kΩ | I25: 1
A26: Tsw | B26: =1/Fsw -> 1.201923077e-06 | C26: sec | D26: Switching period
A27: Max crossover frequency = 20% Fsw | B27: =Fsw*0.2/1000 -> 166.4 | C27: kHz | F27: Min Crossover | G27: 10 | K27: Adjustable | L27: 1
A28: Vref | B28: 1 | C28: V | D28: Reference voltage | K28: 5V | L28: 2
A29: Rt | B29: ='Standard Value Calculator'!O12/1000 -> 15.8 | C29: kΩ | D29: Frequency set resistor | F29: =IF(OR((Fsw=440000),(Fsw=2200000)),"N/A",Rfadj/1000) -> 0.0158 | K29: 3.3V | L29: 3
K30: Adjustable_NoRT | L30: 4 | O30: TPSM63603V5
K31: 5V_NoRT | L31: 5 | O31: TPSM63603V3
K32: 3.3V_NoRT | L32: 6
A33: Step 2: Buck Inductor | B33: Channel 1 | K33: Schematic setting | L33: =IF(No_RT, IF(Vout=3.3, 6, IF(Vout=5, 5, 4)),IF(Vout=3.3, 3, IF(Vout=5, 2, 1))) -> 5
A34: Don1 | B34: =Vout/VIN_nom -> 0.2083333333 | F34: Ideal Duty Cycle at VIN(nom)
A35: Doff1 | B35: =1-34:34 -> 0.7916666667 | F35: Ideal 1- Duty Cycle at VIN(nom)
A37: D_Vinmin | B37: =Vout/VIN_min -> 0.4166666667
A38: D_Vinnom | B38: =Vout/VIN_nom -> 0.2083333333
A39: D_Vinmax | B39: =Vout/VIN_max -> 0.1388888889 | K39: Toko chip inductor for the TPSM63602/03
A41: L_Vinnom | B41: =(VIN_nom-Vout)*D1_Vinnom/(Fsw*Iout*0.35) -> 3.398294414e-06 | C41: H | F41: Calculated inductance for 35% ripple at VIN(nom) | K41: Current (A) | L41: L (uH)
A42: L_slopecomp | C42: H | F42: Calculated inductance based on one times inductor downslope | K42: 0 | L42: 2
K43: 0.5 | L43: 1.96
A44: Lopt | B44: =B41 -> 3.398294414e-06 | C44: H | F44: min of calculated inductances at VIN(min) and VIN(nom) | K44: 1 | L44: 1.91
A45: L_actual_TPSM63602-03 | B45: =-0.0238*Iout^2-0.0868*Iout+2.0073 -> 1.2793 | C45: uH | F45: Calculate TOKO chip inductance based on entered load current value | K45: 1.5 | L45: 1.82
A46: L_actual_TPSM63604-06 | B46: =-0.1304*Iout+2.32 -> 1.7984 | C46: uH | F46: Calculate MagLayers inductance based on entered load current value | K46: 2 | L46: 1.74
K47: 2.5 | L47: 1.64
A48: Lo | B48: =CHOOSE(GPN, B46, B46, B45, B45)*0.000001 -> 1.7984e-06 | C48: H | F48: Chosen inductance | K48: 3 | L48: 1.53
A49: Rdcr | B49: =CHOOSE(GPN, 0.021, 0.021, 0.068, 0.068) -> 0.021 | C49: W | F49: Chosen inductor DCR | K49: 3.5 | L49: 1.4
K50: 4 | L50: 1.29
A51: Don2 | B51: =(Vout+Iout*(Rdcr+Rdson2))/(Vin+Iout*(Rdson2-Rdson1)) -> 0.2160535117
A52: Doff2 | B52: =1-_Don2 -> 0.7839464883
A54: D_Vinmin_2 | B54: =(Vout+Iout*(Rdcr+Rdson2))/(VIN_min+Iout*(Rdson2-Rdson1)) -> 0.433557047 | D54: =Vout/VIN_min -> 0.4166666667 | F54: Duty cycles adjusted for DCR/Rdson voltage drops
A55: D_Vinnom_2 | B55: =(Vout+Iout*(Rdcr+Rdson2))/(VIN_nom+Iout*(Rdson2-Rdson1)) -> 0.2160535117 | D55: =Vout/VIN_nom -> 0.2083333333
A56: D_Vinmax_2 | B56: =(Vout+Iout*(Rdcr+Rdson2))/(VIN_max+Iout*(Rdson2-Rdson1)) -> 0.1438752784 | D56: =Vout/VIN_max -> 0.1388888889 | F56: =(Ts-0.000000085)/Ts -> 0.92928 | G56: Dmax = [Ts-toff(min)]/Ts
A59: Iripple_Vinmin | B59: =(VIN_min-Vout-Iout*(Rdcr+Rdson1))*D1_Vinmin_2/(Fsw*Lf) -> 1.956451395 | C59: A | D59: =B59/Iout -> 0.4891128488 | F59: Ripple calculations include DCR and Rdson | K59: MagLayers inductor for the TPSM63604/06
A60: Iripple_Vinnom | B60: =(VIN_nom-Vout-Iout*(Rdcr+Rdson1))*D1_Vinnom_2/(Fsw*Lf) -> 2.707692262 | C60: A | D60: =B60/Iout -> 0.6769230655 | F60: % ripple current at Vin-nom
A61: Iripple_Vinmax | B61: =(VIN_max-Vout-Iout*(Rdcr+Rdson1))*D1_Vinmax_2/(Fsw*Lf) -> 2.956990456 | C61: A | D61: =B61/Iout -> 0.739247614 | F61: Max inductor ripple current - it's at Vin-max | K61: Current (A) | L61: L (uH)
K62: 0 | L62: 2.2
A63: Iinductor_rms_Vinmin | B63: =SQRT(Iout^2+(Iripple_Vinmin^2)/12) -> 4.039675132 | C63: A | K63: 1 | L63: 2.18
A64: Iinductor_rms_Vinnom | B64: =SQRT(Iout^2+(Iripple_Vinnom^2)/12) -> 4.07565534 | C64: A | K64: 1.5 | L64: 2.14
A65: Iinudctor_rms_Vinmax | B65: =SQRT(Iout^2+(Iripple_Vinmax^2)/12) -> 4.090067161 | C65: A | K65: 2 | L65: 2.07
E66: TPSM63604/06 | F66: TPSM63602/03 | G66: => Result based on GPN | K66: 2.5 | L66: 2
A67: Core loss estimate - Vin(min) | B67: =kcore*Iripple_Vinmin^kcore1*(Fsw/1000)^kcore2 -> 0.1112147613 | C67: W | D67: kcore | E67: 4.2e-08 | F67: =0.000000042*0.5 -> 2.1e-08 | G67: =CHOOSE(GPN, E67, E67, F67, F67) -> 4.2e-08 | H67: Core loss constant | K67: 3 | L67: 1.93
A68: Core loss estimate - Vin(nom) | B68: =CHOOSE(GPN, kcore*Iripple_Vinnom^kcore1*(Fsw/1000)^kcore2, kcore*Iripple_Vinnom^kcore1*(Fsw/1000)^kcore2, 0.5*kcore*Iripple_Vinnom^kcore1*(Fsw/1000)^kcore2, 0.5*kcore*Iripple_Vinnom^kcore1*(Fsw/1000)^kcore2) -> 0.2506040217 | C68: W | D68: kcore1 | E68: 2.5 | F68: 2.5 | G68: =CHOOSE(GPN, E68, E68, F68, F68) -> 2.5 | H68: Ripple current exponent | K68: 4 | L68: 1.8
A69: Core loss estimate - Vin(max) | B69: =kcore*Iripple_Vinmax^kcore1*(Fsw/1000)^kcore2 -> 0.3123306346 | C69: W | D69: kcore2 | E69: 1.95 | F69: 1.95 | G69: =CHOOSE(GPN, E69, E69, F69, F69) -> 1.95 | H69: Fsw exponent | K69: 6 | L69: 1.55
D70: Pcore = kcore*(deltaI)^kcore1*(Fsw)^kcore2 | K70: 8 | L70: 1.28
D71: Note: ** core loss for 2A/3A versions scaled by 50% for smaller 2520 core size** | K71: 10 | L71: 1
A75: Inductor copper temperature | B75: 125 | C75: °C
A76: Inductor DCR at hot | B76: =Rdcr*(1+Ltc*(B75-25))*1000 -> 29.253 | C76: mW
A79: Step 2b: Sense Resistors, Slope Comp, Current Limit
A81: Ilimit_inductor_Vinmin | B81: =Ipk_OCP -> 9.3 | C81: A | F81: Peak inductor current at current limit inception
A82: Ilimit_inductor_Vinnom | B82: =Ipk_OCP -> 9.3 | C82: A
A83: Ilimit_inductor_Vinmax | B83: =Ipk_OCP -> 9.3 | C83: A
A85: CS threshold_min | B85: 0.068 | C85: V | D85: not applicable here
A86: CS threshold | B86: 0.075 | C86: V
A87: CS threshold_max | B87: 0.082 | C87: V
A89: Rs | B89: 0.041 | C89: W | F89: Current sense resistance Rs = high-side MOSFET Rdson
A91: Current limit setpoint - peak | B91: =CHOOSE(GPN, 9.3, 7, 6.2, 4.87) -> 9.3 | C91: A | D91: 9.3, 7, 6.2, 4.87A | F91: Peak current limit (trimmed at ATE) = min inductor sat current at hot
A93: Iout_OCP_Vinmin | B93: =Ipk_OCP-Iripple_Vinmin/2 -> 8.321774302 | C93: A | F93: Current limit setpoints (i.e. IOUT) assuming no CS delay
A94: Iout_OCP_Vinnom | B94: =Ipk_OCP-Iripple_Vinnom/2 -> 7.946153869 | C94: A
A95: Iout_OCP_Vinmax | B95: =Ipk_OCP-Iripple_Vinmax/2 -> 7.821504772 | C95: A
A97: Ipk_full-load_Vinmin | B97: =Iout+Iripple_Vinmin/2 -> 4.978225698 | C97: A
A98: Ipk_full-load_Vinnom | B98: =Iout+Iripple_Vinnom/2 -> 5.353846131 | C98: A
A99: Ipk_full-load_Vinmax | B99: =Iout+Iripple_Vinmax/2 -> 5.478495228 | C99: A
A102: Step 3: Output Capacitor
A103: Icoutrms_VINmin | B103: =Iripple_Vinmin/SQRT(12) -> 0.5647788698 | C103: A | F103: Output cap RMS current
A104: Icoutrms_VINnom | B104: =Iripple_Vinnom/SQRT(12) -> 0.7816434281 | C104: A
A105: Icoutrms_VINmax | B105: =Iripple_Vinmax/SQRT(12) -> 0.8536096179 | C105: A
A106: Max Cout rms current | B106: =MAX(B103:B105) -> 0.8536096179 | C106: A
A108: Vripple1 | B108: ='Design the Power Module'!E22/1000 -> 0.05 | C108: V | F108: Output voltage ripple spec(pk-pk)
A110: Output Ripple Spec (pk-pk) | B110: =Vo1_ripple*1000 -> 50 | C110: mV | F110: Vout ripple spec at Vin(nom)
A112: Coutmin | B112: =Iripple_Vinnom/(Fsw*8*Vo1_ripple) -> 8.136094537e-06 | C112: F | F112: Minimum output capacitnace | H112: =Vo2_ripple -> 0 | I112: 1
A113: Reported Coutmin | B113: =IF(Cout_min*1000000<2, 2.2,Cout_min*1000000) -> 8.136094537 | C113: uF
A114: Cout | B114: ='Design the Power Module'!E26/1000000 -> 6e-05 | C114: F | F114: Chosen output capacitance | I114: 1
A115: Resrmax | B115: =SQRT((Vo1_ripple/Iripple_Vinnom)^2-(1/(Fsw*Cout*8))^2) -> 0.0182953481 | C115: W | F115: Max ESR before ripple exceeds Vripple1 | I115: 1
A117: Reported Cout ESR max | B117: =IF(OR(CoutEsrMax>0.3, CoutEsrMax<0, (ISERROR(CoutEsrMax))), "N/A", CoutEsrMax*1000) -> 18.2953481 | C117: mΩ
A118: CoutEsr | B118: ='Design the Power Module'!E28/1000 -> 0.002 | C118: W | F118: Chosen ESR | I118: 1 | K118: =ISERROR(CoutEsrMax) -> FALSE | L118: =ISERROR(B117) -> FALSE
A119: Vripple | B119: =Iripple_Vinnom*SQRT(Cout_ESR^2+(1/(8*Fsw*Cout))^2) -> 0.008677318584 | C119: Vp-p | L119: =OR(CoutEsrMax>0.3,CoutEsrMax<0) -> FALSE
K120: =OR(TRUE, FALSE, TRUE) -> TRUE
A121: Step 4: Input Capacitor
A123: Icinrms_VINmin | B123: =SQRT(D1_Vinmin_2*(Iout^2*(1-D1_Vinmin_2)+Iripple_Vinmin^2/12)) -> 2.01684389 | C123: A | F123: Calculate input cap rms current | N123: A
A124: Icinrms_VINnom | B124: =SQRT(D1_Vinnom_2*(Iout^2*(1-D1_Vinnom_2)+Iripple_Vinnom^2/12)) -> 1.685820784 | C124: A
A125: Icinrms_VINmax | B125: =SQRT(D1_Vinmax_2*(Iout^2*(1-D1_Vinmax_2)+Iripple_Vinmax^2/12)) -> 1.440707311 | C125: A
A126: Max Cin rms current | B126: =MAX(B123:B125) -> 2.01684389 | C126: A
A128: Icinrms - max at D = 0.5 | B128: =Iout/2 -> 2 | C128: A
A129: Final result | B129: =IF(VIN_min<2*Vout, Iout/2, B123) -> 2.01684389 | C129: A | D129: …report this
A131: Vinripple1 | B131: ='Design the Power Module'!E33/1000 -> 0.12 | C131: Vp-p | F131: Input voltage ripple spec (pk-pk)
F132: =Number_of_Phases -> 1
A133: Cinmin_Vinmax | B133: =Iout*D1_Vinmax*(1-D1_Vinmax)/(Vinripple1*Fsw) -> 4.791617205e-06 | C133: F | F133: Calculate cap at Vinmax and 50% duty cycle (Vin = 2*Vout)
A134: Cinmin_50%D | B134: =Iout*0.5*(1-0.5)/(Vinripple1*Fsw) -> 1.001602564e-05 | C134: F | F134: Buck 50% typically worst case
A135: Cinmin | B135: =IF(VIN_max<2*Vout, B133,B134) -> 1.001602564e-05 | C135: F
A136: Reported Cinmin | B136: =IF(Cinmin*1000000<4.7, 4.7,Cinmin*1000000) -> 10.01602564 | C136: uF | F136: …report this
A137: Cin | B137: ='Design the Power Module'!E35/1000000 -> 2e-05 | C137: F | F137: Input capacitance
A138: CinEsrMax_Vinmax | B138: =-(Iout*D1_Vinmax*(1-D1_Vinmax)/(Cin*Fsw)-Vinripple1)/(Iout+Iripple_Vinmax/2) -> 0.01665608766 | C138: W
A139: CinEsrMax_50%D | B139: =-(Iout*0.5*(1-0.5)/(Cin*Fsw)-Vinripple1)/(Iout+Iripple_Vinmax/2) -> 0.01093436129 | C139: W | F139: Calculate ESR at Vinmax and 50% duty cycle (Vin = 2*Vout)
A140: CinEsrMax | B140: =IF(VIN_max<2*Vout, B138,B139) -> 0.01093436129 | C140: W
A141: Reported Cin ESR max | B141: =IF(OR(CinEsrMax>0.3, CinEsrMax<0), "N/A",CinEsrMax*1000) -> 10.93436129 | C141: mΩ | F141: …report this
A142: RCinEsr | B142: ='Design the Power Module'!E37/1000 -> 0.001 | C142: W | F142: Input capacitance series resistance (ESR)
A144: Vinripple2_Vinmax | B144: =Iout*D1_Vinmax_2*(1-D1_Vinmax_2)/(Cin*Fsw)+(Iout +Iripple_Vinmax/2)*RCinEsr -> 0.03508791414 | C144: Vp-p
A145: Vinripple2_50%D | B145: =Iout*0.5*(1-0.5)/(Cin*Fsw)+(Iout +Iripple_Vinmax/2)*RCinEsr -> 0.06557464907 | C145: Vp-p | F145: Calculate ripple at Vinmax and 50% duty cycle (Vin = 2*Vout)
A146: Vinripple2 | B146: =IF(VIN_max<2*Vout, B144,B145) -> 0.06557464907 | C146: Vp-p | F146: …report highest of these
B148: =Iout*D1_Vinmax_2*(1-D1_Vinmax_2)/(Cin*Fsw) -> 0.02960941891 | C148: Vp-p
A150: Step ?: Other Components - MODE
A152: RPG1/2 | B152: 100 | C152: kΩ
A153: RFB1/2 | C153: W | E153: Tie to VDDA or AGND for 3.3V/5V output, respectively.
A154: R_MODE | C154: W | E154: Tie to VDDA or AGND for Single/Dual operation, respectively.
A155: R_DEMB | C155: W | E155: Tie to VDDA or AGND for FPWM/DEM, respectively.
A158: Step 5: Feedback Network and Internal Compensation
A159: Pi | B159: 3.14159265 | D159: p
A160: CS Amp Gain (effective value) | B160: 3.414 | F160: Effective CS gain - depending on control architecture
A161: Ri | B161: =CHOOSE(GPN, 0.139, 0.139*9.3/Ipk_OCP, 0.139*9.3/Ipk_OCP, 0.139*9.3/Ipk_OCP) -> 0.139 | C161: W | F161: Current Sense effective resistance = shunt resistor Rs * CS amp gain
A163: Se_ext | B163: =B167/Ri*1000 -> 2995200 | C163: A/s | F163: Slope comp slope - referred to inductor current
A164: Sn | B164: =(Vin-Vout)/Lf -> 10564946.62 | C164: A/s | F164: On-time Slope
A165: Sf | B165: =Vout/Lf -> 2780249.11 | C165: A/s | F165: Off-time Slope
A167: Se_int | B167: =6*0.6*Ri*Fsw/1000 -> 416.3328 | C167: mV/μs | F167: Slope comp slope - referred to IC
A168: Sn_int | B168: =Sn*Ri/1000 -> 1468.52758 | C168: mV/μs | F168: Upslope
A169: Sf_int | B169: =Sf*Ri/1000 -> 386.4546263 | C169: mV/μs | F169: Downslope
A171: mc_buck | B171: =1+Se_ext/Sn -> 1.283503562 | F171: mc = 1 + Se/Sn for peak current-mode buck
A172: k_buck | B172: =mc_buck*(1-D1_Vinnom_2) -> 1.00619811 | F172: mc*(1-d)
A174: mc | B174: =1+Se_ext/Sn -> 1.283503562
A175: k | B175: =mc_buck*(1-D1_Vinnom_2) -> 1.00619811
A176: Q | B176: =1/Pi/(k-0.5) -> 0.6288247232 | F176: 1/(Pi*(k-0.5)) | H176: Q = 2/Pi = 0.636 gives ideal one-cycle damping
A178: Error Amp (EA)
A179: gm | B179: =14.75/1000000*1 -> 1.475e-05 | C179: S | F179: Error Amp Transconductance
A180: GBW | B180: 6 | C180: MHz | F180: EA gain-bandwidth product
A181: Cbw | B181: =gm/(2*Pi*GBW*1000000) -> 3.912559022e-13 | C181: F | F181: EA effective bandwidth limiting capacitance = gm/(2*Pi*GBW)
A183: RoEA | B183: =118300000 -> 118300000 | C183: W | F183: EA output resistance
A184: AEA | B184: =gm*RoEA -> 1744.925 | C184: V/V | F184: EA DC gain = gm*RoEA
A185: Afb | B185: =Vref/Vout -> 0.2 | C185: V/V | F185: Feedback gain from Vout to FB
A186: Acs | B186: =1/Ri -> 7.194244604 | F186: Acs = 1/Ri
A187: Am_buck | B187: =(Ro/Number_of_Phases)/Ri/((1+Ro/Number_of_Phases*(k-0.5)/(Fsw*Lf))) -> 6.32012719
A188: Am | B188: =Ro/Ri/((1+Ro*(k-0.5)/(Fsw*Lf))) -> 6.32012719 | F188: Buck modulator gain
A190: Scaling factor to calculate Rcomp - buck | B190: =2*Pi*Ri/gm -> 59211.03435 | F190: 2*Pi*Ri/gm -- scaling factor to calculate Rcomp given desired buck crossover frequency
A191: DC Gain is Adc = AEA*Afb*Am
A193: Rout | B193: =Rout -> 1.25 | C193: W | F193: Output Resistance (Load)
A195: Fp_load_buck | B195: =1/(2*Pi*Ro*Cout)+(k-0.5)/(2*Pi*Fsw*Lf*Cout) -> 3019.452925 | C195: Hz | F195: Buck dominant pole frequency -- note slope comp influence
A196: Fp_dominant | B196: =Fload_u -> 3019.452925 | C196: Hz
A197: Cbw | B197: =Cbw -> 3.912559022e-13 | C197: F | F197: Cbw
A198: Fp_EA | B198: =1/(2*Pi*(RoEA+Rcea1_u)*Cc1ea_u) -> 74.17735984 | C198: Hz | F198: Error Amp LF pole -- related to amplifier ouptut resistance and comp cap
A199: Fp_HF | B199: =1/(2*Pi*Rcea1_u*(Cc2ea_u+Cbw)) -> 451977.4011 | C199: Hz | F199: Error Amp HF pole cancels zero related to Output Cap ESR
A200: Fesr | B200: =1/(2*Pi*Cout*Cout_ESR) -> 1326291.194 | C200: Hz | F200: Cout ESR zero frequency
A201: F_mod | B201: =Fsw/2 -> 416000 | C201: Hz | F201: Zero-order sample-and-hold effects of current-mode control modeled as double pole at Fsw/2
A202: Fz_ff | B202: =IF(NO_FF_CAP=TRUE, 1000000000, 1/(2*Pi*Rfb2_u*Cff_u*0.000000000001)) -> 179958.0996 | C202: Hz
A203: Fp_ff | B203: =IF(NO_FF_CAP=TRUE, 1000000000, 1/(2*Pi*Rfb4_u*Cff_u*0.000000000001)) -> 903389.6599 | C203: Hz
A205: Desired Crossover Frequency | B205: ='Design the Power Module'!E24*1000 -> 80000 | C205: Hz
A206: Cout - for the Fc spec | B206: =Rcea1_u/Fcross/(2*Pi*Ri/(gm*Afb))*1000000 -> 37.99967396 | C206: uF | F206: Output cap to meet the crossover frequeny spec
A207: Rcea1 | B207: =Fcross*Cout*2*Pi*Ri/(gm*Afb) -> 1421064.824 | C207: W | F207: This component will largely determine the crossover frequency | K207: =Fcross/Fp_dominant/(gm*Afb*Am) -> 1421064.824
A208: Cc1ea, Cc3ea | B208: =10/(Rcea1*Fcross*2*Pi) -> 1.399962026e-11 | C208: F | F208: This along with Rcea1 will set a zero at Fcrossover/5 to optimize phase margin
A209: Cc2ea, Cc4ea | B209: =MAX(1/(Rcea1*2*Pi*Fesr)-Cbw, 1/(Rcea1*2*Pi*(Fsw/2))-Cbw) -> -1.220324357e-13 | C209: F | F209: This along with Rcea1 places a pole at the output cap ESR zero
A212: Rcea1_u | B212: =900000 -> 900000 | C212: W | F212: =1/(Rcea1*2*Pi*(Fsw/2))-Cbw -> -1.220324357e-13
A213: Cc1ea_u | B213: =0.000000000018 -> 1.8e-11 | C213: F
A214: Cc2ea_u | B214: =0 -> 0 | C214: F
A216: Resulting Pole/Zero Locations | F216: =Cout -> 6e-05 | G216: =Cout_ESR -> 0.002
A217: Fz1 | B217: =1/(2*Pi*Rcea1_u*Cc1ea_u) -> 9824.379214 | C217: Hz | F217: This zero is set at or close to the dominant load pole
A218: Fp2 | B218: =1/(2*Pi*Rcea1_u*(Cc1ea_u*(Cc2ea_u+Cbw)/(Cc1ea_u+Cc2ea_u+Cbw))) -> 461801.7803 | C218: Hz | F218: This pole cancels the zero from the Output Cap ESR
A220: Rfb1 | B220: ='Design the Power Module'!E42*1000 -> 10000 | C220: W | F220: Lower Feedback Resistance - chosen by user
A221: Rfb2 | B221: =IF(Vout=Vref,0,(Vout-Vref)*B220/Vref) -> 40000 | C221: W | D221: =Rfb2_u -> 40200 | F221: Upper Feedback Resistance
A222: Rfb2_u | B222: =IF(Vout=Vref,"N/A",'Standard Value Calculator'!O11) -> 40200 | C222: W | F222: Std Value Upper Feedback Resistance
A223: Cff | B223: =1/(2*Pi*200000)/Rfb2_u -> 1.979539095e-11 | C223: F | D223: =1/(1/Rfb1_+1/Rfb2_u) -> 8007.968127 | E223: W | F223: Based on a 200kHz zero frequency
A224: Cff_u | B224: =IF('Design the Power Module'!E44<0.1, 0.1, 'Design the Power Module'!E44) -> 22 | C224: pF
A227: Step 6: UVLO Divider
A228: VIN UVLO turn-on voltage | B228: ='Design the Power Module'!E47 -> 8.9 | C228: V
A229: VIN UVLO turn-off voltage | B229: ='Design the Power Module'!E51 -> 6.4018944 | C229: V
A230: Rent | B230: ='Design the Power Module'!E48*1000 -> 604000 | C230: W
A231: Renb | B231: =B230*(1.263/(B228-1.263)) -> 99888.96163 | C231: W
A232: Renb_u | B232: ='Standard Value Calculator'!O7 -> 100000 | C232: W
A234: Step 7: Efficiency
A235: VAR | B235: 0
A236: Design
A237: Ta | B237: ='Design the Power Module'!E13 -> 25 | C237: °C | D237: Ambient Temperature
A238: Components
A239: LTc | B239: =3930/1000000 -> 0.00393 | C239: %/°C | D239: Inductor DCR Temp Co
A240: θCA | B240: 22 | C240: °C/W | D240: Inductor Core-to-Ambient Thermal Resistance
A241: RCinEsr | B241: =RCinEsr -> 0.001 | C241: W | D241: Input Capacitor ESR
A243: Controller Characteristics
A244: VCC | B244: 3.3 | C244: V
A245: Top Driver
A246: RdsonDRT | B246: 0.5 | C246: W | D246: Drain-Source Resistance of Pullup High-side FET Driver
A247: RdsonDRT2 | B247: 0.5 | C247: W | D247: Drain-Source Resistance of Pulldown High-side FET Driver
A248: Bottom Driver
A249: RdsonDRB | B249: 0.5 | C249: W | D249: Drain-Source Resistance of Pullup Low-side FET Driver
... 72 more rows

Sheet MOSFET Parameters (hidden)
A3: MOSFET Parameters
E4: Internal Power MOSFETs
E5: High-side | F5: Low-side
D6: On-State Resistance, RDS(on) | E6: 41 | F6: 21 | G6: mΩ
D7: Total Gate Charge, QG | E7: 3 | F7: 6 | G7: nC
D8: Gate-Drain Charge, QGD | E8: 1 | F8: 2 | G8: nC
D9: Gate-Source Charge, QGS | E9: 1 | F9: 2 | G9: nC
D10: Output Charge, QOSS | F10: 2 | G10: nC
D11: Output Capacitance, COSS | E11: 100 | F11: 200 | G11: pF
D12: Gate Resistance, RGATE | E12: 1 | F12: 1 | G12: Ω
D13: Transconductance, gFS | E13: 100 | F13: 100 | G13: S
D14: Gate-Source Miller Plateau Voltage, VTH | E14: 1.5 | F14: 1.5 | G14: V
D15: Body Diode Forward Voltage, VBD | E15: 0.7 | F15: 0.7 | G15: V
D16: Body Diode Rev Recovery Charge, QRR | F16: 3 | G16: nC
D17: Thermal Resistance, θJA | E17: 22 | F17: 22 | G17: °C/W

Sheet Schematic Management (hidden)
A1: =VARIANT -> 1 | N1: 3.3V or 5V fixed (FB1/2)
A2: =CHOOSE(VARIANT, "TPSM63606", "TPSM63604", "TPSM63603", "TPSM63602", "TPSM63603V5", "TPSM63603V3") -> TPSM63606 | J2: With/without dither (DITH) | N2: With/without VOUT connected to VCCX
J3: FPWM or DEM (DEMB)
J4: Shunt or inductor DCR current sensing

Sheet Stability Calculations (hidden)
A2: Divider Network & EA Poles/Zeros | E2: Modulator | J2: Power Stage Poles/Zeros | M2: Complex Pole Pair | P2: Total System
B3: Afb1 | C3: =Afb -> 0.2 | D3: V/V | E3: Acs | F3: =Acs -> 7.194244604 | G3: A/V | H3: gm | I3: =gm -> 1.475e-05 | J3: z_ESR | K3: =Fesr -> 1326291.194 | L3: Hz | M3: p3 | N3: =Fsw/2 -> 416000 | O3: Hz | P3: Adc | Q3: =Am*Afb*AEA -> 2205.629587 | R3: V/V
B4: EA zero, z1 | C4: =Fz1_u -> 9824.379214 | D4: Hz | E4: Am | F4: =Am -> 6.32012719 | G4: V/V | J4: p_dom | K4: =Fp_dominant -> 3019.452925 | L4: Hz | M4: pterm1 | N4: =Q*pole3 -> 261591.0849 | P4: Crossover | Q4: =AI7 -> 52.481 | R4: kHz
B5: EA pole, p1 | C5: =Fp1_u -> 74.17735984 | D5: Hz | E5: Q | F5: =Q -> 0.6288247232 | M5: pterm2 | N5: =pole3^2 -> 173056000000 | P5: Phase Margin | Q5: =AI9 -> 58.69279332 | R5: °
B6: Aea | C6: =AEA -> 1744.925 | D6: V/V | E6: mc | F6: =mc -> 1.283503562 | H6: FF zero, z5 | I6: =Fz_ff -> 179958.0996 | P6: radconv | Q6: =180/Pi -> 57.29577958 | AH6: XOVER SEARCH
B7: EA pole, p2 | C7: =Fp2_u -> 451977.4011 | D7: Hz | E7: k | F7: =k -> 1.00619811 | H7: FF pole, p5 | I7: =Fp_ff -> 903389.6599 | AH7: xover | AI7: =SUM(AH12:AH613)/1000 -> 52.481
AH9: phase margin | AI9: =SUM(AI13:AI613) -> 58.69279332
A10: Freq (Hz) | C10: Power Stage | I10: Error Amplifier | P10: FF Network | S10: Sampling Double Pole | U10: System Response | AB10: ERROR AMP Response | AE10: PLANT Response
C11: p_dom | E11: z_ESR | G11: z_RHP | I11: p1 | K11: z1 | M11: p2 | O11: z3 | Q11: p3 | S11: p3
C12: Gain(V/V) | D12: Phase(rad) | E12: Gain(V/V) | F12: Phase(rad) | G12: Gain(V/V) | H12: Phase(rad) | I12: Gain(V/V) | J12: Phase(rad) | K12: Gain(V/V) | L12: Phase(rad) | M12: Gain(V/V) | N12: Phase(rad) | O12: Gain(V/V) | P12: Phase(rad) | Q12: Gain(V/V) | R12: Phase(rad) | S12: Gain(V/V) | T12: Phase(rad) | U12: Gain (dB) | V12: Phase (°) | W12: Phase Margin (°) | Z12: Fsquare | AB12: Gain(dB) | AC12: Phase(Deg) | AE12: Gain(dB) | AF12: Phase(Deg)
A13: 1 | B13: =A13/1000 -> 0.001 | C13: =SQRT(1+(A13/pole1)^2) -> 1.000000055 | D13: =ATAN(A13/pole1) -> 0.0003311858102 | E13: =SQRT(1+(A13/Zero1)^2) -> 1 | F13: =ATAN(A13/Zero1) -> 7.53982236e-07 | G13: =IF(VIN_nom>Vout, 1, SQRT(1+(A13/z_RHP)^2)) -> 1 | H13: =IF(VIN_nom>Vout, 0, -ATAN(A13/z_RHP)) -> 0 | I13: =SQRT(1+(A13/Pole2)^2) -> 1.000090867 | J13: =ATAN(A13/Pole2) -> 0.01348038576 | K13: =SQRT(1+(A13/Zero2)^2) -> 1.000000005 | L13: =ATAN(A13/Zero2) -> 0.0001017876015 | M13: =SQRT(1+(A13/pole4)^2) -> 1 | N13: =ATAN(A13/pole4) -> 2.2125e-06 | O13: =SQRT(1+(A13/Zero3)^2) -> 1 | P13: =ATAN(A13/Zero3) -> 5.556849079e-06 | Q13: =SQRT(1+(A13/pole5)^2) -> 1 | R13: =ATAN(A13/pole5) -> 1.106942048e-06 | S13: =SQRT((1-(Z13/pterm2))^2+(A13/pterm1)^2) -> 1 | T13: =IF((ATAN((A13/pterm1)/(1-A13^2/pterm2))>0),ATAN((A13/pterm1)/(1-A13^2/pterm2)),PI()+ATAN((A13/pterm1)/(1-A13^2/pterm2))) -> 3.822760246e-06 | U13: =20*LOG10(((E13*K13*G13*O13)/(C13*I13*S13*M13*Q13))*Adc) -> 66.86986192 | V13: =((F13+L13+H13+R13)-(D13+J13+T13+N13+T13))*radconv -> -0.7859709605 | W13: =IF(V13>0,V13,V13+180) -> 179.214029 | Y13: =IF(U13<0,A13,1000000000) -> 1000000000 | Z13: =A13^2 -> 1 | AB13: =20*LOG10((K13/(I13*M13))*AEA) -> 64.83474612 | AC13: =(L13-(J13+N13))*radconv -> -0.7666639783 | AE13: =20*LOG10((E13*G13/(C13*S13))*Acs*Am) -> 33.15421989 | AF13: =(F13+H13-(D13+T13))*radconv -> -0.01915137721 | AH13: =SUM((U14<0)*(U13>0))*A13 -> 0 | AI13: =IF(AH13>0,W11,0) -> 0
A14: 1.0965 | B14: =A14/1000 -> 0.0010965 | C14: 1.000000066 | D14: 0.0003631452382 | E14: 1 | F14: 8.267415218e-07 | G14: 1 | H14: 0 | I14: 1.00010925 | J14: 0.01478106186 | K14: 1.000000006 | L14: 0.000111610105 | M14: 1 | N14: 2.42600625e-06 | O14: 1 | P14: 6.093085015e-06 | Q14: 1 | R14: 1.213761955e-06 | S14: 1 | T14: 4.19165661e-06 | U14: 66.86970218 | V14: -0.86180678 | W14: 179.1381932 | Y14: 1000000000 | Z14: 1.20231225 | AB14: 64.83458647 | AC14: -0.8406366743 | AE14: 33.15421979 | AF14: -0.02099948496 | AH14: 0 | AI14: 0
A15: 1.2023 | B15: 0.0012023 | C15: 1.000000079 | D15: 0.0003981846931 | E15: 1 | F15: 9.065128423e-07 | G15: 1 | H15: 0 | I15: 1.000131348 | J15: 0.01620703045 | K15: 1.000000007 | L15: 0.0001223792331 | M15: 1 | N15: 2.66008875e-06 | O15: 1 | P15: 6.680999648e-06 | Q15: 1 | R15: 1.330876424e-06 | S15: 1 | T15: 4.596104644e-06 | U15: 66.86951015 | V15: -0.9449478268 | W15: 179.0550522 | Y15: 1000000000 | Z15: 1.44552529 | AB15: 64.83439456 | AC15: -0.9217350426 | AE15: 33.15421967 | AF15: -0.02302570045 | AH15: 0 | AI15: 0
A16: 1.3183 | B16: 0.0013183 | C16: 1.000000095 | D16: 0.0004366022418 | E16: 1 | F16: 9.939747817e-07 | G16: 1 | H16: 0 | I16: 1.000157914 | J16: 0.01777039831 | K16: 1.000000009 | L16: 0.0001341865947 | M16: 1 | N16: 2.91673875e-06 | O16: 1 | P16: 7.325594141e-06 | Q16: 1 | R16: 1.459281701e-06 | S16: 1 | T16: 5.039544833e-06 | U16: 66.86927931 | V16: -1.03610001 | W16: 178.9639 | Y16: 1000000000 | Z16: 1.73791489 | AB16: 64.83416386 | AC16: -1.010647616 | AE16: 33.15421953 | AF16: -0.0252472599 | AH16: 0 | AI16: 0
A17: 1.4454 | B17: 0.0014454 | C17: 1.000000115 | D17: 0.000478695951 | E17: 1 | F17: 1.089805924e-06 | G17: 1 | H17: 0 | I17: 1.000189829 | J17: 0.01948326428 | K17: 1.000000011 | L17: 0.0001471237987 | M17: 1 | N17: 3.1979475e-06 | O17: 1 | P17: 8.031869659e-06 | Q17: 1 | R17: 1.599974036e-06 | S17: 1 | T17: 5.52541766e-06 | U17: 66.869002 | V17: -1.135968783 | W17: 178.8640312 | Y17: 1000000000 | Z17: 2.08918116 | AB17: 64.83388672 | AC17: -1.108062472 | AE17: 33.15421937 | AF17: -0.02768139953 | AH17: 0 | AI17: 0
A18: 1.5849 | B18: 0.0015849 | C18: 1.000000138 | D18: 0.0005248963616 | E18: 1 | F18: 1.194986446e-06 | G18: 1 | H18: 0 | I18: 1.000228235 | J18: 0.02136310714 | K18: 1.000000013 | L18: 0.0001613231688 | M18: 1 | N18: 3.50659125e-06 | O18: 1 | P18: 8.807050106e-06 | Q18: 1 | R18: 1.754392451e-06 | S18: 1 | T18: 6.058692715e-06 | U18: 66.8686683 | V18: -1.245573288 | W18: 178.7544267 | Y18: 1000000000 | Z18: 2.51190801 | AB18: 64.83355322 | AC18: -1.214973654 | AE18: 33.15421917 | AF18: -0.03035301608 | AH18: 0 | AI18: 0
A19: 1.7378 | B19: 0.0017378 | C19: 1.000000166 | D19: 0.0005755346585 | E19: 1 | F19: 1.31027033e-06 | G19: 1 | H19: 0 | I19: 1.000274389 | J19: 0.02342334879 | K19: 1.000000016 | L19: 0.0001768864927 | M19: 1 | N19: 3.8448825e-06 | O19: 1 | P19: 9.65669233e-06 | Q19: 1 | R19: 1.92364389e-06 | S19: 1 | T19: 6.643192756e-06 | U19: 66.86826729 | V19: -1.365696146 | W19: 178.6343039 | Y19: 1000000000 | Z19: 3.01994884 | AB19: 64.83315245 | AC19: -1.332144475 | AE19: 33.15421892 | AF19: -0.03328126088 | AH19: 0 | AI19: 0
A20: 1.9055 | B20: 0.0019055 | C20: 1.000000199 | D20: 0.0006310745007 | E20: 1 | F20: 1.436713151e-06 | G20: 1 | H20: 0 | I20: 1.000329893 | J20: 0.02568278281 | K20: 1.000000019 | L20: 0.0001939562729 | M20: 1 | N20: 4.21591875e-06 | O20: 1 | P20: 1.058857592e-05 | Q20: 1 | R20: 2.109278072e-06 | S20: 1 | T20: 7.28426965e-06 | U20: 66.86778507 | V20: -1.497433192 | W20: 178.5025668 | Y20: 1000000000 | Z20: 3.63093025 | AB20: 64.83267052 | AC20: -1.460643741 | AE20: 33.15421863 | AF20: -0.0364929458 | AH20: 0 | AI20: 0
A21: 2.0893 | B21: 0.0020893 | C21: 1.000000239 | D21: 0.0006919464281 | E21: 1 | F21: 1.575295086e-06 | G21: 1 | H21: 0 | I21: 1.000396591 | J21: 0.02815883121 | K21: 1.000000023 | L21: 0.0002126648334 | M21: 1 | N21: 4.62257625e-06 | O21: 1 | P21: 1.160992478e-05 | Q21: 1 | R21: 2.31273402e-06 | S21: 1 | T21: 7.986892983e-06 | U21: 66.86720563 | V21: -1.641800316 | W21: 178.3581997 | Y21: 1000000000 | Z21: 4.36517449 | AB21: 64.83209143 | AC21: -1.601462243 | AE21: 33.15421828 | AF21: -0.04001296753 | AH21: 0 | AI21: 0
A22: 2.2909 | B22: 0.0022909 | C22: 1.000000288 | D22: 0.0007587134548 | E22: 1 | F22: 1.727297904e-06 | G22: 1 | H22: 0 | I22: 1.0004768 | J22: 0.03087427279 | K22: 1.000000027 | L22: 0.0002331852129 | M22: 1 | N22: 5.06861625e-06 | O22: 1 | P22: 1.273018556e-05 | Q22: 1 | R22: 2.535893537e-06 | S22: 1 | T22: 8.757561449e-06 | U22: 66.86650887 | V22: -1.800125769 | W22: 178.1998742 | Y22: 1000000000 | Z22: 5.24822281 | AB22: 64.83139509 | AC22: -1.75589541 | AE22: 33.15421786 | AF22: -0.0438738833 | AH22: 0 | AI22: 0
A23: 2.5119 | B23: 0.0025119 | C23: 1.000000346 | D23: 0.0008319054752 | E23: 1 | F23: 1.893927979e-06 | G23: 1 | H23: 0 | I23: 1.000573202 | J23: 0.03385049706 | K23: 1.000000033 | L23: 0.0002556802715 | M23: 1 | N23: 5.55757875e-06 | O23: 1 | P23: 1.39582492e-05 | Q23: 1 | R23: 2.78052773e-06 | S23: 1 | T23: 9.602391463e-06 | U23: 66.86567152 | V23: -1.973656843 | W23: 178.0263432 | Y23: 1000000000 | Z23: 6.30964161 | AB23: 64.83055824 | AC23: -1.925159644 | AE23: 33.15421736 | AF23: -0.04810633516 | AH23: 0 | AI23: 0
A24: 2.7542 | B24: 0.0027542 | C24: 1.000000416 | D24: 0.0009121517389 | E24: 1 | F24: 2.076617874e-06 | G24: 1 | H24: 0 | I24: 1.000689078 | J24: 0.03711287886 | K24: 1.000000039 | L24: 0.0002803434057 | M24: 1 | N24: 6.0936675e-06 | O24: 1 | P24: 1.530467373e-05 | Q24: 1 | R24: 3.048739788e-06 | S24: 1 | T24: 1.052864627e-05 | U24: 66.86466511 | V24: -2.163873252 | W24: 177.8361267 | Y24: 1000000000 | Z24: 7.58561764 | AB24: 64.82955244 | AC24: -2.110697974 | AE24: 33.15421675 | AF24: -0.05274671053 | AH24: 0 | AI24: 0
A25: 3.02 | B25: 0.00302 | C25: 1.0000005 | D25: 0.00100018085 | E25: 1 | F25: 2.277026353e-06 | G25: 1 | H25: 0 | I25: 1.00082844 | J25: 0.04069075856 | K25: 1.000000047 | L25: 0.0003073985479 | M25: 1 | N25: 6.68175e-06 | O25: 1 | P25: 1.678168422e-05 | Q25: 1 | R25: 3.342964984e-06 | S25: 1 | T25: 1.154473594e-05 | U25: 66.86345488 | V25: -2.372485999 | W25: 177.627514 | Y25: 1000000000 | Z25: 9.1204 | AB25: 64.82834295 | AC25: -2.31417893 | AE25: 33.15421602 | AF25: -0.05783714216 | AH25: 0 | AI25: 0
A26: 3.3113 | B26: 0.0033113 | C26: 1.000000601 | D26: 0.001096655174 | E26: 1 | F26: 2.496661378e-06 | G26: 1 | H26: 0 | I26: 1.000995883 | J26: 0.04461068842 | K26: 1.000000057 | L26: 0.0003370492733 | M26: 1 | N26: 7.32625125e-06 | O26: 1 | P26: 1.840039435e-05 | Q26: 1 | R26: 3.665417202e-06 | S26: 1 | T26: 1.2658306e-05 | U26: 66.86200103 | V26: -2.60104362 | W26: 177.3989564 | Y26: 1000000000 | Z26: 10.96470769 | AB26: 64.82688997 | AC26: -2.537112433 | AE26: 33.15421514 | AF26: -0.06341593246 | AH26: 0 | AI26: 0
A27: 3.6308 | B27: 0.0036308 | C27: 1.000000723 | D27: 0.001202468904 | E27: 1 | F27: 2.737558702e-06 | G27: 1 | H27: 0 | I27: 1.001197215 | J27: 0.04890851516 | K27: 1.000000068 | L27: 0.000369570408 | M27: 1 | N27: 8.033145e-06 | O27: 1 | P27: 2.017580763e-05 | Q27: 1 | R27: 4.019085187e-06 | S27: 1 | T27: 1.38796779e-05 | U27: 66.86025324 | V27: -2.851636705 | W27: 177.1483633 | Y27: 1000000000 | Z27: 13.18270864 | AB27: 64.82514324 | AC27: -2.781536945 | AE27: 33.15421408 | AF27: -0.06953478969 | AH27: 0 | AI27: 0
A28: 3.9811 | B28: 0.0039811 | C28: 1.000000869 | D28: 0.001318483113 | E28: 1 | F28: 3.00167868e-06 | G28: 1 | H28: 0 | I28: 1.0014392 | J28: 0.05361857204 | K28: 1.000000082 | L28: 0.0004052265996 | M28: 1 | N28: 8.80818375e-06 | O28: 1 | P28: 2.212237187e-05 | Q28: 1 | R28: 4.406846986e-06 | S28: 1 | T28: 1.521879082e-05 | U28: 66.858153 | V28: -3.126267768 | W28: 176.8737322 | Y28: 1000000000 | Z28: 15.84915721 | AB28: 64.82304427 | AC28: -3.049404783 | AE28: 33.15421281 | AF28: -0.0762435068 | AH28: 0 | AI28: 0
A29: 4.3652 | B29: 0.0043652 | C29: 1.000001045 | D29: 0.001445691344 | E29: 1 | F29: 3.291283257e-06 | G29: 1 | H29: 0 | I29: 1.001730056 | J29: 0.05878035302 | K29: 1.000000099 | L29: 0.0004443232104 | M29: 1 | N29: 9.658005e-06 | O29: 1 | P29: 2.42567576e-05 | Q29: 1 | R29: 4.832023426e-06 | S29: 1 | T29: 1.668711303e-05 | U29: 66.85562927 | V29: -3.427240452 | W29: 176.5727595 | Y29: 1000000000 | Z29: 19.05497104 | AB29: 64.82052207 | AC29: -3.342961668 | AE29: 33.15421129 | AF29: -0.08359953712 | AH29: 0 | AI29: 0
A30: 4.7863 | B30: 0.0047863 | C30: 1.000001256 | D30: 0.001585153374 | E30: 1 | F30: 3.608785176e-06 | G30: 1 | H30: 0 | I30: 1.002079581 | J30: 0.06443575224 | K30: 1.000000119 | L30: 0.0004871859602 | M30: 1 | N30: 1.058968875e-05 | O30: 1 | P30: 2.659674674e-05 | Q30: 1 | R30: 5.298156723e-06 | S30: 1 | T30: 1.829687737e-05 | U30: 66.85259745 | V30: -3.756998638 | W30: 176.2430014 | Y30: 1000000000 | Z30: 22.90866769 | AB30: 64.81749208 | AC30: -3.664589702 | AE30: 33.15420945 | AF30: -0.09166416399 | AH30: 0 | AI30: 0
A31: 5.2481 | B31: 0.0052481 | C31: 1.00000151 | D31: 0.001738094564 | E31: 1 | F31: 3.956974173e-06 | G31: 1 | H31: 0 | I31: 1.002499706 | J31: 0.07063300016 | K31: 1.000000143 | L31: 0.0005341914625 | M31: 1 | N31: 1.161142125e-05 | O31: 1 | P31: 2.916289964e-05 | Q31: 1 | R31: 5.80934256e-06 | S31: 1 | T31: 2.006222805e-05 | U31: 66.84895462 | V31: -4.118356053 | W31: 175.8816439 | Y31: 1000000000 | Z31: 27.54255361 | AB31: 64.81385146 | AC31: -4.017031177 | AE31: 33.15420724 | AF31: -0.1005082461 | AH31: 0 | AI31: 0
A32: 5.7544 | B32: 0.0057544 | C32: 1.000001816 | D32: 0.001905773389 | E32: 1 | F32: 4.338715379e-06 | G32: 1 | H32: 0 | I32: 1.003004522 | J32: 0.07742117072 | K32: 1.000000172 | L32: 0.0005857265092 | M32: 1 | N32: 1.273161e-05 | O32: 1.000000001 | P32: 3.197633233e-05 | Q32: 1 | R32: 6.369787319e-06 | S32: 1 | T32: 2.199769156e-05 | U32: 66.84457948 | V32: -4.514176112 | W32: 175.4858239 | Y32: 1000000000 | Z32: 33.11311936 | AB32: 64.80947897 | AC32: -4.403076143 | AE32: 33.15420459 | AF32: -0.1102045568 | AH32: 0 | AI32: 0
A33: 6.3096 | B33: 0.0063096 | C33: 1.000002183 | D33: 0.002089647023 | E33: 1 | F33: 4.757326316e-06 | G33: 1 | H33: 0 | I33: 1.003611166 | J33: 0.08485673122 | K33: 1.000000206 | L33: 0.0006422389644 | M33: 1 | N33: 1.395999e-05 | O33: 1.000000001 | P33: 3.506149494e-05 | Q33: 1 | R33: 6.984361544e-06 | S33: 1 | T33: 2.412008805e-05 | U33: 66.83932472 | V33: -4.947753999 | W33: 175.052246 | Y33: 1000000000 | Z33: 39.81105216 | AB33: 64.8042274 | AC33: -4.825934834 | AE33: 33.1542014 | AF33: -0.1208373598 | AH33: 0 | AI33: 0
A34: 6.9183 | B34: 0.0069183 | C34: 1.000002625 | D34: 0.002291238865 | E34: 1 | F34: 5.216275303e-06 | G34: 1 | H34: 0 | I34: 1.004339949 | J34: 0.09299797024 | K34: 1.000000248 | L34: 0.0007041970495 | M34: 1 | N34: 1.530673875e-05 | O34: 1.000000001 | P34: 3.844394897e-05 | Q34: 1 | R34: 7.658157168e-06 | S34: 1 | T34: 2.644700221e-05 | U34: 66.83301618 | V34: -5.422491966 | W34: 174.577508 | Y34: 1000000000 | Z34: 47.86287489 | AB34: 64.7979227 | AC34: -5.288920697 | AE34: 33.15419756 | AF34: -0.132494748 | AH34: 0 | AI34: 0
A35: 7.5858 | B35: 0.0075858 | C35: 1.000003156 | D35: 0.002512304125 | E35: 1 | F35: 5.719558446e-06 | G35: 1 | H35: 0 | I35: 1.005215536 | J35: 0.1019114179 | K35: 1.000000298 | L35: 0.0007721402367 | M35: 1 | N35: 1.67835825e-05 | O35: 1.000000001 | P35: 4.215314572e-05 | Q35: 1 | R35: 8.397040985e-06 | S35: 1 | T35: 2.899869468e-05 | U35: 66.82544292 | V35: -5.942273996 | W35: 174.057726 | Y35: 1000000000 | Z35: 57.54436164 | AB35: 64.79035404 | AC35: -5.795815388 | AE35: 33.15419295 | AF35: -0.1452782197 | AH35: 0 | AI35: 0
A36: 8.3176 | B36: 0.0083176 | C36: 1.000003794 | D36: 0.002754664228 | E36: 1 | F36: 6.271322646e-06 | G36: 1 | H36: 0 | I36: 1.00626707 | J36: 0.1116648051 | K36: 1.000000358 | L36: 0.0008466283549 | M36: 1 | N36: 1.840269e-05 | O36: 1.000000001 | P36: 4.621964787e-05 | Q36: 1 | R36: 9.207101175e-06 | S36: 1 | T36: 3.179619063e-05 | U36: 66.81635653 | V36: -6.511055587 | W36: 173.4889444 | Y36: 1000000000 | Z36: 69.18246976 | AB36: 64.78127319 | AC36: -6.350468225 | AE36: 33.15418741 | AF36: -0.1592931016 | AH36: 0 | AI36: 0
A37: 9.1201 | B37: 0.0091201 | C37: 1.000004562 | D37: 0.003020438633 | E37: 1 | F37: 6.87639339e-06 | G37: 1 | H37: 0 | I37: 1.00752999 | J37: 0.1223359415 | K37: 1.000000431 | L37: 0.0009283128411 | M37: 1 | N37: 2.017822125e-05 | O37: 1.000000001 | P37: 5.067901924e-05 | Q37: 1 | R37: 1.009542217e-05 | S37: 1 | T37: 3.486395573e-05 | U37: 66.80545606 | V37: -7.133381943 | W37: 172.8666181 | Y37: 1000000000 | Z37: 83.17622401 | AB37: 64.77037939 | AC37: -6.957300855 | AE37: 33.15418074 | AF37: -0.1746619553 | AH37: 0 | AI37: 0
A38: 10 | B38: 0.01 | C38: 1.000005484 | D38: 0.003311846115 | E38: 1 | F38: 7.53982236e-06 | G38: 1 | H38: 0 | I38: 1.009046224 | J38: 0.1340041117 | K38: 1.000000518 | L38: 0.001017875667 | M38: 1 | N38: 2.2125e-05 | O38: 1.000000002 | P38: 5.556849074e-05 | Q38: 1 | R38: 1.106942048e-05 | S38: 1 | T38: 3.822760247e-05 | U38: 66.79238722 | V38: -7.81388687 | W38: 172.1861131 | Y38: 1000000000 | Z38: 100 | AB38: 64.75731857 | AC38: -7.620817736 | AE38: 33.15417273 | AF38: -0.1915130853 | AH38: 0 | AI38: 0
A39: 10.965 | B39: 0.010965 | C39: 1.000006594 | D39: 0.003631436579 | E39: 1 | F39: 8.267415218e-06 | G39: 1 | H39: 0 | I39: 1.01086654 | J39: 0.1467585939 | K39: 1.000000623 | L39: 0.001116100591 | M39: 1 | N39: 2.42600625e-05 | O39: 1.000000002 | P39: 6.093085008e-05 | Q39: 1 | R39: 1.213761955e-05 | S39: 1 | T39: 4.191656611e-05 | U39: 66.7767233 | V39: -8.557790348 | W39: 171.4422097 | Y39: 1000000000 | Z39: 120.231225 | AB39: 64.74166428 | AC39: -8.346090196 | AE39: 33.15416309 | AF39: -0.2099939441 | AH39: 0 | AI39: 0
A40: 12.023 | B40: 0.012023 | C40: 1.000007928 | D40: 0.003981826098 | E40: 1 | F40: 9.065128423e-06 | G40: 1 | H40: 0 | I40: 1.013050534 | J40: 0.1606870638 | K40: 1.000000749 | L40: 0.001223791726 | M40: 1 | N40: 2.660088749e-05 | O40: 1.000000002 | P40: 6.680999638e-05 | Q40: 1 | R40: 1.330876424e-05 | S40: 1 | T40: 4.596104645e-05 | U40: 66.75796705 | V40: -9.370223253 | W40: 170.6297767 | Y40: 1000000000 | Z40: 144.552529 | AB40: 64.72291961 | AC40: -9.138096604 | AE40: 33.1541515 | AF40: -0.2302558108 | AH40: 0 | AI40: 0
A41: 13.183 | B41: 0.013183 | C41: 1.000009531 | D41: 0.004365994954 | E41: 1 | F41: 9.939747817e-06 | G41: 1 | H41: 0 | I41: 1.015669904 | J41: 0.1758862258 | K41: 1.0000009 | L41: 0.00134186515 | M41: 1 | N41: 2.916738749e-05 | O41: 1.000000003 | P41: 7.325594128e-05 | Q41: 1 | R41: 1.459281701e-05 | S41: 1 | T41: 5.039544834e-05 | U41: 66.73552495 | V41: -10.25684875 | W41: 169.7431513 | Y41: 1000000000 | Z41: 173.791489 | AB41: 64.70049144 | AC41: -10.00232638 | AE41: 33.15413758 | AF41: -0.2524710254 | AH41: 0 | AI41: 0
A42: 14.454 | B42: 0.014454 | C42: 1.000011457 | D42: 0.004786923312 | E42: 1 | F42: 1.089805924e-05 | G42: 1 | H42: 0 | I42: 1.018807817 | J42: 0.1924458004 | K42: 1.000001082 | L42: 0.001471236936 | M42: 1.000000001 | N42: 3.197947499e-05 | O42: 1.000000003 | P42: 8.031869642e-05 | Q42: 1 | R42: 1.599974036e-05 | S42: 1 | T42: 5.525417661e-05 | U42: 66.70871612 | V42: -11.22292982 | W42: 168.7770702 | Y42: 1000000000 | Z42: 208.918116 | AB42: 64.67369933 | AC42: -10.94386878 | AE42: 33.15412084 | AF42: -0.2768119213 | AH42: 0 | AI42: 0
A43: 15.849 | B43: 0.015849 | C43: 1.000013776 | D43: 0.005248915893 | E43: 1 | F43: 1.194986446e-05 | G43: 1 | H43: 0 | I43: 1.02257133 | J43: 0.2104984331 | K43: 1.000001301 | L43: 0.001613230302 | M43: 1.000000001 | N43: 3.506591249e-05 | O43: 1.000000004 | P43: 8.807050083e-05 | Q43: 1 | R43: 1.754392451e-05 | S43: 1 | T43: 6.058692716e-05 | U43: 66.67667101 | V43: -12.27624327 | W43: 167.7237567 | Y43: 1000000000 | Z43: 251.190801 | AB43: 64.64167436 | AC43: -11.97024966 | AE43: 33.15410071 | AF43: -0.3035274264 | AH43: 0 | AI43: 0
A44: 17.378 | B44: 0.017378 | C44: 1.000016562 | D44: 0.005755283675 | E44: 1 | F44: 1.31027033e-05 | G44: 1 | H44: 0 | I44: 1.027076142 | J44: 0.2301260578 | K44: 1.000001564 | L44: 0.0017688631 | M44: 1.000000001 | N44: 3.844882498e-05 | O44: 1.000000005 | P44: 9.6566923e-05 | Q44: 1 | R44: 1.92364389e-05 | S44: 1 | T44: 6.643192758e-05 | U44: 66.63846852 | V44: -13.42161955 | W44: 166.5783804 | Y44: 1000000000 | Z44: 301.994884 | AB44: 64.60349606 | AC44: -13.08610645 | AE44: 33.15407651 | AF44: -0.3328090043 | AH44: 0 | AI44: 0
A45: 19.055 | B45: 0.019055 | C45: 1.000019913 | D45: 0.00631066207 | E45: 1 | F45: 1.436713151e-05 | G45: 1 | H45: 0 | I45: 1.032467699 | J45: 0.2514474462 | K45: 1.000001881 | L45: 0.001939560321 | M45: 1.000000001 | N45: 4.215918748e-05 | O45: 1.000000006 | P45: 0.0001058857588 | Q45: 1 | R45: 2.109278072e-05 | S45: 1.000000001 | T45: 7.284269652e-05 | U45: 66.59296553 | V45: -14.66605414 | W45: 165.3339459 | Y45: 1000000000 | Z45: 363.093025 | AB45: 64.55802216 | AC45: -14.29816438 | AE45: 33.1540474 | AF45: -0.364924706 | AH45: 0 | AI45: =IF(AH45>0,W43,0) -> 0
A46: 20.893 | B46: 0.020893 | C46: 1.000023939 | D46: 0.006919354957 | E46: 1 | F46: 1.575295086e-05 | G46: 1 | H46: 0 | I46: 1.038909963 | J46: 0.2745499146 | K46: 1.000002261 | L46: 0.00212664516 | M46: 1.000000001 | N46: 4.622576247e-05 | O46: 1.000000007 | P46: 0.0001160992473 | Q46: 1 | R46: 2.31273402e-05 | S46: 1.000000001 | T46: 7.986892986e-05 | U46: 66.53890511 | V46: -16.0147266 | W46: 163.9852734 | Y46: 1000000000 | Z46: 436.517449 | AB46: 64.50399671 | AC46: -15.61135214 | AE46: 33.15401243 | AF46: -0.4001234114 | AH46: 0 | AI46: 0
A47: 22.909 | B47: 0.022909 | C47: 1.000028782 | D47: 0.007586990425 | E47: 1 | F47: 1.727297904e-05 | G47: 1 | H47: 0 | I47: 1.046605312 | J47: 0.2995478155 | K47: 1.000002719 | L47: 0.002331847945 | M47: 1.000000001 | N47: 5.068616246e-05 | O47: 1.000000008 | P47: 0.0001273018549 | Q47: 1 | R47: 2.535893536e-05 | S47: 1.000000001 | T47: 8.757561453e-05 | U47: 66.47476656 | V47: -17.47442 | W47: 162.52558 | Y47: 1000000000 | Z47: 524.822281 | AB47: 64.43990021 | AC47: -17.03212467 | AE47: 33.15397036 | AF47: -0.4387305754 | AH47: 0 | AI47: 0
A48: 25.119 | B48: 0.025119 | C48: 1.000034603 | D48: 0.008318864767 | E48: 1 | F48: 1.893927978e-05 | G48: 1 | H48: 0 | I48: 1.055780851 | J48: 0.3265138336 | K48: 1.000003269 | L48: 0.0025567972 | M48: 1.000000002 | N48: 5.557578744e-05 | O48: 1.00000001 | P48: 0.0001395824911 | Q48: 1 | R48: 2.780527729e-05 | S48: 1.000000001 | T48: 9.602391469e-05 | U48: 66.39890387 | V48: -19.04951632 | W48: 160.9504837 | Y48: 1000000000 | Z48: 630.964161 | AB48: 64.36408806 | AC48: -18.56455521 | AE48: 33.1539198 | AF48: -0.4810524663 | AH48: 0 | AI48: 0
A49: 27.542 | B49: 0.027542 | C49: 1.0000416 | D49: 0.009121266954 | E49: 1 | F49: 2.076617874e-05 | G49: 1 | H49: 0 | I49: 1.066706685 | J49: 0.355522259 | K49: 1.00000393 | L49: 0.002803426786 | M49: 1.000000002 | N49: 6.093667492e-05 | O49: 1.000000012 | P49: 0.0001530467361 | Q49: 1 | R49: 3.048739787e-05 | S49: 1.000000001 | T49: 0.0001052864628 | U49: 66.30942412 | V49: -20.74453031 | W49: 159.2554697 | Y49: 1000000000 | Z49: 758.561764 | AB49: 64.27466908 | AC49: -20.21279188 | AE49: 33.15385903 | AF49: -0.5274527565 | AH49: 0 | AI49: 0
A50: 30.2 | B50: 0.0302 | C50: 1.000050017 | D50: 0.01000147834 | E50: 1 | F50: 2.277026352e-05 | G50: 1 | H50: 0 | I50: 1.079702144 | J50: 0.3866397602 | K50: 1.000004725 | L50: 0.003073975894 | M50: 1.000000002 | N50: 6.68174999e-05 | O50: 1.000000014 | P50: 0.0001678168406 | Q50: 1.000000001 | R50: 3.342964983e-05 | S50: 1.000000001 | T50: 0.0001154473595 | U50: 66.204179 | V50: -22.56358076 | W50: 157.4364192 | Y50: 1000000000 | Z50: 912.04 | AB50: 64.16949704 | AC50: -21.98052899 | AE50: 33.15378592 | AF50: -0.5783525049 | AH50: 0 | AI50: 0
A51: 33.113 | B51: 0.033113 | C51: 1.000060131 | D51: 0.01096611653 | E51: 1 | F51: 2.496661378e-05 | G51: 1 | H51: 0 | I51: 1.095114463 | J51: 0.4198586804 | K51: 1.00000568 | L51: 0.003370480097 | M51: 1.000000003 | N51: 7.326251237e-05 | O51: 1.000000017 | P51: 0.0001840039415 | Q51: 1.000000001 | R51: 3.665417201e-05 | S51: 1.000000002 | T51: 0.0001265830602 | U51: 66.08098845 | V51: -24.50650069 | W51: 155.4934993 | Y51: 1000000000 | Z51: 1096.470769 | AB51: 64.04639432 | AC51: -23.86721375 | AE51: 33.15369808 | AF51: -0.6341343893 | AH51: 0 | AI51: 0
A52: 36.308 | B52: 0.036308 | C52: 1.000072294 | D52: 0.01202411532 | E52: 1 | F52: 2.737558702e-05 | G52: 1 | H52: 0 | I52: 1.113367083 | J52: 0.4551926126 | K52: 1.000006829 | L52: 0.003695687423 | M52: 1.000000003 | N52: 8.033144983e-05 | O52: 1.00000002 | P52: 0.0002017580736 | Q52: 1.000000001 | R52: 4.019085185e-05 | S52: 1.000000002 | T52: 0.0001387967792 | U52: 65.93731557 | V52: -26.57443569 | W52: 153.4255643 | Y52: 1000000000 | Z52: 1318.270864 | AB52: 63.90282705 | AC52: -25.87347096 | AE52: 33.15359243 | AF52: -0.6953150253 | AH52: 0 | AI52: 0
A53: 39.811 | B53: 0.039811 | C53: 1.000086916 | D53: 0.01318407483 | E53: 1 | F53: 3.001678679e-05 | G53: 1 | H53: 0 | I53: 1.134921605 | J53: 0.4925748834 | K53: 1.00000821 | L53: 0.004052244037 | M53: 1.000000004 | N53: 8.808183727e-05 | O53: 1.000000024 | P53: 0.0002212237151 | Q53: 1.000000001 | R53: 4.406846983e-05 | S53: 1.000000002 | T53: 0.0001521879084 | U53: 65.77065087 | V53: -28.7639187 | W53: 151.2360813 | Y53: 1000000000 | Z53: 1584.915721 | AB53: 63.73628931 | AC53: -27.99533218 | AE53: 33.15346543 | AF53: -0.7623917353 | AH53: 0 | AI53: 0
A54: 43.652 | B54: 0.043652 | C54: 1.000104496 | D54: 0.01445591646 | E54: 1.000000001 | F54: 3.291283255e-05 | G54: 1 | H54: 0 | I54: 1.160306172 | J54: 0.5319069216 | K54: 1.000009871 | L54: 0.004443203157 | M54: 1.000000005 | N54: 9.65800497e-05 | O54: 1.000000029 | P54: 0.0002425675713 | Q54: 1.000000001 | R54: 4.832023423e-05 | S54: 1.000000003 | T54: 0.0001668711306 | U54: 65.57837786 | V54: -31.06970929 | W54: 148.9302907 | Y54: 1000000000 | Z54: 1905.497104 | AB54: 63.54416895 | AC54: -30.22697857 | AE54: 33.15331275 | AF54: -0.8359382484 | AH54: 0 | AI54: 0
A55: 47.863 | B55: 0.047863 | C55: 1.000125628 | D55: 0.01585021953 | E55: 1.000000001 | F55: 3.608785175e-05 | G55: 1 | H55: 0 | I55: 1.190104441 | J55: 0.5730293355 | K55: 1.000011867 | L55: 0.004871821444 | M55: 1.000000006 | N55: 0.0001058968871 | O55: 1.000000035 | P55: 0.0002659674612 | Q55: 1.000000001 | R55: 5.298156718e-05 | S55: 1.000000004 | T55: 0.0001829687741 | U55: 65.35796224 | V55: -33.4831092 | W55: 146.5168908 | Y55: 1000000000 | Z55: 2290.866769 | AB55: 63.32393681 | AC55: -32.55909514 | AE55: 33.15312922 | AF55: -0.9165663416 | AH55: 0 | AI55: 0
A56: 52.481 | B56: 0.052481 | C56: 1.000151038 | D56: 0.01737921321 | E56: 1.000000001 | F56: 3.956974171e-05 | G56: 1 | H56: 0 | I56: 1.224975971 | J56: 0.6157464589 | K56: 1.000014268 | L56: 0.005341864322 | M56: 1.000000007 | N56: 0.000116114212 | O56: 1.000000043 | P56: 0.0002916289883 | Q56: 1.000000002 | R56: 5.809342554e-05 | S56: 1.000000004 | T56: 0.000200622281 | U56: 65.10691258 | V56: -35.99340946 | W56: 144.0065905 | Y56: 1000000000 | Z56: 2754.255361 | AB56: 63.07310777 | AC56: -34.98025996 | AE56: 33.15290854 | AF56: -1.0049832 | AH56: 0 | AI56: 0
A57: 57.544 | B57: 0.057544 | C57: 1.000181583 | D57: 0.01905545022 | E57: 1.000000001 | F57: 4.338715376e-05 | G57: 1 | H57: 0 | I57: 1.265625206 | J57: 0.6597861501 | K57: 1.000017154 | L57: 0.00585719878 | M57: 1.000000008 | N57: 0.0001273160993 | O57: 1.000000051 | P57: 0.0003197633125 | Q57: 1.000000002 | R57: 6.369787311e-05 | S57: 1.000000005 | T57: 0.0002199769163 | U57: 64.82312152 | V57: -38.58553258 | W57: 141.4144674 | Y57: 1000000000 | Z57: 3311.311936 | AB57: 62.78958191 | AC57: -37.47466373 | AE57: 33.15264326 | AF57: -1.101914723 | AH57: 0 | AI57: 0
A58: 63.096 | B58: 0.063096 | C58: 1.000218308 | D58: 0.02089345986 | E58: 1.000000001 | F58: 4.757326313e-05 | G58: 1 | H58: 0 | I58: 1.312835587 | J58: 0.7048480624 | K58: 1.000020623 | L58: 0.006422302227 | M58: 1.00000001 | N58: 0.0001395998991 | O58: 1.000000061 | P58: 0.0003506149351 | Q58: 1.000000002 | R58: 6.984361533e-05 | S58: 1.000000006 | T58: 0.0002412008814 | U58: 64.50472829 | V58: -41.24286605 | W58: 138.7571339 | Y58: 1000000000 | Z58: 3981.105216 | AB58: 62.47150753 | AC58: -40.02484689 | AE58: 33.15232433 | AF58: -1.208201116 | AH58: 0 | AI58: 0
A59: 69.183 | B59: 0.069183 | C59: 1.000262455 | D59: 0.02290842049 | E59: 1.000000001 | F59: 5.216275299e-05 | G59: 1 | H59: 0 | I59: 1.367433133 | J59: 0.750574445 | K59: 1.000024794 | L59: 0.007041855261 | M59: 1.000000012 | N59: 0.0001530673863 | O59: 1.000000074 | P59: 0.0003844394709 | Q59: 1.000000003 | R59: 7.658157153e-05 | S59: 1.000000007 | T59: 0.0002644700233 | U59: 64.15046607 | V59: -43.94553482 | W59: 136.0544652 | Y59: 1000000000 | Z59: 4786.287489 | AB59: 62.11762858 | AC59: -42.61004948 | AE59: 33.15194095 | AF59: -1.324720121 | AH59: 0 | AI59: 0
A60: 75.858 | B60: 0.075858 | C60: 1.000315535 | D60: 0.02511781046 | E60: 1.000000002 | F60: 5.71955844e-05 | G60: 1 | H60: 0 | I60: 1.430324244 | J60: 0.7965993221 | K60: 1.00002981 | L60: 0.007721250457 | M60: 1.000000014 | N60: 0.0001678358234 | O60: 1.000000089 | P60: 0.0004215314325 | Q60: 1.000000004 | R60: 8.397040966e-05 | S60: 1.000000009 | T60: 0.0002899869483 | U60: 63.75948079 | V60: -46.67328676 | W60: 133.3267132 | Y60: 1000000000 | Z60: 5754.436164 | AB60: 61.7271041 | AC60: -45.20900039 | AE60: 33.15148003 | AF60: -1.452482494 | AH60: 0 | AI60: 0
A61: 83.176 | B61: 0.083176 | C61: 1.000379339 | D61: 0.02753974745 | E61: 1.000000002 | F61: 6.271322638e-05 | G61: 1 | H61: 0 | I61: 1.50244524 | J61: 0.8425234109 | K61: 1.000035838 | L61: 0.008466083299 | M61: 1.000000017 | N61: 0.0001840268979 | O61: 1.000000107 | P61: 0.0004621964461 | Q61: 1.000000004 | R61: 9.20710115e-05 | S61: 1.000000011 | T61: 0.0003179619083 | U61: 63.33169622 | V61: -49.40398733 | W61: 130.5960127 | Y61: 1000000000 | Z61: 6918.246976 | AB61: 61.29987339 | AC61: -47.79850876 | AE61: 33.15092602 | AF61: -1.592535972 | AH61: 0 | AI61: 0
A62: 91.201 | B62: 0.091201 | C62: 1.000456051 | D62: 0.03019529792 | E62: 1.000000002 | F62: 6.87639338e-05 | G62: 1 | H62: 0 | I62: 1.584824322 | J62: 0.8879744093 | K62: 1.000043087 | L62: 0.009282864428 | M62: 1.00000002 | N62: 0.0002017822098 | O62: 1.000000128 | P62: 0.0005067901495 | Q62: 1.000000005 | R62: 0.0001009542213 | S62: 1.000000013 | T62: 0.0003486395599 | U62: 62.86744377 | V62: -52.11716849 | W62: 127.8828315 | Y62: 1000000000 | Z62: 8317.622401 | AB62: 60.83628681 | AC62: -50.35687834 | AE62: 33.15025996 | AF62: -1.746098826 | AH62: 0 | AI62: 0
A63: 100 | B63: 0.1 | C63: 1.00054827 | D63: 0.03310648159 | E63: 1.000000003 | F63: 7.539822346e-05 | G63: 1 | H63: 0 | I63: 1.678519638 | J63: 0.9325809376 | K63: 1.000051802 | L63: 0.01017840868 | M63: 1.000000024 | N63: 0.0002212499964 | O63: 1.000000154 | P63: 0.0005556848507 | Q63: 1.000000006 | R63: 0.0001106942043 | S63: 1.000000015 | T63: 0.0003822760281 | U63: 62.36781304 | V63: -54.79245364 | W63: 125.2075464 | Y63: 1000000000 | Z63: 10000 | AB63: 60.33745649 | AC63: -52.86244867 | AE63: 33.14945935 | AF63: -1.914444475 | AH63: 0 | AI63: 0
A64: 109.65 | B64: 0.10965 | C64: 1.000659155 | D64: 0.03629857484 | E64: 1.000000003 | F64: 8.267415199e-05 | G64: 1 | H64: 0 | I64: 1.784689373 | J64: 0.9760223045 | K64: 1.000062282 | L64: 0.01116054714 | M64: 1.000000029 | N64: 0.0002426006202 | O64: 1.000000186 | P64: 0.0006093084261 | Q64: 1.000000007 | R64: 0.0001213761949 | S64: 1.000000018 | T64: 0.0004191656656 | U64: 61.83421748 | V64: -57.41250333 | W64: 122.5874967 | Y64: 1000000000 | Z64: 12023.1225 | AB64: 59.80482325 | AC64: -55.29640657 | AE64: 33.14849677 | AF64: -2.099034687 | AH64: 0 | AI64: 0
A65: 120.23 | B65: 0.12023 | C65: 1.000792441 | D65: 0.03979744721 | E65: 1.000000004 | F65: 9.065128399e-05 | G65: 1 | H65: 0 | I65: 1.904504763 | J65: 1.017997926 | K65: 1.000074881 | L65: 0.01223731248 | M65: 1.000000035 | N65: 0.0002660088687 | O65: 1.000000223 | P65: 0.0006680998654 | Q65: 1.000000009 | R65: 0.0001330876416 | S65: 1.000000022 | T65: 0.0004596104705 | U65: 61.26878176 | V65: -59.96115357 | W65: 120.0388464 | Y65: 1000000000 | Z65: 14455.2529 | AB65: 59.24054411 | AC65: -57.64107962 | AE65: 33.14733987 | AF65: -2.301365567 | AH65: 0 | AI65: 0
A66: 131.83 | B66: 0.13183 | C66: 1.000952654 | D66: 0.04363251671 | E66: 1.000000005 | F66: 9.939747784e-05 | G66: 1 | H66: 0 | I66: 2.039248756 | J66: 1.058274431 | K66: 1.000090026 | L66: 0.01341785425 | M66: 1.000000043 | N66: 0.0002916738667 | O66: 1.000000268 | P66: 0.0007325592831 | Q66: 1.000000011 | R66: 0.0001459281691 | S66: 1.000000027 | T66: 0.0005039544912 | U66: 60.67376035 | V66: -62.42623565 | W66: 117.5737643 | Y66: 1000000000 | Z66: 17379.1489 | AB66: 58.64691273 | AC66: -59.88258378 | AE66: 33.14594947 | AF66: -2.523138469 | AH66: 0 | AI66: 0
A67: 144.54 | B67: 0.14454 | C67: 1.001145094 | D67: 0.04783308458 | E67: 1.000000006 | F67: 0.000108980592 | G67: 1 | H67: 0 | I67: 2.19019102 | J67: 1.096647679 | K67: 1.000108221 | L67: 0.01471131859 | M67: 1.000000051 | N67: 0.0003197947391 | O67: 1.000000323 | P67: 0.0008031867932 | Q67: 1.000000013 | R67: 0.0001599974022 | S67: 1.000000032 | T67: 0.0005525417765 | U67: 60.0520132 | V67: -64.79724933 | W67: 115.2027507 | Y67: 1000000000 | Z67: 20891.8116 | AB67: 58.02683492 | AC67: -62.00871014 | AE67: 33.14427967 | AF67: -2.766048054 | AH67: 0 | AI67: 0
A68: 158.49 | B68: 0.15849 | C68: 1.001376634 | D68: 0.05244151468 | E68: 1.000000007 | F68: 0.000119498644 | G68: 1 | H68: 0 | I68: 2.359070239 | J68: 1.133053926 | K68: 1.000130117 | L68: 0.01613091775 | M68: 1.000000061 | N68: 0.0003506591106 | O68: 1.000000388 | P68: 0.0008807047829 | Q68: 1.000000015 | R68: 0.0001754392433 | S68: 1.000000038 | T68: 0.0006058692853 | U68: 59.40501762 | V68: -67.07227208 | W68: 112.9277279 | Y68: 1000000000 | Z68: 25119.0801 | AB68: 57.38184744 | AC68: -64.0150658 | AE68: 33.14227103 | AF68: -3.032544451 | AH68: 0 | AI68: 0
A69: 173.78 | B69: 0.17378 | C69: 1.001654832 | D69: 0.05749005145 | E69: 1.000000009 | F69: 0.0001310270322 | G69: 1 | H69: 0 | I69: 2.547261296 | J69: 1.167362839 | K69: 1.000156432 | L69: 0.01768680494 | M69: 1.000000074 | N69: 0.0003844882311 | O69: 1.000000466 | P69: 0.0009656689328 | Q69: 1.000000019 | R69: 0.0001923643867 | S69: 1.000000046 | T69: 0.0006643192938 | U69: 58.7361814 | V69: -69.24514791 | W69: 110.7548521 | Y69: 1000000000 | Z69: 30199.4884 | AB69: 56.71542336 | AC69: -65.89361417 | AE69: 33.13985823 | AF69: -3.324492712 | AH69: 0 | AI69: 0
A70: 190.55 | B70: 0.19055 | C70: 1.001989297 | D70: 0.06302388183 | E70: 1.00000001 | F70: 0.0001436713141 | G70: 1 | H70: 0 | I70: 2.756620203 | J70: 1.199565096 | K70: 1.000188077 | L70: 0.01939319593 | M70: 1.000000089 | N70: 0.00042159185 | O70: 1.000000561 | P70: 0.001058857196 | Q70: 1.000000022 | R70: 0.0002109278041 | S70: 1.000000055 | T70: 0.000728426989 | U70: 58.04748821 | V70: -71.31718151 | W70: 108.6828185 | Y70: 1000000000 | Z70: 36309.3025 | AB70: 56.0296293 | AC70: -67.64302451 | AE70: 33.13695832 | AF70: -3.644506474 | AH70: 0 | AI70: 0
A71: 208.93 | B71: 0.20893 | C71: 1.002391091 | D71: 0.06908453766 | E71: 1.000000012 | F71: 0.0001575295073 | G71: 1 | H71: 0 | I71: 2.988877902 | J71: 1.229643481 | K71: 1.000226106 | L71: 0.02126327851 | M71: 1.000000107 | N71: 0.0004622575921 | O71: 1.000000674 | P71: 0.001160991957 | Q71: 1.000000027 | R71: 0.0002312733979 | S71: 1.000000067 | T71: 0.0007986893299 | U71: 57.34171206 | V71: -73.2890699 | W71: 106.7109301 | Y71: 1000000000 | Z71: 43651.7449 | AB71: 55.3273346 | AC71: -69.26157116 | AE71: 33.13347593 | AF71: -3.994988194 | AH71: 0 | AI71: 0
A72: 229.09 | B72: 0.22909 | C72: 1.002874101 | D72: 0.07572627724 | E72: 1.000000015 | F72: 0.0001727297887 | G72: 1 | H72: 0 | I72: 3.246269861 | J72: 1.257658 | K72: 1.00027184 | L72: 0.02331429658 | M72: 1.000000128 | N72: 0.0005068615816 | O72: 1.00000081 | P72: 0.001273017868 | Q72: 1.000000032 | R72: 0.0002535893483 | S72: 1.00000008 | T72: 0.0008757561866 | U72: 56.62039679 | V72: -75.16644988 | W72: 104.8335501 | Y72: 1000000000 | Z72: 52482.2281 | AB72: 54.61020264 | AC72: -70.75172581 | AE72: 33.12929147 | AF72: -4.379076534 | AH72: 0 | AI72: 0
A73: 251.19 | B73: 0.25119 | C73: 1.003454369 | D73: 0.08299944819 | E73: 1.000000018 | F73: 0.0001893927956 | G73: 1 | H73: 0 | I73: 3.530909294 | J73: 1.283653528 | K73: 1.000326809 | L73: 0.02556245842 | M73: 1.000000154 | N73: 0.0005557578178 | O73: 1.000000974 | P73: 0.001395824014 | Q73: 1.000000039 | R73: 0.0002780527658 | S73: 1.000000096 | T73: 0.0009602392013 | U73: 55.88581206 | V73: -76.95392193 | W73: 103.0460781 | Y73: 1000000000 | Z73: 63096.4161 | AB73: 53.8806409 | AC73: -72.11515119 | AE73: 33.12426712 | AF73: -4.799684334 | AH73: 0 | AI73: 0
A74: 275.42 | B74: 0.27542 | C74: 1.004151489 | D74: 0.090963478 | E74: 1.000000022 | F74: 0.0002076617845 | G74: 1 | H74: 0 | I74: 3.845297808 | J74: 1.307714181 | K74: 1.000392885 | L74: 0.02802700048 | M74: 1.000000186 | N74: 0.0006093666746 | O74: 1.000001171 | P74: 0.001530466178 | Q74: 1.000000046 | R74: 0.0003048739693 | S74: 1.000000116 | T74: 0.0010528647 | U74: 55.13948646 | V74: -78.65869541 | W74: 101.3413046 | Y74: 1000000000 | Z74: 75856.1764 | AB74: 53.14034596 | AC74: -73.35558875 | AE74: 33.11823481 | AF74: -5.260249945 | AH74: 0 | AI74: 0
A75: 302 | B75: 0.302 | C75: 1.004989365 | D75: 0.09968659141 | E75: 1.000000026 | F75: 0.0002277026313 | G75: 1 | H75: 0 | I75: 4.192334903 | J75: 1.329943872 | K75: 1.000472358 | L75: 0.03073017882 | M75: 1.000000223 | N75: 0.0006681749006 | O75: 1.000001408 | P75: 0.001678166847 | Q75: 1.000000056 | R75: 0.0003342964859 | S75: 1.000000139 | T75: 0.00115447369 | U75: 54.38241358 | V75: -80.28945871 | W75: 99.71054129 | Y75: 1000000000 | Z75: 91204 | AB75: 52.39051586 | AC75: -74.47774498 | AE75: 33.11099006 | AF75: -5.764721039 | AH75: 0 | AI75: 0
A76: 331.13 | B76: 0.33113 | C76: 1.005995296 | D76: 0.1092290744 | E76: 1.000000031 | F76: 0.0002496661326 | G76: 1 | H76: 0 | I76: 4.574665966 | J76: 1.35042171 | K76: 1.00056785 | L76: 0.03369217411 | M76: 1.000000268 | N76: 0.0007326249939 | O76: 1.000001693 | P76: 0.001840037359 | Q76: 1.000000067 | R76: 0.0003665417038 | S76: 1.000000168 | T76: 0.001265830726 | U76: 53.6164863 | V76: -81.85313396 | W76: 98.14686604 | Y76: 1000000000 | Z76: 109647.0769 | AB76: 51.63327609 | AC76: -75.48502158 | AE76: 33.10230018 | AF76: -6.316586916 | AH76: 0 | AI76: 0
A77: 363.08 | B77: 0.36308 | C77: =SQRT(1+(A77/pole1)^2) -> 1.007203718 | D77: =ATAN(A77/pole1) -> 0.1196723617 | E77: =SQRT(1+(A77/Zero1)^2) -> 1.000000037 | F77: =ATAN(A77/Zero1) -> 0.0002737558634 | G77: =IF(VIN_nom>Vout, 1, SQRT(1+(A77/z_RHP)^2)) -> 1 | H77: =IF(VIN_nom>Vout, 0, -ATAN(A77/z_RHP)) -> 0 | I77: =SQRT(1+(A77/Pole2)^2) -> 4.995860899 | J77: =ATAN(A77/Pole2) -> 1.369269285 | K77: =SQRT(1+(A77/Zero2)^2) -> 1.000682678 | L77: =ATAN(A77/Zero2) -> 0.03694023067 | M77: =SQRT(1+(A77/pole4)^2) -> 1.000000323 | N77: =ATAN(A77/pole4) -> 0.0008033143272 | O77: =SQRT(1+(A77/Zero3)^2) -> 1.000002035 | P77: =ATAN(A77/Zero3) -> 0.002017578026 | Q77: =SQRT(1+(A77/pole5)^2) -> 1.000000081 | R77: =ATAN(A77/pole5) -> 0.000401908497 | S77: =SQRT((1-(Z77/pterm2))^2+(A77/pterm1)^2) -> 1.000000201 | T77: =IF((ATAN((A77/pterm1)/(1-A77^2/pterm2))>0),ATAN((A77/pterm1)/(1-A77^2/pterm2)),PI()+ATAN((A77/pterm1)/(1-A77^2/pterm2))) -> 0.001387967956 | U77: =20*LOG10(((E77*K77*G77*O77)/(C77*I77*S77*M77*Q77))*Adc) -> 52.84203882 | V77: =((F77+L77+H77+R77)-(D77+J77+T77+N77+T77))*radconv -> -83.3599163 | W77: =IF(V77>0,V77,V77+180) -> 96.6400837 | Y77: =IF(U77<0,A77,1000000000) -> 1000000000 | Z77: =A77^2 -> 131827.0864 | AB77: =20*LOG10((K77/(I77*M77))*AEA) -> 50.86925339 | AC77: =(L77-(J77+N77))*radconv -> -76.38285834 | AE77: =20*LOG10((E77*G77/(C77*S77))*Acs*Am) -> 33.09187254 | AF77: =(F77+H77-(D77+T77))*radconv -> -6.920560908 | AH77: =SUM((U78<0)*(U77>0))*A77 -> 0 | AI77: =IF(AH77>0,W75,0) -> 0
A78: 398.11 | B78: =A78/1000 -> 0.39811 | C78: 1.008654548 | D78: 0.1310922418 | E78: 1.000000045 | F78: 0.000300167859 | G78: 1 | H78: 0 | I78: 5.459368542 | J78: 1.386584892 | K78: 1.000820706 | L78: 0.04050050344 | M78: 1.000000388 | N78: 0.0008808181472 | O78: 1.000002447 | P78: 0.002212233578 | Q78: 1.000000097 | R78: 0.0004406846701 | S78: 1.000000242 | T78: 0.001521879301 | U78: 52.06009527 | V78: -84.81840056 | W78: 95.18159944 | Y78: 1000000000 | Z78: 158491.5721 | AB78: 50.09980931 | AC78: -77.17542158 | AE78: 33.07936963 | AF78: -7.581031097 | AH78: 0 | AI78: 0
A79: 436.52 | B79: 0.43652 | C79: 1.010396093 | D79: 0.1435745014 | E79: 1.000000054 | F79: 0.0003291283138 | G79: 1 | H79: 0 | I79: 5.969174253 | J79: 1.402475281 | K79: 1.000986629 | L79: 0.04440311865 | M79: 1.000000466 | N79: 0.0009658001997 | O79: 1.000002942 | P79: 0.002425671003 | Q79: 1.000000117 | R79: 0.000483202305 | S79: 1.000000291 | T79: 0.001668711591 | U79: 51.27111723 | V79: -86.2380297 | W79: 93.7619703 | Y79: 1000000000 | Z79: 190549.7104 | AB79: 49.32581163 | AC79: -77.86713956 | AE79: 33.06438514 | AF79: -8.302965454 | AH79: 0 | AI79: 0
A80: 478.63 | B80: 0.47863 | C80: 1.012485632 | D80: 0.1572074534 | E80: 1.000000065 | F80: 0.000360878502 | G80: 1 | H80: 0 | I80: 6.52953736 | J80: 1.417041022 | K80: 1.001186048 | L80: 0.04868011011 | M80: 1.000000561 | N80: 0.001058968479 | O80: 1.000003537 | P80: 0.002659668403 | Q80: 1.00000014 | R80: 0.0005298156227 | S80: 1.00000035 | T80: 0.001829688117 | U80: 50.47554391 | V80: -87.62793699 | W80: 92.37206301 | Y80: 1000000000 | Z80: 229086.6769 | AB80: 48.54817798 | AC80: -78.46197959 | AE80: 33.04644051 | AF80: -9.091480189 | AH80: 0 | AI80: 0
A81: 524.81 | B81: 0.52481 | C81: 1.014992506 | D81: 0.1720904367 | E81: 1.000000078 | F81: 0.0003956973966 | G81: 1 | H81: 0 | I81: 7.14539103 | J81: 1.430385052 | K81: 1.001425786 | L81: 0.05336842576 | M81: 1.000000674 | N81: 0.001161141603 | O81: 1.000004252 | P81: 0.002916281698 | Q81: 1.000000169 | R81: 0.0005809341907 | S81: 1.000000421 | T81: 0.002006223306 | U81: 49.67327689 | V81: -88.99776474 | W81: 91.00223526 | Y81: 1000000000 | Z81: 275425.5361 | AB81: 47.76738484 | AC81: -78.96376962 | AE81: 33.02496067 | AF81: -9.952332064 | AH81: 0 | AI81: 0
A82: 575.44 | B82: 0.57544 | C82: 1.017997942 | D82: 0.1883193332 | E82: 1.000000094 | F82: 0.0004338715107 | G82: 1 | H82: 0 | I82: 7.821810284 | J82: 1.442597819 | K82: 1.001713909 | L82: 0.05850581232 | M82: 1.00000081 | N82: 0.001273160312 | O82: 1.000005112 | P82: 0.003197622336 | Q82: 1.000000203 | R82: 0.0006369786458 | S82: 1.000000506 | T82: 0.002199769817 | U82: 48.86447413 | V82: -90.35620013 | W82: 89.64379987 | Y82: 1000000000 | Z82: 331131.1936 | AB82: 46.98425678 | AC82: -79.37557726 | AE82: 32.99927878 | AF82: -10.89108153 | AH82: 0 | AI82: 0
A83: 630.96 | B83: 0.63096 | C83: 1.021599909 | D83: 0.20600071 | E83: 1.000000113 | F83: 0.0004757325957 | G83: 1 | H83: 0 | I83: 8.56467909 | J83: 1.453770792 | K83: 1.002060233 | L83: 0.0641358215 | M83: 1.000000974 | N83: 0.001395998093 | O83: 1.000006147 | P83: 0.003506135128 | Q83: 1.000000244 | R83: 0.0006984360408 | S83: 1.000000608 | T83: 0.002412009676 | U83: 48.04872782 | V83: -91.7122961 | W83: 88.2877039 | Y83: 1000000000 | Z83: 398110.5216 | AB83: 46.19918148 | AC83: -79.70020378 | AE83: 32.96859915 | AF83: -11.91391178 | AH83: 0 | AI83: 0
A84: 691.83 | B84: 0.69183 | C84: 1.025913222 | D84: 0.2252365142 | E84: 1.000000136 | F84: 0.000521627483 | G84: 1 | H84: 0 | I84: 9.380156577 | J84: 1.46398532 | K84: 1.002476402 | L84: 0.07030365941 | M84: 1.000001171 | N84: 0.00153067268 | O84: 1.00000739 | P84: 0.003844375959 | Q84: 1.000000293 | R84: 0.0007658155671 | S84: 1.000000731 | T84: 0.00264470137 | U84: 47.22576674 | V84: -93.0741754 | W84: 86.9258246 | Y84: 1000000000 | Z84: 478628.7489 | AB84: 45.41280653 | AC84: -79.93977833 | AE84: 32.93200265 | AF84: -13.02674485 | AH84: 0 | AI84: 0
A85: 758.58 | B85: 0.75858 | C85: 1.031075645 | D85: 0.24613686 | E85: 1.000000164 | F85: 0.0005719557822 | G85: 1 | H85: 0 | I85: 10.27534643 | J85: 1.473321724 | K85: 1.002976574 | L85: 0.07706113538 | M85: 1.000001408 | N85: 0.001678356674 | O85: 1.000008884 | P85: 0.004215289608 | Q85: 1.000000353 | R85: 0.0008397039012 | S85: 1.000000879 | T85: 0.002899870982 | U85: 46.394783 | V85: -94.45002357 | W85: 85.54997643 | Y85: 1000000000 | Z85: 575443.6164 | AB85: 44.6254094 | AC85: -80.0960017 | AE85: 32.88840357 | AF85: -14.23598299 | AH85: 0 | AI85: 0
A86: 831.76 | B86: 0.83176 | C86: 1.037247383 | D86: 0.2688004364 | E86: 1.000000197 | F86: 0.0006271321824 | G86: 1 | H86: 0 | I86: 11.25762718 | J86: 1.481850427 | K86: 1.0035775 | L86: 0.08446143913 | M86: 1.000001693 | N86: 0.001840266923 | O86: 1.000010681 | P86: 0.004621931878 | Q86: 1.000000424 | R86: 0.0009207098574 | S86: 1.000001057 | T86: 0.003179621058 | U86: 45.55515261 | V86: -95.84673443 | W86: 84.15326557 | Y86: 1000000000 | Z86: 691824.6976 | AB86: 43.83760167 | AC86: -80.16993096 | AE86: 32.83656593 | AF86: -15.54737739 | AH86: 0 | AI86: 0
A87: 912.01 | B87: 0.91201 | C87: 1.044620051 | D87: 0.2933316837 | E87: 1.000000236 | F87: 0.0006876392307 | G87: 1 | H87: 0 | I87: 12.33559131 | J87: 1.489641033 | K87: 1.004299583 | L87: 0.09256601849 | M87: 1.000002036 | N87: 0.002017819386 | O87: 1.000012842 | P87: 0.005067858542 | Q87: 1.00000051 | R87: 0.001009541874 | S87: 1.000001271 | T87: 0.003486398203 | U87: 44.70563107 | V87: -97.27105259 | W87: 82.72894741 | Y87: 1000000000 | Z87: 831762.2401 | AB87: 43.04958381 | AC87: -80.1621146 | AE87: 32.77504422 | AF87: -16.96702457 | AH87: 0 | AI87: 0
A88: 1000 | B88: 1 | C88: 1.053415421 | D88: 0.3198165509 | E88: 1.000000284 | F88: 0.0007539820931 | G88: 1 | H88: 0 | I88: 13.51824018 | J88: 1.496754568 | K88: 1.005167009 | L88: 0.1014382403 | M88: 1.000002448 | N88: 0.00221249639 | O88: 1.000015439 | P88: 0.005556791885 | Q88: 1.000000613 | R88: 0.001106941596 | S88: 1.000001528 | T88: 0.003822763715 | U88: 43.84511621 | V88: -98.72807544 | W88: 81.27192456 | Y88: 1000000000 | Z88: 1000000 | AB88: 42.26187539 | AC88: -80.07250345 | AE88: 32.70221612 | AF88: -18.49996684 | AH88: 0 | AI88: 0
A89: 1096.5 | B89: 1.0965 | C89: 1.063895895 | D89: 0.3483371816 | E89: 1.000000342 | F89: 0.0008267413334 | G89: 1 | H89: 0 | I89: 14.8159244 | J89: 1.50325003 | K89: 1.006209131 | L89: 0.1111501032 | M89: 1.000002943 | N89: 0.002426001491 | O89: 1.000018563 | P89: 0.006093009614 | Q89: 1.000000737 | R89: 0.001213761359 | S89: 1.000001837 | T89: 0.004191661183 | U89: 42.97197521 | V89: -100.2221174 | W89: 79.7778826 | Y89: 1000000000 | Z89: 1202312.25 | AB89: 41.47469975 | AC89: -79.90045023 | AE89: 32.61622471 | AF89: -20.15104608 | AH89: 0 | AI89: 0
A90: 1202.3 | B90: 1.2023 | C90: 1.076360101 | D90: 0.3789404966 | E90: 1.000000411 | F90: 0.000906512594 | G90: 1 | H90: 0 | I90: 16.23926843 | J90: 1.509178214 | K90: 1.007460509 | L90: 0.1217737209 | M90: 1.000003538 | N90: 0.002660082476 | O90: 1.000022318 | P90: 0.006680900247 | Q90: 1.000000886 | R90: 0.001330875638 | S90: 1.000002209 | T90: 0.004596110672 | U90: 42.08487098 | V90: -101.7550073 | W90: 78.24499274 | Y90: 1000000000 | Z90: 1445525.29 | AB90: 40.68873598 | AC90: -79.64483351 | AE90: 32.51505293 | AF90: -21.92308957 | AH90: 0 | AI90: =IF(AH90>0,W90,0) -> 0
A91: 1318.3 | B91: 1.3183 | C91: 1.091156057 | D91: 0.4116566884 | E91: 1.000000494 | F91: 0.0009939744544 | G91: 1 | H91: 0 | I91: 17.80038058 | J91: 1.51458816 | K91: 1.008962855 | L91: 0.1333897965 | M91: 1.000004254 | N91: 0.002916730479 | O91: 1.000026832 | P91: 0.007325463104 | Q91: 1.000001065 | R91: 0.001459280666 | S91: 1.000002656 | T91: 0.005039552779 | U91: 41.1820001 | V91: -103.3270733 | W91: 76.67292671 | Y91: 1000000000 | Z91: 1737914.89 | AB91: 39.90441615 | AC91: -79.30395336 | AE91: 32.39646422 | AF91: -23.81798544 | AH91: 0 | AI91: 0
A92: 1445.4 | B92: 1.4454 | C92: 1.108670307 | D92: 0.4464596081 | E92: 1.000000594 | F92: 0.001089805492 | G92: 1 | H92: 0 | I92: 19.51137285 | J92: 1.519521702 | K92: 1.010764766 | L92: 0.1460758579 | M92: 1.000005113 | N92: 0.003197936598 | O92: 1.000032255 | P92: 0.008031696951 | Q92: 1.00000128 | R92: 0.00159997267 | S92: 1.000003193 | T92: 0.005525428134 | U92: 40.26205064 | V92: -104.9351844 | W92: 75.06481558 | Y92: 1000000000 | Z92: 2089181.16 | AB92: 39.12273621 | AC92: -78.87587864 | AE92: 32.25814947 | AF92: -25.83439375 | AH92: 0 | AI92: 0
A93: 1584.9 | B93: 1.5849 | C93: 1.129387551 | D93: 0.4833657907 | E93: 1.000000714 | F93: 0.001194985877 | G93: 1 | H93: 0 | I93: 21.38974613 | J93: 1.524027906 | K93: 1.012929003 | L93: 0.1599451378 | M93: 1.000006148 | N93: 0.003506576878 | O93: 1.000038781 | P93: 0.008806822413 | Q93: 1.000001539 | R93: 0.001754390651 | S93: 1.000003839 | T93: 0.006058706523 | U93: 39.32150211 | V93: -106.5772073 | W93: 73.42279271 | Y93: 1000000000 | Z93: 2511908.01 | AB93: 38.34294943 | AC93: -78.35709769 | AE93: 32.09733329 | AF93: -27.97349047 | AH93: 0 | AI93: 0
A94: 1737.8 | B94: 1.7378 | C94: 1.153793836 | D94: 0.5222360447 | E94: 1.000000858 | F94: 0.00131026958 | G94: 1 | H94: 0 | I94: 23.4489661 | J94: 1.528137586 | K94: 1.01552392 | L94: 0.1750755156 | M94: 1.000007392 | N94: 0.003844863554 | O94: 1.000046625 | P94: 0.009656392179 | Q94: 1.00000185 | R94: 0.001923641518 | S94: 1.000004615 | T94: 0.006643210958 | U94: 38.35970852 | V94: -108.2429284 | W94: 71.75707163 | Y94: 1000000000 | Z94: 3019948.84 | AB94: 37.56680027 | AC94: -77.74504061 | AE94: 31.91162344 | AF94: -30.22747634 | AH94: 0 | AI94: 0
A95: 1905.5 | B95: 1.9055 | C95: 1.182478385 | D95: 0.5629556348 | E95: 1.000001032 | F95: 0.001436712162 | G95: 1 | H95: 0 | I95: 25.70788778 | J95: 1.531887943 | K95: 1.018635871 | L95: 0.1915775897 | M95: 1.000008887 | N95: 0.004215893772 | O95: 1.000056057 | P95: 0.01058818022 | Q95: 1.000002225 | R95: 0.002109274944 | S95: 1.000005549 | T95: 0.007284293646 | U95: 37.37418991 | V95: -109.9222099 | W95: 70.07779006 | Y95: 1000000000 | Z95: 3630930.25 | AB95: 36.79450951 | AC95: -77.03567951 | AE95: 31.69831691 | AF95: -32.5900237 | AH95: 0 | AI95: 0
A96: 2089.3 | B96: 2.0893 | C96: 1.216055102 | D96: 0.6053004824 | E96: 1.000001241 | F96: 0.001575293783 | G96: 1 | H96: 0 | I96: 28.18402227 | J96: 1.535307782 | K96: 1.022363112 | L96: 0.2095431024 | M96: 1.000010684 | N96: 0.004622543325 | O96: 1.000067393 | P96: 0.01160940319 | Q96: 1.000002674 | R96: 0.002312729897 | S96: 1.000006671 | T96: 0.007986924614 | U96: 36.3640526 | V96: -111.5992029 | W96: 68.40079711 | Y96: 1000000000 | Z96: 4365174.49 | AB96: 36.02748646 | AC96: -76.22557308 | AE96: 31.45510811 | AF96: -35.04852241 | AH96: 0 | AI96: 0
A97: 2290.9 | B97: 2.2909 | C97: 1.255247516 | D97: 0.6490545284 | E97: 1.000001492 | F97: 0.001727296187 | G97: 1 | H97: 0 | I97: 30.90027186 | J97: 1.5384285 | K97: 1.026827807 | L97: 0.2290914602 | M97: 1.000012845 | N97: 0.005068572845 | O97: 1.000081026 | P97: 0.01272949795 | Q97: 1.000003215 | R97: 0.002535888101 | S97: 1.000008021 | T97: 0.008757603148 | U97: 35.32727812 | V97: -113.2572644 | W97: 66.74273559 | Y97: 1000000000 | Z97: 5248222.81 | AB97: 35.26613014 | AC97: -75.30989429 | AE97: 31.17957623 | AF97: -37.59089211 | AH97: 0 | AI97: 0
A98: 2511.9 | B98: 2.5119 | C98: 1.300794772 | D98: 0.6938951273 | E98: 1.000001793 | F98: 0.001893925714 | G98: 1 | H98: 0 | I98: 33.87819423 | J98: 1.541274527 | K98: 1.032168787 | L98: 0.2503176198 | M98: 1.000015443 | N98: 0.005557521533 | O98: 1.000097412 | P98: 0.0139573428 | Q98: 1.000003866 | R98: 0.002780520564 | S98: 1.000009643 | T98: 0.009602446432 | U98: 34.26369545 | V98: -114.8746005 | W98: 65.12539955 | Y98: 1000000000 | Z98: 6309641.61 | AB98: 34.51201052 | AC98: -74.28480492 | AE98: 30.86997652 | AF98: -40.19892797 | AH98: 0 | AI98: 0
A99: 2754.2 | B99: 2.7542 | C99: 1.353521797 | D99: 0.7394884863 | E99: 1.000002156 | F99: 0.002076614889 | G99: 1 | H99: 0 | I99: 37.14339138 | J99: 1.543870384 | K99: 1.038553046 | L99: 0.2733271215 | M99: 1.000018566 | N99: 0.006093592077 | O99: 1.00011711 | P99: 0.01530347895 | Q99: 1.000004647 | R99: 0.003048730342 | S99: 1.000011594 | T99: 0.01052871873 | U99: 33.17302262 | V99: -116.4283148 | W99: 63.57168524 | Y99: 1000000000 | Z99: 7585617.64 | AB99: 33.76631662 | AC99: -73.1459038 | AE99: 30.52483331 | AF99: -42.85383919 | AH99: 0 | AI99: 0
A100: 3020 | B100: 3.02 | C100: 1.414341684 | D100: 0.7854887469 | E100: 1.000002592 | F100: 0.002277022417 | G100: 1 | H100: 0 | I100: 40.72551035 | J100: 1.546239225 | K100: 1.046180612 | L100: 0.2982305648 | M100: 1.000022323 | N100: 0.006681650565 | O100: 1.000140803 | P100: 0.01678010911 | Q100: 1.000005588 | R100: 0.003342952531 | S100: 1.00001394 | T100: 0.01154483147 | U100: 32.05524932 | V100: -117.894589 | W100: 62.10541103 | Y100: 1000000000 | Z100: 9120400 | AB100: 33.03014405 | AC100: -71.88845947 | AE100: 30.14303498 | AF100: -45.53619645 | AH100: 0 | AI100: 0
A101: 3311.3 | B101: 3.3113 | C101: 1.484133934 | D101: 0.8314654475 | E101: 1.000003117 | F101: 0.002496656191 | G101: 1 | H101: 0 | I101: 44.65150468 | J101: 1.548398792 | K101: 1.055273529 | L101: 0.3250911753 | M101: 1.000026837 | N101: 0.007326120178 | O101: 1.000169273 | P101: 0.01839831814 | Q101: 1.000006718 | R101: 0.003665400787 | S101: 1.000016759 | T101: 0.01265843192 | U101: 30.91282882 | V101: -119.2470699 | W101: 60.75293005 | Y101: 1000000000 | Z101: 10964707.69 | AB101: 32.30588112 | AC101: -70.51011935 | AE101: 29.72463996 | AF101: -48.22168787 | AH101: 0 | AI101: 0
A102: 3630.8 | B102: 3.6308 | C102: 1.563947844 | D102: 0.877068906 | E102: 1.000003747 | F102: 0.002737551864 | G102: 1 | H102: 0 | I102: 48.95776355 | J102: 1.550369137 | K102: 1.066106139 | L102: 0.3540020185 | M102: 1.000032265 | N102: 0.00803297221 | O102: 1.000203511 | P102: 0.0201730707 | Q102: 1.000008076 | R102: 0.004019063547 | S102: 1.000020149 | T102: 0.0138798439 | U102: 29.74705836 | V102: -120.4627762 | W102: 59.53722378 | Y102: 1000000000 | Z102: 13182708.64 | AB102: 31.59483252 | AC102: -69.0070421 | AE102: 29.26963258 | AF102: -50.89075302 | AH102: 0 | AI102: 0
A103: 3981.1 | B103: 3.9811 | C103: 1.654811087 | D103: 0.9219110888 | E103: 1.000004505 | F103: 0.003001669665 | G103: 1 | H103: 0 | I103: 53.67933017 | J103: 1.552166105 | K103: 1.078984993 | L103: 0.3850039493 | M103: 1.000038791 | N103: 0.008807955969 | O103: 1.00024467 | P103: 0.02211876404 | Q103: 1.00000971 | R103: 0.004406818459 | S103: 1.000024226 | T103: 0.01521900963 | U103: 28.56138182 | V103: -121.5192338 | W103: 58.48076624 | Y103: 1000000000 | Z103: 15849157.21 | AB103: 30.8993647 | AC103: -67.37812429 | AE103: 28.77908063 | AF103: -53.52161655 | AH103: 0 | AI103: 0
A104: 4365.2 | B104: 4.3652 | C104: 1.757847085 | D104: 0.9656557491 | E104: 1.000005416 | F104: 0.003291271372 | G104: 1 | H104: 0 | I104: 58.85664046 | J104: 1.553805073 | K104: 1.094268313 | L104: 0.4181231128 | M104: 1.000046637 | N104: 0.009657704727 | O104: 1.000294152 | P104: 0.0242520018 | Q104: 1.000011674 | R104: 0.00483198582 | S104: 1.000029127 | T104: 0.01668740148 | U104: 27.35943898 | V104: -122.3979349 | W104: 57.60206507 | Y104: 1000000000 | Z104: 19054971.04 | AB104: 30.22169731 | AC104: -65.62312898 | AE104: 28.25439255 | AF104: -56.09554067 | AH104: 0 | AI104: 0
A105: 4786.3 | B105: 4.7863 | C105: 1.874223953 | D105: 1.007998999 | E105: 1.000006512 | F105: 0.00360876951 | G105: 1 | H105: 0 | I105: 64.53282741 | J105: 1.555299717 | K105: 1.11236244 | L105: 0.4533439584 | M105: 1.000056069 | N105: 0.01058929293 | O105: 1.000353631 | P105: 0.02659047801 | Q105: 1.000014035 | R105: 0.00529810715 | S105: 1.000035019 | T105: 0.01829725759 | U105: 26.1457489 | V105: -123.0846094 | W105: 56.91539065 | Y105: 1000000000 | Z105: 22908667.69 | AB105: 29.56436075 | AC105: -63.74413606 | AE105: 27.69754308 | AF105: -58.59567683 | AH105: 0 | AI105: 0
A106: 5248.1 | B106: 5.2481 | C106: 2.005237841 | D106: 1.048704981 | E106: 1.000007829 | F106: 0.003956953521 | G106: 1 | H106: 0 | I106: 70.75776492 | J106: 1.556663132 | K106: 1.133737436 | L106: 0.4906252214 | M106: 1.00006741 | N106: 0.01161089946 | O106: 1.000425147 | P106: 0.02915463643 | Q106: 1.000016874 | R106: 0.00580927721 | S106: 1.000042104 | T106: 0.02006272927 | U106: 24.9247636 | V106: -123.5705537 | W106: 56.42944629 | Y106: 1000000000 | Z106: 27542553.61 | AB106: 28.92971742 | AC106: -61.74472867 | AE106: 27.11060483 | AF106: -61.00916239 | AH106: 0 | AI106: 0
A107: 5370.3 | B107: 5.3703 | C107: 2.040416958 | D107: 1.05859655 | E107: 1.000008198 | F107: 0.004049088673 | G107: 1 | H107: 0 | I107: 72.40500707 | J107: 1.556984688 | K107: 1.13965096 | L107: 0.5002521654 | M107: 1.000070586 | N107: 0.01188122965 | O107: 1.000445172 | P107: 0.02983309284 | Q107: 1.000017669 | R107: 0.005944540856 | S107: 1.000044088 | T107: 0.0205299064 | U107: 24.61912587 | V107: -123.6601338 | W107: 56.3398662 | Y107: 1000000000 | Z107: 28840122.09 | AB107: 28.77498743 | AC107: -61.22705801 | AE107: 26.95953014 | AF107: -61.5973959 | AH107: 0 | AI107: 0
A108: 5432.85 | B108: 5.43285 | C108: 2.058499195 | D108: 1.063528642 | E108: 1.00000839 | F108: 0.00409624948 | G108: 1 | H108: 0 | I108: 73.24817678 | J108: 1.557143686 | K108: 1.142718439 | L108: 0.5051410843 | M108: 1.00007224 | N108: 0.01201960176 | O108: 1.0004556 | P108: 0.03018036088 | Q108: 1.000018083 | R108: 0.006013777606 | S108: 1.000045122 | T108: 0.02076903904 | U108: 24.46533871 | V108: -123.700379 | W108: 56.29962103 | Y108: 1000000000 | Z108: 29515859.12 | AB108: 28.69775618 | AC108: -60.96398162 | AE108: 26.88288729 | AF108: -61.89098314 | AH108: 0 | AI108: 0
A109: 5495.4 | B109: 5.4954 | C109: 2.076630633 | D109: 1.068374725 | E109: 1.000008584 | F109: 0.004143410268 | G109: 1 | H109: 0 | I109: 74.09134829 | J109: 1.557299064 | K109: 1.145813084 | L109: 0.5100037106 | M109: 1.000073913 | N109: 0.01215797342 | O109: 1.000466149 | P109: 0.03052762163 | Q109: 1.000018502 | R109: 0.006083014298 | S109: 1.000046167 | T109: 0.02100817211 | U109: 24.3133109 | V109: -123.7369953 | W109: 56.26300472 | Y109: 1000000000 | Z109: 30199421.16 | AB109: 28.62181891 | AC109: -60.70220431 | AE109: 26.8067088 | AF109: -62.17964241 | AH109: 0 | AI109: 0
A110: 5559.4 | B110: 5.5594 | C110: 2.095231978 | D110: 1.073246217 | E110: 1.000008785 | F110: 0.004191664293 | G110: 1 | H110: 0 | I110: 74.95406756 | J110: 1.557454427 | K110: 1.149007356 | L110: 0.5149518286 | M110: 1.000075644 | N110: 0.01229955224 | O110: 1.000477067 | P110: 0.03088292478 | Q110: 1.000018935 | R110: 0.006153855937 | S110: 1.000047249 | T110: 0.0212528491 | U110: 24.15954857 | V110: -123.7708327 | W110: 56.22916731 | Y110: 1000000000 | Z110: 30906928.36 | AB110: 28.54543035 | AC110: -60.43571152 | AE110: 26.729244 | AF110: -62.47001259 | AH110: 0 | AI110: 0
A111: 5623.4 | B111: 5.6234 | C111: 2.11388217 | D111: 1.078031862 | E111: 1.000008989 | F111: 0.004239918299 | G111: 1 | H111: 0 | I111: 75.81678859 | J111: 1.557606254 | K111: 1.152229604 | L111: 0.5198723913 | M111: 1.000077396 | N111: 0.01244113057 | O111: 1.000488112 | P111: 0.03123822012 | Q111: 1.000019374 | R111: 0.006224697514 | S111: 1.000048343 | T111: 0.02149752657 | U111: 24.00756528 | V111: -123.8011276 | W111: 56.19887236 | Y111: 1000000000 | Z111: 31622627.56 | AB111: 28.47033596 | AC111: -60.17059491 | AE111: 26.65226303 | AF111: -62.75546409 | AH111: 0 | AI111: 0
A112: 5688.9 | B112: 5.6889 | C112: 2.133018716 | D112: 1.082842906 | E112: 1.000009199 | F112: 0.004289303237 | G112: 1 | H112: 0 | I112: 76.69973142 | J112: 1.557758102 | K112: 1.155556096 | L112: 0.5248797411 | M112: 1.000079209 | N112: 0.01258602663 | O112: 1.000499546 | P112: 0.03160183453 | Q112: 1.000019828 | R112: 0.006297199376 | S112: 1.000049477 | T112: 0.02174793916 | U112: 23.85382994 | V112: -123.8285939 | W112: 56.17140611 | Y112: 1000000000 | Z112: 32363583.21 | AB112: 28.39479112 | AC112: -59.90069711 | AE112: 26.5739772 | AF112: -63.0426346 | AH112: 0 | AI112: 0
A113: 5754.4 | B113: 5.7544 | C113: 2.152203755 | D113: 1.087568284 | E113: 1.000009412 | F113: 0.004338688155 | G113: 1 | H113: 0 | I113: 77.58267598 | J113: 1.557906494 | K113: 1.158911395 | L113: 0.5298582205 | M113: 1.000081044 | N113: 0.01273092216 | O113: 1.000511112 | P113: 0.03196544057 | Q113: 1.000020287 | R113: 0.006369701172 | S113: 1.000050623 | T113: 0.02199835226 | U113: 23.70189372 | V113: -123.8526081 | W113: 56.14739193 | Y113: 1000000000 | Z113: 33113119.36 | AB113: 28.32054095 | AC113: -59.63225541 | AE113: 26.49619473 | AF113: -63.32489692 | AH113: 0 | AI113: 0
A114: 5821.4 | B114: 5.8214 | C114: 2.171876977 | D114: 1.092315397 | E114: 1.000009633 | F114: 0.004389204002 | G114: 1 | H114: 0 | I114: 78.48584237 | J114: 1.558054831 | K114: 1.162373078 | L114: 0.5349208455 | M114: 1.000082942 | N114: 0.01287913536 | O114: 1.00052308 | P114: 0.03233736473 | Q114: 1.000020762 | R114: 0.006443863245 | S114: 1.000051809 | T114: 0.02225450054 | U114: 23.5483067 | V114: -123.8737305 | W114: 56.1262695 | Y114: 1000000000 | Z114: 33888697.96 | AB114: 28.24589928 | AC114: -59.35917939 | AE114: 26.4171496 | AF114: -63.60866832 | AH114: 0 | AI114: 0
A115: 5888.4 | B115: 5.8884 | C115: 2.191598264 | D115: 1.096977179 | E115: 1.000009856 | F115: 0.004439719828 | G115: 1 | H115: 0 | I115: 79.38901044 | J115: 1.558199792 | K115: 1.165864374 | L115: 0.5399532779 | M115: 1.000084862 | N115: 0.01302734799 | O115: 1.000535187 | P115: 0.03270927994 | Q115: 1.000021243 | R115: 0.006518025247 | S115: 1.000053009 | T115: 0.02251064936 | U115: 23.39653643 | V115: -123.8915004 | W115: 56.10849961 | Y115: 1000000000 | Z115: 34673254.56 | AB115: 28.17255109 | AC115: -59.08763988 | AE115: 26.3386266 | AF115: -63.88755065 | AH115: 0 | AI115: 0
A116: 5957 | B116: 5.957 | C116: 2.211838963 | D116: 1.10166405 | E116: 1.000010087 | F116: 0.004491441978 | G116: 1 | H116: 0 | I116: 80.3137484 | J116: 1.558344837 | K116: 1.169469452 | L116: 0.5450746223 | M116: 1.000086851 | N116: 0.01317909943 | O116: 1.000547726 | P116: 0.03309006732 | Q116: 1.000021741 | R116: 0.006593958207 | S116: 1.000054252 | T116: 0.02277291574 | U116: 23.24299063 | V116: -123.9063515 | W116: 56.09364851 | Y116: 1000000000 | Z116: 35485849 | AB116: 28.09876068 | AC116: -58.81121364 | AE116: 26.25876668 | AF116: -64.16815187 | AH116: 0 | AI116: 0
A117: 6025.6 | B117: 6.0256 | C117: 2.232127367 | D117: 1.10626582 | E117: 1.00001032 | F117: 0.004543164103 | G117: 1 | H117: 0 | I117: 81.23848801 | J117: 1.55848658 | K117: 1.173105014 | L117: 0.5501643564 | M117: 1.000088862 | N117: 0.01333085026 | O117: 1.00056041 | P117: 0.03347084511 | Q117: 1.000022244 | R117: 0.006669891092 | S117: 1.000055509 | T117: 0.0230351827 | U117: 23.09128211 | V117: -123.9179486 | W117: 56.08205137 | Y117: 1000000000 | Z117: 36307855.36 | AB117: 28.02626467 | AC117: -58.5364093 | AE117: 26.17944843 | AF117: -64.4438772 | AH117: 0 | AI117: 0
A118: 6095.8 | B118: 6.0958 | C118: 2.252937013 | D118: 1.110889017 | E118: 1.000010562 | F118: 0.004596092551 | G118: 1 | H118: 0 | I118: 82.18479754 | J118: 1.558628326 | K118: 1.176856634 | L118: 0.5553401087 | M118: 1.000090945 | N118: 0.01348613984 | O118: 1.000573541 | P118: 0.03386049396 | Q118: 1.000022765 | R118: 0.006747594926 | S118: 1.00005681 | T118: 0.02330356729 | U118: 22.93790294 | V118: -123.9265784 | W118: 56.07342162 | Y118: 1000000000 | Z118: 37158777.64 | AB118: 27.9533868 | AC118: -58.25687945 | AE118: 26.09883767 | AF118: -64.72111158 | AH118: 0 | AI118: 0
A119: 6166 | B119: 6.166 | C119: 2.273793931 | D119: 1.115427494 | E119: 1.000010807 | F119: 0.004649020973 | G119: 1 | H119: 0 | I119: 83.13110869 | J119: 1.558766845 | K119: 1.18063958 | L119: 0.5604828303 | M119: 1.000093052 | N119: 0.01364142877 | O119: 1.000586823 | P119: 0.03425013252 | Q119: 1.000023293 | R119: 0.006825298679 | S119: 1.000058127 | T119: 0.0235719525 | U119: 22.78637891 | V119: -123.9320617 | W119: 56.06793827 | Y119: 1000000000 | Z119: 38019556 | AB119: 27.88180242 | AC119: -57.97905719 | AE119: 26.0187873 | AF119: -64.99349196 | AH119: 0 | AI119: 0
A120: 6237.8 | B120: 6.2378 | C120: 2.295173777 | D120: 1.11998399 | E120: 1.00001106 | F120: 0.004703155714 | G120: 1 | H120: 0 | I120: 84.09898979 | J120: 1.558905297 | K120: 1.184540838 | L120: 0.565708644 | M120: 1.000095231 | N120: 0.01380025636 | O120: 1.000600565 | P120: 0.03464864097 | Q120: 1.000023838 | R120: 0.006904773372 | S120: 1.000059489 | T120: 0.0238464554 | U120: 22.63328535 | V120: -123.934546 | W120: 56.06545403 | Y120: 1000000000 | Z120: 38910148.84 | AB120: 27.80989335 | AC120: -57.69667297 | AE120: 25.93748826 | AF120: -65.26718612 | AH120: 0 | AI120: 0
A121: 6309.6 | B121: 6.3096 | C121: 2.316600395 | D121: 1.12445629 | E121: 1.000011316 | F121: 0.004757290427 | G121: 1 | H121: 0 | I121: 85.06687247 | J121: 1.559040599 | K121: 1.188474232 | L121: 0.5709000079 | M121: 1.000097436 | N121: 0.01395908326 | O121: 1.000614465 | P121: 0.03504713841 | Q121: 1.00002439 | R121: 0.006984247979 | S121: 1.000060867 | T121: 0.02412095897 | U121: 22.48206218 | V121: -123.9339995 | W121: 56.06600051 | Y121: 1000000000 | Z121: 39811052.16 | AB121: 27.7392751 | AC121: -57.41608204 | AE121: 25.85676746 | AF121: -65.53605624 | AH121: 0 | AI121: 0
A122: 6383.05 | B122: 6.38305 | C122: 2.338566464 | D122: 1.128946474 | E122: 1.000011581 | F122: 0.004812669154 | G122: 1 | H122: 0 | I122: 86.05699915 | J122: 1.55917586 | K122: 1.192530938 | L122: 0.5761750906 | M122: 1.000099718 | N122: 0.01412155935 | O122: 1.00062885 | P122: 0.035454782 | Q122: 1.000024962 | R122: 0.00706554886 | S122: 1.000062293 | T122: 0.02440177148 | U122: 22.32926342 | V122: -123.9304348 | W122: 56.0695652 | Y122: 1000000000 | Z122: 40743327.3 | AB122: 27.66833835 | AC122: -57.13090116 | AE122: 25.77478556 | AF122: -65.80624125 | AH122: 0 | AI122: 0
A123: 6456.5 | B123: 6.4565 | C123: 2.360578803 | D123: 1.133353004 | E123: 1.000011849 | F123: 0.004868047852 | G123: 1 | H123: 0 | I123: 87.04712737 | J123: 1.559308044 | K123: 1.196620603 | L123: 0.5814142611 | M123: 1.000102025 | N123: 0.0142840347 | O123: 1.000643401 | P123: 0.0358624138 | Q123: 1.000025539 | R123: 0.007146849647 | S123: 1.000063735 | T123: 0.0246825847 | U123: 22.17835026 | V123: -123.9239584 | W123: 56.07604158 | Y123: 1000000000 | Z123: 41686392.25 | AB123: 27.59868981 | AC123: -56.84760155 | AE123: 25.69339964 | AF123: -66.07163326 | AH123: 0 | AI123: 0
A124: 6531.7 | B124: 6.5317 | C124: 2.383162202 | D124: 1.1377801 | E124: 1.000012127 | F124: 0.004924745957 | G124: 1 | H124: 0 | I124: 88.06084766 | J124: 1.559440298 | K124: 1.2008415 | L124: 0.5867411374 | M124: 1.000104416 | N124: 0.01445038035 | O124: 1.000658471 | P124: 0.03627974537 | Q124: 1.000026138 | R124: 0.007230087388 | S124: 1.000065229 | T124: 0.02497008925 | U124: 22.02575845 | V124: -123.9144411 | W124: 56.08555886 | Y124: 1000000000 | Z124: 42663104.89 | AB124: 27.52868494 | AC124: -56.55950253 | AE124: 25.61068709 | AF124: -66.33851138 | AH124: 0 | AI124: 0
A125: 6606.9 | B125: 6.6069 | C125: 2.405791432 | D125: 1.142123995 | E125: 1.000012408 | F125: 0.00498144403 | G125: 1 | H125: 0 | I125: 89.07456945 | J125: 1.559569542 | K125: 1.205096233 | L125: 0.5920305486 | M125: 1.000106834 | N125: 0.01461672521 | O125: 1.000673715 | P125: 0.0366970643 | Q125: 1.000026743 | R125: 0.007313325028 | S125: 1.00006674 | T125: 0.02525759456 | U125: 21.8750698 | V125: -123.902131 | W125: 56.09786897 | Y125: 1000000000 | Z125: 43651127.61 | AB125: 27.45996734 | AC125: -56.27337757 | AE125: 25.52858897 | AF125: -66.60062254 | AH125: 0 | AI125: 0
A126: 6683.85 | B126: 6.68385 | C126: 2.42899338 | D126: 1.146485109 | E126: 1.000012698 | F126: 0.005039461507 | G126: 1 | H126: 0 | I126: 90.11188335 | J126: 1.559698784 | K126: 1.209484632 | L126: 0.5974043736 | M126: 1.000109337 | N126: 0.01478694029 | O126: 1.000689495 | P126: 0.03712408154 | Q126: 1.00002737 | R126: 0.00739849961 | S126: 1.000068305 | T126: 0.0255517913 | U126: 21.7228072 | V126: -123.8867727 | W126: 56.11322729 | Y126: 1000000000 | Z126: 44673850.82 | AB126: 27.39095142 | AC126: -55.98263767 | AE126: 25.44521077 | AF126: -66.86402804 | AH126: 0 | AI126: 0
A127: 6760.8 | B127: 6.7608 | C127: 2.45224065 | D127: 1.150763617 | E127: 1.000012992 | F127: 0.005097478949 | G127: 1 | H127: 0 | I127: 91.14919873 | J127: 1.559825083 | K127: 1.213907706 | L127: 0.6027391908 | M127: 1.000111869 | N127: 0.01495715451 | O127: 1.000705456 | P127: 0.03755108523 | Q127: 1.000028003 | R127: 0.007483674084 | S127: 1.000069887 | T127: 0.02584598886 | U127: 21.57246243 | V127: -123.8687479 | W127: 56.13125213 | Y127: 1000000000 | Z127: 45708416.64 | AB127: 27.32321994 | AC127: -55.69396416 | AE127: 25.36246445 | AF127: -67.12270057 | AH127: 0 | AI127: 0
A128: 6839.55 | B128: 6.83955 | C128: 2.47607731 | D128: 1.155058945 | E128: 1.000013297 | F128: 0.005156853489 | G128: 1 | H128: 0 | I128: 92.21078025 | J128: 1.559951395 | K128: 1.21846975 | L128: 0.6081585402 | M128: 1.00011449 | N128: 0.01513134946 | O128: 1.000721981 | P128: 0.03798806313 | Q128: 1.000028659 | R128: 0.007570840831 | S128: 1.000071526 | T128: 0.02614706909 | U128: 21.42054838 | V128: -123.847669 | W128: 56.15233097 | Y128: 1000000000 | Z128: 46779444.2 | AB128: 27.25520201 | AC128: -55.40067609 | AE128: 25.2784306 | AF128: -67.38265346 | AH128: 0 | AI128: 0
A129: 6918.3 | B129: 6.9183 | C129: 2.499958782 | D129: 1.159272285 | E129: 1.000013605 | F129: 0.005216227993 | G129: 1 | H129: 0 | I129: 93.27236322 | J129: 1.560074832 | K129: 1.223067312 | L129: 0.6135373034 | M129: 1.000117141 | N129: 0.01530554348 | O129: 1.000738696 | P129: 0.03842502651 | Q129: 1.000029323 | R129: 0.007658007463 | S129: 1.000073183 | T129: 0.02644815021 | U129: 21.27056647 | V129: -123.8240534 | W129: 56.17594663 | Y129: 1000000000 | Z129: 47862874.89 | AB129: 27.18846545 | AC129: -55.10954865 | AE129: 25.19504593 | AF129: -67.63790884 | AH129: 0 | AI129: 0
A130: 6998.9 | B130: 6.9989 | C130: 2.524446354 | D130: 1.16350198 | E130: 1.000013924 | F130: 0.005276997289 | G130: 1 | H130: 0 | I130: 94.3588864 | J130: 1.560198292 | K130: 1.227809243 | L130: 0.6190005503 | M130: 1.000119886 | N130: 0.01548382872 | O130: 1.000756001 | P130: 0.03887223987 | Q130: 1.00003001 | R130: 0.007747221699 | S130: 1.000074899 | T130: 0.02675630527 | U130: 21.11902303 | V130: -123.7973834 | W130: 56.20261663 | Y130: 1000000000 | Z130: 48984601.21 | AB130: 27.12145587 | AC130: -54.81381641 | AE130: 25.11036784 | AF130: -67.89442669 | AH130: 0 | AI130: 0
A131: 7079.5 | B131: 7.0795 | C131: 2.548978221 | D131: 1.167650334 | E131: 1.000014246 | F131: 0.005337766545 | G131: 1 | H131: 0 | I131: 95.44541099 | J131: 1.560318942 | K131: 1.232587538 | L131: 0.6244215999 | M131: 1.000122663 | N131: 0.01566211298 | O131: 1.000773507 | P131: 0.03931943766 | Q131: 1.000030706 | R131: 0.007836435811 | S131: 1.000076635 | T131: 0.02706446127 | U131: 20.96942553 | V131: -123.7683096 | W131: 56.23169044 | Y131: 1000000000 | Z131: 50119320.25 | AB131: 27.05572432 | AC131: -54.5203408 | AE131: 25.02635599 | AF131: -68.14628405 | AH131: 0 | AI131: 0
A132: 7161.95 | B132: 7.16195 | C132: 2.574117676 | D132: 1.171812018 | E132: 1.00001458 | F132: 0.005399930589 | G132: 1 | H132: 0 | I132: 96.55687582 | J132: 1.560439551 | K132: 1.237512694 | L132: 0.6299235962 | M132: 1.000125537 | N132: 0.01584448833 | O132: 1.000791622 | P132: 0.03977688364 | Q132: 1.000031425 | R132: 0.007927697513 | S132: 1.000078431 | T132: 0.02737969132 | U132: 20.81836815 | V132: -123.7362071 | W132: 56.26379287 | Y132: 1000000000 | Z132: 51293527.8 | AB132: 26.98977411 | AC132: -54.22245937 | AE132: 24.94109784 | AF132: -68.39923061 | AH132: 0 | AI132: 0
A133: 7244.4 | B133: 7.2444 | C133: 2.599300851 | D133: 1.175893131 | E133: 1.000014917 | F133: 0.00546209459 | G133: 1 | H133: 0 | I133: 97.66834202 | J133: 1.560557416 | K133: 1.242475015 | L133: 0.6353818079 | M133: 1.000128444 | N133: 0.01602686264 | O133: 1.000809946 | P133: 0.04023431297 | Q133: 1.000032153 | R133: 0.008018959083 | S133: 1.000080248 | T133: 0.02769492238 | U133: 20.66926756 | V133: -123.7018398 | W133: 56.2981602 | Y133: 1000000000 | Z133: 52481331.36 | AB133: 26.9250967 | AC133: -53.92692928 | AE133: 24.85652195 | AF133: -68.64756086 | AH133: 0 | AI133: 0
A134: 7328.75 | B134: 7.32875 | C134: 2.625108285 | D134: 1.179987192 | E134: 1.000015267 | F134: 0.005525691072 | G134: 1 | H134: 0 | I134: 98.80542252 | J134: 1.560675252 | K134: 1.247589686 | L134: 0.640920698 | M134: 1.000131452 | N134: 0.01621343852 | O134: 1.000828909 | P134: 0.04070226598 | Q134: 1.000032906 | R134: 0.00811232357 | S134: 1.000082129 | T134: 0.02801741877 | U134: 20.51871563 | V134: -123.6644609 | W134: 56.33553914 | Y134: 1000000000 | Z134: 53710576.56 | AB134: 26.86021351 | AC134: -53.62701579 | AE134: 24.77069518 | AF134: -68.89696712 | AH134: 0 | AI134: 0
A135: 7413.1 | B135: 7.4131 | C135: 2.650958861 | D135: 1.184001473 | E135: 1.00001562 | F135: 0.00558928751 | G135: 1 | H135: 0 | I135: 99.94250436 | J135: 1.560790407 | K135: 1.252742318 | L135: 0.6464141917 | M135: 1.000134495 | N135: 0.01640001327 | O135: 1.000848092 | P135: 0.04117020116 | Q135: 1.000033668 | R135: 0.008205687917 | S135: 1.000084032 | T135: 0.02833991624 | U135: 20.37013079 | V135: -123.6249584 | W135: 56.37504164 | Y135: 1000000000 | Z135: 54954051.61 | AB135: 26.79659758 | AC135: -53.32954963 | AE135: 24.68556641 | AF135: -69.14180242 | AH135: 0 | AI135: 0
A136: 7499.45 | B136: 7.49945 | C136: 2.677465759 | D136: 1.188030576 | E136: 1.000015986 | F136: 0.005654391818 | G136: 1 | H136: 0 | I136: 101.1065486 | J136: 1.560905609 | K136: 1.258055959 | L136: 0.6519911548 | M136: 1.000137647 | N136: 0.01659101067 | O136: 1.000867956 | P136: 0.04164921274 | Q136: 1.000034456 | R136: 0.008301265851 | S136: 1.000086002 | T136: 0.0286700615 | U136: 20.22001935 | V136: -123.5824419 | W136: 56.41755811 | Y136: 1000000000 | Z136: 56241750.3 | AB136: 26.73275327 | AC136: -53.02755714 | AE136: 24.59913374 | AF136: -69.38783873 | AH136: 0 | AI136: 0
A137: 7585.8 | B137: 7.5858 | C137: 2.704015269 | D137: 1.191980622 | E137: 1.000016357 | F137: 0.005719496078 | G137: 1 | H137: 0 | I137: 102.2705941 | J137: 1.561018189 | K137: 1.263408399 | L137: 0.6575210349 | M137: 1.000140834 | N137: 0.01678200685 | O137: 1.00088805 | P137: 0.0421282052 | Q137: 1.000035255 | R137: 0.008396843634 | S137: 1.000087995 | T137: 0.02900020792 | U137: 20.07188687 | V137: -123.5379433 | W137: 56.46205672 | Y137: 1000000000 | Z137: 57544361.64 | AB137: 26.67017173 | AC137: -52.72811197 | AE137: 24.51341536 | AF137: -69.62934549 | AH137: 0 | AI137: 0
A138: 7674.15 | B138: 7.67415 | C138: 2.731222516 | D138: 1.19594261 | E138: 1.00001674 | F138: 0.005786108204 | G138: 1 | H138: 0 | I138: 103.4616021 | J138: 1.561130755 | K138: 1.268924454 | L138: 0.6631305354 | M138: 1.000144134 | N138: 0.01697742554 | O138: 1.000908846 | P138: 0.04261827184 | Q138: 1.00003608 | R138: 0.008494634988 | S138: 1.000090058 | T138: 0.02933800226 | U138: 19.92232979 | V138: -123.4904827 | W138: 56.50951726 | Y138: 1000000000 | Z138: 58892578.22 | AB138: 26.60741482 | AC138: -52.42435746 | AE138: 24.42644188 | AF138: -69.8718883 | AH138: 0 | AI138: 0
A139: 7762.5 | B139: 7.7625 | C139: 2.758471789 | D139: 1.199826382 | E139: 1.000017127 | F139: 0.005852720279 | G139: 1 | H139: 0 | I139: 104.6526113 | J139: 1.561240758 | K139: 1.274480092 | L139: 0.6686913043 | M139: 1.000147471 | N139: 0.01717284292 | O139: 1.000929884 | P139: 0.043108318 | Q139: 1.000036916 | R139: 0.00859242618 | S139: 1.000092145 | T139: 0.02967579784 | U139: 19.77476047 | V139: -123.4411861 | W139: 56.55881387 | Y139: 1000000000 | Z139: 60256406.25 | AB139: 26.54591421 | AC139: -52.12324819 | AE139: 24.34019787 | AF139: -70.10994973 | AH139: 0 | AI139: 0
A140: 7852.9 | B140: 7.8529 | C140: 2.786395546 | D140: 1.203721584 | E140: 1.000017529 | F140: 0.005920877911 | G140: 1 | H140: 0 | I140: 105.871257 | J140: 1.561350752 | K140: 1.280205072 | L140: 0.6743309655 | M140: 1.000150926 | N140: 0.01737279326 | O140: 1.000951658 | P140: 0.04360971333 | Q140: 1.000037781 | R140: 0.008692486267 | S140: 1.000094305 | T140: 0.03002143266 | U140: 19.62578196 | V140: -123.3889631 | W140: 56.61103687 | Y140: 1000000000 | Z140: 61668038.41 | AB140: 26.48425395 | AC140: -51.8178779 | AE140: 24.25269819 | AF140: -70.34902662 | AH140: 0 | AI140: 0
A141: 7943.3 | B141: 7.9433 | C141: =SQRT(1+(A141/pole1)^2) -> 2.814360741 | D141: =ATAN(A141/pole1) -> 1.207539432 | E141: =SQRT(1+(A141/Zero1)^2) -> 1.000017935 | F141: =ATAN(A141/Zero1) -> 0.005989035488 | G141: =IF(VIN_nom>Vout, 1, SQRT(1+(A141/z_RHP)^2)) -> 1 | H141: =IF(VIN_nom>Vout, 0, -ATAN(A141/z_RHP)) -> 0 | I141: =SQRT(1+(A141/Pole2)^2) -> 107.0899039 | J141: =ATAN(A141/Pole2) -> 1.561458243 | K141: =SQRT(1+(A141/Zero2)^2) -> 1.285970406 | L141: =ATAN(A141/Zero2) -> 0.6799202351 | M141: =SQRT(1+(A141/pole4)^2) -> 1.000154421 | N141: =ATAN(A141/pole4) -> 0.0175727422 | O141: =SQRT(1+(A141/Zero3)^2) -> 1.000973683 | P141: =ATAN(A141/Zero3) -> 0.04411108673 | Q141: =SQRT(1+(A141/pole5)^2) -> 1.000038656 | R141: =ATAN(A141/pole5) -> 0.00879254618 | S141: =SQRT((1-(Z141/pterm2))^2+(A141/pterm1)^2) -> 1.00009649 | T141: =IF((ATAN((A141/pterm1)/(1-A141^2/pterm2))>0),ATAN((A141/pterm1)/(1-A141^2/pterm2)),PI()+ATAN((A141/pterm1)/(1-A141^2/pterm2))) -> 0.0303670688 | U141: =20*LOG10(((E141*K141*G141*O141)/(C141*I141*S141*M141*Q141))*Adc) -> 19.47879918 | V141: =((F141+L141+H141+R141)-(D141+J141+T141+N141+T141))*radconv -> -123.335052 | W141: =IF(V141>0,V141,V141+180) -> 56.664948 | Y141: =IF(U141<0,A141,1000000000) -> 1000000000 | Z141: =A141^2 -> 63096014.89 | AB141: =20*LOG10((K141/(I141*M141))*AEA) -> 26.42384303 | AC141: =(L141-(J141+N141))*radconv -> -51.51525133 | AE141: =20*LOG10((E141*G141/(C141*S141))*Acs*Am) -> 24.1659428 | AF141: =(F141+H141-(D141+T141))*radconv -> -70.58367158 | AH141: =SUM((U142<0)*(U141>0))*A141 -> 0 | AI141: 0
A142: 8035.8 | B142: =A142/1000 -> 8.0358 | C142: 2.843017188 | D142: 1.211368167 | E142: 1.000018355 | F142: 0.006058776314 | G142: 1 | H142: 0 | I142: 108.3368614 | J142: 1.561565727 | K142: 1.291910877 | L142: 0.6855875248 | M142: 1.000158038 | N142: 0.01777733452 | O142: 1.000996481 | P142: 0.04462408411 | Q142: 1.000039561 | R142: 0.008894930311 | S142: 1.000098751 | T142: 0.0307207355 | U142: 19.33042451 | V142: -123.2782564 | W142: 56.72174357 | Y142: 1000000000 | Z142: 64574081.64 | AB142: 26.36328881 | AC142: -51.20842024 | AE142: 24.07793238 | AF142: -70.81930967 | AH142: 0 | AI142: 0
A143: 8128.3 | B143: 8.1283 | C143: 2.871714478 | D143: 1.215120434 | E143: 1.00001878 | F143: 0.006128517081 | G143: 1 | H143: 0 | I143: 109.5838201 | J143: 1.561670765 | K143: 1.297892461 | L143: 0.6912027559 | M143: 1.000161697 | N143: 0.01798192535 | O143: 1.001019542 | P143: 0.04513705798 | Q143: 1.000040477 | R143: 0.008997314256 | S143: 1.00010104 | T143: 0.03107440363 | U143: 19.18405263 | V143: -123.2199223 | W143: 56.78007773 | Y143: 1000000000 | Z143: 66069260.89 | AB143: 26.30397641 | AC143: -50.90443164 | AE143: 23.99068075 | AF143: -71.05056658 | AH143: 0 | AI143: 0
A144: 8222.95 | B144: 8.22295 | C144: 2.901119801 | D144: 1.218883021 | E144: 1.00001922 | F144: 0.006199878788 | G144: 1 | H144: 0 | I144: 110.8597634 | J144: 1.561775799 | K144: 1.304055045 | L144: 0.696894996 | M144: 1.000165484 | N144: 0.01819126998 | O144: 1.001043412 | P144: 0.04566193042 | Q144: 1.000041425 | R144: 0.00910207774 | S144: 1.000103408 | T144: 0.03143629365 | U144: 19.03630781 | V144: -123.1587521 | W144: 56.84124789 | Y144: 1000000000 | Z144: 67616906.7 | AB144: 26.24453757 | AC144: -50.59630285 | AE144: 23.90217589 | AF144: -71.28279294 | AH144: 0 | AI144: 0
A145: 8270.275 | B145: 8.270275 | C145: 2.915837632 | D145: 1.220735842 | E145: 1.000019441 | F145: 0.006235559618 | G145: 1 | H145: 0 | I145: 111.4977355 | J145: 1.561827415 | K145: 1.307152069 | L145: 0.6997209432 | M145: 1.000167394 | N145: 0.01829594169 | O145: 1.001055451 | P145: 0.04592435722 | Q145: 1.000041904 | R145: 0.009154459408 | S145: 1.000104603 | T145: 0.03161723924 | U145: 18.96319144 | V145: -123.1276399 | W145: 56.87236007 | Y145: 1000000000 | Z145: 68397448.58 | AB145: 26.21528281 | AC145: -50.4433426 | AE145: 23.85821398 | AF145: -71.39727486 | AH145: 0 | AI145: 0
A146: 8317.6 | B146: 8.3176 | C146: 2.930565371 | D146: 1.222570047 | E146: 1.000019665 | F146: 0.006271240432 | G146: 1 | H146: 0 | I146: 112.1357079 | J146: 1.561878443 | K146: 1.310259483 | L146: 0.7025335087 | M146: 1.000169315 | N146: 0.01840061301 | O146: 1.001067558 | P146: 0.04618677769 | Q146: 1.000042384 | R146: 0.009206841025 | S146: 1.000105804 | T146: 0.0317981852 | U146: 18.89057189 | V146: -123.0961942 | W146: 56.90380581 | Y146: 1000000000 | Z146: 69182469.76 | AB146: 26.18633243 | AC146: -50.29111538 | AE146: 23.81444394 | AF146: -71.51069014 | AH146: 0 | AI146: 0
A147: 8366.05 | B147: 8.36605 | C147: 2.945653326 | D147: 1.224428847 | E147: 1.000019894 | F147: 0.006307769426 | G147: 1 | H147: 0 | I147: 112.7888463 | J147: 1.561930086 | K147: 1.313451452 | L147: 0.7053991243 | M147: 1.000171293 | N147: 0.01850777213 | O147: 1.001080025 | P147: 0.04645542977 | Q147: 1.00004288 | R147: 0.009260467794 | S147: 1.000107041 | T147: 0.03198343298 | U147: 18.81673519 | V147: -123.0636689 | W147: 56.93633109 | Y147: 1000000000 | Z147: 69990792.6 | AB147: 26.157005 | AC147: -50.1360264 | AE147: 23.7698308 | AF147: -71.6257125 | AH147: 0 | AI147: 0
A148: 8414.5 | B148: 8.4145 | C148: 2.960751355 | D148: 1.226268696 | E148: 1.000020125 | F148: 0.006344298404 | G148: 1 | H148: 0 | I148: 113.441985 | J148: 1.561981134 | K148: =SQRT(1+(A148/Zero2)^2) -> 1.316654154 | L148: =ATAN(A148/Zero2) -> 0.7082508221 | M148: 1.000173283 | N148: 0.01861493083 | O148: 1.001092563 | P148: 0.04672407514 | Q148: 1.000043378 | R148: 0.009314094511 | S148: 1.000108285 | T148: 0.03216868117 | U148: 18.74340803 | V148: -123.0308212 | W148: 56.96917882 | Y148: 1000000000 | Z148: 70803810.25 | AB148: 26.12798824 | AC148: -49.98170075 | AE148: 23.72541593 | AF148: -71.73964907 | AH148: 0 | AI148: 0
A149: 8462.95 | B149: 8.46295 | C149: 2.975859304 | D149: 1.22808987 | E149: 1.000020358 | F149: 0.006380827364 | G149: 1 | H149: 0 | I149: 114.0951241 | J149: 1.562031598 | K149: 1.319867512 | L149: 0.7110886575 | M149: 1.000175284 | N149: 0.0187220891 | O149: 1.001105174 | P149: 0.04699271376 | Q149: 1.000043879 | R149: 0.009367721174 | S149: 1.000109537 | T149: 0.03235392976 | U149: 18.67058487 | V149: -122.9976643 | W149: 57.00233575 | Y149: 1000000000 | Z149: 71621522.7 | AB149: 26.09927801 | AC149: -49.82813585 | AE149: 23.68119793 | AF149: -71.85251566 | AH149: 0 | AI149: 0
A150: 8511.4 | B150: 8.5114 | C150: 2.990977024 | D150: 1.22989264 | E150: 1.000020592 | F150: 0.006417356308 | G150: 1 | H150: 0 | I150: 114.7482634 | J150: 1.562081488 | K150: 1.323091447 | L150: 0.7139126858 | M150: 1.000177296 | N150: 0.01882924694 | O150: 1.001117858 | P150: 0.04726134559 | Q150: 1.000044383 | R150: 0.009421347783 | S150: 1.000110795 | T150: 0.03253917877 | U150: 18.59826023 | V150: -122.964211 | W150: 57.03578896 | Y150: 1000000000 | Z150: 72443929.96 | AB150: 26.07087026 | AC150: -49.6753291 | AE150: 23.63717538 | AF150: -71.9643278 | AH150: 0 | AI150: 0
A151: 8560.95 | B151: 8.56095 | C151: 3.006447925 | D151: 1.231717581 | E151: 1.000020832 | F151: 0.00645471458 | G151: 1 | H151: 0 | I151: 115.4162317 | J151: 1.562131926 | K151: 1.326399438 | L151: 0.7167866076 | M151: 1.000179367 | N151: 0.01893883723 | O151: 1.001130904 | P151: 0.04753606933 | Q151: 1.000044901 | R151: 0.009476191864 | S151: 1.00011209 | T151: 0.03272863407 | U151: 18.52480356 | V151: -122.929705 | W151: 57.07029499 | Y151: 1000000000 | Z151: 73289864.9 | AB151: 26.04212625 | AC151: -49.51983446 | AE151: 23.59235404 | AF151: -72.07760374 | AH151: 0 | AI151: 0
A152: 8610.5 | B152: 8.6105 | C152: 3.021928737 | D152: 1.233523831 | E152: 1.000021074 | F152: 0.006492072834 | G152: 1 | H152: 0 | I152: 116.0842004 | J152: 1.562181784 | K152: 1.329718329 | L152: 0.7196462067 | M152: 1.000181449 | N152: 0.01904842706 | O152: 1.001144025 | P152: 0.04781078589 | Q152: 1.000045422 | R152: 0.009531035889 | S152: 1.000113392 | T152: 0.0329180898 | U152: 18.45185699 | V152: -122.8949154 | W152: 57.10508458 | Y152: 1000000000 | Z152: 74140710.25 | AB152: 26.01369022 | AC152: -49.36512718 | AE152: 23.54773418 | AF152: -72.18980876 | AH152: 0 | AI152: 0
A153: 8660.05 | B153: 8.66005 | C153: 3.037419307 | D153: 1.235311663 | E153: 1.000021317 | F153: 0.006529431071 | G153: 1 | H153: 0 | I153: 116.7521693 | J153: 1.562231071 | K153: 1.33304804 | L153: 0.7224915434 | M153: 1.000183543 | N153: 0.01915801643 | O153: 1.001157222 | P153: 0.04808549523 | Q153: 1.000045946 | R153: 0.009585879857 | S153: 1.000114702 | T153: 0.03310754597 | U153: 18.37941489 | V153: -122.8598551 | W153: 57.14014491 | Y153: 1000000000 | Z153: 74996466 | AB153: 25.98555805 | AC153: -49.21120435 | AE153: 23.5033143 | AF153: -72.30095854 | AH153: 0 | AI153: 0
A154: 8709.6 | B154: 8.7096 | C154: 3.052919487 | D154: 1.237081346 | E154: 1.000021562 | F154: 0.006566789288 | G154: 1 | H154: 0 | I154: 117.4201385 | J154: 1.562279797 | K154: 1.336388489 | L154: 0.7253226785 | M154: 1.000185649 | N154: 0.01926760534 | O154: 1.001170495 | P154: 0.0483601973 | Q154: 1.000046474 | R154: 0.009640723766 | S154: 1.00011602 | T154: 0.03329700259 | U154: 18.30747173 | V154: -122.8245365 | W154: 57.17546349 | Y154: 1000000000 | Z154: 75857132.16 | AB154: 25.95772568 | AC154: -49.05806306 | AE154: 23.45909295 | AF154: -72.41106852 | AH154: 0 | AI154: =IF(AH154>0,W154,0) -> 0
A155: 8760.325 | B155: 8.760325 | C155: 3.068797032 | D155: 1.238874471 | E155: 1.000021814 | F155: 0.006605033378 | G155: 1 | H155: 0 | I155: 118.1039479 | J155: 1.562329108 | K155: 1.339819192 | L155: 0.7282063024 | M155: 1.000187818 | N155: 0.0193797925 | O155: 1.001184161 | P155: 0.04864140594 | Q155: 1.000047016 | R155: 0.009696868153 | S155: 1.000117376 | T155: 0.03349095232 | U155: 18.23433369 | V155: -122.7881256 | W155: 57.21187439 | Y155: 1000000000 | Z155: 76743294.11 | AB155: 25.92953968 | AC155: -48.90209674 | AE155: 23.41402707 | AF155: -72.52272827 | AH155: 0 | AI155: 0
A156: 8811.05 | B156: 8.81105 | C156: 3.084684343 | D156: 1.24064913 | E156: 1.000022067 | F156: 0.006643277449 | G156: 1 | H156: 0 | I156: 118.7877575 | J156: 1.562377851 | K156: 1.343260978 | L156: 0.7310751729 | M156: 1.000189999 | N156: 0.01949197917 | O156: 1.001197905 | P156: 0.04892260687 | Q156: 1.000047563 | R156: 0.009753012478 | S156: 1.00011874 | T156: 0.03368490253 | U156: 18.16170705 | V156: -122.7514696 | W156: 57.24853043 | Y156: 1000000000 | Z156: 77634602.1 | AB156: 25.90165945 | AC156: -48.74694317 | AE156: 23.36916615 | AF156: -72.6333301 | AH156: 0 | AI156: 0
A157: 8861.775 | B157: 8.861775 | C157: 3.100581269 | D157: 1.242405598 | E157: 1.000022322 | F157: 0.006681521501 | G157: 1 | H157: 0 | I157: 119.4715674 | J157: 1.562426037 | K157: 1.346713764 | L157: 0.733929356 | M157: 1.000192192 | N157: 0.01960416536 | O157: 1.001211729 | P157: 0.04920380006 | Q157: 1.000048112 | R157: 0.009809156742 | S157: 1.000120113 | T157: 0.03387885321 | U157: 18.0895861 | V157: -122.7145808 | W157: 57.28541922 | Y157: 1000000000 | Z157: 78531056.15 | AB157: 25.87408084 | AC157: -48.59259914 | AE157: 23.32450864 | AF157: -72.74288962 | AH157: 0 | AI157: 0
A158: 8912.5 | B158: 8.9125 | C158: 3.116487663 | D158: 1.244144141 | E158: 1.000022578 | F158: 0.006719765532 | G158: 1 | H158: 0 | I158: 120.1553776 | J158: 1.562473674 | K158: =SQRT(1+(A158/Zero2)^2) -> 1.350177464 | L158: =ATAN(A158/Zero2) -> 0.7367689181 | M158: 1.000194399 | N158: 0.01971635104 | O158: 1.001225632 | P158: 0.04948498547 | Q158: 1.000048664 | R158: 0.009865300943 | S158: 1.000121493 | T158: 0.03407280436 | U158: 18.01796523 | V158: -122.6774713 | W158: 57.32252869 | Y158: 1000000000 | Z158: 79432656.25 | AB158: 25.84679978 | AC158: -48.43906137 | AE158: 23.28005302 | AF158: -72.85142216 | AH158: 0 | AI158: 0
A159: 8964.4 | B159: 8.9644 | C159: 3.132772164 | D159: 1.245904678 | E159: 1.000022842 | F159: 0.006758895433 | G159: 1 | H159: 0 | I159: 120.8550279 | J159: 1.562521856 | K159: 1.353732607 | L159: 0.7396591926 | M159: 1.000196669 | N159: 0.0198311349 | O159: 1.00123994 | P159: 0.04977267618 | Q159: 1.000049232 | R159: 0.009922745612 | S159: 1.000122913 | T159: 0.03427124871 | U159: 17.94519716 | V159: -122.6392861 | W159: 57.36071389 | Y159: 1000000000 | Z159: 80360467.36 | AB159: 25.81919056 | AC159: -48.28279811 | AE159: 23.23477499 | AF159: -72.96142154 | AH159: 0 | AI159: 0
A160: 9016.3 | B160: 9.0163 | C160: 3.149066275 | D160: 1.247647001 | E160: 1.000023107 | F160: 0.006798025313 | G160: 1 | H160: 0 | I160: 121.5546785 | J160: 1.562569484 | K160: 1.357299 | L160: 0.7425343023 | M160: 1.000198953 | N160: 0.01994591824 | O160: 1.001254329 | P160: 0.05006035865 | Q160: 1.000049804 | R160: 0.009980190215 | S160: 1.000124341 | T160: 0.03446969356 | U160: 17.87294097 | V160: -122.6008945 | W160: 57.39910551 | Y160: 1000000000 | Z160: 81293665.69 | AB160: 25.79188439 | AC160: -48.12737193 | AE160: 23.1897051 | AF160: -73.07037737 | AH160: 0 | AI160: 0
A161: 9068.2 | B161: 9.0682 | C161: 3.165369847 | D161: 1.249371381 | E161: 1.000023374 | F161: 0.006837155172 | G161: 1 | H161: 0 | I161: 122.2543293 | J161: 1.562616566 | K161: 1.360876553 | L161: 0.745394319 | M161: 1.00020125 | N161: 0.02006070105 | O161: 1.001268802 | P161: 0.05034803282 | Q161: 1.000050379 | R161: 0.01003763475 | S161: 1.000125778 | T161: 0.03466813892 | U161: 17.80119089 | V161: -122.5623084 | W161: 57.43769163 | Y161: 1000000000 | Z161: 82232251.24 | AB161: 25.76487712 | AC161: -47.97277924 | AE161: 23.14484174 | AF161: -73.17830519 | AH161: 0 | AI161: 0
A162: 9120.1 | B162: 9.1201 | C162: 3.181682734 | D162: 1.251078084 | E162: 1.000023642 | F162: 0.006876285011 | G162: 1 | H162: 0 | I162: 122.9539805 | J162: 1.562663113 | K162: 1.364465179 | L162: 0.7482393149 | M162: 1.00020356 | N162: 0.02017548333 | O162: 1.001283358 | P162: 0.05063569865 | Q162: 1.000050957 | R162: 0.01009507922 | S162: 1.000127223 | T162: 0.03486658478 | U162: 17.72994126 | V162: -122.5235394 | W162: 57.47646061 | Y162: 1000000000 | Z162: 83176224.01 | AB162: 25.73816467 | AC162: -47.81901646 | AE162: 23.10018331 | AF162: -73.28522021 | AH162: 0 | AI162: 0
A163: 9173.2 | B163: 9.1732 | C163: 3.198382291 | D163: 1.252806226 | E163: 1.000023918 | F163: 0.006916319563 | G163: 1 | H163: 0 | I163: 123.6698088 | J163: 1.562710191 | K163: 1.368148149 | L163: 0.7511346206 | M163: 1.000205937 | N163: 0.02029291898 | O163: 1.001298336 | P163: 0.05093000704 | Q163: 1.000051553 | R163: 0.01015385182 | S163: 1.00012871 | T163: 0.03506961951 | U163: 17.65755632 | V163: -122.4836966 | W163: 57.51630344 | Y163: 1000000000 | Z163: 84147598.24 | AB163: 25.7111355 | AC163: -47.66255359 | AE163: 23.05470278 | AF163: -73.39357463 | AH163: 0 | AI163: 0
A164: 9226.3 | B164: 9.2263 | C164: 3.215091301 | D164: 1.25451641 | E164: 1.000024196 | F164: 0.006956354094 | G164: 1 | H164: 0 | I164: 124.3856373 | J164: 1.562756727 | K164: 1.371842526 | L164: 0.7540143562 | M164: 1.000208327 | N164: 0.02041035408 | O164: 1.001313401 | P164: 0.0512243066 | Q164: 1.000052151 | R164: 0.01021262435 | S164: 1.000130206 | T164: 0.03527265479 | U164: 17.58568345 | V164: -122.4436859 | W164: 57.55631407 | Y164: 1000000000 | Z164: 85124611.69 | AB164: 25.6844065 | AC164: -47.50695175 | AE164: 23.00943343 | AF164: -73.5009002 | AH164: 0 | AI164: 0
A165: 9279.4 | B165: 9.2794 | C165: 3.231809616 | D165: 1.256208904 | E165: 1.000024475 | F165: 0.006996388602 | G165: 1 | H165: 0 | I165: 125.1014662 | J165: 1.56280273 | K165: 1.375548219 | L165: 0.7568785996 | M165: 1.000210732 | N165: 0.02052778861 | O165: 1.001328552 | P165: 0.05151859727 | Q165: 1.000052753 | R165: 0.01027139681 | S165: 1.00013171 | T165: 0.0354756906 | U165: 17.51431683 | V165: -122.403519 | W165: 57.59648103 | Y165: 1000000000 | Z165: 86107264.36 | AB165: 25.65797348 | AC165: -47.352207 | AE165: 22.96437363 | AF165: -73.60721231 | AH165: 0 | AI165: 0
A166: 9332.5 | B166: 9.3325 | C166: 3.248537094 | D166: 1.257883974 | E166: 1.000024756 | F166: 0.007036423088 | G166: 1 | H166: 0 | I166: 125.8172953 | J166: 1.56284821 | K166: 1.379265135 | L166: 0.7597274288 | M166: 1.00021315 | N166: 0.02064522258 | O166: 1.00134379 | P166: 0.05181287901 | Q166: 1.000053359 | R166: 0.01033016919 | S166: 1.000133223 | T166: 0.03567872695 | U166: 17.44345071 | V166: -122.3632068 | W166: 57.63679319 | Y166: 1000000000 | Z166: 87095556.25 | AB166: 25.63183237 | AC166: -47.19831539 | AE166: 22.9195217 | AF166: -73.71252604 | AH166: 0 | AI166: 0
A167: 9386.85 | B167: 9.38685 | C167: 3.265667686 | D167: 1.2595807 | E167: 1.000025045 | F167: 0.007077399982 | G167: 1 | H167: 0 | I167: 126.5499756 | J167: 1.562894228 | K167: 1.383081079 | L167: 0.7626274398 | M167: 1.00021564 | N167: 0.02076542041 | O167: 1.001359477 | P167: 0.05211407899 | Q167: 1.000053982 | R167: 0.01039032503 | S167: 1.000134781 | T167: 0.03588654345 | U167: 17.37142877 | V167: -122.3218066 | W167: 57.67819336 | Y167: 1000000000 | Z167: 88112952.92 | AB167: 25.60537396 | AC167: -47.04168046 | AE167: 22.87382751 | AF167: -73.81930048 | AH167: 0 | AI167: 0
A168: 9441.2 | B168: 9.4412 | C168: 3.282807582 | D168: 1.261259713 | E168: 1.000025336 | F168: 0.007118376852 | G168: 1 | H168: 0 | I168: 127.2826562 | J168: 1.562939716 | K168: 1.386908591 | L168: 0.7655114683 | M168: 1.000218144 | N168: 0.02088561764 | O168: 1.001375254 | P168: 0.05241526951 | Q168: 1.000054609 | R168: 0.0104504808 | S168: 1.000136348 | T168: 0.03609436052 | U168: 17.29991925 | V168: -122.280277 | W168: 57.71972298 | Y168: 1000000000 | Z168: 89136257.44 | AB168: 25.5792129 | AC168: -46.88593086 | AE168: 22.82834765 | AF168: -73.92506008 | AH168: 0 | AI168: 0
A169: 9495.55 | B169: 9.49555 | C169: 3.299956636 | D169: 1.26292128 | E169: 1.000025629 | F169: 0.007159353698 | G169: 1 | H169: 0 | I169: 128.0153371 | J169: 1.562984683 | K169: 1.390747574 | L169: 0.7683795986 | M169: 1.000220663 | N169: 0.02100581426 | O169: 1.001391123 | P169: 0.0527164505 | Q169: 1.000055239 | R169: 0.01051063649 | S169: 1.000137924 | T169: 0.03630217817 | U169: 17.22891627 | V169: -122.2386289 | W169: 57.7613711 | Y169: 1000000000 | Z169: 90165469.8 | AB169: 25.553345 | AC169: -46.73106229 | AE169: 22.7830804 | AF169: -74.02982012 | AH169: 0 | AI169: 0
A170: 9549.9 | B170: 9.5499 | C170: 3.317114706 | D170: 1.264565662 | E170: 1.000025923 | F170: 0.00720033052 | G170: 1 | H170: 0 | I170: 128.7480182 | J170: 1.563029139 | K170: 1.394597936 | L170: 0.7712319149 | M170: 1.000223196 | N170: 0.02112601028 | O170: 1.001407082 | P170: 0.05301762192 | Q170: 1.000055873 | R170: 0.01057079211 | S170: 1.000139508 | T170: 0.0365099964 | U170: 17.15841402 | V170: -122.196873 | W170: 57.80312704 | Y170: 1000000000 | Z170: 91200590.01 | AB170: 25.52776617 | AC170: -46.57707044 | AE170: 22.73802406 | AF170: -74.13359559 | AH170: 0 | AI170: 0
A171: 9605.525 | B171: 9.605525 | C171: 3.33468448 | D171: 1.266231093 | E171: 1.000026226 | F171: 0.007242268595 | G171: 1 | H171: 0 | I171: 129.4978876 | J171: 1.563074116 | K171: 1.398550306 | L171: 0.7741348572 | M171: 1.000225803 | N171: 0.02124902536 | O171: 1.00142351 | P171: 0.05332584858 | Q171: 1.000056526 | R171: 0.01063235884 | S171: 1.00014114 | T171: 0.03672269046 | U171: 17.08677034 | V171: -122.1540366 | W171: 57.84596337 | Y171: 1000000000 | Z171: 92266110.53 | AB171: 25.50188239 | AC171: -46.42036936 | AE171: 22.69212735 | AF171: -74.23880137 | AH171: 0 | AI171: 0
A172: 9661.15 | B172: 9.66115 | C172: 3.352263405 | D172: 1.267879062 | E172: 1.00002653 | F172: 0.007284206644 | G172: 1 | H172: 0 | I172: 130.2477573 | J172: 1.563118576 | K172: 1.402514395 | L172: 0.7770214139 | M172: 1.000228426 | N172: 0.02137203979 | O172: 1.001440032 | P172: 0.05363406509 | Q172: 1.000057183 | R172: 0.01069392549 | S172: 1.000142781 | T172: 0.03693538513 | U172: 17.01563912 | V172: -122.111109 | W172: 57.88889103 | Y172: 1000000000 | Z172: 93337819.32 | AB172: 25.47629292 | AC172: -46.2645774 | AE172: 22.64644799 | AF172: -74.34300668 | AH172: 0 | AI172: 0
A173: 9716.775 | B173: 9.716775 | C173: 3.36985134 | D173: 1.269509834 | E173: 1.000026837 | F173: 0.007326144668 | G173: 1 | H173: 0 | I173: 130.9976272 | J173: 1.563162527 | K173: 1.406490104 | L173: 0.7798916756 | M173: 1.000231063 | N173: 0.02149505357 | O173: 1.00145665 | P173: 0.0539422714 | Q173: 1.000057843 | R173: 0.01075549206 | S173: 1.000144431 | T173: 0.03714808043 | U173: 16.94501438 | V173: -122.0681005 | W173: 57.93189953 | Y173: 1000000000 | Z173: 94415716.4 | AB173: 25.45099358 | AC173: -46.10968988 | AE173: 22.60098419 | AF173: -74.44622667 | AH173: 0 | AI173: 0
A174: 9772.4 | B174: 9.7724 | C174: 3.387448144 | D174: 1.271123667 | E174: 1.000027145 | F174: 0.007368082666 | G174: 1 | H174: 0 | I174: 131.7474973 | J174: 1.563205977 | K174: 1.410477335 | L174: 0.782745733 | M174: 1.000233716 | N174: 0.0216180667 | O174: 1.001473363 | P174: 0.05425046746 | Q174: 1.000058507 | R174: 0.01081705855 | S174: 1.000146091 | T174: 0.03736077635 | U174: 16.87489025 | V174: -122.0250213 | W174: 57.97497872 | Y174: 1000000000 | Z174: 95499801.76 | AB174: 25.42598026 | AC174: -45.95570209 | AE174: 22.55573419 | AF174: -74.54847619 | AH174: 0 | AI174: 0
A175: 9829.3 | B175: 9.8293 | C175: 3.405457322 | D175: 1.27275723 | E175: 1.000027462 | F175: 0.007410981912 | G175: 1 | H175: 0 | I175: 132.5145558 | J175: 1.563249914 | K175: 1.414567779 | L175: 0.7856485382 | M175: 1.000236445 | N175: 0.02174389878 | O175: 1.001490558 | P175: 0.05456571711 | Q175: 1.000059191 | R175: 0.01088003614 | S175: 1.000147799 | T175: 0.03757834819 | U175: 16.8036707 | V175: -121.9808918 | W175: 58.01910821 | Y175: 1000000000 | Z175: 96615138.49 | AB175: 25.40068533 | AC175: -45.79911068 | AE175: 22.50966638 | AF175: -74.6520805 | AH175: 0 | AI175: 0
A176: 9886.2 | B176: 9.8862 | C176: 3.423475493 | D176: 1.274373603 | E176: 1.000027781 | F176: 0.007453881132 | G176: 1 | H176: 0 | I176: 133.2816145 | J176: 1.563293346 | K176: 1.418670073 | L176: 0.7885345797 | M176: 1.00023919 | N176: 0.02186973018 | O176: 1.001507852 | P176: 0.0548809559 | Q176: 1.000059878 | R176: 0.01094301364 | S176: 1.000149517 | T176: 0.0377959207 | U176: 16.73296283 | V176: -121.9367089 | W176: 58.06329113 | Y176: 1000000000 | Z176: 97736950.44 | AB176: 25.37568122 | AC176: -45.64345074 | AE176: 22.4638186 | AF176: -74.75469988 | AH176: 0 | AI176: 0
A177: 9943.1 | B177: 9.9431 | C177: 3.441502514 | D177: 1.275973047 | E177: 1.000028102 | F177: 0.007496780324 | G177: 1 | H177: 0 | I177: 134.0486734 | J177: 1.563336281 | K177: 1.422784115 | L177: 0.7914039549 | M177: 1.000241951 | N177: 0.02199556088 | O177: 1.001525245 | P177: 0.05519618378 | Q177: 1.000060569 | R177: 0.01100599106 | S177: 1.000151245 | T177: 0.03801349387 | U177: 16.66276063 | V177: -121.8924825 | W177: 58.10751755 | Y177: 1000000000 | Z177: 98865237.61 | AB177: 25.35096374 | AC177: -45.4887172 | AE177: 22.41818903 | AF177: -74.85634932 | AH177: 0 | AI177: 0
A178: 10000 | B178: 10 | C178: 3.459538248 | D178: 1.277555817 | E178: 1.000028424 | F178: 0.007539679488 | G178: 1 | H178: 0 | I178: 134.8157326 | J178: 1.563378727 | K178: 1.426909804 | L178: 0.7942567607 | M178: 1.000244728 | N178: 0.02212139088 | O178: 1.001542739 | P178: 0.05551140067 | Q178: 1.000061264 | R178: 0.01106896839 | S178: 1.000152982 | T178: 0.03823106771 | U178: 16.59305816 | V178: -121.8482221 | W178: 58.15177785 | Y178: 1000000000 | Z178: 100000000 | AB178: 25.3265288 | AC178: -45.33490498 | AE178: 22.37277583 | AF178: -74.95704351 | AH178: 0 | AI178: 0
A179: 10058.25 | B179: 10.05825 | C179: 3.478010778 | D179: 1.279159132 | E179: 1.000028756 | F179: 0.007583596442 | G179: 1 | H179: 0 | I179: 135.6009912 | J179: 1.563421683 | K179: 1.431145338 | L179: 0.7971601893 | M179: 1.000247587 | N179: 0.02225020558 | O179: 1.00156075 | P179: 0.05583408491 | Q179: 1.00006198 | R179: 0.01113343982 | S179: 1.000154772 | T179: 0.03845380436 | U179: 16.52221353 | V179: -121.8028864 | W179: 58.19711363 | Y179: 1000000000 | Z179: 101168393.1 | AB179: 25.30180257 | AC179: -45.17839249 | AE179: 22.32650744 | AF179: -75.0591523 | AH179: 0 | AI179: 0
A180: 10116.5 | B180: 10.1165 | C180: 3.496492154 | D180: 1.280745501 | E180: 1.00002909 | F180: 0.007627513367 | G180: 1 | H180: 0 | I180: 136.38625 | J180: 1.563464144 | K180: 1.435392865 | L180: 0.8000464589 | M180: 1.000250463 | N180: 0.02237901954 | O180: 1.001578865 | P180: 0.05615675752 | Q180: 1.0000627 | R180: 0.01119791115 | S180: 1.000156571 | T180: 0.03867654173 | U180: 16.45188036 | V180: -121.7575346 | W180: 58.24246544 | Y180: 1000000000 | Z180: 102343572.2 | AB180: 25.27736397 | AC180: -45.02283476 | AE180: 22.28046202 | AF180: -75.16029024 | AH180: 0 | AI180: 0
A181: 10174.75 | B181: 10.17475 | C181: 3.514982237 | D181: 1.282315185 | E181: 1.000029426 | F181: 0.007671430262 | G181: 1 | H181: 0 | I181: 137.171509 | J181: 1.563506119 | K181: 1.439652278 | L181: 0.8029156734 | M181: 1.000253355 | N181: 0.02250783276 | O181: 1.001597085 | P181: 0.05647941841 | Q181: 1.000063424 | R181: 0.0112623824 | S181: 1.000158382 | T181: 0.0388992798 | U181: 16.38205258 | V181: -121.7121761 | W181: 58.28782391 | Y181: 1000000000 | Z181: 103525537.6 | AB181: 25.25320882 | AC181: -44.86822632 | AE181: 22.23463768 | AF181: -75.26047219 | AH181: 0 | AI181: 0
A182: 10233 | B182: 10.233 | C182: 3.533480889 | D182: 1.283868437 | E182: 1.000029764 | F182: 0.007715347128 | G182: 1 | H182: 0 | I182: 137.9567683 | J182: 1.563547616 | K182: 1.443923474 | L182: 0.8057679367 | M182: 1.000256264 | N182: 0.02263664523 | O182: 1.001615409 | P182: 0.05680206754 | Q182: 1.000064152 | R182: 0.01132685355 | S182: 1.000160202 | T182: 0.03912201859 | U182: 16.31272422 | V182: -121.6668201 | W182: 58.33317994 | Y182: 1000000000 | Z182: 104714289 | AB182: 25.229333 | AC182: -44.71456169 | AE182: 22.18903256 | AF182: -75.35971272 | AH182: 0 | AI182: 0
A183: 10292.5 | B183: 10.2925 | C183: 3.552385217 | D183: 1.285438316 | E183: 1.000030111 | F183: 0.007760206385 | G183: 1 | H183: 0 | I183: 138.7588789 | J183: 1.563589518 | K183: 1.448298381 | L183: 0.8086640146 | M183: 1.000259252 | N183: 0.02276822115 | O183: 1.001634234 | P183: 0.05713162824 | Q183: 1.0000649 | R183: 0.0113927081 | S183: 1.000162073 | T183: 0.03934953793 | U183: 16.24241761 | V183: -121.6205024 | W183: 58.3794976 | Y183: 1000000000 | Z183: 105935556.2 | AB183: 25.20522902 | AC183: -44.55856824 | AE183: 22.14267319 | AF183: -75.46012579 | AH183: 0 | AI183: 0
A184: 10352 | B184: 10.352 | C184: 3.571298208 | D184: 1.286991571 | E184: 1.00003046 | F184: 0.007805065611 | G184: 1 | H184: 0 | I184: 139.5609897 | J184: 1.563630939 | K184: 1.452685363 | L184: 0.8115426247 | M184: 1.000262258 | N184: 0.02289979627 | O184: 1.001653168 | P184: 0.05746117652 | Q184: 1.000065653 | R184: 0.01145856255 | S184: 1.000163954 | T184: 0.03957705802 | U184: 16.17261976 | V184: -121.5742055 | W184: 58.42579446 | Y184: 1000000000 | Z184: 107163904 | AB184: 25.18140805 | AC184: -44.40354798 | AE184: 22.09653865 | AF184: -75.55958643 | AH184: 0 | AI184: 0
A185: 10411.5 | B185: 10.4115 | C185: 3.590219723 | D185: 1.288528457 | E185: 1.000030811 | F185: 0.007849924805 | G185: 1 | H185: 0 | I185: 140.3631008 | J185: 1.563671887 | K185: 1.457084309 | L185: 0.8144038772 | M185: 1.000265281 | N185: 0.0230313706 | O185: 1.00167221 | P185: 0.0577907123 | Q185: 1.00006641 | R185: 0.01152441691 | S185: 1.000165846 | T185: 0.03980457888 | U185: 16.10332459 | V185: -121.5279383 | W185: 58.47206173 | Y185: 1000000000 | Z185: 108399332.2 | AB185: 25.15786596 | AC185: -44.24949507 | AE185: 22.05062701 | AF185: -75.65810927 | AH185: 0 | AI185: 0
A186: 10471 | B186: 10.471 | C186: 3.60914963 | D186: 1.290049225 | E186: 1.000031165 | F186: 0.007894783968 | G186: 1 | H186: 0 | I186: 141.1652121 | J186: 1.563712369 | K186: 1.461495113 | L186: 0.8172478824 | M186: 1.000268321 | N186: 0.02316294413 | O186: 1.001691361 | P186: 0.05812023552 | Q186: 1.000067171 | R186: 0.01159027116 | S186: 1.000167749 | T186: 0.04003210049 | U186: 16.03452609 | V186: -121.4817091 | W186: 58.51829093 | Y186: 1000000000 | Z186: 109641841 | AB186: 25.13459865 | AC186: -44.09640364 | AE186: 22.00493637 | AF186: -75.75570865 | AH186: 0 | AI186: 0
A187: 10532 | B187: 10.532 | C187: 3.628565335 | D187: 1.291591856 | E187: 1.000031529 | F187: 0.007940774001 | G187: 1 | H187: 0 | I187: 141.9875449 | J187: 1.563753397 | K187: 1.46602931 | L187: 0.8201457952 | M187: 1.000271456 | N187: 0.02329783381 | O187: 1.001711108 | P187: 0.05845805293 | Q187: 1.000067956 | R187: 0.0116577855 | S187: 1.000169712 | T187: 0.04026535875 | U187: 15.96450262 | V187: -121.4343626 | W187: 58.56563743 | Y187: 1000000000 | Z187: 110923024 | AB187: 25.11102584 | AC187: -43.94044482 | AE187: 21.9583213 | AF187: -75.85482454 | AH187: 0 | AI187: 0
A188: 10593 | B188: 10.593 | C188: 3.647989583 | D188: 1.293118062 | E188: 1.000031895 | F188: 0.007986764001 | G188: 1 | H188: 0 | I188: 142.809878 | J188: 1.563793953 | K188: 1.470575743 | L188: 0.8230258136 | M188: 1.000274609 | N188: 0.02343272265 | O188: 1.00173097 | P188: 0.05879585698 | Q188: 1.000068745 | R188: 0.01172529974 | S188: 1.000171685 | T188: 0.04049861782 | U188: 15.89498873 | V188: -121.3870733 | W188: 58.61292673 | Y188: 1000000000 | Z188: 112211649 | AB188: 25.0877334 | AC188: -43.78548414 | AE188: 21.91193449 | AF188: -75.95299944 | AH188: 0 | AI188: 0
A189: 10654 | B189: 10.654 | C189: 3.667422238 | D189: 1.294628097 | E189: 1.000032263 | F189: 0.008032753966 | G189: 1 | H189: 0 | I189: 143.6322113 | J189: 1.563834044 | K189: 1.475134298 | L189: 0.8258880556 | M189: 1.00027778 | N189: 0.02356761063 | O189: 1.001750945 | P189: 0.0591336476 | Q189: 1.000069539 | R189: 0.01179281387 | S189: 1.000173671 | T189: 0.0407318777 | U189: 15.82597825 | V189: -121.3398494 | W189: 58.66015057 | Y189: 1000000000 | Z189: 113507716 | AB189: 25.06471714 | AC189: -43.63151531 | AE189: 21.86577396 | AF189: -76.05024789 | AH189: 0 | AI189: 0
A190: 10715 | B190: 10.715 | C190: 3.686863168 | D190: 1.296122212 | E190: 1.000032634 | F190: 0.008078743898 | G190: 1 | H190: 0 | I190: 144.4545448 | J190: 1.563873679 | K190: 1.479704864 | L190: 0.8287326388 | M190: 1.00028097 | N190: 0.02370249775 | O190: 1.001771035 | P190: 0.05947142471 | Q190: 1.000070338 | R190: 0.01186032789 | S190: 1.000175667 | T190: 0.04096513841 | U190: 15.75746512 | V190: -121.292699 | W190: 58.70730097 | Y190: 1000000000 | Z190: 114811225 | AB190: 25.04197299 | AC190: -43.47853206 | AE190: 21.81983772 | AF190: -76.14658416 | AH190: 0 | AI190: 0
A191: 10777.5 | B191: 10.7775 | C191: 3.706790599 | D191: 1.297636808 | E191: 1.000033016 | F191: 0.008125864694 | G191: 1 | H191: 0 | I191: 145.2970999 | J191: 1.563913823 | K191: 1.484400161 | L191: 0.831628978 | M191: 1.000284257 | N191: 0.02384070087 | O191: 1.001791737 | P191: 0.05981749372 | Q191: 1.000071161 | R191: 0.01192950198 | S191: 1.000177725 | T191: 0.04120413589 | U191: 15.68777683 | V191: -121.2444734 | W191: 58.75552659 | Y191: 1000000000 | Z191: 116154506.2 | AB191: 25.01894756 | AC191: -43.32280259 | AE191: 21.77300251 | AF191: -76.24435785 | AH191: 0 | AI191: 0
A192: 10840 | B192: 10.84 | C192: 3.726726442 | D192: 1.299135203 | E192: 1.0000334 | F192: 0.008172985455 | G192: 1 | H192: 0 | I192: 146.1396552 | J192: 1.563953504 | K192: 1.489107833 | L192: 0.8345070281 | M192: 1.000287563 | N192: 0.02397890308 | O192: 1.00181256 | P192: 0.06016354838 | Q192: 1.000071988 | R192: 0.01199867595 | S192: 1.000179795 | T192: 0.04144313425 | U192: 15.61859804 | V192: -121.196341 | W192: 58.80365904 | Y192: 1000000000 | Z192: 117505600 | AB192: 24.99619931 | AC192: -43.16809443 | AE192: 21.72639863 | AF192: -76.34120334 | AH192: 0 | AI192: 0
A193: 10902.5 | B193: 10.9025 | C193: 3.746670564 | D193: 1.300617649 | E193: 1.000033786 | F193: 0.008220106178 | G193: 1 | H193: 0 | I193: 146.9822108 | J193: 1.56399273 | K193: 1.493827761 | L193: 0.8373669147 | M193: 1.000290888 | N193: 0.02411710438 | O193: 1.001833502 | P193: 0.06050958862 | Q193: 1.000072821 | R193: 0.01206784981 | S193: 1.000181877 | T193: 0.04168213349 | U193: 15.54992254 | V193: -121.1483094 | W193: 58.85169062 | Y193: 1000000000 | Z193: 118864506.2 | AB193: 24.97372406 | AC193: -43.01440084 | AE193: 21.68002404 | AF193: -76.43713507 | AH193: 0 | AI193: 0
A194: 10965 | B194: 10.965 | C194: 3.766622833 | D194: 1.302084393 | E194: 1.000034174 | F194: 0.008267226866 | G194: 1 | H194: 0 | I194: 147.8247665 | J194: 1.564031509 | K194: 1.49855983 | L194: 0.8402087629 | M194: 1.000294232 | N194: 0.02425530475 | O194: 1.001854565 | P194: 0.06085561436 | Q194: 1.000073658 | R194: 0.01213702356 | S194: 1.00018397 | T194: 0.04192113361 | U194: 15.48174419 | V194: -121.1003861 | W194: 58.89961391 | Y194: 1000000000 | Z194: 120231225 | AB194: 24.95151771 | AC194: -42.8617151 | AE194: 21.6338767 | AF194: -76.53216718 | AH194: 0 | AI194: 0
A195: 11028.75 | B195: 11.02875 | C195: 3.786982405 | D195: 1.303564546 | E195: 1.000034573 | F195: 0.008315289929 | G195: 1 | H195: 0 | I195: 148.6841736 | J195: 1.564070611 | K195: 1.503398929 | L195: 0.8430889941 | M195: 1.000297663 | N195: 0.02439626818 | O195: 1.001876172 | P195: 0.06120854557 | Q195: 1.000074517 | R195: 0.01220758066 | S195: 1.000186118 | T195: 0.04216491464 | U195: 15.41270818 | V195: -121.0516233 | W195: 58.94837668 | Y195: 1000000000 | Z195: 121633326.6 | AB195: 24.92914008 | AC195: -42.70700699 | AE195: 21.58703845 | AF195: -76.62818753 | AH195: 0 | AI195: 0
A196: 11092.5 | B196: 11.0925 | C196: 3.807350186 | D196: 1.305028866 | E196: 1.000034974 | F196: 0.008363352954 | G196: 1 | H196: 0 | I196: 149.5435809 | J196: 1.564109263 | K196: 1.50825042 | L196: 0.8459507196 | M196: 1.000301113 | N196: 0.02453723064 | O196: 1.001897904 | P196: 0.06156146152 | Q196: 1.000075381 | R196: 0.01227813764 | S196: 1.000188279 | T196: 0.04240869661 | U196: 15.34417683 | V196: -121.002988 | W196: 58.99701202 | Y196: 1000000000 | Z196: 123043556.2 | AB196: 24.90703383 | AC196: -42.55333337 | AE196: 21.54043245 | AF196: -76.72330075 | AH196: 0 | AI196: 0
A197: 11156.25 | B197: 11.15625 | C197: 3.827726044 | D197: 1.306477599 | E197: 1.000035377 | F197: 0.00841141594 | G197: 1 | H197: 0 | I197: 150.4029885 | J197: 1.564147474 | K197: 1.513114183 | L197: 0.8487940708 | M197: 1.000304584 | N197: 0.02467819212 | O197: 1.00191976 | P197: 0.06191436211 | Q197: 1.00007625 | R197: 0.0123486945 | S197: 1.000190452 | T197: 0.04265247951 | U197: 15.27614394 | V197: -120.9544871 | W197: 59.04551289 | Y197: 1000000000 | Z197: 124461914.1 | AB197: 24.88519485 | AC197: -42.40068715 | AE197: 21.49405661 | AF197: -76.81752097 | AH197: 0 | AI197: 0
A198: 11220 | B198: 11.22 | C198: 3.848109851 | D198: 1.307910987 | E198: 1.000035782 | F198: 0.008459478888 | G198: 1 | H198: 0 | I198: 151.2623963 | J198: 1.56418525 | K198: 1.517990101 | L198: 0.8516191785 | M198: 1.000308074 | N198: 0.02481915262 | O198: 1.001941742 | P198: 0.06226724727 | Q198: 1.000077124 | R198: 0.01241925123 | S198: 1.000192638 | T198: 0.04289626334 | U198: 15.2086034 | V198: -120.9061275 | W198: 59.09387252 | Y198: 1000000000 | Z198: 125888400 | AB198: 24.86361908 | AC198: -42.24906128 | AE198: 21.44790887 | AF198: -76.91086203 | AH198: 0 | AI198: 0
A199: 11285.5 | B199: 11.2855 | C199: 3.869061359 | D199: 1.309367989 | E199: 1.000036201 | F199: 0.008508861169 | G199: 1 | H199: 0 | I199: 152.1453958 | J199: 1.564223619 | K199: 1.523012404 | L199: 0.8545029736 | M199: 1.000311681 | N199: 0.0249639816 | O199: 1.001964457 | P199: 0.06262980329 | Q199: 1.000078027 | R199: 0.01249174469 | S199: 1.000194896 | T199: 0.04314674027 | U199: 15.13971531 | V199: -120.8565943 | W199: 59.1434057 | Y199: 1000000000 | Z199: 127362510.2 | AB199: 24.84172102 | AC199: -42.09432846 | AE199: 21.40072977 | AF199: -77.00586397 | AH199: 0 | AI199: 0
A200: 11351 | B200: 11.351 | C200: 3.890020993 | D200: 1.310809293 | E200: 1.000036623 | F200: 0.008558243409 | G200: 1 | H200: 0 | I200: 153.0283956 | J200: 1.564261545 | K200: 1.52804729 | L200: 0.8573677883 | M200: 1.000315309 | N200: 0.02510880953 | O200: 1.001987303 | P200: 0.06299234283 | Q200: 1.000078935 | R200: 0.01256423801 | S200: 1.000197168 | T200: 0.04339721821 | U200: 15.07133423 | V200: -120.8072239 | W200: 59.19277611 | Y200: 1000000000 | Z200: 128845201 | AB200: 24.82009239 | AC200: -41.94065771 | AE200: 21.35378714 | AF200: -77.09996654 | AH200: 0 | AI200: 0
A201: 11416.5 | B201: 11.4165 | C201: 3.910988621 | D201: 1.312235146 | E201: 1.000037047 | F201: 0.008607625608 | G201: 1 | H201: 0 | I201: 153.9113956 | J201: 1.564299036 | K201: 1.533094635 | L201: 0.8602137629 | M201: 1.000318958 | N201: 0.02525363641 | O201: 1.002010281 | P201: 0.06335486579 | Q201: 1.000079849 | R201: 0.0126367312 | S201: 1.000199453 | T201: 0.04364769715 | U201: 15.00345384 | V201: -120.7580228 | W201: 59.24197722 | Y201: 1000000000 | Z201: 130336472.2 | AB201: 24.79872906 | AC201: -41.78804142 | AE201: 21.30707884 | AF201: -77.19318389 | AH201: 0 | AI201: 0
A202: 11482 | B202: 11.482 | C202: 3.931964116 | D202: 1.313645789 | E202: 1.000037473 | F202: 0.008657007764 | G202: 1 | H202: 0 | I202: 154.7943958 | J202: 1.5643361 | K202: 1.538154315 | L202: 0.8630410368 | M202: 1.000322628 | N202: 0.02539846223 | O202: 1.002033391 | P202: 0.06371737207 | Q202: 1.000080768 | R202: 0.01270922426 | S202: 1.000201752 | T202: 0.04389817711 | U202: 14.93606794 | V202: -120.7089972 | W202: 59.29100277 | Y202: 1000000000 | Z202: 131836324 | AB202: 24.77762694 | AC202: -41.63647204 | AE202: 21.26060271 | AF202: -77.28552982 | AH202: 0 | AI202: 0
... 433 more rows

Sheet Bode Plot Management (hidden)
J1: Single or dual output (MODE) | N1: 3.3V or 5V fixed (FB1/2)
A2: =CHOOSE(BODE_PLOT_TYPE, "BODE_PLOT_Ch1", "BODE_PLOT_Ch2") -> BODE_PLOT_Ch1 | J2: With/without dither (DITH) | N2: With/without VOUT connected to VCCX
J3: FPWM or DEM (DEMB)
J4: Shunt or inductor DCR current sensing
F6: =INDIRECT(A2) -> 0

Sheet Efficiency Calculations (hidden)
A1: BUCK CONTROLLER POWER DESIGN TOOL | AO1: =Ext_VCC -> 1
H2: =AV19 -> 0.8496644919 | I2: 10% load
H3: =AV59 -> 0.9404243322 | I3: 50% load | AN3: =IF(MODE=1, (Qg_Q1+Qg_Q2)*Fsw*Vin, (Qg_Q1+Qg_Q2+Qg_Q3+Qg_Q4)*Fsw*Vin) -> 0.179712
H4: =AV109 -> 0.9355872244 | I4: 100% load | U4: 3 | AG4: 1 | AK4: 2 | AM4: I_VCC | AN4: =(Qg_Q1+Qg_Q2)*Fsw*1000 -> 7.488 | AO4: mA | AP4: =AN4*5/1000 -> 0.03744
AP5: =VCC -> 3.3
A6: Enter the values of your design and MOSFET datasheet specifications below. Note that thermal resistance (θJA) will change when components are placed on the PCB
G7: Operating Point Condtions | R7: Filter Inductor | V7: Cout | Y7: Cin | AB7: High-side BUCK "Control" MOSFET Losses | AH7: Low-side BUCK "Sync" MOSFET Losses | AL7: Diode/FET | AM7: "Controller" Losses | AT7: RESULTS | AZ7: Consolidated Buck/Boost Efficiency & Losses
A8: Input Parameters | G8: Step | H8: Vin | I8: Mode | J8: Iout | K8: Iout/ phase | L8: Iin | M8: Duty Cycle BUCK Leg | N8: Ripple Current pk-pk | O8: Peak Inductor Current | P8: Valley Inductor Current | Q8: SW node voltage at Q1 turn-on | R8: Irms Lf | S8: DCR Loss | T8: Core Loss | U8: Total Inductor Loss | V8: Irms Cout | W8: Cout ESR Loss | X8: Total Cout Loss | Y8: Irms Cin | Z8: Cin ESR Loss | AA8: Total Cin Loss | AB8: Irms | AC8: RDS(on) Loss | AD8: Transition Loss (not including capacitive loss) | AE8: MOSFET Output Capacitance Loss | AF8: Dead Time Loss | AG8: Total Control MOSFET Loss | AH8: Irms | AI8: RDS(on) Loss | AJ8: Deadtime Loss | AK8: Total Sync MOSFET Loss | AL8: Reverse Recovery Loss | AM8: IQ Loss | AN8: Switching Current Loss | AO8: Switching Current Diss from VCC | AP8: LDO Loss Saved from Gate Drive Current (ext VCC = Vout) | AQ8: Total "Control" Loss | AR8: Total Loss (not considering total loss) | AS8: Total Loss (considering total loss) | AT8: Total Loss | AU8: Pout | AV8: EFF, h | AW8: =IF(Vin>Vout, "Buck ''CONTROL'' MOSFET Temp Rise", "Boost ''CONTROL'' MOSFET Temp Rise") -> Buck ''CONTROL'' MOSFET Temp Rise | AX8: =IF(Vin>Vout, "Buck ''SYNC'' MOSFET Temp Rise", "Boost ''SYNC'' MOSFET Temp Rise") -> Buck ''SYNC'' MOSFET Temp Rise | AZ8: h | BA8: Inductor Cu & Core Loss | BB8: Total MOSFET Loss | BC8: Control MOSFET Loss | BD8: SYNC MOSFET Loss | BE8: Power Loss
A9: Design | B9: Input Value | C9: Units | D9: Description | G9: 0 | H9: =Vin -> 24 | I9: =MODE -> 1 | J9: 0 | K9: =Iout*G9/100/Number_of_Phases -> 0 | L9: =Vout*K9/(Vin*Efficiency) -> 0 | M9: =(Vout+(Rdson2+Rs+Rdcr)*K9)/(Vin+(Rs+Rdson2-Rdson1)*K9) -> 0.2083333333 | N9: =(Vin-(Rdson1+Rdcr)*K9-Vout)*M9/(Fsw*Lf) -> 2.645469406 | O9: =K9+N9/2 -> 1.322734703 | P9: =K9-N9/2 -> -1.322734703 | Q9: =IF(MIN(Vin, -P9/(Coss_Q1+Coss_Q2)*0.00000002)<0, 0, MIN(Vin, -P9/(Coss_Q1+Coss_Q2)*0.00000002)) -> 24 | R9: =SQRT(K9^2+(N9^2)/12) -> 0.7636812368 | S9: =R9^2*Rdcr -> 0.01224738966 | T9: =Core_Loss -> 0.2506040217 | U9: =(T9+S9*(1+Ltc*(Ta-25)))/(1-S9*Ltc*ThetaCa) -> 0.2631300422 | V9: =N9/SQRT(12) -> 0.7636812368 | W9: =RCoutEsr*V9^2 -> 0.001166418063 | X9: =W9 -> 0.001166418063 | Y9: =SQRT(M9*(1-M9))*SQRT(K9^2+(N9^2)/12) -> 0.3101434983 | Z9: =RCinEsr*Y9^2 -> 9.618898956e-05 | AA9: =Z9 -> 9.618898956e-05 | AB9: =SQRT(M9)*SQRT(K9^2+(N9^2)/12) -> 0.3485712001 | AC9: =Rdson1*AB9^2 -> 0.004981577144 | AD9: =(Vin*K9/2)*Fsw*(Tr_buck+Tf_buck) -> 0 | AE9: =(0.5*Coss_Q1*(Vin-Q9)^2-0.5*Coss_Q2*(Vin-Q9)^2+(Qoss_Q2*(Vin-Q9)/Vin)*Vin)*Fsw -> 0 | AF9: =IF(K9>N9/2,0,ABS(K9-N9/2)*Vsd_Q1*Deadtime*Fsw) -> 0.006162885528 | AG9: =(AF9+AE9+AD9+AC9*(1+RdsonTC*(Ta-25))/(1-AC9*RdsonTC*ThetaJA_Q1)) -> 0.01114664745 | AH9: =SQRT((1-M9))*SQRT(K9^2+(N9^2)/12) -> 0.6794903604 | AI9: =Rdson2*AH9^2 -> 0.009695850148 | AJ9: =IF(K9<N9/2,Deadtime*Fsw*Vsd_Q2*(K9+N9/2),2*Deadtime*Fsw*Vsd_Q2*K9) -> 0.006162885528 | AK9: =(AJ9+AI9*(1+RdsonTC*(Ta-25)))/(1-AI9*RdsonTC*ThetaJA_Q2) -> 0.01587227846 | AL9: =Qrr_Q2*K9/Iout*Fsw*Vin -> 0 | AM9: =Iq*Vin -> 0.00084 | AN9: =IF(Ext_VCC=1, (Qg_Q1+Qg_Q2)*Fsw*Vout, (Qg_Q1+Qg_Q2)*Fsw*Vin) -> 0.03744 | AO9: =(Vin-VCC)*Fsw*(Qg_Q1+Qg_Q2) -> 0.1550016 | AP9: =(Qg_Q1+Qg_Q2)*Fsw*(Vin-Vout) -> 0.142272 | AQ9: =SUM(AM9:AN9) -> 0.03828 | AR9: =SUM(S9,T9,AC9,AD9,AE9,AF9,AI9,AJ9,AQ9, AL9) -> 0.3281346097 | AS9: =((T9+S9*(1+Ltc*(Ta-25))) + (AF9+AE9+AD9+AC9*(1+RdsonTC*(Ta-25))) + (AJ9+AI9*(1+RdsonTC*(Ta-25))) + AQ9 + AL9) / (1-S9*Ltc*ThetaCa-AC9*RdsonTC*ThetaJA_Q1 -AI9*RdsonTC*ThetaJA_Q2) -> 0.3289077148 | AT9: =AS9 -> 0.3289077148 | AU9: =Vout*K9 -> 0 | AV9: =AU9/(AU9+AT9) -> 0 | AW9: =ThetaJA_Q1*BC9 -> 0.2452262438 | AX9: =ThetaJA_Q2*BD9 -> 0.349190126 | AZ9: =AV9*100 -> 0 | BA9: =U9 -> 0.2631300422 | BB9: =AG9+AK9+AL9 -> 0.0270189259 | BC9: =AG9+AL9*0.66 -> 0.01114664745 | BD9: =AK9+AL9*0.33 -> 0.01587227846 | BE9: =BA9+BB9 -> 0.2901489681
G10: 1 | H10: 24 | I10: 1 | J10: =Iout*G10/100 -> 0.04 | K10: 0.04 | L10: 0.009259259259 | M10: 0.2084643704 | N10: 2.646787827 | O10: =K10+N10/2 -> 1.363393914 | P10: =K10-N10/2 -> -1.283393914 | Q10: 24 | R10: =SQRT(K10^2+(N10^2)/12) -> 0.7651081515 | S10: 0.01229320015 | T10: 0.2506040217 | U10: 0.2631769447 | V10: =N10/SQRT(12) -> 0.7640618323 | W10: 0.001167580967 | X10: =W10 -> 0.001167580967 | Y10: =SQRT(M10*(1-M10))*SQRT(K10^2+(N10^2)/12) -> 0.3107949708 | Z10: 9.659351387e-05 | AA10: =Z10 -> 9.659351387e-05 | AB10: =SQRT(M10)*SQRT(K10^2+(N10^2)/12) -> 0.349332304 | AC10: 0.005003355403 | AD10: 0.001094025974 | AE10: 0 | AF10: 0.005979588922 | AG10: =(AF10+AE10+AD10+AC10*(1+RdsonTopTc*Ta-RdsonTopTc*25))/(1-AC10*RdsonTopTc*ThetaJA_Q1) -> 0.01208229007 | AH10: 0.6807036249 | AI10: 0.009730505924 | AJ10: 0.006352324922 | AK10: =(AJ10+AI10*(1+RdsonBotTc*Ta-RdsonBotTc*25))/(1-AI10*RdsonBotTc*ThetaJA_Q2) -> 0.01609661413 | AL10: 0.00059904 | AM10: 0.00084 | AN10: 0.03744 | AO10: 0.1550016 | AP10: 0.142272 | AQ10: 0.03828 | AR10: =SUM(S10,T10,AC10,AD10,AE10,AF10,AI10,AJ10,AQ10, AL10) -> 0.329936063 | AS10: 0.3307163717 | AT10: =AS10 -> 0.3307163717 | AU10: 0.2 | AV10: =AU10/(AU10+AT10) -> 0.3768491245 | AW10: 0.2745084424 | AX10: 0.3584745412 | AZ10: =AV10*100 -> 37.68491245 | BA10: 0.2631769447 | BB10: 0.0287779442 | BC10: 0.01247765647 | BD10: 0.01629429733 | BE10: =BA10+BB10 -> 0.2919548889
A11: Vin | B11: =Vin -> 24 | C11: V | D11: Vin | G11: 2 | H11: 24 | I11: 1 | J11: 0.08 | K11: 0.08 | L11: 0.01851851852 | M11: 0.2085953983 | N11: 2.648105698 | O11: 1.404052849 | P11: -1.244052849 | Q11: 24 | R11: 0.7686169282 | S11: 0.01240621163 | T11: 0.2506040217 | U11: 0.2632926518 | V11: 0.7644422688 | W11: 0.001168743965 | X11: 0.001168743965 | Y11: 0.3122925275 | Z11: 9.752662272e-05 | AA11: 9.752662272e-05 | AB11: 0.3510446082 | AC11: 0.005052524996 | AD11: 0.002188051948 | AE11: 0 | AF11: 0.005796291034 | AG11: 0.01304266704 | AH11: 0.6837687221 | AI11: 0.009818332972 | AJ11: 0.006541763034 | AK11: 0.01637424357 | AL11: 0.00119808 | AM11: 0.00084 | AN11: 0.03744 | AO11: 0.1550016 | AP11: 0.142272 | AQ11: 0.03828 | AR11: 0.3318852773 | AS11: 0.3326774744 | AT11: 0.3326774744 | AU11: 0.4 | AV11: 0.5459428111 | AW11: 0.3043347964 | AX11: 0.3689314193 | AZ11: 54.59428111 | BA11: 0.2632926518 | BB11: 0.03061499061 | BC11: 0.01383339984 | BD11: 0.01676960997 | BE11: 0.2939076424
A12: Vout | B12: =Vout -> 5 | C12: V | D12: Vout | G12: 3 | H12: 24 | I12: 1 | J12: 0.12 | K12: 0.12 | L12: 0.02777777778 | M12: 0.2087264171 | N12: 2.649423018 | O12: 1.444711509 | P12: -1.204711509 | Q12: 24 | R12: 0.7741792604 | S12: 0.01258642407 | T12: 0.2506040217 | U12: 0.2634771675 | V12: 0.7648225463 | W12: 0.001169907055 | X12: 0.001169907055 | Y12: 0.3146252512 | Z12: 9.898904869e-05 | AA12: 9.898904869e-05 | AB12: 0.3536960762 | AC12: 0.005129137486 | AD12: 0.003282077922 | AE12: 0 | AF12: 0.005612991862 | AG12: 0.01403054015 | AH12: 0.6886600126 | AI12: 0.009959304873 | AJ12: 0.006731199862 | AK12: 0.01670514544 | AL12: 0.00179712 | AM12: 0.00084 | AN12: 0.03744 | AO12: 0.1550016 | AP12: 0.142272 | AQ12: 0.03828 | AR12: 0.3339822778 | AS12: 0.3347911349 | AT12: 0.3347911349 | AU12: 0.6 | AV12: 0.6418546108 | AW12: 0.3347660658 | AX12: 0.3805602909 | AZ12: 64.18546108 | BA12: 0.2634771675 | BB12: 0.03253280559 | BC12: 0.01521663935 | BD12: 0.01729819504 | BE12: 0.296009973
A13: Fsw | B13: =Fsw/1000 -> 832 | C13: kHz | D13: Switching Frequency | G13: 4 | H13: 24 | I13: 1 | J13: 0.16 | K13: 0.16 | L13: 0.03703703704 | M13: 0.2088574266 | N13: 2.650739787 | O13: 1.485369894 | P13: -1.165369894 | Q13: 24 | R13: 0.7817513148 | S13: 0.01283383748 | T13: 0.2506040217 | U13: 0.2637304981 | V13: 0.7652026648 | W13: 0.001171070236 | X13: 0.001171070236 | Y13: 0.3177759015 | Z13: 0.0001009815236 | AA13: 0.0001009815236 | AB13: 0.3572675582 | AC13: 0.005233244433 | AD13: 0.004376103896 | AE13: 0 | AF13: 0.005429691408 | AG13: 0.01504596879 | AH13: 0.6953380545 | AI13: 0.01015339521 | AJ13: 0.006920635408 | AK13: 0.01708929989 | AL13: 0.00239616 | AM13: 0.00084 | AN13: 0.03744 | AO13: 0.1550016 | AP13: 0.142272 | AQ13: 0.03828 | AR13: 0.3362270895 | AS13: 0.3370574771 | AT13: 0.3370574771 | AU13: 0.8 | AV13: 0.7035704141 | AW13: 0.3658035566 | AX13: 0.3933607191 | AZ13: 70.35704141 | BA13: 0.2637304981 | BB13: 0.03453142868 | BC13: 0.01662743439 | BD13: 0.01788003269 | BE13: 0.2982619268
A14: Iout | B14: =Iout -> 4 | C14: A | D14: Max Output Current | G14: 5 | H14: 24 | I14: 1 | J14: 0.2 | K14: 0.2 | L14: 0.0462962963 | M14: 0.208988427 | N14: 2.652056006 | O14: 1.526028003 | P14: -1.126028003 | Q14: 24 | R14: 0.7912753975 | S14: 0.01314845185 | T14: 0.2506040217 | U14: 0.2640526526 | V14: 0.7655826244 | W14: 0.001172233509 | X14: 0.001172233509 | Y14: 0.3217215854 | Z14: 0.0001035047785 | AA14: 0.0001035047785 | AB14: 0.3617335424 | AC14: 0.005364897384 | AD14: 0.00547012987 | AE14: 0 | AF14: 0.005246389671 | AG14: 0.01608901272 | AH14: 0.7037510917 | AI14: 0.01040057758 | AJ14: 0.007110069671 | AK14: 0.01752668857 | AL14: 0.0029952 | AM14: 0.00084 | AN14: 0.03744 | AO14: 0.1550016 | AP14: 0.142272 | AQ14: 0.03828 | AR14: 0.3386197377 | AS14: 0.3394766368 | AT14: 0.3394766368 | AU14: 1 | AV14: 0.7465602404 | AW14: 0.3974485839 | AX14: 0.4073323005 | AZ14: 74.65602404 | BA14: 0.2640526526 | BB14: 0.03661090129 | BC14: 0.01806584472 | BD14: 0.01851510457 | BE14: 0.3006635539
A15: Ta | B15: =Ta -> 25 | C15: °C | D15: Ambient Temperature | G15: 6 | H15: 24 | I15: 1 | J15: 0.24 | K15: 0.24 | L15: 0.05555555556 | M15: 0.2091194183 | N15: 2.653371674 | O15: 1.566685837 | P15: -1.086685837 | Q15: 24 | R15: 0.802682027 | S15: 0.01353026717 | T15: 0.2506040217 | U15: 0.2644436421 | V15: 0.765962425 | W15: 0.001173396873 | X15: 0.001173396873 | Y15: 0.3264345933 | Z15: 0.0001065595437 | AA15: 0.0001065595437 | AB15: 0.367063093 | AC15: 0.005524147883 | AD15: 0.006564155844 | AE15: 0 | AF15: 0.005063086651 | AG15: 0.01715973215 | AH15: 0.7138369017 | AI15: 0.01070082557 | AJ15: 0.007299502651 | AK15: 0.01801729461 | AL15: 0.00359424 | AM15: 0.00084 | AN15: 0.03744 | AO15: 0.1550016 | AP15: 0.142272 | AQ15: 0.03828 | AR15: 0.3411602474 | AS15: 0.3420487617 | AT15: 0.3420487617 | AU15: 1.2 | AV15: 0.7781855087 | AW15: 0.4297024722 | AX15: 0.4224746639 | AZ15: 77.81855087 | BA15: 0.2644436421 | BB15: 0.03877126676 | BC15: 0.01953193055 | BD15: 0.01920339381 | BE15: 0.3032149089
A16: Vcc | B16: =VCC -> 3.3 | C16: V | D16: Subregulated VCC Voltage | G16: 7 | H16: 24 | I16: 1 | J16: 0.28 | K16: 0.28 | L16: 0.06481481481 | M16: 0.2092504003 | N16: 2.654686791 | O16: 1.607343395 | P16: -1.047343395 | Q16: 24 | R16: 0.8158922497 | S16: 0.01397928343 | T16: 0.2506040217 | U16: 0.2649034804 | V16: 0.7663420667 | W16: 0.001174560326 | X16: 0.001174560326 | Y16: 0.331883336 | Z16: 0.0001101465487 | AA16: 0.0001101465487 | AB16: 0.3732209006 | AC16: 0.005711047466 | AD16: 0.007658181818 | AE16: 0 | AF16: 0.004879782348 | AG16: 0.01825818769 | AH16: 0.72552486 | AI16: 0.01105411277 | AJ16: 0.007488934348 | AK16: 0.01856110266 | AL16: 0.00419328 | AM16: 0.00084 | AN16: 0.03744 | AO16: 0.1550016 | AP16: 0.142272 | AQ16: 0.03828 | AR16: 0.3438486439 | AS16: 0.3447740114 | AT16: 0.3447740114 | AU16: 1.4 | AV16: 0.802396179 | AW16: 0.4625665548 | AX16: 0.4387874712 | AZ16: 80.2396179 | BA16: 0.2649034804 | BB16: 0.04101257035 | BC16: 0.02102575249 | BD16: 0.01994488506 | BE16: 0.3059160507
A17: Components | B17: Input Value | C17: Units | D17: Description | G17: 8 | H17: 24 | I17: 1 | J17: 0.32 | K17: 0.32 | L17: 0.07407407407 | M17: 0.2093813732 | N17: 2.656001358 | O17: 1.648000679 | P17: -1.008000679 | Q17: 24 | R17: 0.8308200373 | S17: 0.01449550062 | T17: 0.2506040217 | U17: 0.2654321834 | V17: 0.7667215495 | W17: 0.001175723869 | X17: 0.001175723869 | Y17: 0.3380333154 | Z17: 0.0001142665223 | AA17: 0.0001142665223 | AB17: 0.3801683728 | AC17: 0.00592564766 | AD17: 0.008752207792 | AE17: 0 | AF17: 0.004696476763 | AG17: 0.01938444037 | AH17: 0.7387380745 | AI17: 0.0114604128 | AJ17: 0.007678364763 | AK17: 0.01915809882 | AL17: 0.00479232 | AM17: 0.00084 | AN17: 0.03744 | AO17: 0.1550016 | AP17: 0.142272 | AQ17: 0.03828 | AR17: 0.3466849521 | AS17: 0.3476525576 | AT17: 0.3476525576 | AU17: 1.6 | AV17: 0.821501758 | AW17: 0.4960421745 | AX17: 0.4562704172 | AZ17: 82.1501758 | BA17: 0.2654321834 | BB17: 0.04333485918 | BC17: 0.02254737157 | BD17: 0.02073956442 | BE17: 0.3087670426
A18: L | B18: =Lf*1000000 -> 1.7984 | C18: uH | D18: Filter Inductance | G18: 9 | H18: 24 | I18: 1 | J18: 0.36 | K18: 0.36 | L18: 0.08333333333 | M18: 0.2095123369 | N18: 2.657315375 | O18: 1.688657687 | P18: -0.9686576873 | Q18: 24 | R18: 0.847374622 | S18: 0.01507891875 | T18: 0.2506040217 | U18: 0.2660297696 | V18: 0.7671008734 | W18: 0.0011768875 | X18: 0.0011768875 | Y18: 0.3448480717 | Z18: 0.0001189201926 | AA18: 0.0001189201926 | AB18: 0.3878646982 | AC18: 0.006167999988 | AD18: 0.009846233766 | AE18: 0 | AF18: 0.004513169896 | AG18: 0.02053855165 | AH18: 0.7533954645 | AI18: 0.01191969924 | AJ18: 0.007867793896 | AK18: 0.0198082707 | AL18: 0.00539136 | AM18: 0.00084 | AN18: 0.03744 | AO18: 0.1550016 | AP18: 0.142272 | AQ18: 0.03828 | AR18: 0.3496691972 | AS18: 0.3506845837 | AT18: 0.3506845837 | AU18: 1.8 | AV18: 0.8369428105 | AW18: 0.5301306834 | AX18: 0.474923229 | AZ18: 83.69428105 | BA18: 0.2660297696 | BB18: 0.04573818235 | BC18: 0.02409684925 | BD18: 0.0215874195 | BE18: 0.311767952
A19: Rdcr | B19: =Rdcr*1000 -> 21 | C19: mW | D19: Inductor DCR at 25°C | G19: 10 | H19: 24 | I19: 1 | J19: 0.4 | K19: 0.4 | L19: 0.09259259259 | M19: 0.2096432915 | N19: 2.658628841 | O19: 1.72931442 | P19: -0.9293144204 | Q19: 24 | R19: 0.8654626563 | S19: 0.0157295378 | T19: 0.2506040217 | U19: 0.2666962599 | V19: 0.7674800384 | W19: 0.001178051219 | X19: 0.001178051219 | Y19: 0.3522900605 | Z19: 0.0001241082867 | AA19: 0.0001241082867 | AB19: 0.3962678314 | AC19: 0.006438155961 | AD19: 0.01094025974 | AE19: 0 | AF19: 0.004329861747 | AG19: 0.02172058341 | AH19: 0.7694136828 | AI19: 0.01243194572 | AJ19: 0.008057221747 | AK19: 0.0205116074 | AL19: 0.0059904 | AM19: 0.00084 | AN19: 0.03744 | AO19: 0.1550016 | AP19: 0.142272 | AQ19: 0.03828 | AR19: 0.3528014044 | AS19: 0.3538702854 | AT19: 0.3538702854 | AU19: 2 | AV19: 0.8496644919 | AW19: 0.5648334431 | AX19: 0.4947456667 | AZ19: 84.96644919 | BA19: 0.2666962599 | BB19: 0.04822259081 | BC19: 0.02567424741 | BD19: 0.0224884394 | BE19: 0.3149188507
A20: LTc | B20: 3930 | C20: ppm | D20: Inductor Series Resistance Temp Co | G20: 11 | H20: 24 | I20: 1 | J20: 0.44 | K20: 0.44 | L20: 0.1018518519 | M20: 0.2097742369 | N20: 2.659941757 | O20: 1.769970878 | P20: -0.8899708783 | Q20: 24 | R20: 0.8849901199 | S20: 0.01644735776 | T20: 0.2506040217 | U20: 0.2674316776 | V20: 0.7678590446 | W20: 0.001179215025 | X20: 0.001179215025 | Y20: 0.3603214276 | Z20: 0.0001298315312 | AA20: 0.0001298315312 | AB20: 0.4053353652 | AC20: 0.006736167089 | AD20: 0.01203428571 | AE20: 0 | AF20: 0.004146552316 | AG20: 0.02293059798 | AH20: 0.7867088115 | AI20: 0.01299712584 | AJ20: 0.008246648316 | AK20: 0.02126809948 | AL20: 0.00658944 | AM20: 0.00084 | AN20: 0.03744 | AO20: 0.1550016 | AP20: 0.142272 | AQ20: 0.03828 | AR20: 0.3560815987 | AS20: 0.3572098705 | AT20: 0.3572098705 | AU20: 2.2 | AV20: 0.8603126499 | AW20: 0.6001518244 | AX20: 0.515737523 | AZ20: 86.03126499 | BA20: 0.2674316776 | BB20: 0.05078813746 | BC20: 0.02727962838 | BD20: 0.02344261468 | BE20: 0.318219815
A21: ThetaCa | B21: =ThetaCa -> 22 | C21: °C/W | D21: Core to Ambient Thermal Resistance | G21: 12 | H21: 24 | I21: 1 | J21: 0.48 | K21: 0.48 | L21: 0.1111111111 | M21: 0.2099051732 | N21: 2.661254122 | O21: 1.810627061 | P21: -0.8506270612 | Q21: 24 | R21: 0.9058639294 | S21: 0.01723237863 | T21: 0.2506040217 | U21: 0.2682360483 | V21: 0.768237892 | W21: 0.001180378917 | X21: 0.001180378917 | Y21: 0.3689046648 | Z21: 0.0001360906517 | AA21: 0.0001360906517 | AB21: 0.4150252672 | AC21: 0.007062084869 | AD21: 0.01312831169 | AE21: 0 | AF21: 0.003963241603 | AG21: 0.0241686581 | AH21: 0.8051977932 | AI21: 0.01361521321 | AJ21: 0.008436073603 | AK21: 0.02207773901 | AL21: 0.00718848 | AM21: 0.00084 | AN21: 0.03744 | AO21: 0.1550016 | AP21: 0.142272 | AQ21: 0.03828 | AR21: 0.3595098053 | AS21: 0.3607035586 | AT21: 0.3607035586 | AU21: 2.4 | AV21: 0.8693436108 | AW21: 0.6360872078 | AX21: 0.537898623 | AZ21: 86.93436108 | BA21: 0.2682360483 | BB21: 0.05343487711 | BC21: 0.0289130549 | BD21: 0.02444993741 | BE21: 0.3216709254
A22: Cin | B22: =Cin*1000000 -> 20 | C22: μF | D22: Input Capacitance | G22: 13 | H22: 24 | I22: 1 | J22: 0.52 | K22: 0.52 | L22: 0.1203703704 | M22: 0.2100361002 | N22: 2.662565938 | O22: 1.851282969 | P22: -0.8112829689 | Q22: 24 | R22: 0.9279932369 | S22: 0.0180846004 | T22: 0.2506040217 | U22: 0.2691094001 | V22: 0.7686165805 | W22: 0.001181542896 | X22: 0.001181542896 | Y22: 0.3780031394 | Z22: 0.0001428863734 | AA22: 0.0001428863734 | AB22: 0.425296476 | AC22: 0.007415960794 | AD22: 0.01422233766 | AE22: 0 | AF22: 0.003779929609 | AG22: 0.02543482695 | AH22: 0.8247995849 | AI22: 0.01428618146 | AJ22: 0.008625497609 | AK22: 0.02294051952 | AL22: 0.00778752 | AM22: 0.00084 | AN22: 0.03744 | AO22: 0.1550016 | AP22: 0.142272 | AQ22: 0.03828 | AR22: 0.3630860492 | AS22: 0.3643515818 | AT22: 0.3643515818 | AU22: 2.6 | AV22: 0.8770889445 | AW22: 0.6726409833 | AX22: 0.5612288247 | AZ22: 87.70889445 | BA22: 0.2691094001 | BB22: 0.05616286647 | BC22: 0.03057459015 | BD22: 0.02551040112 | BE22: 0.3252722665
A23: RCinEsr | B23: =RCinEsr*1000 -> 1 | C23: mW | D23: Input Capacitor ESR | G23: 14 | H23: 24 | I23: 1 | J23: 0.56 | K23: 0.56 | L23: 0.1296296296 | M23: 0.2101670182 | N23: 2.663877203 | O23: 1.891938602 | P23: -0.7719386016 | Q23: 24 | R23: 0.9512904286 | S23: 0.01900402307 | T23: 0.2506040217 | U23: 0.2700517635 | V23: 0.7689951102 | W23: 0.001182706959 | X23: 0.001182706959 | Y23: 0.3875815015 | Z23: 0.0001502194203 | AA23: 0.0001502194203 | AB23: 0.4361093605 | AC23: 0.007797846349 | AD23: 0.01531636364 | AE23: 0 | AF23: 0.003596616333 | AG23: 0.02672916815 | AH23: 0.8454360444 | AI23: 0.01501000421 | AJ23: 0.008814920333 | AK23: 0.02385643604 | AL23: 0.00838656 | AM23: 0.00084 | AN23: 0.03744 | AO23: 0.1550016 | AP23: 0.142272 | AQ23: 0.03828 | AR23: 0.3668103556 | AS23: 0.3681541842 | AT23: 0.3681541842 | AU23: 2.8 | AV23: 0.8837953702 | AW23: 0.7098145506 | AX23: 0.5857280184 | AZ23: 88.37953702 | BA23: 0.2700517635 | BB23: 0.05897216419 | BC23: 0.03226429775 | BD23: 0.02662400084 | BE23: 0.3290239277
A24: Cout | B24: =Cout*1000000 -> 60 | C24: μF | D24: Output Capcitance | G24: 15 | H24: 24 | I24: 1 | J24: 0.6 | K24: 0.6 | L24: 0.1388888889 | M24: 0.2102979269 | N24: 2.665187919 | O24: 1.932593959 | P24: -0.7325939593 | Q24: 24 | R24: 0.9756718472 | S24: 0.01999064662 | T24: 0.2506040217 | U24: 0.2710631715 | V24: 0.7693734811 | W24: 0.001183871107 | X24: 0.001183871107 | Y24: 0.3976059809 | Z24: 0.000158090516 | AA24: 0.000158090516 | AB24: 0.4474260536 | AC24: 0.008207793011 | AD24: 0.01641038961 | AE24: 0 | AF24: 0.003413301775 | AG24: 0.02805174577 | AH24: 0.8670325715 | AI24: 0.01578665508 | AJ24: 0.009004341775 | AK24: 0.02482548506 | AL24: 0.0089856 | AM24: 0.00084 | AN24: 0.03744 | AO24: 0.1550016 | AP24: 0.142272 | AQ24: 0.03828 | AR24: 0.3706827495 | AS24: 0.372111622 | AT24: 0.372111622 | AU24: 3 | AV24: 0.8896502656 | AW24: 0.747609319 | AX24: 0.6113961272 | AZ24: 88.96502656 | BA24: 0.2710631715 | BB24: 0.06186283083 | BC24: 0.03398224177 | BD24: 0.02779073306 | BE24: 0.3329260024
A25: RCoutEsr | B25: =Cout_ESR*1000 -> 2 | C25: mW | D25: Output Capacitor ESR | G25: 16 | H25: 24 | I25: 1 | J25: 0.64 | K25: 0.64 | L25: 0.1481481481 | M25: 0.2104288265 | N25: 2.666498084 | O25: 1.973249042 | P25: -0.6932490419 | Q25: 24 | R25: 1.001058275 | S25: 0.02104447105 | T25: 0.2506040217 | U25: 0.2721436595 | V25: 0.7697516933 | W25: 0.001185035339 | X25: 0.001185035339 | Y25: 0.4080445847 | Z25: 0.0001665003831 | AA25: 0.0001665003831 | AB25: 0.4592106762 | AC25: 0.008645852252 | AD25: 0.01750441558 | AE25: 0 | AF25: 0.003229985936 | AG25: 0.02940262432 | AH25: 0.889518535 | AI25: 0.01661610771 | AJ25: 0.009193761936 | AK25: 0.02584766455 | AL25: 0.00958464 | AM25: 0.00084 | AN25: 0.03744 | AO25: 0.1550016 | AP25: 0.142272 | AQ25: 0.03828 | AR25: 0.3747032561 | AS25: 0.3762241639 | AT25: 0.3762241639 | AU25: 3.2 | AV25: 0.8947984951 | AW25: 0.7860267078 | AX25: 0.6382331065 | AZ25: 89.47984951 | BA25: 0.2721436595 | BB25: 0.06483492887 | BC25: 0.03572848672 | BD25: 0.02901059575 | BE25: 0.3369785883
A26: Top Driver | B26: Input Value | C26: Units | D26: Description | G26: 17 | H26: 24 | I26: 1 | J26: 0.68 | K26: 0.68 | L26: 0.1574074074 | M26: 0.210559717 | N26: 2.667807699 | O26: 2.01390385 | P26: -0.6539038496 | Q26: 24 | R26: 1.027375212 | S26: 0.02216549636 | T26: 0.2506040217 | U26: 0.2732932651 | V26: 0.7701297466 | W26: 0.001186199653 | X26: 0.001186199653 | Y26: 0.4188672148 | Z26: 0.0001754497436 | AA26: 0.0001754497436 | AB26: 0.4714294696 | AC26: 0.009112075535 | AD26: 0.01859844156 | AE26: 0 | AF26: 0.003046668816 | AG26: 0.03078186874 | AH26: 0.9128275203 | AI26: 0.01749833572 | AJ26: 0.009383180816 | AK26: 0.02692297397 | AL26: 0.01018368 | AM26: 0.00084 | AN26: 0.03744 | AO26: 0.1550016 | AP26: 0.142272 | AQ26: 0.03828 | AR26: 0.3788719005 | AS26: 0.380492091 | AT26: 0.380492091 | AU26: 3.4 | AV26: 0.8993538191 | AW26: 0.8250681459 | AX26: 0.6662389442 | AZ26: 89.93538191 | BA26: 0.2732932651 | BB26: 0.06788852271 | BC26: 0.03750309754 | BD26: 0.03028358837 | BE26: 0.3411817878
A27: RdsonDRT | B27: 1 | C27: W | D27: Drain to Source Resistance of pullup Top FET Driver | G27: 18 | H27: 24 | I27: 1 | J27: 0.72 | K27: 0.72 | L27: 0.1666666667 | M27: 0.2106905983 | N27: 2.669116765 | O27: 2.054558382 | P27: -0.6145583823 | Q27: 24 | R27: 1.054552998 | S27: 0.02335372253 | T27: 0.2506040217 | U27: 0.2745120287 | V27: 0.7705076413 | W27: 0.001187364051 | X27: 0.001187364051 | Y27: 0.430045717 | Z27: 0.0001849393187 | AA27: 0.0001849393187 | AB27: 0.4840508519 | AC27: 0.009606514316 | AD27: 0.01969246753 | AE27: 0 | AF27: 0.002863350415 | AG27: 0.03218954444 | AH27: 0.936897432 | AI27: 0.01843331276 | AJ27: 0.009572598415 | AK27: 0.02805141426 | AL27: 0.01078272 | AM27: 0.00084 | AN27: 0.03744 | AO27: 0.1550016 | AP27: 0.142272 | AQ27: 0.03828 | AR27: 0.3831887076 | AS27: 0.3849156964 | AT27: 0.3849156964 | AU27: 3.6 | AV27: 0.9034068157 | AW27: 0.8647350722 | AX27: 0.6954136609 | AZ27: 90.34068157 | BA27: 0.2745120287 | BB27: 0.0710236787 | BC27: 0.03930613964 | BD27: 0.03160971186 | BE27: 0.3455357074
A28: RdsonDRT2 | B28: 1 | C28: W | D28: Drain to Source Resistance of pulldown Top FET Driver | G28: 19 | H28: 24 | I28: 1 | J28: 0.76 | K28: 0.76 | L28: 0.1759259259 | M28: 0.2108214704 | N28: 2.67042528 | O28: 2.09521264 | P28: -0.5752126402 | Q28: 24 | R28: 1.082526796 | S28: 0.02460914956 | T28: 0.2506040217 | U28: 0.2757999928 | V28: 0.7708853772 | W28: 0.00118852853 | X28: 0.00118852853 | Y28: 0.4415538798 | Z28: 0.0001949698288 | AA28: 0.0001949698288 | AB28: 0.4970454179 | AC28: 0.01012922004 | AD28: 0.02078649351 | AE28: 0 | AF28: 0.002680030733 | AG28: 0.03362571728 | AH28: 0.9616704828 | AI28: 0.01942101247 | AJ28: 0.009762014733 | AK28: 0.02923298781 | AL28: 0.01138176 | AM28: 0.00084 | AN28: 0.03744 | AO28: 0.1550016 | AP28: 0.142272 | AQ28: 0.03828 | AR28: 0.3876537027 | AS28: 0.3894952861 | AT28: 0.3894952861 | AU28: 3.8 | AV28: 0.907030499 | AW28: 0.9050289355 | AX28: 0.7257573094 | AZ28: 90.7030499 | BA28: 0.2757999928 | BB28: 0.07424046509 | BC28: 0.04113767888 | BD28: 0.03298896861 | BE28: 0.3500404579
A29: Bottom Driver | B29: Input Value | C29: Units | D29: Description | G29: 20 | H29: 24 | I29: 1 | J29: 0.8 | K29: 0.8 | L29: 0.1851851852 | M29: 0.2109523334 | N29: 2.671733246 | O29: 2.135866623 | P29: -0.5358666231 | Q29: 24 | R29: 1.111236494 | S29: 0.02593177744 | T29: 0.2506040217 | U29: 0.2771572026 | V29: 0.7712629545 | W29: 0.00118969309 | X29: 0.00118969309 | Y29: 0.4533673935 | Z29: 0.0002055419935 | AA29: 0.0002055419935 | AB29: 0.5103858932 | AC29: 0.01068024416 | AD29: 0.02188051948 | AE29: 0 | AF29: 0.00249670977 | AG29: 0.03509045358 | AH29: 0.9870930984 | AI29: 0.02046140848 | AJ29: 0.00995142977 | AK29: 0.03046769851 | AL29: 0.0119808 | AM29: 0.00084 | AN29: 0.03744 | AO29: 0.1550016 | AP29: 0.142272 | AQ29: 0.03828 | AR29: 0.3922669108 | AS29: 0.3942311782 | AT29: 0.3942311782 | AU29: 4 | AV29: 0.9102843792 | AW29: 0.9459511947 | AX29: 0.7572699753 | AZ29: 91.02843792 | BA29: 0.2771572026 | BB29: 0.07753895209 | BC29: 0.04299778158 | BD29: 0.03442136251 | BE29: 0.3546961547
A30: RdsonDRB | B30: 1 | C30: W | D30: Drain to Source Resistance of pullup Bottom FET Driver | G30: 21 | H30: 24 | I30: 1 | J30: 0.84 | K30: 0.84 | L30: 0.1944444444 | M30: 0.2110831872 | N30: 2.673040662 | O30: 2.176520331 | P30: -0.4965203312 | Q30: 24 | R30: 1.140626523 | S30: 0.02732160617 | T30: 0.2506040217 | U30: 0.2785837055 | V30: 0.771640373 | W30: 0.00119085773 | X30: 0.00119085773 | Y30: 0.4654637814 | Z30: 0.0002166565318 | AA30: 0.0002166565318 | AB30: 0.5240470585 | AC30: 0.0112596381 | AD30: 0.02297454545 | AE30: 0 | AF30: 0.002313387527 | AG30: 0.03658382009 | AH30: 1.013115761 | AI30: 0.02155447446 | AJ30: 0.01014084353 | AK30: 0.03175555172 | AL30: 0.01257984 | AM30: 0.00084 | AN30: 0.03744 | AO30: 0.1550016 | AP30: 0.142272 | AQ30: 0.03828 | AR30: 0.3970283569 | AS30: 0.3991237037 | AT30: 0.3991237037 | AU30: 4.2 | AV30: 0.9132174455 | AW30: 0.9875033188 | AX30: 0.7899517762 | AZ30: 91.32174455 | BA30: 0.2785837055 | BB30: 0.08091921181 | BC30: 0.04488651449 | BD30: 0.03590689892 | BE30: 0.3595029173
A31: RdsonDRB2 | B31: 1 | C31: W | D31: Drain to Source Resistance of pulldown Bottom FET Driver | G31: 22 | H31: 24 | I31: 1 | J31: 0.88 | K31: 0.88 | L31: 0.2037037037 | M31: 0.2112140319 | N31: 2.674347529 | O31: 2.217173764 | P31: -0.4571737644 | Q31: 24 | R31: 1.170645645 | S31: 0.02877863573 | T31: 0.2506040217 | U31: 0.2800795516 | V31: 0.7720176328 | W31: 0.001192022451 | X31: 0.001192022451 | Y31: 0.4778223119 | Z31: 0.0002283141618 | AA31: 0.0002283141618 | AB31: 0.5380056507 | AC31: 0.01186745329 | AD31: 0.02406857143 | AE31: 0 | AF31: 0.002130064003 | AG31: 0.03810588406 | AH31: 1.039692813 | AI31: 0.02270018405 | AJ31: 0.010330256 | AK31: 0.03309655427 | AL31: 0.01317888 | AM31: 0.00084 | AN31: 0.03744 | AO31: 0.1550016 | AP31: 0.142272 | AQ31: 0.03828 | AR31: 0.4019380662 | AS31: 0.4041732058 | AT31: 0.4041732058 | AU31: 4.4 | AV31: 0.9158703926 | AW31: 1.029686787 | AX31: 0.8238028626 | AZ31: 91.58703926 | BA31: 0.2800795516 | BB31: 0.08438131833 | BC31: 0.04680394486 | BD31: 0.03744558467 | BE31: 0.3644608699
A32: Deadtime | B32: Input Value | C32: Units | D32: Description | G32: 23 | H32: 24 | I32: 1 | J32: 0.92 | K32: 0.92 | L32: 0.212962963 | M32: 0.2113448674 | N32: 2.675653846 | O32: 2.257826923 | P32: -0.4178269229 | Q32: 24 | R32: 1.201246696 | S32: 0.03030286613 | T32: 0.2506040217 | U32: 0.2816447932 | V32: 0.7723947341 | W32: 0.00119318725 | X32: 0.00119318725 | Y32: 0.4904238991 | Z32: 0.0002405156009 | AA32: 0.0002405156009 | AB32: 0.5522402524 | AC32: 0.01250374115 | AD32: 0.0251625974 | AE32: 0 | AF32: 0.001946739199 | AG32: 0.03965671319 | AH32: 1.066782231 | AI32: 0.02389851091 | AJ32: 0.0105196672 | AK32: 0.03449071446 | AL32: 0.01377792 | AM32: 0.00084 | AN32: 0.03744 | AO32: 0.1550016 | AP32: 0.142272 | AQ32: 0.03828 | AR32: 0.4069960637 | AS32: 0.4093800408 | AT32: 0.4093800408 | AU32: 4.6 | AV32: 0.9182773043 | AW32: 1.072503089 | AX32: 0.8588234172 | AZ32: 91.82773043 | BA32: 0.2816447932 | BB32: 0.08792534765 | BC32: 0.04875014039 | BD32: 0.03903742806 | BE32: 0.3695701408
A33: Deadtime | B33: 15 | C33: ns | D33: Total Deadtime | G33: 24 | H33: 24 | I33: 1 | J33: 0.96 | K33: 0.96 | L33: 0.2222222222 | M33: 0.2114756938 | N33: 2.676959613 | O33: 2.298479807 | P33: -0.3784798066 | Q33: 24 | R33: 1.232386329 | S33: 0.03189429735 | T33: 0.2506040217 | U33: 0.2832794851 | V33: 0.7727716766 | W33: 0.001194352128 | X33: 0.001194352128 | Y33: 0.5032509967 | Z33: 0.0002532615657 | AA33: 0.0002532615657 | AB33: 0.5667311724 | AC33: 0.01316855309 | AD33: 0.02625662338 | AE33: 0 | AF33: 0.001763413115 | AG33: 0.04123637565 | AH33: 1.094345394 | AI33: 0.02514942869 | AJ33: 0.01070907711 | AK33: 0.03593804207 | AL33: 0.01437696 | AM33: 0.00084 | AN33: 0.03744 | AO33: 0.1550016 | AP33: 0.142272 | AQ33: 0.03828 | AR33: 0.4122023744 | AS33: 0.4147445776 | AT33: 0.4147445776 | AU33: 4.8 | AV33: 0.920466943 | AW33: 1.115953723 | AX33: 0.8950136552 | AZ33: 92.0466943 | BA33: 0.2832794851 | BB33: 0.09155137772 | BC33: 0.05072516925 | BD33: 0.04068243887 | BE33: 0.3748308629
A34: IQ | B34: Input Value | C34: Units | D34: Description | G34: 25 | H34: 24 | I34: 1 | J34: 1 | K34: 1 | L34: 0.2314814815 | M34: 0.211606511 | N34: 2.678264831 | O34: 2.339132415 | P34: -0.3391324155 | Q34: 22.6088277 | R34: 1.26402474 | S34: 0.03355292938 | T34: 0.2506040217 | U34: 0.2849836848 | V34: 0.7731484606 | W34: 0.001195517084 | X34: 0.001195517084 | Y34: 0.5162874898 | Z34: 0.0002665527722 | AA34: 0.0002665527722 | AB34: 0.5814603258 | AC34: 0.01386194053 | AD34: 0.02735064935 | AE34: 0.002234399717 | AF34: 0.00158008575 | AG34: 0.04508206874 | AH34: 1.122346841 | AI34: 0.02645291106 | AJ34: 0.01089848575 | AK34: 0.03743854837 | AL34: 0.014976 | AM34: 0.00084 | AN34: 0.03744 | AO34: 0.1550016 | AP34: 0.142272 | AQ34: 0.03828 | AR34: 0.4197914232 | AS34: 0.4225160999 | AT34: 0.4225160999 | AU34: 5 | AV34: 0.9220811719 | AW34: 1.209257032 | AX34: 0.9323738241 | AZ34: 92.20811719 | BA34: 0.2849836848 | BB34: 0.09749661711 | BC34: 0.05496622874 | BD34: 0.04238062837 | BE34: 0.3824803019
A35: IQ | B35: =Iq*1000 -> 0.035 | C35: mA | D35: Quiescent Current Of Controller (Not Switching!) | G35: 26 | H35: 24 | I35: 1 | J35: 1.04 | K35: 1.04 | L35: 0.2407407407 | M35: 0.211737319 | N35: 2.679569499 | O35: 2.37978475 | P35: -0.2997847497 | Q35: 19.98564998 | R35: 1.296125402 | S35: 0.03527876223 | T35: 0.2506040217 | U35: 0.286757452 | V35: 0.7735250859 | W35: 0.001196682117 | X35: 0.001196682117 | Y35: 0.5295185883 | Z35: 0.0002803899354 | AA35: 0.0002803899354 | AB35: 0.5964111131 | AC35: 0.01458395485 | AD35: 0.02844467532 | AE35: 0.006009494179 | AF35: 0.001396757106 | AG35: 0.05049969216 | AH35: 1.150754032 | AI35: 0.0278089317 | AJ35: 0.01108789311 | AK35: 0.03899224608 | AL35: 0.01557504 | AM35: 0.00084 | AN35: 0.03744 | AO35: 0.1550016 | AP35: 0.142272 | AQ35: 0.03828 | AR35: 0.4290695302 | AS35: 0.4319988173 | AT35: 0.4319988173 | AU35: 5.2 | AV35: 0.9232956484 | AW35: 1.337142808 | AX35: 0.9709042042 | AZ35: 92.32956484 | BA35: 0.286757452 | BB35: 0.1050669782 | BC35: 0.06077921856 | BD35: 0.04413200928 | BE35: 0.3918244302
A36: High-side FET | B36: Input Value | C36: Units | D36: Description | G36: 27 | H36: 24 | I36: 1 | J36: 1.08 | K36: 1.08 | L36: 0.25 | M36: 0.211868118 | N36: 2.680873618 | O36: 2.420436809 | P36: -0.2604368092 | Q36: 17.36245395 | R36: 1.328654813 | S36: 0.03707179588 | T36: 0.2506040217 | U36: 0.2886008489 | V36: 0.7739015527 | W36: 0.001197847226 | X36: 0.001197847226 | Y36: 0.5429307227 | Z36: 0.0002947737697 | AA36: 0.0002947737697 | AB36: 0.6115683049 | AC36: 0.01533464745 | AD36: 0.0295387013 | AE36: 0.009212104697 | AF36: 0.001213427182 | AG36: 0.05537360448 | AH36: 1.179537122 | AI36: 0.02921746426 | AJ36: 0.01127729918 | AK36: 0.04059914941 | AL36: 0.01617408 | AM36: 0.00084 | AN36: 0.03744 | AO36: 0.1550016 | AP36: 0.142272 | AQ36: 0.03828 | AR36: 0.4379235416 | AS36: 0.4410664991 | AT36: 0.4410664991 | AU36: 5.4 | AV36: 0.9244887044 | AW36: 1.45306694 | AX36: 1.010605108 | AZ36: 92.44887044 | BA36: 0.2886008489 | BB36: 0.1121468339 | BC36: 0.06604849728 | BD36: 0.04593659581 | BE36: 0.4007476828
A37: RdsonTop | B37: =Rdson1*1000 -> 41 | C37: mW | D37: Drain-Source Resistance of Top FET | G37: 28 | H37: 24 | I37: 1 | J37: 1.12 | K37: 1.12 | L37: 0.2592592593 | M37: 0.2119989077 | N37: 2.682177188 | O37: 2.461088594 | P37: -0.2210885941 | Q37: 14.73923961 | R37: 1.361582243 | S37: 0.03893203032 | T37: 0.2506040217 | U37: 0.2905139403 | V37: 0.7742778608 | W37: 0.001199012412 | X37: 0.001199012412 | Y37: 0.5565114453 | Z37: 0.0003097049887 | AA37: 0.0003097049887 | AB37: 0.6269179298 | AC37: 0.01611406972 | AD37: 0.03063272727 | AE37: 0.01184221928 | AF37: 0.001030095978 | AG37: 0.05970377447 | AH37: 1.208668737 | AI37: 0.03067848242 | AJ37: 0.01146670398 | AK37: 0.04225927403 | AL37: 0.01677312 | AM37: 0.00084 | AN37: 0.03744 | AO37: 0.1550016 | AP37: 0.142272 | AQ37: 0.03828 | AR37: 0.4463534706 | AS37: 0.4497190819 | AT37: 0.4497190819 | AU37: 5.6 | AV37: 0.9256628158 | AW37: 1.557028741 | AX37: 1.05147688 | AZ37: 92.56628158 | BA37: 0.2905139403 | BB37: 0.1187361685 | BC37: 0.07077403367 | BD37: 0.04779440363 | BE37: 0.4092501088
A38: RdsonTopTc | B38: =RdsonTopTc*1000000 -> 4000 | C38: ppm | D38: Drain to Source Resistance Temp Co | G38: 29 | H38: 24 | I38: 1 | J38: 1.16 | K38: 1.16 | L38: 0.2685185185 | M38: 0.2121296884 | N38: 2.683480209 | O38: 2.501740104 | P38: -0.1817401044 | Q38: 12.11600696 | R38: 1.394879506 | S38: 0.04085946555 | T38: 0.2506040217 | U38: 0.2924967934 | V38: 0.7746540104 | W38: 0.001200177672 | X38: 0.001200177672 | Y38: 0.5702493361 | Z38: 0.0003251843054 | AA38: 0.0003251843054 | AB38: 0.6424471701 | AC38: 0.01692227302 | AD38: 0.03172675325 | AE38: 0.01389982593 | AF38: 0.0008467634943 | AG38: 0.06349016271 | AH38: 1.23812377 | AI38: 0.03219195986 | AJ38: 0.01165610749 | AK38: 0.04397263711 | AL38: 0.01737216 | AM38: 0.00084 | AN38: 0.03744 | AO38: 0.1550016 | AP38: 0.142272 | AQ38: 0.03828 | AR38: 0.4543593303 | AS38: 0.4579564693 | AT38: 0.4579564693 | AU38: 5.8 | AV38: 0.9268201255 | AW38: 1.649027343 | AX38: 1.093519898 | AZ38: 92.68201255 | BA38: 0.2924967934 | BB38: 0.1248349598 | BC38: 0.07495578831 | BD38: 0.04970544991 | BE38: 0.4173317532
A39: QgTop | B39: =Qg_Q1*1000000000 -> 3 | C39: nC | D39: Gate Charge Of Top FET | G39: 30 | H39: 24 | I39: 1 | J39: 1.2 | K39: 1.2 | L39: 0.2777777778 | M39: 0.2122604599 | N39: 2.68478268 | O39: 2.54239134 | P39: -0.14239134 | Q39: 9.492756002 | R39: 1.42852074 | S39: 0.04285410157 | T39: 0.2506040217 | U39: 0.2945494778 | V39: 0.7750300015 | W39: 0.001201343007 | X39: 0.001201343007 | Y39: 0.5841339159 | Z39: 0.0003412124317 | AA39: 0.0003412124317 | AB39: 0.6581442636 | AC39: 0.01775930874 | AD39: 0.03282077922 | AE39: 0.01538491267 | AF39: 0.0006634297315 | AG39: 0.06673272154 | AH39: 1.267879187 | AI39: 0.03375787026 | AJ39: 0.01184550973 | AK39: 0.04573925727 | AL39: 0.0179712 | AM39: 0.00084 | AN39: 0.03744 | AO39: 0.1550016 | AP39: 0.142272 | AQ39: 0.03828 | AR39: 0.4619411336 | AS39: 0.4657785327 | AT39: 0.4657785327 | AU39: 6 | AV39: 0.9279624982 | AW39: 1.729061698 | AX39: 1.136734572 | AZ39: 92.79624982 | BA39: 0.2945494778 | BB39: 0.1304431788 | BC39: 0.07859371354 | BD39: 0.05166975327 | BE39: 0.4249926566
A40: QgdTop | B40: =Qgd_Q1*1000000000 -> 1 | C40: nC | D40: Gate to Drain Charge | G40: 31 | H40: 24 | I40: 1 | J40: 1.24 | K40: 1.24 | L40: 0.287037037 | M40: 0.2123912222 | N40: 2.686084602 | O40: 2.583042301 | P40: -0.1030423011 | Q40: 6.869486741 | R40: 1.462482208 | S40: 0.04491593836 | T40: 0.2506040217 | U40: 0.2966720658 | V40: 0.7754058341 | W40: 0.001202508415 | X40: 0.001202508415 | Y40: 0.5981555643 | Z40: 0.0003577900791 | AA40: 0.0003577900791 | AB40: 0.6739984119 | AC40: 0.01862522823 | AD40: 0.03391480519 | AE40: 0.01629746751 | AF40: 0.0004800946893 | AG40: 0.06943139507 | AH40: 1.297913845 | AI40: 0.03537618731 | AJ40: 0.01203491069 | AK40: 0.04755915462 | AL40: 0.01857024 | AM40: 0.00084 | AN40: 0.03744 | AO40: 0.1550016 | AP40: 0.142272 | AQ40: 0.03828 | AR40: 0.4690988937 | AS40: 0.4731851105 | AT40: 0.4731851105 | AU40: 6.2 | AV40: 0.9290915653 | AW40: 1.797130576 | AX40: 1.181121344 | AZ40: 92.90915653 | BA40: 0.2966720658 | BB40: 0.1355607897 | BC40: 0.08168775347 | BD40: 0.05368733382 | BE40: 0.4322328555
A41: QgsTop | B41: =Qgs_Q1*1000000000 -> 1 | C41: nC | G41: 32 | H41: =Vin -> 24 | I41: =MODE -> 1 | J41: 1.28 | K41: =Iout*G41/100/Number_of_Phases -> 1.28 | L41: =Vout*K41/(Vin*Efficiency) -> 0.2962962963 | M41: =(Vout+(Rdson2+Rs+Rdcr)*K41)/(Vin+(Rs+Rdson2-Rdson1)*K41) -> 0.2125219754 | N41: =(Vin-(Rdson1+Rdcr)*K41-Vout)*M41/(Fsw*Lf) -> 2.687385975 | O41: 2.623692988 | P41: -0.06369298765 | Q41: =IF(MIN(Vin, -P41/(Coss_Q1+Coss_Q2)*0.00000002)<0, 0, MIN(Vin, -P41/(Coss_Q1+Coss_Q2)*0.00000002)) -> 4.246199177 | R41: 1.496742112 | S41: =R41^2*Rdcr -> 0.04704497592 | T41: =Core_Loss -> 0.2506040217 | U41: =(T41+S41*(1+Ltc*(Ta-25)))/(1-S41*Ltc*ThetaCa) -> 0.2988646321 | V41: 0.7757815081 | W41: 0.001203673897 | X41: 0.001203673897 | Y41: 0.612305445 | Z41: 0.000374917958 | AA41: 0.000374917958 | AB41: 0.6899996968 | AC41: =Rdson1*AB41^2 -> 0.01952008285 | AD41: =(Vin*K41/2)*Fsw*(Tr_buck+Tf_buck) -> 0.03500883117 | AE41: =(0.5*Coss_Q1*(Vin-Q41)^2-0.5*Coss_Q2*(Vin-Q41)^2+(Qoss_Q2*(Vin-Q41)/Vin)*Vin)*Fsw -> 0.01663747846 | AF41: =IF(K41>N41/2,0,ABS(K41-N41/2)*Vsd_Q1*Deadtime*Fsw) -> 0.0002967583681 | AG41: =(AF41+AE41+AD41+AC41*(1+RdsonTopTc*Ta-RdsonTopTc*25))/(1-AC41*RdsonTopTc*ThetaJA_Q1) -> 0.07158611913 | AH41: =SQRT((1-M41))*SQRT(K41^2+(N41^2)/12) -> 1.32820833 | AI41: =Rdson2*AH41^2 -> 0.0370468847 | AJ41: =IF(K41<N41/2,Deadtime*Fsw*Vsd_Q2*(K41+N41/2),2*Deadtime*Fsw*Vsd_Q2*K41) -> 0.01222431037 | AK41: =(AJ41+AI41*(1+RdsonBotTc*Ta-RdsonBotTc*25))/(1-AI41*RdsonBotTc*ThetaJA_Q2) -> 0.04943235075 | AL41: =Qrr_Q2*K41/Iout*Fsw*Vin -> 0.01916928 | AM41: =Iq*Vin -> 0.00084 | AN41: =IF(Ext_VCC=1, (Qg_Q1+Qg_Q2)*Fsw*Vout, (Qg_Q1+Qg_Q2)*Fsw*Vin) -> 0.03744 | AO41: =(Vin-VCC)*Fsw*(Qg_Q1+Qg_Q2) -> 0.1550016 | AP41: =(Qg_Q1+Qg_Q2)*Fsw*(Vin-Vout) -> 0.142272 | AQ41: =SUM(AM41:AN41) -> 0.03828 | AR41: 0.4758326235 | AS41: =((T41+S41*(1+Ltc*(Ta-25))) + (AF41+AE41+AD41+AC41*(1+RdsonTC*(Ta-25))) + (AJ41+AI41*(1+RdsonTC*(Ta-25))) + AQ41 + AL41) / (1-S41*Ltc*ThetaCa-AC41*RdsonTC*ThetaJA_Q1 -AI41*RdsonTC*ThetaJA_Q2) -> 0.4801760084 | AT41: 0.4801760084 | AU41: =Vout*K41 -> 6.4 | AV41: 0.930208761 | AW41: =ThetaJA_Q1*BC41 -> 1.853232567 | AX41: =ThetaJA_Q2*BD41 -> 1.226680689 | AZ41: 93.0208761 | BA41: =U41 -> 0.2988646321 | BB41: =AG41+AK41+AL41 -> 0.1401877499 | BC41: =AG41+AL41*0.66 -> 0.08423784393 | BD41: =AK41+AL41*0.33 -> 0.05575821315 | BE41: 0.4390523819
A42: RGateTop | B42: =Rgate1 -> 1 | C42: W | D42: Gate Resistance | G42: 33 | H42: 24 | I42: 1 | J42: =Iout*G42/100 -> 1.32 | K42: 1.32 | L42: 0.3055555556 | M42: 0.2126527194 | N42: 2.688686799 | O42: 2.6643434 | P42: -0.02434339968 | Q42: 1.622893312 | R42: 1.53128042 | S42: 0.04924121423 | T42: 0.2506040217 | U42: 0.3011272537 | V42: 0.7761570237 | W42: 0.001204839451 | X42: 0.001204839451 | Y42: 0.6265754372 | Z42: 0.0003925967785 | AA42: 0.0003925967785 | AB42: 0.7061390028 | AC42: 0.02044392394 | AD42: 0.03610285714 | AE42: 0.01640493353 | AF42: 0.0001134207678 | AG42: 0.07319682125 | AH42: 1.358744801 | AI42: 0.03876993612 | AJ42: 0.01241370877 | AK42: 0.05135886873 | AL42: 0.01976832 | AM42: 0.00084 | AN42: 0.03744 | AO42: 0.1550016 | AP42: 0.142272 | AQ42: 0.03828 | AR42: 0.4821423362 | AS42: 0.4867509993 | AT42: 0.4867509993 | AU42: 6.6 | AV42: 0.9313153518 | AW42: 1.897366074 | AX42: 1.273413115 | AZ42: 93.13153518 | BA42: 0.3011272537 | BB42: 0.14432401 | BC42: 0.08624391245 | BD42: 0.05788241433 | BE42: 0.4454512637
A43: GfsTop | B43: =Gfs_Q1 -> 100 | C43: S | D43: Transconductance of Top FET | G43: 34 | H43: 24 | I43: 1 | J43: 1.36 | K43: 1.36 | L43: 0.3148148148 | M43: 0.2127834544 | N43: 2.689987074 | O43: 2.704993537 | P43: 0.01500646278 | Q43: 0 | R43: 1.566078714 | S43: 0.05150465331 | T43: 0.2506040217 | U43: 0.3034600104 | V43: 0.7765323808 | W43: 0.001206005077 | X43: 0.001206005077 | Y43: 0.6409580715 | Z43: 0.0004108272495 | AA43: 0.0004108272495 | AB43: 0.7224079459 | AC43: 0.02139680285 | AD43: 0.03719688312 | AE43: 0.0159744 | AF43: 0 | AG43: 0.07470875648 | AH43: 1.389506854 | AI43: 0.04054531526 | AJ43: 0.012673024 | AK43: 0.05340890157 | AL43: 0.02036736 | AM43: 0.00084 | AN43: 0.03744 | AO43: 0.1550016 | AP43: 0.142272 | AQ43: 0.03828 | AR43: 0.4885424602 | AS43: 0.4934293842 | AT43: 0.4934293842 | AU43: 6.8 | AV43: 0.9323460394 | AW43: 1.93932671 | AX43: 1.322862868 | AZ43: 93.23460394 | BA43: 0.3034600104 | BB43: 0.148485018 | BC43: 0.08815121408 | BD43: 0.06013013037 | BE43: 0.4519450285
A44: VthTop | B44: =Vth_Q1 -> 1.5 | C44: V | D44: Threshold Voltage of Top FET | G44: 35 | H44: 24 | I44: 1 | J44: 1.4 | K44: 1.4 | L44: 0.3240740741 | M44: 0.2129141801 | N44: 2.691286801 | O44: 2.7456434 | P44: 0.05435659969 | Q44: 0 | R44: 1.601120041 | S44: 0.05383529313 | T44: 0.2506040217 | U44: 0.3058629845 | V44: 0.7769075794 | W44: 0.001207170774 | X44: 0.001207170774 | Y44: 0.6554464733 | Z44: 0.0004296100793 | AA44: 0.0004296100793 | AB44: 0.7387988095 | AC44: 0.02237877091 | AD44: 0.03829090909 | AE44: 0.0159744 | AF44: 0 | AG44: 0.07679531547 | AH44: 1.420479393 | AI44: 0.04237299583 | AJ44: 0.01304576 | AK44: 0.05562617603 | AL44: 0.0209664 | AM44: 0.00084 | AN44: 0.03744 | AO44: 0.1550016 | AP44: 0.142272 | AQ44: 0.03828 | AR44: 0.4957485506 | AS44: 0.5009346038 | AT44: 0.5009346038 | AU44: 7 | AV44: 0.9332170416 | AW44: 1.993929068 | AX44: 1.375991937 | AZ44: 93.32170416 | BA44: 0.3058629845 | BB44: 0.1533878915 | BC44: 0.09063313947 | BD44: 0.06254508803 | BE44: 0.459250876
A45: VspTop | B45: =Vsp_Q1 -> 1.54 | C45: V | G45: 36 | H45: 24 | I45: 1 | J45: 1.44 | K45: 1.44 | L45: 0.3333333333 | M45: 0.2130448968 | N45: 2.692585978 | O45: 2.786292989 | P45: 0.09370701103 | Q45: 0 | R45: 1.63638879 | S45: 0.05623313369 | T45: 0.2506040217 | U45: 0.3083362606 | V45: 0.7772826196 | W45: 0.001208336541 | X45: 0.001208336541 | Y45: 0.6700343093 | Z45: 0.0004489459757 | AA45: 0.0004489459757 | AB45: 0.7553044848 | AC45: 0.02338987946 | AD45: 0.03938493506 | AE45: 0.0159744 | AF45: 0 | AG45: 0.07891163909 | AH45: 1.451648513 | AI45: 0.04425295152 | AJ45: 0.013418496 | AK45: 0.05789691314 | AL45: 0.02156544 | AM45: 0.00084 | AN45: 0.03744 | AO45: 0.1550016 | AP45: 0.142272 | AQ45: 0.03828 | AR45: 0.5031032574 | AS45: 0.5086035432 | AT45: 0.5086035432 | AU45: 7.2 | AV45: 0.9340213126 | AW45: 2.049186249 | AX45: 1.430297184 | AZ45: 93.40213126 | BA45: 0.3083362606 | BB45: 0.1583739922 | BC45: 0.09314482949 | BD45: 0.06501350834 | BE45: 0.4667102528
A46: VsdTop | B46: =Vsd_Q1 -> 0.7 | C46: V | G46: 37 | H46: 24 | I46: 1 | J46: 1.48 | K46: 1.48 | L46: 0.3425925926 | M46: 0.2131756043 | N46: 2.693884606 | O46: 2.826942303 | P46: 0.1330576968 | Q46: 0 | R46: 1.671870566 | S46: 0.05869817498 | T46: 0.2506040217 | U46: 0.310879926 | V46: 0.7776575014 | W46: 0.001209502379 | X46: 0.001209502379 | Y46: 0.6847157405 | Z46: 0.0004688356453 | AA46: 0.0004688356453 | AB46: 0.7719184178 | AC46: 0.0244301798 | AD46: 0.04047896104 | AE46: 0.0159744 | AF46: 0 | AG46: 0.08105780343 | AH46: 1.483001398 | AI46: 0.04618515606 | AJ46: 0.013791232 | AK46: 0.06022114448 | AL46: 0.02216448 | AM46: 0.00084 | AN46: 0.03744 | AO46: 0.1550016 | AP46: 0.142272 | AQ46: 0.03828 | AR46: 0.5106066055 | AS46: 0.5164367602 | AT46: 0.5164367602 | AU46: 7.4 | AV46: 0.9347639884 | AW46: 2.105099925 | AX46: 1.485779303 | AZ46: 93.47639884 | BA46: 0.310879926 | BB46: 0.1634434279 | BC46: 0.09568636023 | BD46: 0.06753542288 | BE46: 0.4743233539
A47: θJATop | B47: =ThetaJA_Q1 -> 22 | C47: °C/W | D47: Junction to Ambient Resistance | G47: 38 | H47: 24 | I47: 1 | J47: 1.52 | K47: 1.52 | L47: 0.3518518519 | M47: 0.2133063026 | N47: 2.695182686 | O47: 2.867591343 | P47: 0.1724086569 | Q47: 0 | R47: 1.707552091 | S47: 0.061230417 | T47: 0.2506040217 | U47: 0.3134940706 | V47: 0.7780322247 | W47: 0.001210668285 | X47: 0.001210668285 | Y47: 0.6994853781 | Z47: 0.0004892797942 | AA47: 0.0004892797942 | AB47: 0.7886345601 | AC47: 0.02549972325 | AD47: 0.04157298701 | AE47: 0.0159744 | AF47: 0 | AG47: 0.08323388507 | AH47: 1.514526221 | AI47: 0.04816958314 | AJ47: 0.014163968 | AK47: 0.06259890309 | AL47: 0.02276352 | AM47: 0.00084 | AN47: 0.03744 | AO47: 0.1550016 | AP47: 0.142272 | AQ47: 0.03828 | AR47: 0.5182586201 | AS47: 0.5244348265 | AT47: 0.5244348265 | AU47: 7.6 | AV47: 0.9354496851 | AW47: 2.161671782 | AX47: 1.542439023 | AZ47: 93.54496851 | BA47: 0.3134940706 | BB47: 0.1685963082 | BC47: 0.09825780827 | BD47: 0.07011086469 | BE47: 0.4820903787
A48: Low-side FET | B48: Input Value | C48: Units | D48: Description | G48: 39 | H48: 24 | I48: 1 | J48: 1.56 | K48: 1.56 | L48: 0.3611111111 | M48: 0.2134369918 | N48: 2.696480217 | O48: 2.908240109 | P48: 0.2117598913 | Q48: 0 | R48: 1.7434211 | S48: 0.06382985973 | T48: 0.2506040217 | U48: 0.3161787867 | V48: 0.7784067897 | W48: 0.00121183426 | X48: 0.00121183426 | Y48: 0.7143382447 | Z48: 0.0005102791278 | AA48: 0.0005102791278 | AB48: 0.8054473247 | AC48: 0.02659856111 | AD48: 0.04266701299 | AE48: 0.0159744 | AF48: 0 | AG48: 0.08543996114 | AH48: 1.546212061 | AI48: 0.05020620648 | AJ48: 0.014536704 | AK48: 0.06503022352 | AL48: 0.02336256 | AM48: 0.00084 | AN48: 0.03744 | AO48: 0.1550016 | AP48: 0.142272 | AQ48: 0.03828 | AR48: 0.526059326 | AS48: 0.5325983282 | AT48: 0.5325983282 | AU48: 7.8 | AV48: 0.9360825631 | AW48: 2.218903516 | AX48: 1.600277103 | AZ48: 93.60825631 | BA48: 0.3161787867 | BB48: 0.1738327447 | BC48: 0.1008592507 | BD48: 0.07273986832 | BE48: 0.4900115313
A49: RdsonBot | B49: =Rdson2*1000 -> 21 | C49: mW | D49: Drain-Source Resistance of Low-side FET | G49: 40 | H49: 24 | I49: 1 | J49: 1.6 | K49: 1.6 | L49: 0.3703703704 | M49: 0.2135676719 | N49: 2.6977772 | O49: 2.9488886 | P49: 0.2511114001 | Q49: 0 | R49: 1.779466255 | S49: 0.06649650319 | T49: 0.2506040217 | U49: 0.3189341691 | V49: 0.7787811963 | W49: 0.001213000303 | X49: 0.001213000303 | Y49: 0.7292697379 | Z49: 0.0005318343506 | AA49: 0.0005318343506 | AB49: 0.8223515462 | AC49: 0.02772674469 | AD49: 0.04376103896 | AE49: 0.0159744 | AF49: 0 | AG49: 0.08767610928 | AH49: 1.578048822 | AI49: 0.05229499981 | AJ49: 0.01490944 | AK49: 0.06751514179 | AL49: 0.0239616 | AM49: 0.00084 | AN49: 0.03744 | AO49: 0.1550016 | AP49: 0.142272 | AQ49: 0.03828 | AR49: 0.5340087483 | AS49: 0.5409278655 | AT49: 0.5409278655 | AU49: 8 | AV49: 0.9366663817 | AW49: 2.276796836 | AX49: 1.659294335 | AZ49: 93.66663817 | BA49: 0.3189341691 | BB49: 0.1791528511 | BC49: 0.1034907653 | BD49: 0.07542246979 | BE49: 0.4980870202
A50: RdsonBotTc | B50: =RdsonBotTc*1000000 -> 4000 | C50: ppm | D50: Drain To Source Resitance Temp Co | G50: 41 | H50: 24 | I50: 1 | J50: 1.64 | K50: 1.64 | L50: 0.3796296296 | M50: 0.2136983429 | N50: 2.699073634 | O50: 2.989536817 | P50: 0.2904631831 | Q50: 0 | R50: 1.815677066 | S50: 0.06923034734 | T50: 0.2506040217 | U50: 0.3217603155 | V50: 0.7791554445 | W50: 0.001214166413 | X50: 0.001214166413 | Y50: 0.7442755984 | Z50: 0.0005539461664 | AA50: 0.0005539461664 | AB50: 0.839342444 | AC50: 0.02888432527 | AD50: 0.04485506494 | AE50: 0.0159744 | AF50: 0 | AG50: 0.08994240767 | AH50: 1.610027164 | AI50: 0.05443593684 | AJ50: 0.015282176 | AK50: 0.07005369543 | AL50: 0.02456064 | AM50: 0.00084 | AN50: 0.03744 | AO50: 0.1550016 | AP50: 0.142272 | AQ50: 0.03828 | AR50: 0.5421069121 | AS50: 0.5494240531 | AT50: 0.5494240531 | AU50: 8.2 | AV50: 0.9372045463 | AW50: 2.335353462 | AX50: 1.719491546 | AZ50: 93.72045463 | BA50: 0.3217603155 | BB50: 0.1845567431 | BC50: 0.1061524301 | BD50: 0.07815870663 | BE50: 0.5063170586
A51: QgBot | B51: =Qg_Q2*1000000000 -> 6 | C51: nC | D51: Gate Charge Of Top FET | G51: 42 | H51: 24 | I51: 1 | J51: 1.68 | K51: 1.68 | L51: 0.3888888889 | M51: 0.2138290047 | N51: 2.700369519 | O51: 3.03018476 | P51: 0.3298152404 | Q51: 0 | R51: 1.852043816 | S51: 0.0720313922 | T51: 0.2506040217 | U51: 0.3246573259 | V51: 0.7795295344 | W51: 0.00121533259 | X51: 0.00121533259 | Y51: 0.7593518805 | Z51: 0.0005766152784 | AA51: 0.0005766152784 | AB51: 0.8564155895 | AC51: 0.03007135414 | AD51: 0.04594909091 | AE51: 0.0159744 | AF51: 0 | AG51: 0.09223893502 | AH51: 1.642138433 | AI51: 0.0566289913 | AJ51: 0.015654912 | AK51: 0.07264592345 | AL51: 0.02515968 | AM51: 0.00084 | AN51: 0.03744 | AO51: 0.1550016 | AP51: 0.142272 | AQ51: 0.03828 | AR51: 0.5503538422 | AS51: 0.5580875202 | AT51: 0.5580875202 | AU51: 8.4 | AV51: 0.9377001487 | AW51: 2.394575124 | AX51: 1.780869593 | AZ51: 93.77001487 | BA51: 0.3246573259 | BB51: 0.1900445385 | BC51: 0.1088443238 | BD51: 0.08094861785 | BE51: 0.5147018643
A52: RGateBot | B52: =Rgate2 -> 1 | C52: W | D52: Gate Resistance | G52: 43 | H52: 24 | I52: 1 | J52: 1.72 | K52: 1.72 | L52: 0.3981481481 | M52: 0.2139596574 | N52: 2.701664856 | O52: 3.070832428 | P52: 0.3691675719 | Q52: 0 | R52: 1.888557496 | S52: 0.07489963774 | T52: 0.2506040217 | U52: 0.3276253028 | V52: 0.779903466 | W52: 0.001216498833 | X52: 0.001216498833 | Y52: 0.7744949249 | Z52: 0.0005998423887 | AA52: 0.0005998423887 | AB52: 0.8735668762 | AC52: 0.03128788257 | AD52: 0.04704311688 | AE52: 0.0159744 | AF52: 0 | AG52: 0.09456577057 | AH52: 1.674374608 | AI52: 0.05887413691 | AJ52: 0.016027648 | AK52: 0.07529186635 | AL52: 0.02575872 | AM52: 0.00084 | AN52: 0.03744 | AO52: 0.1550016 | AP52: 0.142272 | AQ52: 0.03828 | AR52: 0.5587495638 | AS52: 0.5669189109 | AT52: 0.5669189109 | AU52: 8.6 | AV52: 0.9381560024 | AW52: 2.454463567 | AX52: 1.843429367 | AZ52: 93.81560024 | BA52: 0.3276253028 | BB52: 0.1956163569 | BC52: 0.1115665258 | BD52: 0.08379224395 | BE52: 0.5232416597
A53: VsdBot | B53: =Vsd_Q2 -> 0.7 | C53: V | D53: Diode Forward Voltage of Bottom FET Body Diode | G53: 44 | H53: 24 | I53: 1 | J53: 1.76 | K53: 1.76 | L53: 0.4074074074 | M53: 0.2140903009 | N53: 2.702959645 | O53: 3.111479822 | P53: 0.4085201776 | Q53: 0 | R53: 1.925209747 | S53: 0.07783508397 | T53: 0.2506040217 | U53: 0.3306643515 | V53: 0.7802772393 | W53: 0.00121766514 | X53: 0.00121766514 | Y53: 0.7897013353 | Z53: 0.000623628199 | AA53: 0.000623628199 | AB53: 0.8907924923 | AC53: 0.03253396184 | AD53: 0.04813714286 | AE53: 0.0159744 | AF53: 0 | AG53: 0.09692299413 | AH53: 1.706728246 | AI53: 0.06117134742 | AJ53: 0.016400384 | AK53: 0.07799156615 | AL53: 0.02635776 | AM53: 0.00084 | AN53: 0.03744 | AO53: 0.1550016 | AP53: 0.142272 | AQ53: 0.03828 | AR53: 0.5672941018 | AS53: 0.5759188836 | AT53: 0.5759188836 | AU53: 8.8 | AV53: 0.938574673 | AW53: 2.515020546 | AX53: 1.907171793 | AZ53: 93.8574673 | BA53: 0.3306643515 | BB53: 0.2012723203 | BC53: 0.1143191157 | BD53: 0.08668962695 | BE53: 0.5319366718
A54: QrrBot | B54: =Qrr_Q2*1000000000 -> 3 | C54: nC | D54: Reverse Recovery Charge of Body Diode | G54: 45 | H54: 24 | I54: 1 | J54: 1.8 | K54: 1.8 | L54: 0.4166666667 | M54: 0.2142209354 | N54: 2.704253885 | O54: 3.152126943 | P54: 0.4478730575 | Q54: 0 | R54: 1.961992802 | S54: 0.08083773088 | T54: 0.2506040217 | U54: 0.3337745799 | V54: 0.7806508542 | W54: 0.001218831512 | X54: 0.001218831512 | Y54: 0.8049679559 | Z54: 0.00064797341 | AA54: 0.00064797341 | AB54: 0.9080888965 | AC54: 0.0338096432 | AD54: 0.04923116883 | AE54: 0.0159744 | AF54: 0 | AG54: 0.09931068601 | AH54: 1.739192431 | AI54: 0.06352059656 | AJ54: 0.01677312 | AK54: 0.08074506634 | AL54: 0.0269568 | AM54: 0.00084 | AN54: 0.03744 | AO54: 0.1550016 | AP54: 0.142272 | AQ54: 0.03828 | AR54: 0.5759874811 | AS54: 0.5850881121 | AT54: 0.5850881121 | AU54: 9 | AV54: 0.9389585046 | AW54: 2.576247828 | AX54: 1.972097827 | AZ54: 93.89585046 | BA54: 0.3337745799 | BB54: 0.2070125524 | BC54: 0.117102174 | BD54: 0.08964081034 | BE54: 0.5407871323
A55: TrrBot | B55: =Trr_Q2*1000000000 -> 40 | C55: ns | D55: Reverse Recovery Time of Body Diode | G55: 46 | H55: 24 | I55: 1 | J55: 1.84 | K55: 1.84 | L55: 0.4259259259 | M55: 0.2143515607 | N55: 2.705547577 | O55: 3.192773789 | P55: 0.4872262115 | Q55: 0 | R55: 1.998899441 | S55: 0.08390757846 | T55: 0.2506040217 | U55: 0.3369560984 | V55: 0.7810243109 | W55: 0.001219997949 | X55: 0.001219997949 | Y55: 0.8202918516 | Z55: 0.0006728787218 | AA55: 0.0006728787218 | AB55: 0.9254527951 | AC55: 0.03511497791 | AD55: 0.05032519481 | AE55: 0.0159744 | AF55: 0 | AG55: 0.1017289271 | AH55: 1.771760734 | AI55: 0.06592185807 | AJ55: 0.017145856 | AK55: 0.08355241193 | AL55: 0.02755584 | AM55: 0.00084 | AN55: 0.03744 | AO55: 0.1550016 | AP55: 0.142272 | AQ55: 0.03828 | AR55: 0.5848297269 | AS55: 0.5944272849 | AT55: 0.5944272849 | AU55: 9.2 | AV55: 0.9393096434 | AW55: 2.638147193 | AX55: 2.038208461 | AZ55: 93.93096434 | BA55: 0.3369560984 | BB55: 0.212837179 | BC55: 0.1199157815 | BD55: 0.09264583913 | BE55: 0.5497932775
A56: θJABot | B56: =ThetaJA_Q2 -> 22 | C56: °C/W | D56: Junction to Ambient Resistance | G56: 47 | H56: 24 | I56: 1 | J56: 1.88 | K56: 1.88 | L56: 0.4351851852 | M56: 0.2144821768 | N56: 2.706840721 | O56: 3.23342036 | P56: 0.5265796396 | Q56: 0 | R56: 2.035922942 | S56: 0.0870446267 | T56: 0.2506040217 | U56: 0.3402090201 | V56: 0.7813976094 | W56: 0.001221164448 | X56: 0.001221164448 | Y56: 0.8356702901 | Z56: 0.0006983448337 | AA56: 0.0006983448337 | AB56: 0.942881122 | AC56: 0.03645001722 | AD56: 0.05141922078 | AE56: 0.0159744 | AF56: 0 | AG56: 0.1041777989 | AH56: 1.804427171 | AI56: 0.06837510569 | AJ56: 0.017518592 | AK56: 0.08641364942 | AL56: 0.02815488 | AM56: 0.00084 | AN56: 0.03744 | AO56: 0.1550016 | AP56: 0.142272 | AQ56: 0.03828 | AR56: 0.5938208641 | AS56: 0.6039371061 | AT56: 0.6039371061 | AU56: 9.4 | AV56: 0.9396300577 | AW56: 2.700720433 | AX56: 2.105504716 | AZ56: 93.96300577 | BA56: 0.3402090201 | BB56: 0.2187463283 | BC56: 0.1227600197 | BD56: 0.09570475982 | BE56: 0.5589553484
G57: 48 | H57: 24 | I57: 1 | J57: 1.92 | K57: 1.92 | L57: 0.4444444444 | M57: 0.2146127839 | N57: 2.708133316 | O57: 3.274066658 | P57: 0.5659333418 | Q57: 0 | R57: 2.073057043 | S57: 0.0902488756 | T57: 0.2506040217 | U57: 0.3435334606 | V57: 0.7817707496 | W57: 0.00122233101 | X57: 0.00122233101 | Y57: 0.8511007251 | Z57: 0.0007243724443 | AA57: 0.0007243724443 | AB57: 0.9603710204 | AC57: 0.03781481237 | AD57: 0.05251324675 | AE57: 0.0159744 | AF57: 0 | AG57: 0.1066573833 | AH57: 1.837186166 | AI57: 0.07088031317 | AJ57: 0.017891328 | AK57: 0.08932882683 | AL57: 0.02875392 | AM57: 0.00084 | AN57: 0.03744 | AO57: 0.1550016 | AP57: 0.142272 | AQ57: 0.03828 | AR57: 0.6029609176 | AS57: 0.6136182946 | AT57: 0.6136182946 | AU57: 9.6 | AV57: 0.939921556 | AW57: 2.76396935 | AX57: 2.173987649 | AZ57: 93.9921556 | BA57: 0.3435334606 | BB57: 0.2247401301 | BC57: 0.1256349705 | BD57: 0.09881762043 | BE57: 0.5682735907
G58: 49 | H58: 24 | I58: 1 | J58: 1.96 | K58: 1.96 | L58: 0.4537037037 | M58: 0.2147433818 | N58: 2.709425364 | O58: 3.314712682 | P58: 0.6052873181 | Q58: 0 | R58: 2.110295907 | S58: 0.09352032515 | T58: 0.2506040217 | U58: 0.3469295383 | V58: 0.7821437316 | W58: 0.001223497634 | X58: 0.001223497634 | Y58: 0.8665807818 | Z58: 0.0007509622513 | AA58: 0.0007509622513 | AB58: 0.9779198255 | AC58: 0.03920941459 | AD58: 0.05360727273 | AE58: 0.0159744 | AF58: 0 | AG58: 0.1091677629 | AH58: 1.870032522 | AI58: 0.07343745427 | AJ58: 0.018264064 | AK58: 0.09229799368 | AL58: 0.02935296 | AM58: 0.00084 | AN58: 0.03744 | AO58: 0.1550016 | AP58: 0.142272 | AQ58: 0.03828 | AR58: 0.6122499124 | AS58: 0.6234715853 | AT58: 0.6234715853 | AU58: 9.8 | AV58: 0.9401858028 | AW58: 2.827895762 | AX58: 2.243658351 | AZ58: 94.01858028 | BA58: 0.3469295383 | BB58: 0.2308187166 | BC58: 0.1285407165 | BD58: 0.1019844705 | BE58: 0.5777482549
G59: 50 | H59: 24 | I59: 1 | J59: 2 | K59: 2 | L59: 0.462962963 | M59: 0.2148739706 | N59: 2.710716863 | O59: 3.355358432 | P59: 0.6446415684 | Q59: 0 | R59: 2.147634084 | S59: 0.09685897535 | T59: 0.2506040217 | U59: 0.3503973743 | V59: 0.7825165554 | W59: 0.001224664319 | X59: 0.001224664319 | Y59: 0.8821082427 | Z59: 0.0007781149518 | AA59: 0.0007781149518 | AB59: 0.9955250497 | AC59: 0.04063387511 | AD59: 0.0547012987 | AE59: 0.0159744 | AF59: 0 | AG59: 0.1117090208 | AH59: 1.902961386 | AI59: 0.07604650273 | AJ59: 0.0186368 | AK59: 0.095321201 | AL59: 0.029952 | AM59: 0.00084 | AN59: 0.03744 | AO59: 0.1550016 | AP59: 0.142272 | AQ59: 0.03828 | AR59: 0.6216878736 | AS59: 0.6334977284 | AT59: 0.6334977284 | AU59: 10 | AV59: 0.9404243322 | AW59: 2.892501498 | AX59: 2.314517942 | AZ59: 94.04243322 | BA59: 0.3503973743 | BB59: 0.2369822218 | BC59: 0.1314773408 | BD59: 0.105205361 | BE59: 0.5873795961
G60: 51 | H60: 24 | I60: 1 | J60: 2.04 | K60: 2.04 | L60: 0.4722222222 | M60: 0.2150045502 | N60: 2.712007815 | O60: 3.396003907 | P60: 0.6839960926 | Q60: 0 | R60: 2.185066482 | S60: 0.1002648262 | T60: 0.2506040217 | U60: 0.353937092 | V60: 0.7828892209 | W60: 0.001225831065 | X60: 0.001225831065 | Y60: 0.8976810359 | Z60: 0.0008058312421 | AA60: 0.0008058312421 | AB60: 1.013184368 | AC60: 0.04208824514 | AD60: 0.05579532468 | AE60: 0.0159744 | AF60: 0 | AG60: 0.1142812407 | AH60: 1.935968225 | AI60: 0.07870743232 | AJ60: 0.019009536 | AK60: 0.09839850134 | AL60: 0.03055104 | AM60: 0.00084 | AN60: 0.03744 | AO60: 0.1550016 | AP60: 0.142272 | AQ60: 0.03828 | AR60: 0.631274826 | AS60: 0.6436974901 | AT60: 0.6436974901 | AU60: 10.2 | AV60: 0.9406385607 | AW60: 2.957788397 | AX60: 2.38656758 | AZ60: 94.06385607 | BA60: 0.353937092 | BB60: 0.2432307821 | BC60: 0.1344449271 | BD60: 0.1084803445 | BE60: 0.5971678741
A61: Controller | B61: Input Value | C61: Units | D61: Std Units | G61: 52 | H61: 24 | I61: 1 | J61: 2.08 | K61: 2.08 | L61: 0.4814814815 | M61: 0.2151351207 | N61: 2.713298218 | O61: 3.436649109 | P61: 0.7233508909 | Q61: 0 | R61: 2.222588341 | S61: 0.1037378776 | T61: 0.2506040217 | U61: 0.3575488179 | V61: 0.7832617283 | W61: 0.00122699787 | X61: 0.00122699787 | Y61: 0.9132972231 | Z61: 0.0008341118178 | AA61: 0.0008341118178 | AB61: 1.030895608 | AC61: 0.04357257591 | AD61: 0.05688935065 | AE61: 0.0159744 | AF61: 0 | AG61: 0.116884507 | AH61: 1.969048801 | AI61: 0.08142021681 | AJ61: 0.019382272 | AK61: 0.1015299488 | AL61: 0.03115008 | AM61: 0.00084 | AN61: 0.03744 | AO61: 0.1550016 | AP61: 0.142272 | AQ61: 0.03828 | AR61: 0.6410107947 | AS61: 0.6540716524 | AT61: 0.6540716524 | AU61: 10.4 | AV61: 0.940829798 | AW61: 3.023758315 | AX61: 2.459808454 | AZ61: 94.0829798 | BA61: 0.3575488179 | BB61: 0.2495645357 | BC61: 0.1374435598 | BD61: 0.1118094752 | BE61: 0.6071133536
A62: θJA | B62: 20 | C62: °C/W | D62: Junction to Ambient Resistance | G62: 53 | H62: 24 | I62: 1 | J62: 2.12 | K62: 2.12 | L62: 0.4907407407 | M62: 0.2152656822 | N62: 2.714588074 | O62: 3.477294037 | P62: 0.7627059631 | Q62: 0 | R62: 2.260195206 | S62: 0.1072781297 | T62: 0.2506040217 | U62: 0.361232681 | V62: 0.7836340776 | W62: 0.001228164735 | X62: 0.001228164735 | Y62: 0.9289549901 | Z62: 0.0008629573736 | AA62: 0.0008629573736 | AB62: 1.048656732 | AC62: 0.04508691861 | AD62: 0.05798337662 | AE62: 0.0159744 | AF62: 0 | AG62: 0.1195189043 | AH62: 2.002199147 | AI62: 0.08418482994 | AJ62: 0.019755008 | AK62: 0.1047155989 | AL62: 0.03174912 | AM62: 0.00084 | AN62: 0.03744 | AO62: 0.1550016 | AP62: 0.142272 | AQ62: 0.03828 | AR62: 0.6508958046 | AS62: 0.6646210134 | AT62: 0.6646210134 | AU62: 10.6 | AV62: 0.9409992566 | AW62: 3.090413116 | AX62: 2.534241786 | AZ62: 94.09992566 | BA62: 0.361232681 | BB62: 0.2559836231 | BC62: 0.1404733235 | BD62: 0.1151928085 | BE62: 0.6172163041
A63: Theta Ja | B63: 2 | C63: °C/W | D63: Junction to Ambient Resistance | G63: 54 | H63: 24 | I63: 1 | J63: 2.16 | K63: 2.16 | L63: 0.5 | M63: 0.2153962345 | N63: 2.715877382 | O63: 3.517938691 | P63: 0.8020613092 | Q63: 0 | R63: 2.297882902 | S63: 0.1108855824 | T63: 0.2506040217 | U63: 0.364988813 | V63: 0.7840062687 | W63: 0.001229331659 | X63: 0.001229331659 | Y63: 0.9446526365 | Z63: 0.0008923686036 | AA63: 0.0008923686036 | AB63: 1.066465835 | AC63: 0.04663132444 | AD63: 0.0590774026 | AE63: 0.0159744 | AF63: 0 | AG63: 0.1221845181 | AH63: 2.035415548 | AI63: 0.08700124551 | AJ63: 0.020127744 | AK63: 0.1079555087 | AL63: 0.03234816 | AM63: 0.00084 | AN63: 0.03744 | AO63: 0.1550016 | AP63: 0.142272 | AQ63: 0.03828 | AR63: 0.6609298806 | AS63: 0.6753463876 | AT63: 0.6753463876 | AU63: 10.8 | AV63: 0.9411480608 | AW63: 3.157754682 | AX63: 2.609868833 | AZ63: 94.11480608 | BA63: 0.364988813 | BB63: 0.2624881868 | BC63: 0.1435343037 | BD63: 0.1186304015 | BE63: 0.6274769998
G64: 55 | H64: 24 | I64: 1 | J64: 2.2 | K64: 2.2 | L64: 0.5092592593 | M64: 0.2155267776 | N64: 2.717166142 | O64: 3.558583071 | P64: 0.8414169291 | Q64: 0 | R64: 2.335647516 | S64: 0.1145602357 | T64: 0.2506040217 | U64: 0.3688173482 | V64: 0.7843783017 | W64: 0.00123049864 | X64: 0.00123049864 | Y64: 0.9603885677 | Z64: 0.0009223462011 | AA64: 0.0009223462011 | AB64: 1.084321127 | AC64: 0.04820584459 | AD64: 0.06017142857 | AE64: 0.0159744 | AF64: 0 | AG64: 0.1248814345 | AH64: 2.068694519 | AI64: 0.08986943727 | AJ64: 0.02050048 | AK64: 0.111249737 | AL64: 0.0329472 | AM64: 0.00084 | AN64: 0.03744 | AO64: 0.1550016 | AP64: 0.142272 | AQ64: 0.03828 | AR64: 0.6711130478 | AS64: 0.6862486059 | AT64: 0.6862486059 | AU64: 11 | AV64: 0.9412772542 | AW64: 3.225784903 | AX64: 2.686690886 | AZ64: 94.12772542 | BA64: 0.3688173482 | BB64: 0.2690783715 | BC64: 0.1466265865 | BD64: 0.122122313 | BE64: 0.6378957197
G65: 56 | H65: 24 | I65: 1 | J65: 2.24 | K65: 2.24 | L65: 0.5185185185 | M65: 0.2156573117 | N65: 2.718454354 | O65: 3.599227177 | P65: 0.8807728229 | Q65: 0 | R65: 2.373485378 | S65: 0.1183020896 | T65: 0.2506040217 | U65: 0.3727184239 | V65: 0.7847501766 | W65: 0.001231665679 | X65: 0.001231665679 | Y65: 0.9761612872 | Z65: 0.0009528908586 | AA65: 0.0009528908586 | AB65: 1.102220931 | AC65: 0.04981053025 | AD65: 0.06126545455 | AE65: 0.0159744 | AF65: 0 | AG65: 0.12760974 | AH65: 2.102032792 | AI65: 0.09278937902 | AJ65: 0.020873216 | AK65: 0.1145983438 | AL65: 0.03354624 | AM65: 0.00084 | AN65: 0.03744 | AO65: 0.1550016 | AP65: 0.142272 | AQ65: 0.03828 | AR65: 0.6814453311 | AS65: 0.6973285157 | AT65: 0.6973285157 | AU65: 11.2 | AV65: 0.941387807 | AW65: 3.294505684 | AX65: 2.764709267 | AZ65: 94.1387807 | BA65: 0.3727184239 | BB65: 0.2757543238 | BC65: 0.1497502584 | BD65: 0.125668603 | BE65: 0.6484727477
A66: Outputs | G66: 57 | H66: 24 | I66: 1 | J66: 2.28 | K66: 2.28 | L66: 0.5277777778 | M66: 0.2157878366 | N66: 2.719742019 | O66: 3.639871009 | P66: 0.9201289906 | Q66: 0 | R66: 2.411393039 | S66: 0.1221111441 | T66: 0.2506040217 | U66: 0.37669218 | V66: 0.7851218933 | W66: 0.001232832775 | X66: 0.001232832775 | Y66: 0.9919693886 | Z66: 0.000984003268 | AA66: 0.000984003268 | AB66: 1.12016367 | AC66: 0.05144543259 | AD66: 0.06235948052 | AE66: 0.0159744 | AF66: 0 | AG66: 0.1303695218 | AH66: 2.135427297 | AI66: 0.09576104452 | AJ66: 0.021245952 | AK66: 0.1180013909 | AL66: 0.03414528 | AM66: 0.00084 | AN66: 0.03744 | AO66: 0.1550016 | AP66: 0.142272 | AQ66: 0.03828 | AR66: 0.6919267554 | AS66: 0.7085869813 | AT66: 0.7085869813 | AU66: 11.4 | AV66: 0.9414806218 | AW66: 3.363918944 | AX66: 2.843925333 | AZ66: 94.14806218 | BA66: 0.37669218 | BB66: 0.2825161927 | BC66: 0.1529054066 | BD66: 0.1292693333 | BE66: 0.6592083726
A67: Design | B67: Value | C67: Units | G67: 58 | H67: 24 | I67: 1 | J67: 2.32 | K67: 2.32 | L67: 0.537037037 | M67: 0.2159183524 | N67: 2.721029136 | O67: 3.680514568 | P67: 0.959485432 | Q67: 0 | R67: 2.449367258 | S67: 0.1259873992 | T67: 0.2506040217 | U67: 0.3807387589 | V67: 0.7854934521 | W67: 0.001233999926 | X67: 0.001233999926 | Y67: 1.00781155 | Z67: 0.00101568412 | AA67: 0.00101568412 | AB67: 1.138147862 | AC67: 0.05311060278 | AD67: 0.06345350649 | AE67: 0.0159744 | AF67: 0 | AG67: 0.1331608676 | AH67: 2.168875148 | AI67: 0.09878440756 | AJ67: 0.021618688 | AK67: 0.1214589415 | AL67: 0.03474432 | AM67: 0.00084 | AN67: 0.03744 | AO67: 0.1550016 | AP67: 0.142272 | AQ67: 0.03828 | AR67: 0.7025573457 | AS67: 0.7200248841 | AT67: 0.7200248841 | AU67: 11.6 | AV67: 0.9415565398 | AW67: 3.434026614 | AX67: 2.924340477 | AZ67: 94.15565398 | BA67: 0.3807387589 | BB67: 0.2893641291 | BC67: 0.1560921188 | BD67: 0.1329245671 | BE67: 0.6701028881
A68: Dmax | B68: =D1_Vinmin -> 0.4166666667 | C68: index | G68: 59 | H68: 24 | I68: 1 | J68: 2.36 | K68: 2.36 | L68: 0.5462962963 | M68: 0.2160488591 | N68: 2.722315706 | O68: 3.721157853 | P68: 0.9988421472 | Q68: 0 | R68: 2.487404986 | S68: 0.1299308549 | T68: 0.2506040217 | U68: 0.3848583062 | V68: 0.7858648527 | W68: 0.001235167133 | X68: 0.001235167133 | Y68: 1.023686527 | Z68: 0.001047934106 | AA68: 0.001047934106 | AB68: 1.156172111 | AC68: 0.05480609198 | AD68: 0.06454753247 | AE68: 0.0159744 | AF68: 0 | AG68: 0.1359838659 | AH68: 2.202373632 | AI68: 0.1018594419 | AJ68: 0.021991424 | AK68: 0.1249710604 | AL68: 0.03534336 | AM68: 0.00084 | AN68: 0.03744 | AO68: 0.1550016 | AP68: 0.142272 | AQ68: 0.03828 | AR68: 0.713337127 | AS68: 0.7316431223 | AT68: 0.7316431223 | AU68: 11.8 | AV68: 0.9416163455 | AW68: 3.504830638 | AX68: 3.005956122 | AZ68: 94.16163455 | BA68: 0.3848583062 | BB68: 0.2962982863 | BC68: 0.1593104835 | BD68: 0.1366343692 | BE68: 0.6811565925
A69: Dprime | B69: =1-B68 -> 0.5833333333 | C69: index | G69: 60 | H69: 24 | I69: 1 | J69: 2.4 | K69: 2.4 | L69: 0.5555555556 | M69: 0.2161793567 | N69: 2.723601728 | O69: 3.761800864 | P69: 1.038199136 | Q69: 0 | R69: 2.525503355 | S69: 0.1339415111 | T69: 0.2506040217 | U69: 0.3890509699 | V69: 0.7862360953 | W69: 0.001236334395 | X69: 0.001236334395 | Y69: 1.039593148 | Z69: 0.001080753914 | AA69: 0.001080753914 | AB69: 1.174235105 | AC69: 0.05653195135 | AD69: 0.06564155844 | AE69: 0.0159744 | AF69: 0 | AG69: 0.1388386057 | AH69: 2.235920194 | AI69: 0.1049861214 | AJ69: 0.02236416 | AK69: 0.1285378139 | AL69: 0.0359424 | AM69: 0.00084 | AN69: 0.03744 | AO69: 0.1550016 | AP69: 0.142272 | AQ69: 0.03828 | AR69: 0.724266124 | AS69: 0.7434426117 | AT69: 0.7434426117 | AU69: 12 | AV69: 0.9416607714 | AW69: 3.576332974 | AX69: 3.088773729 | AZ69: 94.16607714 | BA69: 0.3890509699 | BB69: 0.3033188196 | BC69: 0.1625605897 | BD69: 0.1403988059 | BE69: 0.6923697895
A70: Ipp | B70: =Iripple_Vinnom -> 2.707692262 | C70: A | G70: 61 | H70: 24 | I70: 1 | J70: 2.44 | K70: 2.44 | L70: 0.5648148148 | M70: 0.2163098451 | N70: 2.724887202 | O70: 3.802443601 | P70: 1.077556399 | Q70: 0 | R70: 2.563659661 | S70: 0.138019368 | T70: 0.2506040217 | U70: 0.393316901 | V70: 0.7866071799 | W70: 0.001237501711 | X70: 0.001237501711 | Y70: 1.055530309 | Z70: 0.001114144234 | AA70: 0.001114144234 | AB70: 1.192335605 | AC70: 0.05828823203 | AD70: 0.06673558442 | AE70: 0.0159744 | AF70: 0 | AG70: 0.1417251765 | AH70: 2.269512428 | AI70: 0.1081644199 | AJ70: 0.022736896 | AK70: 0.1321592698 | AL70: 0.03654144 | AM70: 0.00084 | AN70: 0.03744 | AO70: 0.1550016 | AP70: 0.142272 | AQ70: 0.03828 | AR70: 0.7353443619 | AS70: 0.7554242857 | AT70: 0.7554242857 | AU70: 12.2 | AV70: 0.9416905021 | AW70: 3.648535592 | AX70: 3.172794789 | AZ70: 94.16905021 | BA70: 0.393316901 | BB70: 0.3104258863 | BC70: 0.1658425269 | BD70: 0.144217945 | BE70: 0.7037427873
A71: Top FET | B71: Value | C71: Units | G71: 62 | H71: 24 | I71: 1 | J71: 2.48 | K71: 2.48 | L71: 0.5740740741 | M71: 0.2164403245 | N71: 2.72617213 | O71: 3.843086065 | P71: 1.116913935 | Q71: 0 | R71: 2.601871353 | S71: 0.1421644253 | T71: 0.2506040217 | U71: 0.3976562533 | V71: 0.7869781065 | W71: 0.00123866908 | X71: 0.00123866908 | Y71: 1.071496968 | Z71: 0.001148105753 | AA71: 0.001148105753 | AB71: 1.210472445 | AC71: 0.06007498516 | AD71: 0.06782961039 | AE71: 0.0159744 | AF71: 0 | AG71: 0.1446436686 | AH71: 2.303148063 | AI71: 0.111394311 | AJ71: 0.023109632 | AK71: 0.1358354975 | AL71: 0.03714048 | AM71: 0.00084 | AN71: 0.03744 | AO71: 0.1550016 | AP71: 0.142272 | AQ71: 0.03828 | AR71: 0.7465718656 | AS71: 0.7675890954 | AT71: 0.7675890954 | AU71: 12.4 | AV71: 0.941706178 | AW71: 3.721440478 | AX71: 3.258020831 | AZ71: 94.1706178 | BA71: 0.3976562533 | BB71: 0.3176196461 | BC71: 0.1691563854 | BD71: 0.1480918559 | BE71: 0.7152758994
A72: Tr | B72: =(Qgd_Q1+Qgs_Q1/2)*(RdsonDRT+Rgate1)/(VCC-Vsp_Q1)*1000000000 -> 1.278409091 | C72: ns | D72: Turn on of MOSFET -> Rise time of current | G72: 63 | H72: 24 | I72: 1 | J72: 2.52 | K72: 2.52 | L72: 0.5833333333 | M72: 0.2165707947 | N72: 2.72745651 | O72: 3.883728255 | P72: 1.156271745 | Q72: 0 | R72: 2.640136029 | S72: 0.1463766833 | T72: 0.2506040217 | U72: 0.4020691832 | V72: 0.7873488751 | W72: 0.001239836502 | X72: 0.001239836502 | Y72: 1.087492142 | Z72: 0.00118263916 | AA72: 0.00118263916 | AB72: 1.228644523 | AC72: 0.06189226189 | AD72: 0.06892363636 | AE72: 0.0159744 | AF72: 0 | AG72: 0.1475941727 | AH72: 2.336824959 | AI72: 0.1146757686 | AJ72: 0.023482368 | AK72: 0.1395665682 | AL72: 0.03773952 | AM72: 0.00084 | AN72: 0.03744 | AO72: 0.1550016 | AP72: 0.142272 | AQ72: 0.03828 | AR72: 0.7579486598 | AS72: 0.7799380096 | AT72: 0.7799380096 | AU72: 12.6 | AV72: 0.9417083989 | AW72: 3.79504963 | AX72: 3.344453415 | AZ72: 94.17083989 | BA72: 0.4020691832 | BB72: 0.3249002609 | BC72: 0.1725022559 | BD72: 0.1520206098 | BE72: 0.7269694441
A73: Tf | B73: =(Qgd_Q1+Qgs_Q1/2)*(RdsonDRT2+Rgate1)/(Vsp_Q1)*1000000000 -> 1.461038961 | C73: ns | D73: Turn off of MOSFET -> Fall time of current | G73: 64 | H73: =Vin -> 24 | I73: =MODE -> 1 | J73: 2.56 | K73: =Iout*G73/100/Number_of_Phases -> 2.56 | L73: =Vout*K73/(Vin*Efficiency) -> 0.5925925926 | M73: =(Vout+(Rdson2+Rs+Rdcr)*K73)/(Vin+(Rs+Rdson2-Rdson1)*K73) -> 0.2167012559 | N73: =(Vin-(Rdson1+Rdcr)*K73-Vout)*M73/(Fsw*Lf) -> 2.728740343 | O73: 3.924370171 | P73: 1.195629829 | Q73: =IF(MIN(Vin, -P73/(Coss_Q1+Coss_Q2)*0.00000002)<0, 0, MIN(Vin, -P73/(Coss_Q1+Coss_Q2)*0.00000002)) -> 0 | R73: 2.678451416 | S73: =R73^2*Rdcr -> 0.1506561418 | T73: =Core_Loss -> 0.2506040217 | U73: =(T73+S73*(1+Ltc*(Ta-25)))/(1-S73*Ltc*ThetaCa) -> 0.4065558502 | V73: 0.7877194857 | W73: 0.001241003976 | X73: 0.001241003976 | Y73: 1.103514902 | Z73: 0.00121774514 | AA73: 0.00121774514 | AB73: 1.246850797 | AC73: =Rdson1*AB73^2 -> 0.06374011333 | AD73: =(Vin*K73/2)*Fsw*(Tr_buck+Tf_buck) -> 0.07001766234 | AE73: =(0.5*Coss_Q1*(Vin-Q73)^2-0.5*Coss_Q2*(Vin-Q73)^2+(Qoss_Q2*(Vin-Q73)/Vin)*Vin)*Fsw -> 0.0159744 | AF73: =IF(K73>N73/2,0,ABS(K73-N73/2)*Vsd_Q1*Deadtime*Fsw) -> 0 | AG73: =(AF73+AE73+AD73+AC73*(1+RdsonTopTc*Ta-RdsonTopTc*25))/(1-AC73*RdsonTopTc*ThetaJA_Q1) -> 0.1505767804 | AH73: =SQRT((1-M73))*SQRT(K73^2+(N73^2)/12) -> 2.370541094 | AI73: =Rdson2*AH73^2 -> 0.1180087666 | AJ73: =IF(K73<N73/2,Deadtime*Fsw*Vsd_Q2*(K73+N73/2),2*Deadtime*Fsw*Vsd_Q2*K73) -> 0.023855104 | AK73: =(AJ73+AI73*(1+RdsonBotTc*Ta-RdsonBotTc*25))/(1-AI73*RdsonBotTc*ThetaJA_Q2) -> 0.1433525541 | AL73: =Qrr_Q2*K73/Iout*Fsw*Vin -> 0.03833856 | AM73: =Iq*Vin -> 0.00084 | AN73: =IF(Ext_VCC=1, (Qg_Q1+Qg_Q2)*Fsw*Vout, (Qg_Q1+Qg_Q2)*Fsw*Vin) -> 0.03744 | AO73: =(Vin-VCC)*Fsw*(Qg_Q1+Qg_Q2) -> 0.1550016 | AP73: =(Qg_Q1+Qg_Q2)*Fsw*(Vin-Vout) -> 0.142272 | AQ73: 0.03828 | AR73: 0.7694747697 | AS73: =((T73+S73*(1+Ltc*(Ta-25))) + (AF73+AE73+AD73+AC73*(1+RdsonTC*(Ta-25))) + (AJ73+AI73*(1+RdsonTC*(Ta-25))) + AQ73 + AL73) / (1-S73*Ltc*ThetaCa-AC73*RdsonTC*ThetaJA_Q1 -AI73*RdsonTC*ThetaJA_Q2) -> 0.7924720155 | AT73: 0.7924720155 | AU73: =Vout*K73 -> 12.8 | AV73: 0.9416977269 | AW73: =ThetaJA_Q1*BC73 -> 3.86936506 | AX73: =ThetaJA_Q2*BD73 -> 3.432094137 | AZ73: 94.16977269 | BA73: =U73 -> 0.4065558502 | BB73: =AG73+AK73+AL73 -> 0.3322678945 | BC73: =AG73+AL73*0.66 -> 0.17588023 | BD73: =AK73+AL73*0.33 -> 0.1560042789 | BE73: 0.7388237447
A74: Part Power | B74: Value | C74: Units | G74: 65 | H74: 24 | I74: 1 | J74: =Iout*G74/100 -> 2.6 | K74: 2.6 | L74: 0.6018518519 | M74: 0.2168317079 | N74: 2.730023628 | O74: =K74+N74/2 -> 3.965011814 | P74: =K74-N74/2 -> 1.234988186 | Q74: 0 | R74: =SQRT(K74^2+(N74^2)/12) -> 2.716815369 | S74: 0.1550028008 | T74: 0.2506040217 | U74: 0.4111164164 | V74: =N74/SQRT(12) -> 0.7880899383 | W74: =RCoutEsr*V74^2 -> 0.001242171502 | X74: =W74 -> 0.001242171502 | Y74: =SQRT(M74*(1-M74))*SQRT(K74^2+(N74^2)/12) -> 1.11956437 | Z74: =RCinEsr*Y74^2 -> 0.001253424379 | AA74: =Z74 -> 0.001253424379 | AB74: =SQRT(M74)*SQRT(K74^2+(N74^2)/12) -> 1.265090285 | AC74: 0.0656185906 | AD74: 0.07111168831 | AE74: 0.0159744 | AF74: 0 | AG74: 0.1535915837 | AH74: 2.404294558 | AI74: 0.1213932788 | AJ74: 0.02422784 | AK74: 0.1471935296 | AL74: 0.0389376 | AM74: 0.00084 | AN74: 0.03744 | AO74: 0.1550016 | AP74: 0.142272 | AQ74: 0.03828 | AR74: =SUM(S74,T74,AC74,AD74,AE74,AF74,AI74,AJ74,AQ74, AL74) -> 0.7811502201 | AS74: 0.8051921188 | AT74: =AS74 -> 0.8051921188 | AU74: 13 | AV74: =AU74/(AU74+AT74) -> 0.9416746894 | AW74: 3.944388793 | AX74: 3.520944627 | AZ74: =AV74*100 -> 94.16746894 | BA74: 0.4111164164 | BB74: 0.3397227133 | BC74: 0.1792903997 | BD74: 0.1600429376 | BE74: =BA74+BB74 -> 0.7508391297
A75: Power Dis | B75: =AQ9 -> 0.03828 | C75: W | G75: 66 | H75: 24 | I75: 1 | J75: 2.64 | K75: 2.64 | L75: 0.6111111111 | M75: 0.2169621508 | N75: 2.731306367 | O75: 4.005653183 | P75: 1.274346817 | Q75: 0 | R75: 2.75522586 | S75: 0.1594166603 | T75: 0.2506040217 | U75: 0.415751047 | V75: 0.788460233 | W75: 0.001243339078 | X75: 0.001243339078 | Y75: 1.135639715 | Z75: 0.001289677563 | AA75: 0.001289677563 | AB75: 1.283362056 | AC75: 0.06752774482 | AD75: 0.07220571429 | AE75: 0.0159744 | AF75: 0 | AG75: 0.1566386753 | AH75: 2.438083545 | AI75: 0.1248292788 | AJ75: 0.024600576 | AK75: 0.1510895702 | AL75: 0.03953664 | AM75: 0.00084 | AN75: 0.03744 | AO75: 0.1550016 | AP75: 0.142272 | AQ75: =SUM(AM75:AN75) -> 0.03828 | AR75: 0.7929750359 | AS75: 0.8180993433 | AT75: 0.8180993433 | AU75: 13.2 | AV75: 0.9416397813 | AW75: 4.020122869 | AX75: 3.611006551 | AZ75: 94.16397813 | BA75: 0.415751047 | BB75: 0.3472648855 | BC75: 0.1827328577 | BD75: 0.1641366614 | BE75: 0.7630159325
A76: Temp rise | B76: =B75*B62 -> 0.7656 | C76: °C | G76: 67 | H76: 24 | I76: 1 | J76: 2.68 | K76: 2.68 | L76: 0.6203703704 | M76: 0.2170925846 | N76: 2.732588558 | O76: 4.046294279 | P76: 1.313705721 | Q76: 0 | R76: 2.793680968 | S76: 0.1638977204 | T76: 0.2506040217 | U76: 0.42045991 | V76: 0.7888303698 | W76: 0.001244506705 | X76: 0.001244506705 | Y76: 1.151740151 | Z76: 0.001326505375 | AA76: 0.001326505375 | AB76: 1.301665229 | AC76: 0.06946762708 | AD76: 0.07329974026 | AE76: 0.0159744 | AF76: 0 | AG76: 0.1597181485 | AH76: 2.471906346 | AI76: 0.1283167407 | AJ76: 0.024973312 | AK76: 0.1550407532 | AL76: 0.04013568 | AM76: 0.00084 | AN76: 0.03744 | AO76: 0.1550016 | AP76: 0.142272 | AQ76: 0.03828 | AR76: 0.8049492421 | AS76: 0.8311947321 | AT76: 0.8311947321 | AU76: 13.4 | AV76: 0.9415934679 | AW76: 4.096569341 | AX76: 3.702281607 | AZ76: 94.15934679 | BA76: 0.42045991 | BB76: 0.3548945817 | BC76: 0.1862076973 | BD76: 0.1682855276 | BE76: 0.7753544917
A77: Current (switching) | B77: =(Qg_Q1+Qg_Q2)*Fsw+Iq -> 0.007523 | C77: A | G77: 68 | H77: 24 | I77: 1 | J77: 2.72 | K77: 2.72 | L77: 0.6296296296 | M77: 0.2172230092 | N77: 2.733870202 | O77: 4.086935101 | P77: 1.353064899 | Q77: 0 | R77: 2.832178877 | S77: 0.168445981 | T77: 0.2506040217 | U77: 0.425243176 | V77: 0.7892003487 | W77: 0.001245674381 | X77: 0.001245674381 | Y77: 1.167864932 | Z77: 0.0013639085 | AA77: 0.0013639085 | AB77: 1.31999897 | AC77: 0.07143828849 | AD77: 0.07439376623 | AE77: 0.0159744 | AF77: 0 | AG77: 0.1628300974 | AH77: 2.505761343 | AI77: 0.1318556381 | AJ77: 0.025346048 | AK77: 0.1590471574 | AL77: 0.04073472 | AM77: 0.00084 | AN77: 0.03744 | AO77: 0.1550016 | AP77: 0.142272 | AQ77: 0.03828 | AR77: 0.8170728635 | AS77: 0.8444793472 | AT77: 0.8444793472 | AU77: 13.6 | AV77: 0.9415361865 | AW77: 4.173730278 | AX77: 3.79477153 | AZ77: 94.15361865 | BA77: 0.425243176 | BB77: 0.3626119748 | BC77: 0.1897150126 | BD77: 0.172489615 | BE77: 0.7878551509
A78: Qrr Current | B78: =Qrr_Q2*Fsw -> 0.002496 | C78: A | G78: 69 | H78: 24 | I78: 1 | J78: 2.76 | K78: 2.76 | L78: 0.6388888889 | M78: 0.2173534248 | N78: 2.7351513 | O78: 4.12757565 | P78: 1.39242435 | Q78: 0 | R78: 2.870717864 | S78: 0.1730614421 | T78: 0.2506040217 | U78: 0.430101019 | V78: 0.7895701696 | W78: 0.001246842106 | X78: 0.001246842106 | Y78: 1.184013353 | Z78: 0.00140188762 | AA78: 0.00140188762 | AB78: 1.338362488 | AC78: 0.07343978014 | AD78: 0.07548779221 | AE78: 0.0159744 | AF78: 0 | AG78: 0.1659746166 | AH78: 2.539647004 | AI78: 0.135445945 | AJ78: 0.025718784 | AK78: 0.1631088632 | AL78: 0.04133376 | AM78: 0.00084 | AN78: 0.03744 | AO78: 0.1550016 | AP78: 0.142272 | AQ78: 0.03828 | AR78: 0.8293459251 | AS78: 0.8579542696 | AT78: 0.8579542696 | AU78: 13.8 | AV78: 0.9414683486 | AW78: 4.251607761 | AX78: 3.888478087 | AZ78: 94.14683486 | BA78: 0.430101019 | BB78: 0.3704172398 | BC78: 0.1932548982 | BD78: 0.176749004 | BE78: 0.8005182588
A79: Diode Current | B79: =Deadtime*Fsw*(Iripple_Vinnom/2)*(Vsd_Q2)/Vin -> 0.0002628266622 | G79: 70 | H79: 24 | I79: 1 | J79: 2.8 | K79: 2.8 | L79: 0.6481481481 | M79: 0.2174838313 | N79: 2.73643185 | O79: 4.168215925 | P79: 1.431784075 | Q79: 0 | R79: 2.909296296 | S79: 0.1777441037 | T79: 0.2506040217 | U79: 0.4350336155 | V79: 0.7899398327 | W79: 0.001248009879 | X79: 0.001248009879 | Y79: 1.200184743 | Z79: 0.001440443417 | AA79: 0.001440443417 | AB79: 1.356755034 | AC79: 0.07547215311 | AD79: 0.07658181818 | AE79: 0.0159744 | AF79: 0 | AG79: 0.1691518013 | AH79: 2.573561874 | AI79: 0.1390876351 | AJ79: 0.02609152 | AK79: 0.1672259525 | AL79: 0.0419328 | AM79: 0.00084 | AN79: 0.03744 | AO79: 0.1550016 | AP79: 0.142272 | AQ79: 0.03828 | AR79: 0.8417684518 | AS79: 0.8716206001 | AT79: 0.8716206001 | AU79: 14 | AV79: 0.9413903418 | AW79: 4.330203886 | AX79: 3.983403084 | AZ79: 94.13903418 | BA79: 0.4350336155 | BB79: 0.3783105539 | BC79: 0.1968274493 | BD79: 0.1810637765 | BE79: 0.8133441694
A80: Total | B80: =SUM(B77:B79) -> 0.01028182666 | C80: A | G80: 71 | H80: 24 | I80: 1 | J80: 2.84 | K80: 2.84 | L80: 0.6574074074 | M80: 0.2176142286 | N80: 2.737711854 | O80: 4.208855927 | P80: 1.471144073 | Q80: 0 | R80: 2.947912626 | S80: 0.1824939658 | T80: 0.2506040217 | U80: 0.4400411452 | V80: 0.790309338 | W80: 0.001249177699 | X80: 0.001249177699 | Y80: 1.216378466 | Z80: 0.001479576573 | AA80: 0.001479576573 | AB80: 1.375175895 | AC80: 0.07753545847 | AD80: 0.07767584416 | AE80: 0.0159744 | AF80: 0 | AG80: 0.1723617476 | AH80: 2.607504575 | AI80: 0.1427806822 | AJ80: 0.026464256 | AK80: 0.1713985091 | AL80: 0.04253184 | AM80: 0.00084 | AN80: 0.03744 | AO80: 0.1550016 | AP80: 0.142272 | AQ80: 0.03828 | AR80: 0.8543404684 | AS80: 0.8854794592 | AT80: 0.8854794592 | AU80: 14.2 | AV80: 0.9413025312 | AW80: 4.409520763 | AX80: 4.079548358 | AZ80: 94.13025312 | BA80: 0.4400411452 | BB80: 0.3862920967 | BC80: 0.200432762 | BD80: 0.1854340163 | BE80: 0.8263332418
G81: 72 | H81: 24 | I81: 1 | J81: 2.88 | K81: 2.88 | L81: 0.6666666667 | M81: 0.2177446169 | N81: 2.738991311 | O81: 4.249495656 | P81: 1.510504344 | Q81: 0 | R81: 2.986565382 | S81: 0.1873110285 | T81: 0.2506040217 | U81: 0.4451237905 | V81: 0.7906786854 | W81: 0.001250345567 | X81: 0.001250345567 | Y81: 1.232593918 | Z81: 0.001519287768 | AA81: 0.001519287768 | AB81: 1.393624397 | AC81: 0.0796297473 | AD81: 0.07876987013 | AE81: 0.0159744 | AF81: 0 | AG81: 0.1756045519 | AH81: 2.641473798 | AI81: 0.1465250603 | AJ81: 0.026836992 | AK81: 0.175626618 | AL81: 0.04313088 | AM81: 0.00084 | AN81: 0.03744 | AO81: 0.1550016 | AP81: 0.142272 | AQ81: 0.03828 | AR81: 0.8670619999 | AS81: 0.8995319874 | AT81: 0.8995319874 | AU81: 14.4 | AV81: 0.9412052612 | AW81: 4.489560519 | AX81: 4.176915785 | AZ81: 94.12052612 | BA81: 0.4451237905 | BB81: 0.3943620499 | BC81: 0.2040709327 | BD81: 0.1898598084 | BE81: 0.8394858404
G82: 73 | H82: 24 | I82: 1 | J82: 2.92 | K82: 2.92 | L82: 0.6759259259 | M82: 0.2178749961 | N82: 2.740270221 | O82: 4.290135111 | P82: 1.549864889 | Q82: 0 | R82: 3.02525317 | S82: 0.1921952916 | T82: 0.2506040217 | U82: 0.4502817371 | V82: 0.791047875 | W82: 0.001251513481 | X82: 0.001251513481 | Y82: 1.248830526 | Z82: 0.001559577682 | AA82: 0.001559577682 | AB82: 1.412099895 | AC82: 0.08175507066 | AD82: 0.0798638961 | AE82: 0.0159744 | AF82: 0 | AG82: 0.1788803115 | AH82: 2.6754683 | AI82: 0.1503207432 | AJ82: 0.027209728 | AK82: 0.179910366 | AL82: 0.04372992 | AM82: 0.00084 | AN82: 0.03744 | AO82: 0.1550016 | AP82: 0.142272 | AQ82: 0.03828 | AR82: 0.8799330712 | AS82: 0.9137793453 | AT82: 0.9137793453 | AU82: 14.6 | AV82: 0.9410988564 | AW82: 4.570325292 | AX82: 4.275507272 | AZ82: 94.10988564 | BA82: 0.4502817371 | BB82: 0.4025205976 | BC82: 0.2077420587 | BD82: 0.1943412396 | BE82: 0.8528023347
G83: 74 | H83: 24 | I83: 1 | J83: 2.96 | K83: 2.96 | L83: 0.6851851852 | M83: 0.2180053661 | N83: 2.741548585 | O83: 4.330774292 | P83: 1.589225708 | Q83: 0 | R83: 3.063974661 | S83: 0.1971467551 | T83: 0.2506040217 | U83: 0.4555151734 | V83: 0.7914169067 | W83: 0.00125268144 | X83: 0.00125268144 | Y83: 1.265087742 | Z83: 0.001600446994 | AA83: 0.001600446994 | AB83: 1.43060178 | AC83: 0.0839114796 | AD83: 0.08095792208 | AE83: 0.0159744 | AF83: 0 | AG83: 0.1821891245 | AH83: 2.709486901 | AI83: 0.1541677046 | AJ83: 0.027582464 | AK83: 0.1842498416 | AL83: 0.04432896 | AM83: 0.00084 | AN83: 0.03744 | AO83: 0.1550016 | AP83: 0.142272 | AQ83: 0.03828 | AR83: 0.8929537071 | AS83: 0.9282227141 | AT83: 0.9282227141 | AU83: 14.8 | AV83: 0.9409836235 | AW83: 4.651817238 | AX83: 4.375324765 | AZ83: 94.09836235 | BA83: 0.4555151734 | BB83: 0.4107679261 | BC83: 0.2114462381 | BD83: 0.1988783984 | BE83: 0.8662830995
G84: 75 | H84: 24 | I84: 1 | J84: 3 | K84: 3 | L84: 0.6944444444 | M84: 0.218135727 | N84: 2.742826402 | O84: 4.371413201 | P84: 1.628586799 | Q84: 0 | R84: 3.102728593 | S84: 0.2021654192 | T84: 0.2506040217 | U84: 0.460824291 | V84: 0.7917857807 | W84: 0.001253849445 | X84: 0.001253849445 | Y84: 1.281365047 | Z84: 0.001641896383 | AA84: 0.001641896383 | AB84: 1.449129471 | AC84: 0.08609902517 | AD84: 0.08205194805 | AE84: 0.0159744 | AF84: 0 | AG84: 0.1855310893 | AH84: 2.743528476 | AI84: 0.1580659185 | AJ84: 0.0279552 | AK84: 0.1886451347 | AL84: 0.044928 | AM84: 0.00084 | AN84: 0.03744 | AO84: 0.1550016 | AP84: 0.142272 | AQ84: 0.03828 | AR84: 0.9061239325 | AS84: 0.9428632959 | AT84: 0.9428632959 | AU84: 15 | AV84: 0.9408598519 | AW84: 4.734038524 | AX84: 4.476370244 | AZ84: 94.08598519 | BA84: 0.460824291 | BB84: 0.419104224 | BC84: 0.2151835693 | BD84: 0.2034713747 | BE84: 0.879928515
G85: 76 | H85: 24 | I85: 1 | J85: 3.04 | K85: 3.04 | L85: 0.7037037037 | M85: 0.2182660789 | N85: 2.744103672 | O85: 4.412051836 | P85: 1.667948164 | Q85: 0 | R85: 3.141513767 | S85: 0.2072512837 | T85: 0.2506040217 | U85: 0.4662092843 | V85: 0.7921544969 | W85: 0.001255017494 | X85: 0.001255017494 | Y85: 1.297661946 | Z85: 0.001683926526 | AA85: 0.001683926526 | AB85: 1.467682414 | AC85: 0.0883177584 | AD85: 0.08314597403 | AE85: 0.0159744 | AF85: 0 | AG85: 0.1889063052 | AH85: 2.777591957 | AI85: 0.1620153586 | AJ85: 0.028327936 | AK85: 0.193096337 | AL85: 0.04552704 | AM85: 0.00084 | AN85: 0.03744 | AO85: 0.1550016 | AP85: 0.142272 | AQ85: 0.03828 | AR85: 0.9194437724 | AS85: 0.9577023137 | AT85: 0.9577023137 | AU85: 15.2 | AV85: 0.9407278154 | AW85: 4.816991335 | AX85: 4.578645725 | AZ85: 94.07278154 | BA85: 0.4662092843 | BB85: 0.4275296822 | BC85: 0.2189541516 | BD85: 0.2081202602 | BE85: 0.8937389666
G86: 77 | H86: 24 | I86: 1 | J86: 3.08 | K86: 3.08 | L86: 0.712962963 | M86: 0.2183964216 | N86: 2.745380396 | O86: 4.452690198 | P86: 1.707309802 | Q86: 0 | R86: 3.180329039 | S86: 0.2124043487 | T86: 0.2506040217 | U86: 0.4716703511 | V86: 0.7925230553 | W86: 0.001256185586 | X86: 0.001256185586 | Y86: 1.313977968 | Z86: 0.0017265381 | AA86: 0.0017265381 | AB86: 1.486260082 | AC86: 0.09056773034 | AD86: 0.08424 | AE86: 0.0159744 | AF86: 0 | AG86: 0.1923148722 | AH86: 2.811676326 | AI86: 0.166015999 | AJ86: 0.028700672 | AK86: 0.1976035417 | AL86: 0.04612608 | AM86: 0.00084 | AN86: 0.03744 | AO86: 0.1550016 | AP86: 0.142272 | AQ86: 0.03828 | AR86: 0.9329132516 | AS86: 0.9727410119 | AT86: 0.9727410119 | AU86: 15.4 | AV86: 0.9405877726 | AW86: 4.900677871 | AX86: 4.682153259 | AZ86: 94.05877726 | BA86: 0.4716703511 | BB86: 0.4360444939 | BC86: 0.222758085 | BD86: 0.2128251481 | BE86: 0.907714845
G87: 78 | H87: 24 | I87: 1 | J87: 3.12 | K87: 3.12 | L87: 0.7222222222 | M87: 0.2185267553 | N87: 2.746656573 | O87: 4.493328287 | P87: 1.746671713 | Q87: 0 | R87: 3.21917332 | S87: 0.2176246141 | T87: 0.2506040217 | U87: 0.4772076918 | V87: 0.792891456 | W87: 0.001257353722 | X87: 0.001257353722 | Y87: 1.330312663 | Z87: 0.001769731782 | AA87: 0.001769731782 | AB87: 1.504861974 | AC87: 0.09284899201 | AD87: 0.08533402597 | AE87: 0.0159744 | AF87: 0 | AG87: 0.195756891 | AH87: 2.845780613 | AI87: 0.1700678133 | AJ87: 0.029073408 | AK87: 0.2021668437 | AL87: 0.04672512 | AM87: 0.00084 | AN87: 0.03744 | AO87: 0.1550016 | AP87: 0.142272 | AQ87: 0.03828 | AR87: 0.946532395 | AS87: 0.9879806565 | AT87: 0.9879806565 | AU87: 15.6 | AV87: 0.9404399681 | AW87: 4.985100345 | AX87: 4.786894933 | AZ87: 94.04399681 | BA87: 0.4772076918 | BB87: 0.4446488547 | BC87: 0.2265954702 | BD87: 0.2175861333 | BE87: 0.9218565465
G88: 79 | H88: 24 | I88: 1 | J88: 3.16 | K88: 3.16 | L88: 0.7314814815 | M88: 0.2186570798 | N88: 2.747932204 | O88: 4.533966102 | P88: 1.786033898 | Q88: 0 | R88: 3.258045572 | S88: 0.2229120799 | T88: 0.2506040217 | U88: 0.4828215102 | V88: 0.793259699 | W88: 0.0012585219 | X88: 0.0012585219 | Y88: 1.346665603 | Z88: 0.001813508246 | AA88: 0.001813508246 | AB88: 1.52348761 | AC88: 0.09516159443 | AD88: 0.08642805195 | AE88: 0.0159744 | AF88: 0 | AG88: 0.1992324629 | AH88: 2.879903896 | AI88: 0.1741707755 | AJ88: 0.029446144 | AK88: 0.2067863396 | AL88: 0.04732416 | AM88: 0.00084 | AN88: 0.03744 | AO88: 0.1550016 | AP88: 0.142272 | AQ88: 0.03828 | AR88: 0.9603012275 | AS88: 1.003422535 | AT88: 1.003422535 | AU88: 15.8 | AV88: 0.9402846335 | AW88: 5.070260987 | AX88: 4.892872872 | AZ88: 94.02846335 | BA88: 0.4828215102 | BB88: 0.4533429625 | BC88: 0.2304664085 | BD88: 0.2224033124 | BE88: 0.9361644726
G89: 80 | H89: 24 | I89: 1 | J89: 3.2 | K89: 3.2 | L89: 0.7407407407 | M89: 0.2187873953 | N89: 2.749207289 | O89: 4.574603645 | P89: 1.825396355 | Q89: 0 | R89: 3.296944807 | S89: 0.2282667463 | T89: 0.2506040217 | U89: 0.4885120131 | V89: 0.7936277842 | W89: 0.00125969012 | X89: 0.00125969012 | Y89: 1.363036378 | Z89: 0.001857868167 | AA89: 0.001857868167 | AB89: 1.542136533 | AC89: 0.0975055886 | AD89: 0.08752207792 | AE89: 0.0159744 | AF89: 0 | AG89: 0.2027416899 | AH89: 2.914045293 | AI89: 0.1783248594 | AJ89: 0.02981888 | AK89: 0.2114621274 | AL89: 0.0479232 | AM89: 0.00084 | AN89: 0.03744 | AO89: 0.1550016 | AP89: 0.142272 | AQ89: 0.03828 | AR89: 0.9742197739 | AS89: 1.019067958 | AT89: 1.019067958 | AU89: 16 | AV89: 0.9401219878 | AW89: 5.156162043 | AX89: 5.000089234 | AZ89: 94.01219878 | BA89: 0.4885120131 | BB89: 0.4621270173 | BC89: 0.2343710019 | BD89: 0.2272767834 | BE89: 0.9506390304
G90: 81 | H90: 24 | I90: 1 | J90: 3.24 | K90: 3.24 | L90: 0.75 | M90: 0.2189177016 | N90: 2.750481827 | O90: 4.615240914 | P90: 1.864759086 | Q90: 0 | R90: 3.33587008 | S90: 0.233688613 | T90: 0.2506040217 | U90: 0.4942794105 | V90: 0.7939957117 | W90: 0.001260858381 | X90: 0.001260858381 | Y90: 1.379424597 | Z90: 0.001902812219 | AA90: 0.001902812219 | AB90: 1.560808308 | AC90: 0.09988102554 | AD90: 0.0886161039 | AE90: 0.0159744 | AF90: 0 | AG90: 0.2062846748 | AH90: 2.948203964 | AI90: 0.1825300389 | AJ90: 0.030191616 | AK90: 0.216194307 | AL90: 0.04852224 | AM90: 0.00084 | AN90: 0.03744 | AO90: 0.1550016 | AP90: 0.142272 | AQ90: 0.03828 | AR90: 0.988288059 | AS90: 1.034918258 | AT90: 1.034918258 | AU90: 16.2 | AV90: 0.9399522387 | AW90: 5.242805771 | AX90: 5.108546216 | AZ90: 93.99522387 | BA90: 0.4942794105 | BB90: 0.4710012218 | BC90: 0.2383093532 | BD90: 0.2322066462 | BE90: 0.9652806323
G91: 82 | H91: 24 | I91: 1 | J91: 3.28 | K91: 3.28 | L91: 0.7592592593 | M91: 0.2190479989 | N91: 2.75175582 | O91: 4.65587791 | P91: 1.90412209 | Q91: 0 | R91: 3.37482049 | S91: 0.2391776802 | T91: 0.2506040217 | U91: 0.5001239154 | V91: 0.7943634816 | W91: 0.001262026682 | X91: 0.001262026682 | Y91: 1.395829888 | Z91: 0.001948341076 | AA91: 0.001948341076 | AB91: 1.579502517 | AC91: 0.1022879562 | AD91: 0.08971012987 | AE91: 0.0159744 | AF91: 0 | AG91: 0.2098615211 | AH91: 2.982379107 | AI91: 0.1867862879 | AJ91: 0.030564352 | AK91: 0.2209829799 | AL91: 0.04912128 | AM91: 0.00084 | AN91: 0.03744 | AO91: 0.1550016 | AP91: 0.142272 | AQ91: 0.03828 | AR91: 1.002506108 | AS91: 1.050974791 | AT91: 1.050974791 | AU91: 16.4 | AV91: 0.9397755826 | AW91: 5.330194449 | AX91: 5.218246051 | AZ91: 93.97755826 | BA91: 0.5001239154 | BB91: 0.479965781 | BC91: 0.2422815659 | BD91: 0.2371930023 | BE91: 0.9800896964
G92: 83 | H92: 24 | I92: 1 | J92: 3.32 | K92: 3.32 | L92: 0.7685185185 | M92: 0.2191782871 | N92: 2.753029266 | O92: 4.696514633 | P92: 1.943485367 | Q92: 0 | R92: 3.413795177 | S92: 0.2447339477 | T92: 0.2506040217 | U92: 0.5060457441 | V92: 0.7947310938 | W92: 0.001263195023 | X92: 0.001263195023 | Y92: 1.412251893 | Z92: 0.001994455409 | AA92: 0.001994455409 | AB92: 1.598218762 | AC92: 0.1047264317 | AD92: 0.09080415584 | AE92: 0.0159744 | AF92: 0 | AG92: 0.2134723328 | AH92: 3.016569956 | AI92: 0.1910935803 | AJ92: 0.030937088 | AK92: 0.2258282492 | AL92: 0.04972032 | AM92: 0.00084 | AN92: 0.03744 | AO92: 0.1550016 | AP92: 0.142272 | AQ92: 0.03828 | AR92: 1.016873945 | AS92: 1.067238934 | AT92: 1.067238934 | AU92: 16.6 | AV92: 0.9395922058 | AW92: 5.418330367 | AX92: 5.329191006 | AZ92: 93.95922058 | BA92: 0.5060457441 | BB92: 0.489020902 | BC92: 0.246287744 | BD92: 0.2422359548 | BE92: 0.9950666461
G93: 84 | H93: 24 | I93: 1 | J93: 3.36 | K93: 3.36 | L93: 0.7777777778 | M93: 0.2193085661 | N93: 2.754302166 | O93: 4.737151083 | P93: 1.982848917 | Q93: 0 | R93: 3.452793319 | S93: 0.2503574157 | T93: 0.2506040217 | U93: 0.5120451159 | V93: 0.7950985484 | W93: 0.001264363403 | X93: 0.001264363403 | Y93: 1.428690271 | Z93: 0.002041155891 | AA93: 0.002041155891 | AB93: 1.616956663 | AC93: 0.1071965029 | AD93: 0.09189818182 | AE93: 0.0159744 | AF93: 0 | AG93: 0.2171172148 | AH93: 3.050775779 | AI93: 0.1954518899 | AJ93: 0.031309824 | AK93: 0.2307302197 | AL93: 0.05031936 | AM93: 0.00084 | AN93: 0.03744 | AO93: 0.1550016 | AP93: 0.142272 | AQ93: 0.03828 | AR93: 1.031391596 | AS93: 1.083712089 | AT93: 1.083712089 | AU93: 16.8 | AV93: 0.9394022849 | AW93: 5.507215834 | AX93: 5.441383388 | AZ93: 93.94022849 | BA93: 0.5120451159 | BB93: 0.4981667946 | BC93: 0.2503279924 | BD93: 0.2473356085 | BE93: 1.01021191
G94: 85 | H94: 24 | I94: 1 | J94: 3.4 | K94: 3.4 | L94: 0.787037037 | M94: 0.2194388361 | N94: 2.75557452 | O94: 4.77778726 | P94: 2.02221274 | Q94: 0 | R94: 3.491814129 | S94: 0.2560480841 | T94: 0.2506040217 | U94: 0.5181222534 | V94: 0.7954658453 | W94: 0.001265531822 | X94: 0.001265531822 | Y94: 1.445144696 | Z94: 0.002088443193 | AA94: 0.002088443193 | AB94: 1.635715856 | AC94: 0.1096982208 | AD94: 0.09299220779 | AE94: 0.0159744 | AF94: 0 | AG94: 0.2207962729 | AH94: 3.084995875 | AI94: 0.1998611906 | AJ94: 0.03168256 | AK94: 0.2356889979 | AL94: 0.0509184 | AM94: 0.00084 | AN94: 0.03744 | AO94: 0.1550016 | AP94: 0.142272 | AQ94: 0.03828 | AR94: 1.046059085 | AS94: 1.100395684 | AT94: 1.100395684 | AU94: 17 | AV94: 0.9392059874 | AW94: 5.596853172 | AX94: 5.554825538 | AZ94: 93.92059874 | BA94: 0.5181222534 | BB94: 0.5074036708 | BC94: 0.2544024169 | BD94: 0.2524920699 | BE94: 1.025525924
G95: 86 | H95: 24 | I95: 1 | J95: 3.44 | K95: 3.44 | L95: 0.7962962963 | M95: 0.219569097 | N95: 2.756846328 | O95: 4.818423164 | P95: 2.061576836 | Q95: 0 | R95: 3.530856856 | S95: 0.2618059529 | T95: 0.2506040217 | U95: 0.5242773825 | V95: 0.7958329847 | W95: 0.001266700279 | X95: 0.001266700279 | Y95: 1.461614855 | Z95: 0.002136317983 | AA95: 0.002136317983 | AB95: 1.654495991 | AC95: 0.1122316364 | AD95: 0.09408623377 | AE95: 0.0159744 | AF95: 0 | AG95: 0.2245096133 | AH95: 3.119229577 | AI95: 0.2043214563 | AJ95: 0.032055296 | AK95: 0.240704692 | AL95: 0.05151744 | AM95: 0.00084 | AN95: 0.03744 | AO95: 0.1550016 | AP95: 0.142272 | AQ95: 0.03828 | AR95: 1.060876437 | AS95: 1.117291166 | AT95: 1.117291166 | AU95: 17.2 | AV95: 0.9390034719 | AW95: 5.687244721 | AX95: 5.669519838 | AZ95: 93.90034719 | BA95: 0.5242773825 | BB95: 0.5167317453 | BC95: 0.2585111237 | BD95: 0.2577054472 | BE95: 1.041009128
G96: 87 | H96: 24 | I96: 1 | J96: 3.48 | K96: 3.48 | L96: 0.8055555556 | M96: 0.2196993488 | N96: 2.75811759 | O96: 4.859058795 | P96: 2.100941205 | Q96: 0 | R96: 3.569920782 | S96: 0.2676310221 | T96: 0.2506040217 | U96: 0.5305107322 | V96: 0.7961999664 | W96: 0.001267868773 | X96: 0.001267868773 | Y96: 1.478100448 | Z96: 0.002184780933 | AA96: 0.002184780933 | AB96: 1.673296736 | AC96: 0.1147968006 | AD96: 0.09518025974 | AE96: 0.0159744 | AF96: 0 | AG96: 0.2282573431 | AH96: 3.153476244 | AI96: 0.2088326608 | AJ96: 0.032428032 | AK96: 0.2457774117 | AL96: 0.05211648 | AM96: 0.00084 | AN96: 0.03744 | AO96: 0.1550016 | AP96: 0.142272 | AQ96: 0.03828 | AR96: 1.075843677 | AS96: 1.134400011 | AT96: 1.134400011 | AU96: 17.4 | AV96: 0.9387948889 | AW96: 5.778392837 | AX96: 5.785468702 | AZ96: 93.87948889 | BA96: 0.5305107322 | BB96: 0.5261512348 | BC96: 0.2626542199 | BD96: 0.2629758501 | BE96: 1.056661967
G97: 88 | H97: 24 | I97: 1 | J97: 3.52 | K97: 3.52 | L97: 0.8148148148 | M97: 0.2198295915 | N97: 2.759388306 | O97: 4.899694153 | P97: 2.140305847 | Q97: 0 | R97: 3.609005216 | S97: 0.2735232917 | T97: 0.2506040217 | U97: 0.5368225349 | V97: 0.7965667905 | W97: 0.001269037304 | X97: 0.001269037304 | Y97: 1.494601188 | Z97: 0.002233832711 | AA97: 0.002233832711 | AB97: 1.69211777 | AC97: 0.1173937644 | AD97: 0.09627428571 | AE97: 0.0159744 | AF97: 0 | AG97: 0.23203957 | AH97: 3.187735263 | AI97: 0.2133947782 | AJ97: 0.032800768 | AK97: 0.2509072687 | AL97: 0.05271552 | AM97: 0.00084 | AN97: 0.03744 | AO97: 0.1550016 | AP97: 0.142272 | AQ97: 0.03828 | AR97: 1.09096083 | AS97: 1.151723718 | AT97: 1.151723718 | AU97: 17.6 | AV97: 0.9385803815 | AW97: 5.870299891 | AX97: 5.902674586 | AZ97: 93.85803815 | BA97: 0.5368225349 | BB97: 0.5356623587 | BC97: 0.2668318132 | BD97: 0.2683033903 | BE97: 1.072484894
G98: 89 | H98: 24 | I98: 1 | J98: 3.56 | K98: 3.56 | L98: 0.8240740741 | M98: 0.2199598251 | N98: 2.760658476 | O98: 4.940329238 | P98: 2.179670762 | Q98: 0 | R98: 3.648109502 | S98: 0.2794827616 | T98: 0.2506040217 | U98: 0.5432130261 | V98: 0.7969334571 | W98: 0.00127020587 | X98: 0.00127020587 | Y98: 1.5111168 | Z98: 0.002283473984 | AA98: 0.002283473984 | AB98: 1.710958787 | AC98: 0.1200225788 | AD98: 0.09736831169 | AE98: 0.0159744 | AF98: 0 | AG98: 0.2358564027 | AH98: 3.222006047 | AI98: 0.2180077823 | AJ98: 0.033173504 | AK98: 0.2560943762 | AL98: 0.05331456 | AM98: 0.00084 | AN98: 0.03744 | AO98: 0.1550016 | AP98: 0.142272 | AQ98: 0.03828 | AR98: 1.10622792 | AS98: 1.169263811 | AT98: 1.169263811 | AU98: 17.8 | AV98: 0.9383600849 | AW98: 5.962968271 | AX98: 6.021139981 | AZ98: 93.83600849 | BA98: 0.5432130261 | BB98: 0.5452653389 | BC98: 0.2710440123 | BD98: 0.273688181 | BE98: 1.088478365
G99: 90 | H99: 24 | I99: 1 | J99: 3.6 | K99: 3.6 | L99: 0.8333333333 | M99: 0.2200900497 | N99: 2.761928101 | O99: 4.98096405 | P99: 2.21903595 | Q99: 0 | R99: 3.687233005 | S99: 0.285509432 | T99: 0.2506040217 | U99: 0.5496824448 | V99: 0.7972999662 | W99: 0.001271374472 | X99: 0.001271374472 | Y99: 1.527647021 | Z99: 0.00233370542 | AA99: 0.00233370542 | AB99: 1.729819493 | AC99: 0.1226832946 | AD99: 0.09846233766 | AE99: 0.0159744 | AF99: 0 | AG99: 0.2397079505 | AH99: 3.256288033 | AI99: 0.2226716469 | AJ99: 0.03354624 | AK99: 0.2613388491 | AL99: 0.0539136 | AM99: 0.00084 | AN99: 0.03744 | AO99: 0.1550016 | AP99: 0.142272 | AQ99: 0.03828 | AR99: 1.121644973 | AS99: 1.187021839 | AT99: 1.187021839 | AU99: 18 | AV99: 0.9381341279 | AW99: 6.056400383 | AX99: 6.140867415 | AZ99: 93.81341279 | BA99: 0.5496824448 | BB99: 0.5549603996 | BC99: 0.2752909265 | BD99: 0.2791303371 | BE99: 1.104642844
G100: 91 | H100: 24 | I100: 1 | J100: 3.64 | K100: 3.64 | L100: 0.8425925926 | M100: 0.2202202651 | N100: 2.763197179 | O100: 5.02159859 | P100: 2.25840141 | Q100: 0 | R100: 3.726375123 | S100: 0.2916033026 | T100: 0.2506040217 | U100: 0.5562310331 | V100: 0.7976663177 | W100: 0.001272543109 | X100: 0.001272543109 | Y100: 1.544191596 | Z100: 0.002384527686 | AA100: 0.002384527686 | AB100: 1.748699607 | AC100: 0.1253759629 | AD100: 0.09955636364 | AE100: 0.0159744 | AF100: 0 | AG100: 0.2435943234 | AH100: 3.290580684 | AI100: 0.227386346 | AJ100: 0.033918976 | AK100: 0.2666408041 | AL100: 0.05451264 | AM100: 0.00084 | AN100: 0.03744 | AO100: 0.1550016 | AP100: 0.142272 | AQ100: 0.03828 | AR100: 1.137212013 | AS100: 1.204999379 | AT100: 1.204999379 | AU100: 18.2 | AV100: 0.9379026324 | AW100: 6.150598647 | AX100: 6.261859457 | AZ100: 93.79026324 | BA100: 0.5562310331 | BB100: 0.5647477675 | BC100: 0.2795726658 | BD100: 0.2846299753 | BE100: 1.120978801
G101: 92 | H101: 24 | I101: 1 | J101: 3.68 | K101: 3.68 | L101: 0.8518518519 | M101: 0.2203504715 | N101: 2.764465713 | O101: 5.062232856 | P101: 2.297767144 | Q101: 0 | R101: 3.765535273 | S101: 0.2977643737 | T101: 0.2506040217 | U101: 0.5628590368 | V101: 0.7980325117 | W101: 0.001273711779 | X101: 0.001273711779 | Y101: 1.560750283 | Z101: 0.002435941447 | AA101: 0.002435941447 | AB101: 1.767598857 | AC101: 0.1281006345 | AD101: 0.1006503896 | AE101: 0.0159744 | AF101: 0 | AG101: 0.2475156322 | AH101: 3.324883482 | AI101: 0.2321518536 | AJ101: 0.034291712 | AK101: 0.2720003597 | AL101: 0.05511168 | AM101: 0.00084 | AN101: 0.03744 | AO101: 0.1550016 | AP101: 0.142272 | AQ101: 0.03828 | AR101: 1.152929065 | AS101: 1.223198033 | AT101: 1.223198033 | AU101: 18.4 | AV101: 0.9376657143 | AW101: 6.245565502 | AX101: 6.384118709 | AZ101: 93.76657143 | BA101: 0.5628590368 | BB101: 0.5746276719 | BC101: 0.283889341 | BD101: 0.2901872141 | BE101: 1.137486709
G102: 93 | H102: 24 | I102: 1 | J102: 3.72 | K102: 3.72 | L102: 0.8611111111 | M102: 0.2204806688 | N102: 2.7657337 | O102: 5.10286685 | P102: 2.33713315 | Q102: 0 | R102: 3.804712899 | S102: 0.3039926451 | T102: 0.2506040217 | U102: 0.5695667047 | V102: 0.7983985482 | W102: 0.001274880484 | X102: 0.001274880484 | Y102: 1.577322848 | Z102: 0.002487947368 | AA102: 0.002487947368 | AB102: 1.786516985 | AC102: 0.1308573604 | AD102: 0.1017444156 | AE102: 0.0159744 | AF102: 0 | AG102: 0.2514719886 | AH102: 3.359195931 | AI102: 0.2369681434 | AJ102: 0.034664448 | AK102: 0.2774176359 | AL102: 0.05571072 | AM102: 0.00084 | AN102: 0.03744 | AO102: 0.1550016 | AP102: 0.142272 | AQ102: 0.03828 | AR102: 1.168796154 | AS102: 1.241619429 | AT102: 1.241619429 | AU102: 18.6 | AV102: 0.9374234833 | AW102: 6.341303403 | AX102: 6.507647817 | AZ102: 93.74234833 | BA102: 0.5695667047 | BB102: 0.5846003445 | BC102: 0.2882410638 | BD102: 0.2958021735 | BE102: 1.154167049
G103: 94 | H103: 24 | I103: 1 | J103: 3.76 | K103: 3.76 | L103: 0.8703703704 | M103: 0.2206108569 | N103: 2.767001142 | O103: 5.143500571 | P103: 2.376499429 | Q103: 0 | R103: 3.843907466 | S103: 0.3102881168 | T103: 0.2506040217 | U103: 0.5763542893 | V103: 0.7987644272 | W103: 0.00127604922 | X103: 0.00127604922 | Y103: 1.593909067 | Z103: 0.002540546114 | AA103: 0.002540546114 | AB103: 1.80545374 | AC103: 0.1336461915 | AD103: 0.1028384416 | AE103: 0.0159744 | AF103: 0 | AG103: 0.2554635048 | AH103: 3.393517556 | AI103: 0.2418351895 | AJ103: 0.035037184 | AK103: 0.2828927547 | AL103: 0.05630976 | AM103: 0.00084 | AN103: 0.03744 | AO103: 0.1550016 | AP103: 0.142272 | AQ103: 0.03828 | AR103: 1.184813305 | AS103: 1.260265223 | AT103: 1.260265223 | AU103: 18.8 | AV103: 0.9371760439 | AW103: 6.437814821 | AX103: 6.632449461 | AZ103: 93.71760439 | BA103: 0.5763542893 | BB103: 0.5946660195 | BC103: 0.2926279464 | BD103: 0.3014749755 | BE103: 1.171020309
G104: 95 | H104: 24 | I104: 1 | J104: 3.8 | K104: 3.8 | L104: 0.8796296296 | M104: 0.2207410361 | N104: 2.768268039 | O104: 5.18413402 | P104: 2.41586598 | Q104: 0 | R104: 3.883118463 | S104: 0.3166507889 | T104: 0.2506040217 | U104: 0.5832220463 | V104: 0.7991301488 | W104: 0.001277217989 | X104: 0.001277217989 | Y104: 1.610508723 | Z104: 0.002593738347 | AA104: 0.002593738347 | AB104: 1.824408883 | AC104: 0.1364671786 | AD104: 0.1039324675 | AE104: 0.0159744 | AF104: 0 | AG104: 0.2594902941 | AH104: 3.4278479 | AI104: 0.2467529657 | AJ104: 0.03540992 | AK104: 0.2884258396 | AL104: 0.0569088 | AM104: 0.00084 | AN104: 0.03744 | AO104: 0.1550016 | AP104: 0.142272 | AQ104: 0.03828 | AR104: 1.200980542 | AS104: 1.279137098 | AT104: 1.279137098 | AU104: 19 | AV104: 0.9369234947 | AW104: 6.535102246 | AX104: 6.75852636 | AZ104: 93.69234947 | BA104: 0.5832220463 | BB104: 0.6048249337 | BC104: 0.2970501021 | BD104: 0.3072057436 | BE104: 1.18804698
G105: 96 | H105: 24 | I105: 1 | J105: 3.84 | K105: 3.84 | L105: =Vout*K105/(Vin*Efficiency) -> 0.8888888889 | M105: 0.2208712061 | N105: =(Vin-(Rdson1+Rdcr)*K105-Vout)*M105/(Fsw*Lf) -> 2.76953439 | O105: 5.224767195 | P105: 2.455232805 | Q105: =IF(MIN(Vin, -P105/(Coss_Q1+Coss_Q2)*0.00000002)<0, 0, MIN(Vin, -P105/(Coss_Q1+Coss_Q2)*0.00000002)) -> 0 | R105: 3.922345395 | S105: =R105^2*Rdcr -> 0.3230806613 | T105: 0.2506040217 | U105: =(T105+S105*(1+Ltc*(Ta-25)))/(1-S105*Ltc*ThetaCa) -> 0.5901702351 | V105: 0.7994957129 | W105: 0.00127838679 | X105: 0.00127838679 | Y105: 1.627121609 | Z105: 0.002647524732 | AA105: 0.002647524732 | AB105: 1.843382183 | AC105: =Rdson1*AB105^2 -> 0.1393203728 | AD105: 0.1050264935 | AE105: 0.0159744 | AF105: 0 | AG105: =(AF105+AE105+AD105+AC105*(1+RdsonTopTc*Ta-RdsonTopTc*25))/(1-AC105*RdsonTopTc*ThetaJA_Q1) -> 0.2635524704 | AH105: 3.462186523 | AI105: =Rdson2*AH105^2 -> 0.251721446 | AJ105: 0.035782656 | AK105: =(AJ105+AI105*(1+RdsonBotTc*Ta-RdsonBotTc*25))/(1-AI105*RdsonBotTc*ThetaJA_Q2) -> 0.2940170162 | AL105: 0.05750784 | AM105: 0.00084 | AN105: 0.03744 | AO105: 0.1550016 | AP105: 0.142272 | AQ105: 0.03828 | AR105: 1.217297891 | AS105: 1.298236766 | AT105: 1.298236766 | AU105: 19.2 | AV105: 0.9366659298 | AW105: 6.633168185 | AX105: 6.885881274 | AZ105: 93.66659298 | BA105: 0.5901702351 | BB105: 0.6150773265 | BC105: 0.3015076448 | BD105: 0.3129946034 | BE105: 1.205247562
G106: 97 | H106: 24 | I106: 1 | J106: 3.88 | K106: 3.88 | L106: =Vout*K106/(Vin*Efficiency) -> 0.8981481481 | M106: 0.221001367 | N106: =(Vin-(Rdson1+Rdcr)*K106-Vout)*M106/(Fsw*Lf) -> 2.770800196 | O106: 5.265400098 | P106: 2.494599902 | Q106: =IF(MIN(Vin, -P106/(Coss_Q1+Coss_Q2)*0.00000002)<0, 0, MIN(Vin, -P106/(Coss_Q1+Coss_Q2)*0.00000002)) -> 0 | R106: 3.961587789 | S106: =R106^2*Rdcr -> 0.329577734 | T106: 0.2506040217 | U106: =(T106+S106*(1+Ltc*(Ta-25)))/(1-S106*Ltc*ThetaCa) -> 0.5971991183 | V106: 0.7998611196 | W106: 0.001279555621 | X106: 0.001279555621 | Y106: 1.643747526 | Z106: 0.002701905929 | AA106: 0.002701905929 | AB106: 1.862373419 | AC106: =Rdson1*AB106^2 -> 0.1422058248 | AD106: 0.1061205195 | AE106: 0.0159744 | AF106: 0 | AG106: =(AF106+AE106+AD106+AC106*(1+RdsonTopTc*Ta-RdsonTopTc*25))/(1-AC106*RdsonTopTc*ThetaJA_Q1) -> 0.2676501483 | AH106: 3.496533006 | AI106: =Rdson2*AH106^2 -> 0.2567406043 | AJ106: 0.036155392 | AK106: =(AJ106+AI106*(1+RdsonBotTc*Ta-RdsonBotTc*25))/(1-AI106*RdsonBotTc*ThetaJA_Q2) -> 0.2996664114 | AL106: 0.05810688 | AM106: 0.00084 | AN106: 0.03744 | AO106: 0.1550016 | AP106: 0.142272 | AQ106: 0.03828 | AR106: 1.233765376 | AS106: 1.317565967 | AT106: 1.317565967 | AU106: 19.4 | AV106: 0.9364034381 | AW106: 6.732015161 | AX106: 7.014516999 | AZ106: 93.64034381 | BA106: 0.5971991183 | BB106: 0.6254234397 | BC106: 0.3060006891 | BD106: 0.3188416818 | BE106: 1.222622558
G107: 98 | H107: 24 | I107: 1 | J107: 3.92 | K107: 3.92 | L107: =Vout*K107/(Vin*Efficiency) -> 0.9074074074 | M107: 0.2211315189 | N107: =(Vin-(Rdson1+Rdcr)*K107-Vout)*M107/(Fsw*Lf) -> 2.772065457 | O107: 5.306032728 | P107: 2.533967272 | Q107: =IF(MIN(Vin, -P107/(Coss_Q1+Coss_Q2)*0.00000002)<0, 0, MIN(Vin, -P107/(Coss_Q1+Coss_Q2)*0.00000002)) -> 0 | R107: 4.000845191 | S107: =R107^2*Rdcr -> 0.3361420071 | T107: 0.2506040217 | U107: =(T107+S107*(1+Ltc*(Ta-25)))/(1-S107*Ltc*ThetaCa) -> 0.6043089622 | V107: 0.8002263688 | W107: 0.001280724483 | X107: 0.001280724483 | Y107: 1.660386281 | Z107: 0.002756882601 | AA107: 0.002756882601 | AB107: 1.881382377 | AC107: =Rdson1*AB107^2 -> 0.1451235855 | AD107: 0.1072145455 | AE107: 0.0159744 | AF107: 0 | AG107: =(AF107+AE107+AD107+AC107*(1+RdsonTopTc*Ta-RdsonTopTc*25))/(1-AC107*RdsonTopTc*ThetaJA_Q1) -> 0.2717834435 | AH107: 3.530886942 | AI107: =Rdson2*AH107^2 -> 0.2618104145 | AJ107: 0.036528128 | AK107: =(AJ107+AI107*(1+RdsonBotTc*Ta-RdsonBotTc*25))/(1-AI107*RdsonBotTc*ThetaJA_Q2) -> 0.3053741543 | AL107: 0.05870592 | AM107: 0.00084 | AN107: 0.03744 | AO107: 0.1550016 | AP107: 0.142272 | AQ107: 0.03828 | AR107: 1.250383022 | AS107: 1.337126468 | AT107: 1.337126468 | AU107: 19.6 | AV107: 0.936136104 | AW107: 6.831645716 | AX107: 7.144436373 | AZ107: 93.6136104 | BA107: 0.6043089622 | BB107: 0.6358635178 | BC107: 0.3105293507 | BD107: 0.3247471079 | BE107: 1.24017248
G108: 99 | H108: 24 | I108: 1 | J108: 3.96 | K108: 3.96 | L108: =Vout*K108/(Vin*Efficiency) -> 0.9166666667 | M108: 0.2212616617 | N108: =(Vin-(Rdson1+Rdcr)*K108-Vout)*M108/(Fsw*Lf) -> 2.773330172 | O108: 5.346665086 | P108: 2.573334914 | Q108: =IF(MIN(Vin, -P108/(Coss_Q1+Coss_Q2)*0.00000002)<0, 0, MIN(Vin, -P108/(Coss_Q1+Coss_Q2)*0.00000002)) -> 0 | R108: 4.040117163 | S108: =R108^2*Rdcr -> 0.3427734804 | T108: 0.2506040217 | U108: =(T108+S108*(1+Ltc*(Ta-25)))/(1-S108*Ltc*ThetaCa) -> 0.6115000365 | V108: 0.8005914607 | W108: 0.001281893374 | X108: 0.001281893374 | Y108: 1.677037688 | Z108: 0.002812455407 | AA108: 0.002812455407 | AB108: 1.900408851 | AC108: =Rdson1*AB108^2 -> 0.1480737059 | AD108: 0.1083085714 | AE108: 0.0159744 | AF108: 0 | AG108: =(AF108+AE108+AD108+AC108*(1+RdsonTopTc*Ta-RdsonTopTc*25))/(1-AC108*RdsonTopTc*ThetaJA_Q1) -> 0.2759524722 | AH108: 3.565247941 | AI108: =Rdson2*AH108^2 -> 0.2669308506 | AJ108: 0.036900864 | AK108: =(AJ108+AI108*(1+RdsonBotTc*Ta-RdsonBotTc*25))/(1-AI108*RdsonBotTc*ThetaJA_Q2) -> 0.3111403755 | AL108: 0.05930496 | AM108: 0.00084 | AN108: 0.03744 | AO108: 0.1550016 | AP108: 0.142272 | AQ108: 0.03828 | AR108: 1.267150854 | AS108: 1.356920067 | AT108: 1.356920067 | AU108: 19.8 | AV108: 0.9358640075 | AW108: 6.932062408 | AX108: 7.275642271 | AZ108: 93.58640075 | BA108: 0.6115000365 | BB108: 0.6463978077 | BC108: 0.3150937458 | BD108: 0.3307110123 | BE108: 1.257897844
G109: 100 | H109: 24 | I109: 1 | J109: 4 | K109: 4 | L109: =Vout*K109/(Vin*Efficiency) -> 0.9259259259 | M109: 0.2213917954 | N109: =(Vin-(Rdson1+Rdcr)*K109-Vout)*M109/(Fsw*Lf) -> 2.774594342 | O109: 5.387297171 | P109: 2.612702829 | Q109: =IF(MIN(Vin, -P109/(Coss_Q1+Coss_Q2)*0.00000002)<0, 0, MIN(Vin, -P109/(Coss_Q1+Coss_Q2)*0.00000002)) -> 0 | R109: 4.079403283 | S109: =R109^2*Rdcr -> 0.3494721541 | T109: 0.2506040217 | U109: =(T109+S109*(1+Ltc*(Ta-25)))/(1-S109*Ltc*ThetaCa) -> 0.6187726146 | V109: 0.8009563952 | W109: 0.001283062294 | X109: 0.001283062294 | Y109: 1.69370157 | Z109: 0.002868625008 | AA109: 0.002868625008 | AB109: 1.919452646 | AC109: =Rdson1*AB109^2 -> 0.1510562368 | AD109: 0.1094025974 | AE109: 0.0159744 | AF109: 0 | AG109: =(AF109+AE109+AD109+AC109*(1+RdsonTopTc*Ta-RdsonTopTc*25))/(1-AC109*RdsonTopTc*ThetaJA_Q1) -> 0.2801573515 | AH109: 3.599615631 | AI109: =Rdson2*AH109^2 -> 0.2721018865 | AJ109: 0.0372736 | AK109: =(AJ109+AI109*(1+RdsonBotTc*Ta-RdsonBotTc*25))/(1-AI109*RdsonBotTc*ThetaJA_Q2) -> 0.3169652076 | AL109: 0.059904 | AM109: 0.00084 | AN109: 0.03744 | AO109: 0.1550016 | AP109: 0.142272 | AQ109: 0.03828 | AR109: 1.284068896 | AS109: 1.376948592 | AT109: 1.376948592 | AU109: 20 | AV109: 0.9355872244 | AW109: 7.033267814 | AX109: 7.408137607 | AZ109: 93.55872244 | BA109: 0.6187726146 | BB109: 0.6570265591 | BC109: 0.3196939915 | BD109: 0.3367335276 | BE109: 1.275799174

Sheet Efficiency Plot Management (hidden)
A2: ="EFF_Ch1" -> EFF_Ch1
A3: ="EFF_Ch2" -> EFF_Ch2

Sheet Standard Value Calculator (hidden)
A2: Capacitors | B2: Css | C2: Cc1ea | D2: Cc2ea | E2: Cout | F2: Cin | G2: Cres | H2: Cdither | I2: Cc3ea | J2: Cc4ea
A3: Inputs | B3: =Css ->  | C3: =Cc1ea -> 1.399962026e-11 | D3: =Cc2ea -> -1.220324357e-13 | E3: =Cout -> 6e-05 | F3: =Cin -> 2e-05 | G3: =Cres ->  | H3: =Cdither_init ->  | I3: =Cc3ea ->  | J3: =Cc4ea ->  | M3: Resistors | N3: inputs | O3: Standard Result
A4: Standard Result | B4: =SUM(B6:B158)/1000000000000 ->  | C4: =IF(C3="OPEN","OPEN",SUM(C6:C158)/1000000000000) -> 1.5e-11 | D4: =SUM(D6:D158)/1000000000000 -> 0 | E4: =SUM(E6:E158)/1000000000000 -> 5.6e-05 | F4: =SUM(F6:F158)/1000000000000 -> 2.2e-05 | G4: =SUM(G6:G158)/1000000000000 ->  | H4: =IF(H3="OPEN","OPEN",SUM(H6:H158)/1000000000000) ->  | I4: =IF(I3="OPEN","OPEN",SUM(I6:I158)/1000000000000) ->  | J4: =IF(J3="OPEN","OPEN",SUM(J6:J158)/1000000000000) ->  | M4: Rt | N4: =Rfadj -> 15.8 | O4: =IF(N4>(INT(0.5+100*POWER(10,IF(96*(LOG(N4)-INT(LOG(N4)))-ROUND(96*(LOG(N4)-INT(LOG(N4))),0)<0,ROUND(96*(LOG(N4)-INT(LOG(N4))),0)-1,ROUND(96*(LOG(N4)-INT(LOG(N4))),0))/96))*POWER(10,INT(LOG(N4))-2)+INT(0.5+100*POWER(10,(IF(96*(LOG(N4)-INT(LOG(N4)))-ROUND(96*(LOG(N4)-INT(LOG(N4))),0)<0,ROUND(96*(LOG(N4)-INT(LOG(N4))),0)-1,ROUND(96*(LOG(N4)-INT(LOG(N4))),0))+1)/96))*POWER(10,INT(LOG(N4))-2))/2,INT(0.5+100*POWER(10,(IF(96*(LOG(N4)-INT(LOG(N4)))-ROUND(96*(LOG(N4)-INT(LOG(N4))),0)<0,ROUND(96*(LOG(N4)-INT(LOG(N4))),0)-1,ROUND(96*(LOG(N4)-INT(LOG(N4))),0))+1)/96))*POWER(10,INT(LOG(N4))-2),INT(0.5+100*POWER(10,IF(96*(LOG(N4)-INT(LOG(N4)))-ROUND(96*(LOG(N4)-INT(LOG(N4))),0)<0,ROUND(96*(LOG(N4)-INT(LOG(N4))),0)-1,ROUND(96*(LOG(N4)-INT(LOG(N4))),0))/96))*POWER(10,INT(LOG(N4))-2)) -> 15.8 | P4: Ω
A5: (pF)
A6: 0.47 | B6: =IF(IF((B$3*10^12-$A7)*(B$3*10^12-$A6)*-1<0,0,1)*IF(ABS(B$3*10^12-$A7)>(B$3*10^12-$A6),$A6,$A7)=B7,0,IF((B$3*10^12-$A7)*(B$3*10^12-$A6)*-1<0,0,1)*IF(ABS(B$3*10^12-$A7)>(B$3*10^12-$A6),$A6,$A7)) ->  | C6: 0 | D6: 0 | E6: 0 | F6: 0
A7: 0.56 | B7: =IF(IF((B$3*10^12-$A8)*(B$3*10^12-$A7)*-1<0,0,1)*IF(ABS(B$3*10^12-$A8)>(B$3*10^12-$A7),$A7,$A8)=B8,0,IF((B$3*10^12-$A8)*(B$3*10^12-$A7)*-1<0,0,1)*IF(ABS(B$3*10^12-$A8)>(B$3*10^12-$A7),$A7,$A8)) ->  | C7: =IF(IF((C$3*10^12-$A8)*(C$3*10^12-$A7)*-1<0,0,1)*IF(ABS(C$3*10^12-$A8)>(C$3*10^12-$A7),$A7,$A8)=C8,0,IF((C$3*10^12-$A8)*(C$3*10^12-$A7)*-1<0,0,1)*IF(ABS(C$3*10^12-$A8)>(C$3*10^12-$A7),$A7,$A8)) -> 0 | D7: =IF(IF((D$3*10^12-$A8)*(D$3*10^12-$A7)*-1<0,0,1)*IF(ABS(D$3*10^12-$A8)>(D$3*10^12-$A7),$A7,$A8)=D8,0,IF((D$3*10^12-$A8)*(D$3*10^12-$A7)*-1<0,0,1)*IF(ABS(D$3*10^12-$A8)>(D$3*10^12-$A7),$A7,$A8)) -> 0 | E7: =IF(IF((E$3*10^12-$A8)*(E$3*10^12-$A7)*-1<0,0,1)*IF(ABS(E$3*10^12-$A8)>(E$3*10^12-$A7),$A7,$A8)=E8,0,IF((E$3*10^12-$A8)*(E$3*10^12-$A7)*-1<0,0,1)*IF(ABS(E$3*10^12-$A8)>(E$3*10^12-$A7),$A7,$A8)) -> 0 | F7: =IF(IF((F$3*10^12-$A8)*(F$3*10^12-$A7)*-1<0,0,1)*IF(ABS(F$3*10^12-$A8)>(F$3*10^12-$A7),$A7,$A8)=F8,0,IF((F$3*10^12-$A8)*(F$3*10^12-$A7)*-1<0,0,1)*IF(ABS(F$3*10^12-$A8)>(F$3*10^12-$A7),$A7,$A8)) -> 0 | G7: =IF(IF((G$3*10^12-$A8)*(G$3*10^12-$A7)*-1<0,0,1)*IF(ABS(G$3*10^12-$A8)>(G$3*10^12-$A7),$A7,$A8)=G8,0,IF((G$3*10^12-$A8)*(G$3*10^12-$A7)*-1<0,0,1)*IF(ABS(G$3*10^12-$A8)>(G$3*10^12-$A7),$A7,$A8)) ->  | M7: Renb | N7: =Renb -> 99888.96163 | O7: =IF(N7>(INT(0.5+100*POWER(10,IF(96*(LOG(N7)-INT(LOG(N7)))-ROUND(96*(LOG(N7)-INT(LOG(N7))),0)<0,ROUND(96*(LOG(N7)-INT(LOG(N7))),0)-1,ROUND(96*(LOG(N7)-INT(LOG(N7))),0))/96))*POWER(10,INT(LOG(N7))-2)+INT(0.5+100*POWER(10,(IF(96*(LOG(N7)-INT(LOG(N7)))-ROUND(96*(LOG(N7)-INT(LOG(N7))),0)<0,ROUND(96*(LOG(N7)-INT(LOG(N7))),0)-1,ROUND(96*(LOG(N7)-INT(LOG(N7))),0))+1)/96))*POWER(10,INT(LOG(N7))-2))/2,INT(0.5+100*POWER(10,(IF(96*(LOG(N7)-INT(LOG(N7)))-ROUND(96*(LOG(N7)-INT(LOG(N7))),0)<0,ROUND(96*(LOG(N7)-INT(LOG(N7))),0)-1,ROUND(96*(LOG(N7)-INT(LOG(N7))),0))+1)/96))*POWER(10,INT(LOG(N7))-2),INT(0.5+100*POWER(10,IF(96*(LOG(N7)-INT(LOG(N7)))-ROUND(96*(LOG(N7)-INT(LOG(N7))),0)<0,ROUND(96*(LOG(N7)-INT(LOG(N7))),0)-1,ROUND(96*(LOG(N7)-INT(LOG(N7))),0))/96))*POWER(10,INT(LOG(N7))-2)) -> 100000 | P7: Ω
A8: 0.68 | C8: 0 | D8: 0 | E8: 0 | F8: 0 | M8: Rc1ea | N8: =Rcea2 -> 0 | O8: =IF(N8>(INT(0.5+100*POWER(10,IF(96*(LOG(N8)-INT(LOG(N8)))-ROUND(96*(LOG(N8)-INT(LOG(N8))),0)<0,ROUND(96*(LOG(N8)-INT(LOG(N8))),0)-1,ROUND(96*(LOG(N8)-INT(LOG(N8))),0))/96))*POWER(10,INT(LOG(N8))-2)+INT(0.5+100*POWER(10,(IF(96*(LOG(N8)-INT(LOG(N8)))-ROUND(96*(LOG(N8)-INT(LOG(N8))),0)<0,ROUND(96*(LOG(N8)-INT(LOG(N8))),0)-1,ROUND(96*(LOG(N8)-INT(LOG(N8))),0))+1)/96))*POWER(10,INT(LOG(N8))-2))/2,INT(0.5+100*POWER(10,(IF(96*(LOG(N8)-INT(LOG(N8)))-ROUND(96*(LOG(N8)-INT(LOG(N8))),0)<0,ROUND(96*(LOG(N8)-INT(LOG(N8))),0)-1,ROUND(96*(LOG(N8)-INT(LOG(N8))),0))+1)/96))*POWER(10,INT(LOG(N8))-2),INT(0.5+100*POWER(10,IF(96*(LOG(N8)-INT(LOG(N8)))-ROUND(96*(LOG(N8)-INT(LOG(N8))),0)<0,ROUND(96*(LOG(N8)-INT(LOG(N8))),0)-1,ROUND(96*(LOG(N8)-INT(LOG(N8))),0))/96))*POWER(10,INT(LOG(N8))-2)) ->  | P8: Ω
A9: 0.82 | C9: 0 | D9: 0 | E9: 0 | F9: 0
A10: 1 | C10: 0 | D10: 0 | E10: 0 | F10: 0 | M10: Rfb1 | N10: =Rfb1_ -> 10000 | O10: =IF(N10>(INT(0.5+100*POWER(10,IF(96*(LOG(N10)-INT(LOG(N10)))-ROUND(96*(LOG(N10)-INT(LOG(N10))),0)<0,ROUND(96*(LOG(N10)-INT(LOG(N10))),0)-1,ROUND(96*(LOG(N10)-INT(LOG(N10))),0))/96))*POWER(10,INT(LOG(N10))-2)+INT(0.5+100*POWER(10,(IF(96*(LOG(N10)-INT(LOG(N10)))-ROUND(96*(LOG(N10)-INT(LOG(N10))),0)<0,ROUND(96*(LOG(N10)-INT(LOG(N10))),0)-1,ROUND(96*(LOG(N10)-INT(LOG(N10))),0))+1)/96))*POWER(10,INT(LOG(N10))-2))/2,INT(0.5+100*POWER(10,(IF(96*(LOG(N10)-INT(LOG(N10)))-ROUND(96*(LOG(N10)-INT(LOG(N10))),0)<0,ROUND(96*(LOG(N10)-INT(LOG(N10))),0)-1,ROUND(96*(LOG(N10)-INT(LOG(N10))),0))+1)/96))*POWER(10,INT(LOG(N10))-2),INT(0.5+100*POWER(10,IF(96*(LOG(N10)-INT(LOG(N10)))-ROUND(96*(LOG(N10)-INT(LOG(N10))),0)<0,ROUND(96*(LOG(N10)-INT(LOG(N10))),0)-1,ROUND(96*(LOG(N10)-INT(LOG(N10))),0))/96))*POWER(10,INT(LOG(N10))-2)) -> 10000 | P10: Ω
A11: 1.2 | C11: 0 | D11: 0 | E11: 0 | F11: 0 | M11: Rfb2 | N11: =Rfb2_ -> 40000 | O11: =IF(N11="OPEN","OPEN",IF(N11>(INT(0.5+100*POWER(10,IF(96*(LOG(N11)-INT(LOG(N11)))-ROUND(96*(LOG(N11)-INT(LOG(N11))),0)<0,ROUND(96*(LOG(N11)-INT(LOG(N11))),0)-1,ROUND(96*(LOG(N11)-INT(LOG(N11))),0))/96))*POWER(10,INT(LOG(N11))-2)+INT(0.5+100*POWER(10,(IF(96*(LOG(N11)-INT(LOG(N11)))-ROUND(96*(LOG(N11)-INT(LOG(N11))),0)<0,ROUND(96*(LOG(N11)-INT(LOG(N11))),0)-1,ROUND(96*(LOG(N11)-INT(LOG(N11))),0))+1)/96))*POWER(10,INT(LOG(N11))-2))/2,INT(0.5+100*POWER(10,(IF(96*(LOG(N11)-INT(LOG(N11)))-ROUND(96*(LOG(N11)-INT(LOG(N11))),0)<0,ROUND(96*(LOG(N11)-INT(LOG(N11))),0)-1,ROUND(96*(LOG(N11)-INT(LOG(N11))),0))+1)/96))*POWER(10,INT(LOG(N11))-2),INT(0.5+100*POWER(10,IF(96*(LOG(N11)-INT(LOG(N11)))-ROUND(96*(LOG(N11)-INT(LOG(N11))),0)<0,ROUND(96*(LOG(N11)-INT(LOG(N11))),0)-1,ROUND(96*(LOG(N11)-INT(LOG(N11))),0))/96))*POWER(10,INT(LOG(N11))-2))) -> 40200 | P11: Ω
A12: 1.5 | C12: 0 | D12: 0 | E12: 0 | F12: 0 | M12: Rt1 | N12: ='Variable Management'!B25*1000 -> 15737.88462 | O12: =IF(N12>(INT(0.5+100*POWER(10,IF(96*(LOG(N12)-INT(LOG(N12)))-ROUND(96*(LOG(N12)-INT(LOG(N12))),0)<0,ROUND(96*(LOG(N12)-INT(LOG(N12))),0)-1,ROUND(96*(LOG(N12)-INT(LOG(N12))),0))/96))*POWER(10,INT(LOG(N12))-2)+INT(0.5+100*POWER(10,(IF(96*(LOG(N12)-INT(LOG(N12)))-ROUND(96*(LOG(N12)-INT(LOG(N12))),0)<0,ROUND(96*(LOG(N12)-INT(LOG(N12))),0)-1,ROUND(96*(LOG(N12)-INT(LOG(N12))),0))+1)/96))*POWER(10,INT(LOG(N12))-2))/2,INT(0.5+100*POWER(10,(IF(96*(LOG(N12)-INT(LOG(N12)))-ROUND(96*(LOG(N12)-INT(LOG(N12))),0)<0,ROUND(96*(LOG(N12)-INT(LOG(N12))),0)-1,ROUND(96*(LOG(N12)-INT(LOG(N12))),0))+1)/96))*POWER(10,INT(LOG(N12))-2),INT(0.5+100*POWER(10,IF(96*(LOG(N12)-INT(LOG(N12)))-ROUND(96*(LOG(N12)-INT(LOG(N12))),0)<0,ROUND(96*(LOG(N12)-INT(LOG(N12))),0)-1,ROUND(96*(LOG(N12)-INT(LOG(N12))),0))/96))*POWER(10,INT(LOG(N12))-2)) -> 15800 | P12: Ω
A13: 1.8 | C13: 0 | D13: 0 | E13: 0 | F13: 0 | M13: Rt2 | N13: ='Variable Management'!#REF!*1000 ->  | O13: =IF(N13="OPEN","OPEN",IF(N13>(INT(0.5+100*POWER(10,IF(96*(LOG(N13)-INT(LOG(N13)))-ROUND(96*(LOG(N13)-INT(LOG(N13))),0)<0,ROUND(96*(LOG(N13)-INT(LOG(N13))),0)-1,ROUND(96*(LOG(N13)-INT(LOG(N13))),0))/96))*POWER(10,INT(LOG(N13))-2)+INT(0.5+100*POWER(10,(IF(96*(LOG(N13)-INT(LOG(N13)))-ROUND(96*(LOG(N13)-INT(LOG(N13))),0)<0,ROUND(96*(LOG(N13)-INT(LOG(N13))),0)-1,ROUND(96*(LOG(N13)-INT(LOG(N13))),0))+1)/96))*POWER(10,INT(LOG(N13))-2))/2,INT(0.5+100*POWER(10,(IF(96*(LOG(N13)-INT(LOG(N13)))-ROUND(96*(LOG(N13)-INT(LOG(N13))),0)<0,ROUND(96*(LOG(N13)-INT(LOG(N13))),0)-1,ROUND(96*(LOG(N13)-INT(LOG(N13))),0))+1)/96))*POWER(10,INT(LOG(N13))-2),INT(0.5+100*POWER(10,IF(96*(LOG(N13)-INT(LOG(N13)))-ROUND(96*(LOG(N13)-INT(LOG(N13))),0)<0,ROUND(96*(LOG(N13)-INT(LOG(N13))),0)-1,ROUND(96*(LOG(N13)-INT(LOG(N13))),0))/96))*POWER(10,INT(LOG(N13))-2))) ->  | P13: Ω
A14: 2.2 | B14: =IF(IF((B$3*10^12-$A15)*(B$3*10^12-$A14)*-1<0,0,1)*IF(ABS(B$3*10^12-$A15)>(B$3*10^12-$A14),$A14,$A15)=B15,0,IF((B$3*10^12-$A15)*(B$3*10^12-$A14)*-1<0,0,1)*IF(ABS(B$3*10^12-$A15)>(B$3*10^12-$A14),$A14,$A15)) ->  | C14: 0 | D14: 0 | E14: 0 | F14: 0
A15: 2.7 | C15: 0 | D15: 0 | E15: 0 | F15: 0
A16: 3.3 | C16: 0 | D16: 0 | E16: 0 | F16: 0 | M16: Rs | N16: =Rs_ideal*1000 ->  | O16: =IF(N16=0,0,IF(N16>(INT(0.5+100*POWER(10,IF(96*(LOG(N16)-INT(LOG(N16)))-ROUND(96*(LOG(N16)-INT(LOG(N16))),0)<0,ROUND(96*(LOG(N16)-INT(LOG(N16))),0)-1,ROUND(96*(LOG(N16)-INT(LOG(N16))),0))/96))*POWER(10,INT(LOG(N16))-2)+INT(0.5+100*POWER(10,(IF(96*(LOG(N16)-INT(LOG(N16)))-ROUND(96*(LOG(N16)-INT(LOG(N16))),0)<0,ROUND(96*(LOG(N16)-INT(LOG(N16))),0)-1,ROUND(96*(LOG(N16)-INT(LOG(N16))),0))+1)/96))*POWER(10,INT(LOG(N16))-2))/2,INT(0.5+100*POWER(10,(IF(96*(LOG(N16)-INT(LOG(N16)))-ROUND(96*(LOG(N16)-INT(LOG(N16))),0)<0,ROUND(96*(LOG(N16)-INT(LOG(N16))),0)-1,ROUND(96*(LOG(N16)-INT(LOG(N16))),0))+1)/96))*POWER(10,INT(LOG(N16))-2),INT(0.5+100*POWER(10,IF(96*(LOG(N16)-INT(LOG(N16)))-ROUND(96*(LOG(N16)-INT(LOG(N16))),0)<0,ROUND(96*(LOG(N16)-INT(LOG(N16))),0)-1,ROUND(96*(LOG(N16)-INT(LOG(N16))),0))/96))*POWER(10,INT(LOG(N16))-2))) ->  | P16: mΩ
A17: 3.9 | C17: 0 | D17: 0 | E17: 0 | F17: 0 | M17: Cres | N17: =Cres ->  | O17: =G4*1000000000000 ->  | P17: pF
A18: 4.7 | C18: 0 | D18: 0 | E18: 0 | F18: 0
A19: 5.6 | C19: 0 | D19: 0 | E19: 0 | F19: 0
A20: 6.8 | C20: 0 | D20: 0 | E20: 0 | F20: 0
A21: 8.2 | C21: 0 | D21: 0 | E21: 0 | F21: 0
A22: 10 | C22: 0 | D22: 0 | E22: 0 | F22: 0 | M22: Cdither | N22: =Cdither_init ->  | O22: =H4 -> 
A23: 12 | C23: 15 | D23: 0 | E23: 0 | F23: 0
A24: 15 | C24: 0 | D24: 0 | E24: 0 | F24: 0
A25: 18 | C25: 0 | D25: 0 | E25: 0 | F25: 0
A26: 22 | C26: 0 | D26: 0 | E26: 0 | F26: 0
A27: 27 | C27: 0 | D27: 0 | E27: 0 | F27: 0
A28: 33 | C28: 0 | D28: 0 | E28: 0 | F28: 0
A29: 39 | C29: 0 | D29: 0 | E29: 0 | F29: 0
A30: 47 | C30: 0 | D30: 0 | E30: 0 | F30: 0 | M30: Rc1 | N30: =O7/1000&" kΩ" -> 100 kΩ | O30: =O7/1000 -> 100 | P30: kΩ
A31: 56 | C31: 0 | D31: 0 | E31: 0 | F31: 0 | M31: Cc1 | N31: =C4*1000000000&" nF" -> 0.015 nF | O31: =C4*1000000000 -> 0.015 | P31: nF
A32: 68 | C32: 0 | D32: 0 | E32: 0 | F32: 0 | M32: Cc2 | N32: =D4*1000000000000&" pF" -> 0 pF | O32: =D4*1000000000000 -> 0 | P32: pF
A33: 82 | C33: 0 | D33: 0 | E33: 0 | F33: 0
A34: =A22*10 -> 100 | C34: 0 | D34: 0 | E34: 0 | F34: 0 | M34: Rc2 | N34: =O8/1000&" kΩ" ->  | O34: =O8/1000 ->  | P34: kΩ
A35: =A23*10 -> 120 | C35: 0 | D35: 0 | E35: 0 | F35: 0 | M35: Cc3 | N35: =I4*1000000000&" nF" ->  | O35: =I4*1000000000 ->  | P35: nF
A36: 150 | C36: 0 | D36: 0 | E36: 0 | F36: 0 | M36: Cc4 | N36: =J4*1000000000000&" pF" ->  | O36: =J4*1000000000000 ->  | P36: pF
A37: 180 | C37: 0 | D37: 0 | E37: 0 | F37: 0
A38: 220 | C38: 0 | D38: 0 | E38: 0 | F38: 0
A39: 270 | C39: =IF(IF((C$3*10^12-$A40)*(C$3*10^12-$A39)*-1<0,0,1)*IF(ABS(C$3*10^12-$A40)>(C$3*10^12-$A39),$A39,$A40)=C40,0,IF((C$3*10^12-$A40)*(C$3*10^12-$A39)*-1<0,0,1)*IF(ABS(C$3*10^12-$A40)>(C$3*10^12-$A39),$A39,$A40)) -> 0 | D39: 0 | E39: 0 | F39: 0
A40: 330 | C40: 0 | D40: 0 | E40: 0 | F40: 0
A41: 390 | C41: 0 | D41: 0 | E41: 0 | F41: 0
A42: 470 | C42: 0 | D42: 0 | E42: 0 | F42: 0
A43: 560 | C43: 0 | D43: 0 | E43: 0 | F43: 0
A44: 680 | C44: 0 | D44: 0 | E44: 0 | F44: 0
A45: =A33*10 -> 820 | C45: 0 | D45: 0 | E45: 0 | F45: 0
A46: 1000 | C46: 0 | D46: 0 | E46: 0 | F46: 0
A47: 1200 | C47: 0 | D47: 0 | E47: 0 | F47: 0
A48: 1500 | C48: 0 | D48: 0 | E48: 0 | F48: 0
A49: 1800 | C49: 0 | D49: 0 | E49: 0 | F49: 0
A50: 2200 | C50: 0 | D50: 0 | E50: 0 | F50: 0
A51: 2700 | C51: 0 | D51: 0 | E51: 0 | F51: 0
A52: 3300 | C52: 0 | D52: 0 | E52: 0 | F52: 0
A53: 3900 | C53: 0 | D53: 0 | E53: 0 | F53: 0
A54: 4700 | C54: 0 | D54: 0 | E54: 0 | F54: 0
A55: 5600 | C55: 0 | D55: 0 | E55: 0 | F55: 0
A56: 6800 | C56: 0 | D56: 0 | E56: 0 | F56: 0
A57: 8200 | C57: 0 | D57: 0 | E57: 0 | F57: 0
A58: 10000 | C58: 0 | D58: 0 | E58: 0 | F58: 0
A59: 12000 | C59: 0 | D59: 0 | E59: 0 | F59: 0
A60: 15000 | C60: 0 | D60: 0 | E60: 0 | F60: 0
A61: 18000 | C61: 0 | D61: 0 | E61: 0 | F61: 0
A62: 22000 | C62: 0 | D62: 0 | E62: 0 | F62: 0
A63: 27000 | C63: 0 | D63: 0 | E63: 0 | F63: 0
A64: 33000 | C64: 0 | D64: 0 | E64: 0 | F64: 0
A65: 39000 | C65: 0 | D65: 0 | E65: 0 | F65: 0
A66: 47000 | C66: 0 | D66: 0 | E66: 0 | F66: 0
A67: 56000 | C67: 0 | D67: 0 | E67: 0 | F67: 0
A68: 68000 | C68: 0 | D68: 0 | E68: 0 | F68: 0
A69: 82000 | C69: 0 | D69: 0 | E69: 0 | F69: 0 | J69: =IF(IF((J$3*10^12-$A70)*(J$3*10^12-$A69)*-1<0,0,1)*IF(ABS(J$3*10^12-$A70)>(J$3*10^12-$A69),$A69,$A70)=J70,0,IF((J$3*10^12-$A70)*(J$3*10^12-$A69)*-1<0,0,1)*IF(ABS(J$3*10^12-$A70)>(J$3*10^12-$A69),$A69,$A70)) -> 
A70: 100000 | C70: 0 | D70: =IF(IF((D$3*10^12-$A71)*(D$3*10^12-$A70)*-1<0,0,1)*IF(ABS(D$3*10^12-$A71)>(D$3*10^12-$A70),$A70,$A71)=D71,0,IF((D$3*10^12-$A71)*(D$3*10^12-$A70)*-1<0,0,1)*IF(ABS(D$3*10^12-$A71)>(D$3*10^12-$A70),$A70,$A71)) -> 0 | E70: 0 | F70: 0
A71: 120000 | B71: =IF(IF((B$3*10^12-$A72)*(B$3*10^12-$A71)*-1<0,0,1)*IF(ABS(B$3*10^12-$A72)>(B$3*10^12-$A71),$A71,$A72)=B72,0,IF((B$3*10^12-$A72)*(B$3*10^12-$A71)*-1<0,0,1)*IF(ABS(B$3*10^12-$A72)>(B$3*10^12-$A71),$A71,$A72)) ->  | C71: =IF(IF((C$3*10^12-$A72)*(C$3*10^12-$A71)*-1<0,0,1)*IF(ABS(C$3*10^12-$A72)>(C$3*10^12-$A71),$A71,$A72)=C72,0,IF((C$3*10^12-$A72)*(C$3*10^12-$A71)*-1<0,0,1)*IF(ABS(C$3*10^12-$A72)>(C$3*10^12-$A71),$A71,$A72)) -> 0 | D71: 0 | E71: 0 | F71: =IF(IF((F$3*10^12-$A72)*(F$3*10^12-$A71)*-1<0,0,1)*IF(ABS(F$3*10^12-$A72)>(F$3*10^12-$A71),$A71,$A72)=F72,0,IF((F$3*10^12-$A72)*(F$3*10^12-$A71)*-1<0,0,1)*IF(ABS(F$3*10^12-$A72)>(F$3*10^12-$A71),$A71,$A72)) -> 0 | G71: =IF(IF((G$3*10^12-$A72)*(G$3*10^12-$A71)*-1<0,0,1)*IF(ABS(G$3*10^12-$A72)>(G$3*10^12-$A71),$A71,$A72)=G72,0,IF((G$3*10^12-$A72)*(G$3*10^12-$A71)*-1<0,0,1)*IF(ABS(G$3*10^12-$A72)>(G$3*10^12-$A71),$A71,$A72)) ->  | H71: =IF(IF((H$3*10^12-$A72)*(H$3*10^12-$A71)*-1<0,0,1)*IF(ABS(H$3*10^12-$A72)>(H$3*10^12-$A71),$A71,$A72)=H72,0,IF((H$3*10^12-$A72)*(H$3*10^12-$A71)*-1<0,0,1)*IF(ABS(H$3*10^12-$A72)>(H$3*10^12-$A71),$A71,$A72)) ->  | I71: =IF(IF((I$3*10^12-$A72)*(I$3*10^12-$A71)*-1<0,0,1)*IF(ABS(I$3*10^12-$A72)>(I$3*10^12-$A71),$A71,$A72)=I72,0,IF((I$3*10^12-$A72)*(I$3*10^12-$A71)*-1<0,0,1)*IF(ABS(I$3*10^12-$A72)>(I$3*10^12-$A71),$A71,$A72)) -> 
A72: 150000 | C72: 0 | D72: 0 | E72: 0 | F72: 0
A73: 180000 | C73: 0 | D73: 0 | E73: 0 | F73: 0
A74: 220000 | C74: 0 | D74: 0 | E74: 0 | F74: 0
A75: 270000 | C75: 0 | D75: 0 | E75: 0 | F75: 0
A76: 330000 | C76: 0 | D76: 0 | E76: 0 | F76: 0
A77: 390000 | C77: 0 | D77: 0 | E77: 0 | F77: 0
A78: 470000 | C78: 0 | D78: 0 | E78: 0 | F78: 0
A79: 560000 | C79: 0 | D79: 0 | E79: 0 | F79: 0
A80: 680000 | C80: 0 | D80: 0 | E80: 0 | F80: 0
A81: 820000 | C81: 0 | D81: 0 | E81: 0 | F81: 0
A82: 1000000 | C82: 0 | D82: 0 | E82: 0 | F82: 0
A83: 1200000 | C83: 0 | D83: 0 | E83: 0 | F83: 0
A84: 1500000 | C84: 0 | D84: 0 | E84: 0 | F84: 0
A85: 1800000 | C85: 0 | D85: 0 | E85: 0 | F85: 0
A86: 2200000 | C86: 0 | D86: 0 | E86: 0 | F86: 0
A87: 2700000 | C87: 0 | D87: 0 | E87: 0 | F87: 0
A88: 3300000 | C88: 0 | D88: 0 | E88: 0 | F88: 0
A89: 3900000 | C89: 0 | D89: 0 | E89: 0 | F89: 0
A90: 4700000 | C90: 0 | D90: 0 | E90: 0 | F90: 0
A91: 5600000 | C91: 0 | D91: 0 | E91: 0 | F91: 0
A92: 6800000 | C92: 0 | D92: 0 | E92: 0 | F92: 0
A93: 8200000 | C93: 0 | D93: 0 | E93: 0 | F93: 0
A94: 10000000 | C94: 0 | D94: 0 | E94: 0 | F94: 0
A95: 12000000 | C95: 0 | D95: 0 | E95: 0 | F95: 0
A96: 15000000 | C96: 0 | D96: 0 | E96: 0 | F96: 0
A97: 18000000 | C97: 0 | D97: 0 | E97: 0 | F97: 22000000
A98: 22000000 | C98: 0 | D98: 0 | E98: 0 | F98: 0
A99: =A87*10 -> 27000000 | C99: 0 | D99: 0 | E99: 0 | F99: 0
A100: 33000000 | C100: 0 | D100: 0 | E100: 0 | F100: 0
A101: 39000000 | C101: 0 | D101: 0 | E101: 0 | F101: 0
A102: 47000000 | C102: 0 | D102: 0 | E102: 0 | F102: 0
A103: 56000000 | C103: 0 | D103: 0 | E103: 56000000 | F103: =IF(IF((F$3*10^12-$A104)*(F$3*10^12-$A103)*-1<0,0,1)*IF(ABS(F$3*10^12-$A104)>(F$3*10^12-$A103),$A103,$A104)=F104,0,IF((F$3*10^12-$A104)*(F$3*10^12-$A103)*-1<0,0,1)*IF(ABS(F$3*10^12-$A104)>(F$3*10^12-$A103),$A103,$A104)) -> 0 | G103: =IF(IF((G$3*10^12-$A104)*(G$3*10^12-$A103)*-1<0,0,1)*IF(ABS(G$3*10^12-$A104)>(G$3*10^12-$A103),$A103,$A104)=G104,0,IF((G$3*10^12-$A104)*(G$3*10^12-$A103)*-1<0,0,1)*IF(ABS(G$3*10^12-$A104)>(G$3*10^12-$A103),$A103,$A104)) ->  | H103: =IF(IF((H$3*10^12-$A104)*(H$3*10^12-$A103)*-1<0,0,1)*IF(ABS(H$3*10^12-$A104)>(H$3*10^12-$A103),$A103,$A104)=H104,0,IF((H$3*10^12-$A104)*(H$3*10^12-$A103)*-1<0,0,1)*IF(ABS(H$3*10^12-$A104)>(H$3*10^12-$A103),$A103,$A104)) ->  | I103: =IF(IF((I$3*10^12-$A104)*(I$3*10^12-$A103)*-1<0,0,1)*IF(ABS(I$3*10^12-$A104)>(I$3*10^12-$A103),$A103,$A104)=I104,0,IF((I$3*10^12-$A104)*(I$3*10^12-$A103)*-1<0,0,1)*IF(ABS(I$3*10^12-$A104)>(I$3*10^12-$A103),$A103,$A104)) -> 
A104: 68000000 | C104: 0 | D104: 0 | E104: 0 | F104: 0
A105: 82000000 | C105: 0 | D105: 0 | E105: 0 | F105: 0
A106: 100000000 | C106: 0 | D106: 0 | E106: 0 | F106: 0
A107: 120000000 | C107: 0 | D107: 0 | E107: 0 | F107: 0
A108: 150000000 | C108: 0 | D108: 0 | E108: 0 | F108: 0
A109: 180000000 | C109: 0 | D109: 0 | E109: 0 | F109: 0
A110: 220000000 | C110: 0 | D110: 0 | E110: 0 | F110: 0
A111: 270000000 | C111: 0 | D111: 0 | E111: 0 | F111: 0
A112: 330000000 | C112: 0 | D112: 0 | E112: 0 | F112: 0
A113: 390000000 | C113: 0 | D113: 0 | E113: 0 | F113: 0
A114: 470000000 | C114: 0 | D114: 0 | E114: 0 | F114: 0
A115: 560000000 | C115: 0 | D115: 0 | E115: 0 | F115: 0
A116: 680000000 | C116: 0 | D116: 0 | E116: 0 | F116: 0
A117: 820000000 | C117: 0 | D117: 0 | E117: 0 | F117: 0
A118: 1000000000 | C118: 0 | D118: 0 | E118: 0 | F118: 0
A119: 1200000000 | C119: 0 | D119: 0 | E119: 0 | F119: 0
A120: 1500000000 | C120: 0 | D120: 0 | E120: 0 | F120: 0
A121: 1800000000 | C121: 0 | D121: 0 | E121: 0 | F121: 0
A122: 2200000000 | C122: 0 | D122: 0 | E122: 0 | F122: 0
A123: 2700000000 | C123: 0 | D123: 0 | E123: 0 | F123: 0
A124: 3300000000 | C124: 0 | D124: 0 | E124: 0 | F124: 0
A125: 3900000000 | C125: 0 | D125: 0 | E125: 0 | F125: 0
A126: 4700000000 | C126: 0 | D126: 0 | E126: 0 | F126: 0
A127: 5600000000 | C127: 0 | D127: 0 | E127: 0 | F127: 0
A128: 6800000000 | C128: 0 | D128: 0 | E128: 0 | F128: 0
A129: 8200000000 | C129: 0 | D129: 0 | E129: 0 | F129: 0
A130: 10000000000 | C130: 0 | D130: 0 | E130: 0 | F130: 0
A131: 12000000000 | C131: 0 | D131: 0 | E131: 0 | F131: 0
A132: 15000000000 | C132: 0 | D132: 0 | E132: 0 | F132: 0
A133: 18000000000 | C133: 0 | D133: 0 | E133: 0 | F133: 0 | J133: =IF(IF((J$3*10^12-$A134)*(J$3*10^12-$A133)*-1<0,0,1)*IF(ABS(J$3*10^12-$A134)>(J$3*10^12-$A133),$A133,$A134)=J134,0,IF((J$3*10^12-$A134)*(J$3*10^12-$A133)*-1<0,0,1)*IF(ABS(J$3*10^12-$A134)>(J$3*10^12-$A133),$A133,$A134)) -> 
A134: 22000000000 | C134: 0 | D134: 0 | E134: =IF(IF((E$3*10^12-$A135)*(E$3*10^12-$A134)*-1<0,0,1)*IF(ABS(E$3*10^12-$A135)>(E$3*10^12-$A134),$A134,$A135)=E135,0,IF((E$3*10^12-$A135)*(E$3*10^12-$A134)*-1<0,0,1)*IF(ABS(E$3*10^12-$A135)>(E$3*10^12-$A134),$A134,$A135)) -> 0 | F134: 0 | J134: =IF(IF((J$3*10^12-$A135)*(J$3*10^12-$A134)*-1<0,0,1)*IF(ABS(J$3*10^12-$A135)>(J$3*10^12-$A134),$A134,$A135)=J135,0,IF((J$3*10^12-$A135)*(J$3*10^12-$A134)*-1<0,0,1)*IF(ABS(J$3*10^12-$A135)>(J$3*10^12-$A134),$A134,$A135)) -> 
A135: 27000000000 | B135: =IF(IF((B$3*10^12-$A136)*(B$3*10^12-$A135)*-1<0,0,1)*IF(ABS(B$3*10^12-$A136)>(B$3*10^12-$A135),$A135,$A136)=B136,0,IF((B$3*10^12-$A136)*(B$3*10^12-$A135)*-1<0,0,1)*IF(ABS(B$3*10^12-$A136)>(B$3*10^12-$A135),$A135,$A136)) ->  | C135: =IF(IF((C$3*10^12-$A136)*(C$3*10^12-$A135)*-1<0,0,1)*IF(ABS(C$3*10^12-$A136)>(C$3*10^12-$A135),$A135,$A136)=C136,0,IF((C$3*10^12-$A136)*(C$3*10^12-$A135)*-1<0,0,1)*IF(ABS(C$3*10^12-$A136)>(C$3*10^12-$A135),$A135,$A136)) -> 0 | D135: 0 | E135: 0 | F135: 0
A136: 33000000000 | C136: 0 | D136: 0 | E136: 0 | F136: 0
A137: 39000000000 | C137: 0 | D137: 0 | E137: 0 | F137: 0
A138: 47000000000 | C138: 0 | D138: 0 | E138: 0 | F138: 0
A139: 56000000000 | C139: 0 | D139: 0 | E139: 0 | F139: 0
A140: 68000000000 | C140: 0 | D140: 0 | E140: 0 | F140: 0
A141: 82000000000 | C141: 0 | D141: 0 | E141: 0 | F141: 0
A142: 100000000000 | C142: 0 | D142: 0 | E142: 0 | F142: 0
A143: 120000000000 | C143: 0 | D143: 0 | E143: 0 | F143: 0
A144: 150000000000 | C144: 0 | D144: 0 | E144: 0 | F144: 0
A145: 180000000000 | C145: 0 | D145: 0 | E145: 0 | F145: 0
A146: 220000000000 | C146: 0 | D146: 0 | E146: 0 | F146: 0
A147: 270000000000 | C147: 0 | D147: 0 | E147: 0 | F147: 0
A148: 330000000000 | C148: 0 | D148: 0 | E148: 0 | F148: 0
A149: 390000000000 | C149: 0 | D149: 0 | E149: 0 | F149: 0
A150: 470000000000 | C150: 0 | D150: 0 | E150: 0 | F150: 0
A151: 560000000000 | C151: 0 | D151: 0 | E151: 0 | F151: 0
A152: 680000000000 | C152: 0 | D152: 0 | E152: 0 | F152: 0
A153: 820000000000 | C153: 0 | D153: 0 | E153: 0 | F153: 0
A154: 1000000000000 | C154: 0 | D154: 0 | E154: 0 | F154: 0
A155: 1200000000000 | C155: 0 | D155: 0 | E155: 0 | F155: 0
A156: 1500000000000 | C156: 0 | D156: 0 | E156: 0 | F156: 0
A157: 1800000000000 | C157: 0 | D157: 0 | E157: 0 | F157: 0
A158: 2200000000000 | C158: 0 | D158: 0 | E158: 0 | F158: 0
A159: 2700000000000 | C159: 2700000000000 | D159: 0 | E159: 2700000000000 | F159: 2700000000000

Sheet Snubber (hidden)
C1: UNITS | D1: STD UNITS
A2: Frequency of Ringing | B2: 85 | C2: MHz | D2: =B2*1000000 -> 85000000 | E2: Hz
A3: SW capacitance | B3: 3000 | C3: pF | D3: =B3*0.000000000001 -> 3e-09 | E3: F
A4: Lpar | B4: =1000000000*1/((D2*2*3.14159)^2*D3) -> 1.168643077 | C4: nH | D4: =B4/1000000000 -> 1.168643077e-09 | E4: H
A5: Csnub | B5: =4*B3 -> 12000 | C5: pF | D5: =B5*0.000000000001 -> 1.2e-08 | E5: F
A6: Rsnub | B6: =SQRT(D4/D3) -> 0.6241375589 | C6: Ω | D6: =B6 -> 0.6241375589 | E6: Ω

Sheet Parallel Output Caps (hidden)
A4: Fsw | B4: =Fsw -> 832000
A6: C1 | B6: 20 | C6: uF | D6: =B6/1000000 -> 2e-05 | E6: F
A7: R1 | B7: 0.5 | C7: mOhms | D7: =B7/1000 -> 0.0005 | E7: Ohms
A9: C2 | B9: 68 | C9: uF | D9: =B9/1000000 -> 6.8e-05 | E9: F
A10: R2 | B10: 20 | C10: mOhms | D10: =B10/1000 -> 0.02 | E10: Ohms
A13: I1 | B13: =(D6/(D6+D9))*SQRT((D10*D9*B4)^2+1)/SQRT((((D7+D10)*D6*D9/(D9+D6))*B4)^2+1) -> 0.3318641401 | C13: %
A14: I2 | B14: =1-B13 -> 0.6681358599 | C14: %
A16: I1 | B16: =B13*(Iripple1/(2*SQRT(3))) ->  | C16: A
A17: I2 | B17: =B14*(Iripple1/(2*SQRT(3))) ->  | C17: A
